Workbook

Sheet Unemployment figures
B1: Step 1: | D1: Step 2: | G1: Step 3:
B2: Select date of data | D2: Select Primary Area | G2: Select Comparison Area
B88: Area | C88: Number | D88: Rate | E88: Number change since last month | F88: Percentage change since last month | G88: Number change since last year | H88: Percentage change since last year
B89: ='District Bulletin Data'!A9 -> Kent | C89: =INDEX('District Bulletin Data'!C18:C38,'District Bulletin Data'!B2) -> 34290 | D89: =INDEX('District Bulletin Data'!B18:B38,'District Bulletin Data'!B2)/100 -> 0.035 | E89: =IF(ISERROR((INDEX('District Bulletin Data'!F18:F38,'District Bulletin Data'!$B$2)))," -",(INDEX('District Bulletin Data'!F18:F38,'District Bulletin Data'!$B$2))) -> 560 | F89: =IF(ISERROR((INDEX('District Bulletin Data'!G18:G38,'District Bulletin Data'!$B$2)))," -",(INDEX('District Bulletin Data'!G18:G38,'District Bulletin Data'!$B$2))) -> 0.01660243107 | G89: =IF(ISERROR((INDEX('District Bulletin Data'!I18:I38,'District Bulletin Data'!$B2)))," -",(INDEX('District Bulletin Data'!I18:I38,'District Bulletin Data'!$B2))) -> 1105 | H89: =IF(ISERROR((INDEX('District Bulletin Data'!J18:J38,'District Bulletin Data'!$B2)))," -",(INDEX('District Bulletin Data'!J18:J38,'District Bulletin Data'!$B2))) -> 0.03329817689
B90: ='District Bulletin Data'!A10 -> Great Britain | C90: =INDEX('District Bulletin Data'!C18:C38,'District Bulletin Data'!B3) -> 1738930 | D90: =INDEX('District Bulletin Data'!B18:B38,'District Bulletin Data'!B3)/100 -> 0.042 | E90: =IF(ISERROR((INDEX('District Bulletin Data'!F18:F38,'District Bulletin Data'!$B$3)))," -",(INDEX('District Bulletin Data'!F18:F38,'District Bulletin Data'!$B$3))) -> 27830 | F90: =IF(ISERROR((INDEX('District Bulletin Data'!G18:G38,'District Bulletin Data'!$B$3)))," -",(INDEX('District Bulletin Data'!G18:G38,'District Bulletin Data'!$B$3))) -> 0.01626439133 | G90: =IF(ISERROR((INDEX('District Bulletin Data'!I18:I38,'District Bulletin Data'!$B3)))," -",(INDEX('District Bulletin Data'!I18:I38,'District Bulletin Data'!$B3))) -> 166985 | H90: =IF(ISERROR((INDEX('District Bulletin Data'!J18:J38,'District Bulletin Data'!$B3)))," -",(INDEX('District Bulletin Data'!J18:J38,'District Bulletin Data'!$B3))) -> 0.1062282713
B94: Area | C94: Number | D94: Rate | E94: Number change since last month | F94: Percentage change since last month | G94: Number change since last year | H94: Percentage change since last year
B95: Ashford | C95: ='District Bulletin Data'!C20 -> 2705 | D95: ='District Bulletin Data'!B20/100 -> 0.032 | E95: =IF(ISERROR(('District Bulletin Data'!F20))," -",('District Bulletin Data'!F20)) -> 15 | F95: =IF(ISERROR(('District Bulletin Data'!G20))," -",('District Bulletin Data'!G20)) -> 0.005576208178 | G95: =IF(ISERROR(('District Bulletin Data'!I20))," -",('District Bulletin Data'!I20)) -> 135 | H95: =IF(ISERROR(('District Bulletin Data'!J20))," -",('District Bulletin Data'!J20)) -> 0.05252918288
B96: Canterbury | C96: ='District Bulletin Data'!C21 -> 3485 | D96: ='District Bulletin Data'!B21/100 -> 0.035 | E96: =IF(ISERROR(('District Bulletin Data'!F21))," -",('District Bulletin Data'!F21)) -> 115 | F96: =IF(ISERROR(('District Bulletin Data'!G21))," -",('District Bulletin Data'!G21)) -> 0.03412462908 | G96: =IF(ISERROR(('District Bulletin Data'!I21))," -",('District Bulletin Data'!I21)) -> 120 | H96: =IF(ISERROR(('District Bulletin Data'!J21))," -",('District Bulletin Data'!J21)) -> 0.03566121842
B97: Dartford | C97: ='District Bulletin Data'!C22 -> 2455 | D97: ='District Bulletin Data'!B22/100 -> 0.032 | E97: =IF(ISERROR(('District Bulletin Data'!F22))," -",('District Bulletin Data'!F22)) -> 60 | F97: =IF(ISERROR(('District Bulletin Data'!G22))," -",('District Bulletin Data'!G22)) -> 0.02505219207 | G97: =IF(ISERROR(('District Bulletin Data'!I22))," -",('District Bulletin Data'!I22)) -> 135 | H97: =IF(ISERROR(('District Bulletin Data'!J22))," -",('District Bulletin Data'!J22)) -> 0.05818965517
B98: Dover | C98: ='District Bulletin Data'!C23 -> 2515 | D98: ='District Bulletin Data'!B23/100 -> 0.037 | E98: =IF(ISERROR(('District Bulletin Data'!F23))," -",('District Bulletin Data'!F23)) -> 55 | F98: =IF(ISERROR(('District Bulletin Data'!G23))," -",('District Bulletin Data'!G23)) -> 0.02235772358 | G98: =IF(ISERROR(('District Bulletin Data'!I23))," -",('District Bulletin Data'!I23)) -> -245 | H98: =IF(ISERROR(('District Bulletin Data'!J23))," -",('District Bulletin Data'!J23)) -> -0.08876811594
B99: Folkestone & Hythe | C99: ='District Bulletin Data'!C24 -> 2715 | D99: ='District Bulletin Data'!B24/100 -> 0.042 | E99: =IF(ISERROR(('District Bulletin Data'!F24))," -",('District Bulletin Data'!F24)) -> 35 | F99: =IF(ISERROR(('District Bulletin Data'!G24))," -",('District Bulletin Data'!G24)) -> 0.01305970149 | G99: =IF(ISERROR(('District Bulletin Data'!I24))," -",('District Bulletin Data'!I24)) -> 15 | H99: =IF(ISERROR(('District Bulletin Data'!J24))," -",('District Bulletin Data'!J24)) -> 0.005555555556
B100: Gravesham | C100: ='District Bulletin Data'!C25 -> 3060 | D100: ='District Bulletin Data'!B25/100 -> 0.046 | E100: =IF(ISERROR(('District Bulletin Data'!F25))," -",('District Bulletin Data'!F25)) -> 35 | F100: =IF(ISERROR(('District Bulletin Data'!G25))," -",('District Bulletin Data'!G25)) -> 0.01157024793 | G100: =IF(ISERROR(('District Bulletin Data'!I25))," -",('District Bulletin Data'!I25)) -> 105 | H100: =IF(ISERROR(('District Bulletin Data'!J25))," -",('District Bulletin Data'!J25)) -> 0.03553299492
B101: Maidstone | C101: ='District Bulletin Data'!C26 -> 3735 | D101: ='District Bulletin Data'!B26/100 -> 0.033 | E101: =IF(ISERROR(('District Bulletin Data'!F26))," -",('District Bulletin Data'!F26)) -> 90 | F101: =IF(ISERROR(('District Bulletin Data'!G26))," -",('District Bulletin Data'!G26)) -> 0.02469135802 | G101: =IF(ISERROR(('District Bulletin Data'!I26))," -",('District Bulletin Data'!I26)) -> 235 | H101: =IF(ISERROR(('District Bulletin Data'!J26))," -",('District Bulletin Data'!J26)) -> 0.06714285714
B102: Sevenoaks | C102: ='District Bulletin Data'!C27 -> 1625 | D102: ='District Bulletin Data'!B27/100 -> 0.023 | E102: =IF(ISERROR(('District Bulletin Data'!F27))," -",('District Bulletin Data'!F27)) -> 45 | F102: =IF(ISERROR(('District Bulletin Data'!G27))," -",('District Bulletin Data'!G27)) -> 0.02848101266 | G102: =IF(ISERROR(('District Bulletin Data'!I27))," -",('District Bulletin Data'!I27)) -> 165 | H102: =IF(ISERROR(('District Bulletin Data'!J27))," -",('District Bulletin Data'!J27)) -> 0.1130136986
B103: Swale | C103: ='District Bulletin Data'!C28 -> 3515 | D103: ='District Bulletin Data'!B28/100 -> 0.037 | E103: =IF(ISERROR(('District Bulletin Data'!F28))," -",('District Bulletin Data'!F28)) -> 5 | F103: =IF(ISERROR(('District Bulletin Data'!G28))," -",('District Bulletin Data'!G28)) -> 0.001424501425 | G103: =IF(ISERROR(('District Bulletin Data'!I28))," -",('District Bulletin Data'!I28)) -> -20 | H103: =IF(ISERROR(('District Bulletin Data'!J28))," -",('District Bulletin Data'!J28)) -> -0.005657708628
B104: Thanet | C104: ='District Bulletin Data'!C29 -> 4650 | D104: ='District Bulletin Data'!B29/100 -> 0.057 | E104: =IF(ISERROR(('District Bulletin Data'!F29))," -",('District Bulletin Data'!F29)) -> 55 | F104: =IF(ISERROR(('District Bulletin Data'!G29))," -",('District Bulletin Data'!G29)) -> 0.0119695321 | G104: =IF(ISERROR(('District Bulletin Data'!I29))," -",('District Bulletin Data'!I29)) -> 90 | H104: =IF(ISERROR(('District Bulletin Data'!J29))," -",('District Bulletin Data'!J29)) -> 0.01973684211
B105: Tonbridge & Malling | C105: ='District Bulletin Data'!C30 -> 2000 | D105: ='District Bulletin Data'!B30/100 -> 0.024 | E105: =IF(ISERROR(('District Bulletin Data'!F30))," -",('District Bulletin Data'!F30)) -> 45 | F105: =IF(ISERROR(('District Bulletin Data'!G30))," -",('District Bulletin Data'!G30)) -> 0.02301790281 | G105: =IF(ISERROR(('District Bulletin Data'!I30))," -",('District Bulletin Data'!I30)) -> 185 | H105: =IF(ISERROR(('District Bulletin Data'!J30))," -",('District Bulletin Data'!J30)) -> 0.1019283747
B106: Tunbridge Wells | C106: ='District Bulletin Data'!C31 -> 1830 | D106: ='District Bulletin Data'!B31/100 -> 0.026 | E106: =IF(ISERROR(('District Bulletin Data'!F31))," -",('District Bulletin Data'!F31)) -> 5 | F106: =IF(ISERROR(('District Bulletin Data'!G31))," -",('District Bulletin Data'!G31)) -> 0.002739726027 | G106: =IF(ISERROR(('District Bulletin Data'!I31))," -",('District Bulletin Data'!I31)) -> 175 | H106: =IF(ISERROR(('District Bulletin Data'!J31))," -",('District Bulletin Data'!J31)) -> 0.1057401813
B107: Kent | C107: ='District Bulletin Data'!C18 -> 34290 | D107: ='District Bulletin Data'!B18/100 -> 0.035 | E107: =IF(ISERROR(('District Bulletin Data'!F18))," -",('District Bulletin Data'!F18)) -> 560 | F107: =IF(ISERROR(('District Bulletin Data'!G18))," -",('District Bulletin Data'!G18)) -> 0.01660243107 | G107: =IF(ISERROR(('District Bulletin Data'!I18))," -",('District Bulletin Data'!I18)) -> 1105 | H107: =IF(ISERROR(('District Bulletin Data'!J18))," -",('District Bulletin Data'!J18)) -> 0.03329817689
B108: Medway | C108: ='District Bulletin Data'!C19 -> 7730 | D108: ='District Bulletin Data'!B19/100 -> 0.043 | E108: =IF(ISERROR(('District Bulletin Data'!F19))," -",('District Bulletin Data'!F19)) -> 165 | F108: =IF(ISERROR(('District Bulletin Data'!G19))," -",('District Bulletin Data'!G19)) -> 0.02181097158 | G108: =IF(ISERROR(('District Bulletin Data'!I19))," -",('District Bulletin Data'!I19)) -> 640 | H108: =IF(ISERROR(('District Bulletin Data'!J19))," -",('District Bulletin Data'!J19)) -> 0.09026798307
B115: Sex | C115: Number | D115: Rate | E115: Number change since last month | F115: Percentage change since last month | G115: Number change since last year | H115: Percentage change since last year
B116: Males | C116: =INDEX('District Bulletin Data'!B119:B139,'District Bulletin Data'!B2) -> 18900 | D116: =INDEX('District Bulletin Data'!C119:C139,'District Bulletin Data'!B2) -> 0.04 | E116: =INDEX('District Bulletin Data'!G119:G139,'District Bulletin Data'!$B$2) -> 250 | F116: =INDEX('District Bulletin Data'!H119:H139,'District Bulletin Data'!$B$2) -> 0.01340482574 | G116: =IF(ISERROR((INDEX('District Bulletin Data'!M119:M139,'District Bulletin Data'!$B$2)))," -",(INDEX('District Bulletin Data'!M119:M139,'District Bulletin Data'!$B$2))) -> 415 | H116: =IF(ISERROR((INDEX('District Bulletin Data'!N119:N139,'District Bulletin Data'!$B$2)))," -",(INDEX('District Bulletin Data'!N119:N139,'District Bulletin Data'!$B$2))) -> 0.02245063565
B117: Females | C117: =INDEX('District Bulletin Data'!D119:D139,'District Bulletin Data'!B2) -> 15390 | D117: =INDEX('District Bulletin Data'!E119:E139,'District Bulletin Data'!B2) -> 0.031 | E117: =INDEX('District Bulletin Data'!J119:J139,'District Bulletin Data'!$B$2) -> 310 | F117: =INDEX('District Bulletin Data'!K119:K139,'District Bulletin Data'!$B$2) -> 0.02055702918 | G117: =IF(ISERROR((INDEX('District Bulletin Data'!P119:P139,'District Bulletin Data'!$B$2)))," -",(INDEX('District Bulletin Data'!P119:P1392,'District Bulletin Data'!$B$2))) -> 690 | H117: =IF(ISERROR((INDEX('District Bulletin Data'!Q119:Q139,'District Bulletin Data'!$B$2)))," -",(INDEX('District Bulletin Data'!Q119:Q1392,'District Bulletin Data'!$B$2))) -> 0.04693877551
B118: Total | C118: =INDEX('District Bulletin Data'!C18:C38,'District Bulletin Data'!B2) -> 34290 | D118: =INDEX('District Bulletin Data'!B18:B38,'District Bulletin Data'!B2)/100 -> 0.035 | E118: =E89 -> 560 | F118: =F89 -> 0.01660243107 | G118: =G89 -> 1105 | H118: =H89 -> 0.03329817689
B123: Area | C123: Male claimants | D123: Male claimant rate | E123: Female claimants | F123: Female claimant rate
B124: Ashford | C124: ='District Bulletin Data'!B121 -> 1440 | D124: ='District Bulletin Data'!C121 -> 0.035 | E124: ='District Bulletin Data'!D121 -> 1270 | F124: ='District Bulletin Data'!E121 -> 0.029
B125: Canterbury | C125: ='District Bulletin Data'!B122 -> 1975 | D125: ='District Bulletin Data'!C122 -> 0.041 | E125: ='District Bulletin Data'!D122 -> 1510 | F125: ='District Bulletin Data'!E122 -> 0.03
B126: Dartford | C126: ='District Bulletin Data'!B123 -> 1245 | D126: ='District Bulletin Data'!C123 -> 0.033 | E126: ='District Bulletin Data'!D123 -> 1210 | F126: ='District Bulletin Data'!E123 -> 0.031
B127: Dover | C127: ='District Bulletin Data'!B124 -> 1425 | D127: ='District Bulletin Data'!C124 -> 0.042 | E127: ='District Bulletin Data'!D124 -> 1090 | F127: ='District Bulletin Data'!E124 -> 0.031
B128: Folkestone & Hythe | C128: ='District Bulletin Data'!B125 -> 1550 | D128: ='District Bulletin Data'!C125 -> 0.049 | E128: ='District Bulletin Data'!D125 -> 1170 | F128: ='District Bulletin Data'!E125 -> 0.036
B129: Gravesham | C129: ='District Bulletin Data'!B126 -> 1670 | D129: ='District Bulletin Data'!C126 -> 0.052 | E129: ='District Bulletin Data'!D126 -> 1390 | F129: ='District Bulletin Data'!E126 -> 0.041
B130: Maidstone | C130: ='District Bulletin Data'!B127 -> 2020 | D130: ='District Bulletin Data'!C127 -> 0.036 | E130: ='District Bulletin Data'!D127 -> 1715 | F130: ='District Bulletin Data'!E127 -> 0.03
B131: Sevenoaks | C131: ='District Bulletin Data'!B128 -> 810 | D131: ='District Bulletin Data'!C128 -> 0.024 | E131: ='District Bulletin Data'!D128 -> 815 | F131: ='District Bulletin Data'!E128 -> 0.022
B132: Swale | C132: ='District Bulletin Data'!B129 -> 2025 | D132: ='District Bulletin Data'!C129 -> 0.043 | E132: ='District Bulletin Data'!D129 -> 1490 | F132: ='District Bulletin Data'!E129 -> 0.031
B133: Thanet | C133: ='District Bulletin Data'!B130 -> 2750 | D133: ='District Bulletin Data'!C130 -> 0.07 | E133: ='District Bulletin Data'!D130 -> 1905 | F133: ='District Bulletin Data'!E130 -> 0.045
B134: Tonbridge & Malling | C134: ='District Bulletin Data'!B131 -> 1010 | D134: ='District Bulletin Data'!C131 -> 0.025 | E134: ='District Bulletin Data'!D131 -> 995 | F134: ='District Bulletin Data'!E131 -> 0.024
B135: Tunbridge Wells | C135: ='District Bulletin Data'!B132 -> 990 | D135: ='District Bulletin Data'!C132 -> 0.029 | E135: ='District Bulletin Data'!D132 -> 845 | F135: ='District Bulletin Data'!E132 -> 0.024
B136: Kent | C136: ='District Bulletin Data'!B119 -> 18900 | D136: ='District Bulletin Data'!C119 -> 0.04 | E136: ='District Bulletin Data'!D119 -> 15390 | F136: ='District Bulletin Data'!E119 -> 0.031
B137: Medway | C137: ='District Bulletin Data'!B120 -> 4200 | D137: ='District Bulletin Data'!C120 -> 0.048 | E137: ='District Bulletin Data'!D120 -> 3530 | F137: ='District Bulletin Data'!E120 -> 0.039
B174: Age group | C174: Number | D174: Rate | E174: Number change since last month | F174: Percentage change since last month | G174: Number change since last year | H174: Percentage change since last year
B175: 18-24 | C175: =INDEX('Bulletin Age data'!B17:HM17,'District Bulletin Data'!B1) -> 6730 | D175: =INDEX('Bulletin Age data'!B5:HM5,'District Bulletin Data'!B1)/100 -> 0.0606328156 | E175: =INDEX('District Bulletin Data'!F44:F64,'District Bulletin Data'!$B$2) -> 265 | F175: =INDEX('District Bulletin Data'!G44:G64,'District Bulletin Data'!$B$2) -> 0.04098994586 | G175: =IF(ISERROR((INDEX('District Bulletin Data'!I44:I64,'District Bulletin Data'!$B$2)))," -",(INDEX('District Bulletin Data'!I44:I64,'District Bulletin Data'!$B$2))) -> 490 | H175: =IF(ISERROR((INDEX('District Bulletin Data'!J44:J64,'District Bulletin Data'!$B$2)))," -",(INDEX('District Bulletin Data'!J44:J64,'District Bulletin Data'!$B$2))) -> 0.07852564103
B176: 25-49 | C176: =INDEX('Bulletin Age data'!B21:HM21,'District Bulletin Data'!B1) -> 19585 | D176: =INDEX('Bulletin Age data'!B9:HM9,'District Bulletin Data'!B1)/100 -> 0.0391485466 | E176: =INDEX('District Bulletin Data'!F69:F89,'District Bulletin Data'!$B$2) -> 115 | F176: =INDEX('District Bulletin Data'!G69:G89,'District Bulletin Data'!$B$2) -> 0.005906522856 | G176: =IF(ISERROR((INDEX('District Bulletin Data'!I69:I89,'District Bulletin Data'!$B$2)))," -",(INDEX('District Bulletin Data'!I69:I89,'District Bulletin Data'!$B$2))) -> 290 | H176: =IF(ISERROR((INDEX('District Bulletin Data'!J69:J89,'District Bulletin Data'!$B$2)))," -",(INDEX('District Bulletin Data'!J69:J89,'District Bulletin Data'!$B$2))) -> 0.01502980047
B177: 50-64 | C177: =INDEX('Bulletin Age data'!B25:HM25,'District Bulletin Data'!B1) -> 7925 | D177: =INDEX('Bulletin Age data'!B13:HM13,'District Bulletin Data'!B1)/100 -> 0.02469793722 | E177: =INDEX('District Bulletin Data'!F94:F114,'District Bulletin Data'!$B$2) -> 180 | F177: =INDEX('District Bulletin Data'!G94:G114,'District Bulletin Data'!$B$2) -> 0.02324080052 | G177: =IF(ISERROR((INDEX('District Bulletin Data'!I94:I114,'District Bulletin Data'!$B$2)))," -",(INDEX('District Bulletin Data'!I94:I114,'District Bulletin Data'!$B$2))) -> 335 | H177: =IF(ISERROR((INDEX('District Bulletin Data'!J94:J114,'District Bulletin Data'!$B$2)))," -",(INDEX('District Bulletin Data'!J94:J114,'District Bulletin Data'!$B$2))) -> 0.0441370224
B182: Area | C182: 18-24 claimants | D182: 25-49 claimants | E182: 50-64 claimants | F182: 18-24 claimant rate | G182: 25-49 claimant rate | H182: 50-64 claimant rate
B183: Ashford | C183: ='District Bulletin Data'!C46 -> 510 | D183: ='District Bulletin Data'!C71 -> 1560 | E183: ='District Bulletin Data'!C96 -> 630 | F183: =IF(ISERROR(('District Bulletin Data'!B46))," -",('District Bulletin Data'!B46)) -> 0.05760108426 | G183: =IF(ISERROR(('District Bulletin Data'!B71))," -",('District Bulletin Data'!B71)) -> 0.03559612094 | H183: =IF(ISERROR(('District Bulletin Data'!B96))," -",('District Bulletin Data'!B96)) -> 0.02254751083
B184: Canterbury | C184: ='District Bulletin Data'!C47 -> 740 | D184: ='District Bulletin Data'!C72 -> 1915 | E184: ='District Bulletin Data'!C97 -> 815 | F184: =IF(ISERROR(('District Bulletin Data'!B47))," -",('District Bulletin Data'!B47)) -> 0.03532050976 | G184: =IF(ISERROR(('District Bulletin Data'!B72))," -",('District Bulletin Data'!B72)) -> 0.04349702449 | H184: =IF(ISERROR(('District Bulletin Data'!B97))," -",('District Bulletin Data'!B97)) -> 0.02726755663
B185: Dartford | C185: ='District Bulletin Data'!C48 -> 435 | D185: ='District Bulletin Data'!C73 -> 1530 | E185: ='District Bulletin Data'!C98 -> 490 | F185: =IF(ISERROR(('District Bulletin Data'!B48))," -",('District Bulletin Data'!B48)) -> 0.05743332453 | G185: =IF(ISERROR(('District Bulletin Data'!B73))," -",('District Bulletin Data'!B73)) -> 0.0335983135 | H185: =IF(ISERROR(('District Bulletin Data'!B98))," -",('District Bulletin Data'!B98)) -> 0.02367836088
B186: Dover | C186: ='District Bulletin Data'!C49 -> 560 | D186: ='District Bulletin Data'!C74 -> 1365 | E186: ='District Bulletin Data'!C99 -> 590 | F186: =IF(ISERROR(('District Bulletin Data'!B49))," -",('District Bulletin Data'!B49)) -> 0.08033280734 | G186: =IF(ISERROR(('District Bulletin Data'!B74))," -",('District Bulletin Data'!B74)) -> 0.04053813257 | H186: =IF(ISERROR(('District Bulletin Data'!B99))," -",('District Bulletin Data'!B99)) -> 0.02317451589
B187: Folkestone & Hythe | C187: ='District Bulletin Data'!C50 -> 565 | D187: ='District Bulletin Data'!C75 -> 1420 | E187: ='District Bulletin Data'!C100 -> 720 | F187: =IF(ISERROR(('District Bulletin Data'!B50))," -",('District Bulletin Data'!B50)) -> 0.08460616951 | G187: =IF(ISERROR(('District Bulletin Data'!B75))," -",('District Bulletin Data'!B75)) -> 0.0455201154 | H187: =IF(ISERROR(('District Bulletin Data'!B100))," -",('District Bulletin Data'!B100)) -> 0.03001625881
B188: Gravesham | C188: ='District Bulletin Data'!C51 -> 635 | D188: ='District Bulletin Data'!C76 -> 1800 | E188: ='District Bulletin Data'!C101 -> 615 | F188: =IF(ISERROR(('District Bulletin Data'!B51))," -",('District Bulletin Data'!B51)) -> 0.08518916018 | G188: =IF(ISERROR(('District Bulletin Data'!B76))," -",('District Bulletin Data'!B76)) -> 0.0508460213 | H188: =IF(ISERROR(('District Bulletin Data'!B101))," -",('District Bulletin Data'!B101)) -> 0.03020183666
B189: Maidstone | C189: ='District Bulletin Data'!C52 -> 710 | D189: ='District Bulletin Data'!C77 -> 2220 | E189: ='District Bulletin Data'!C102 -> 795 | F189: =IF(ISERROR(('District Bulletin Data'!B52))," -",('District Bulletin Data'!B52)) -> 0.06159986118 | G189: =IF(ISERROR(('District Bulletin Data'!B77))," -",('District Bulletin Data'!B77)) -> 0.03602726388 | H189: =IF(ISERROR(('District Bulletin Data'!B102))," -",('District Bulletin Data'!B102)) -> 0.02220360285
B190: Sevenoaks | C190: ='District Bulletin Data'!C53 -> 240 | D190: ='District Bulletin Data'!C78 -> 980 | E190: ='District Bulletin Data'!C103 -> 405 | F190: =IF(ISERROR(('District Bulletin Data'!B53))," -",('District Bulletin Data'!B53)) -> 0.0346170489 | G190: =IF(ISERROR(('District Bulletin Data'!B78))," -",('District Bulletin Data'!B78)) -> 0.02771728371 | H190: =IF(ISERROR(('District Bulletin Data'!B103))," -",('District Bulletin Data'!B103)) -> 0.01612453717
B191: Swale | C191: ='District Bulletin Data'!C54 -> 760 | D191: ='District Bulletin Data'!C79 -> 2000 | E191: ='District Bulletin Data'!C104 -> 755 | F191: =IF(ISERROR(('District Bulletin Data'!B54))," -",('District Bulletin Data'!B54)) -> 0.07211310371 | G191: =IF(ISERROR(('District Bulletin Data'!B79))," -",('District Bulletin Data'!B79)) -> 0.04010829239 | H191: =IF(ISERROR(('District Bulletin Data'!B104))," -",('District Bulletin Data'!B104)) -> 0.02428043094
B192: Thanet | C192: ='District Bulletin Data'!C55 -> 1000 | D192: ='District Bulletin Data'!C80 -> 2535 | E192: ='District Bulletin Data'!C105 -> 1110 | F192: =IF(ISERROR(('District Bulletin Data'!B55))," -",('District Bulletin Data'!B55)) -> 0.1162925922 | G192: =IF(ISERROR(('District Bulletin Data'!B80))," -",('District Bulletin Data'!B80)) -> 0.06156797979 | H192: =IF(ISERROR(('District Bulletin Data'!B105))," -",('District Bulletin Data'!B105)) -> 0.03882204813
B193: Tonbridge & Malling | C193: ='District Bulletin Data'!C56 -> 340 | D193: ='District Bulletin Data'!C81 -> 1160 | E193: ='District Bulletin Data'!C106 -> 500 | F193: =IF(ISERROR(('District Bulletin Data'!B56))," -",('District Bulletin Data'!B56)) -> 0.04017962657 | G193: =IF(ISERROR(('District Bulletin Data'!B81))," -",('District Bulletin Data'!B81)) -> 0.0272607633 | H193: =IF(ISERROR(('District Bulletin Data'!B106))," -",('District Bulletin Data'!B106)) -> 0.01816794448
B194: Tunbridge Wells | C194: ='District Bulletin Data'!C57 -> 240 | D194: ='District Bulletin Data'!C82 -> 1100 | E194: ='District Bulletin Data'!C107 -> 490 | F194: =IF(ISERROR(('District Bulletin Data'!B57))," -",('District Bulletin Data'!B57)) -> 0.03718048025 | G194: =IF(ISERROR(('District Bulletin Data'!B82))," -",('District Bulletin Data'!B82)) -> 0.03051402258 | H194: =IF(ISERROR(('District Bulletin Data'!B107))," -",('District Bulletin Data'!B107)) -> 0.02007045138
B195: Kent | C195: ='District Bulletin Data'!C44 -> 6730 | D195: ='District Bulletin Data'!C69 -> 19585 | E195: ='District Bulletin Data'!C94 -> 7925 | F195: =IF(ISERROR(('District Bulletin Data'!B44))," -",('District Bulletin Data'!B44)) -> 0.0606328156 | G195: =IF(ISERROR(('District Bulletin Data'!B69))," -",('District Bulletin Data'!B69)) -> 0.0391485466 | H195: =IF(ISERROR(('District Bulletin Data'!B94))," -",('District Bulletin Data'!B94)) -> 0.02469793722
B196: Medway | C196: ='District Bulletin Data'!C45 -> 1525 | D196: ='District Bulletin Data'!C70 -> 4575 | E196: ='District Bulletin Data'!C95 -> 1620 | F196: =IF(ISERROR(('District Bulletin Data'!B45))," -",('District Bulletin Data'!B45)) -> 0.07117852975 | G196: =IF(ISERROR(('District Bulletin Data'!B70))," -",('District Bulletin Data'!B70)) -> 0.04680642092 | H196: =IF(ISERROR(('District Bulletin Data'!B95))," -",('District Bulletin Data'!B95)) -> 0.03031664047
B225: Area | C225: Number | D225: Rate | E225: Number change since last month | F225: Percentage change since last month | G225: Number change since last year | H225: Percentage change since last year
B226: ='Bulletin Age data'!A17 -> Kent | C226: =INDEX('District Bulletin Data'!C44:C64,'District Bulletin Data'!B2) -> 6730 | D226: =INDEX('District Bulletin Data'!B44:B64,'District Bulletin Data'!B2) -> 0.0606328156 | E226: =IF(ISERROR((INDEX('District Bulletin Data'!F44:F64,'District Bulletin Data'!$B$2)))," -",(INDEX('District Bulletin Data'!F44:F64,'District Bulletin Data'!$B$2))) -> 265 | F226: =IF(ISERROR((INDEX('District Bulletin Data'!G44:G64,'District Bulletin Data'!$B$2)))," -",(INDEX('District Bulletin Data'!G44:G64,'District Bulletin Data'!$B$2))) -> 0.04098994586 | G226: =IF(ISERROR((INDEX('District Bulletin Data'!I44:I64,'District Bulletin Data'!$B2)))," -",(INDEX('District Bulletin Data'!I44:I64,'District Bulletin Data'!$B2))) -> 490 | H226: =IF(ISERROR((INDEX('District Bulletin Data'!J44:J64,'District Bulletin Data'!$B2)))," -",(INDEX('District Bulletin Data'!J44:J64,'District Bulletin Data'!$B2))) -> 0.07852564103
B227: ='Bulletin Age data'!A18 -> Great Britain | C227: =INDEX('District Bulletin Data'!C44:C64,'District Bulletin Data'!B3) -> 305225 | D227: =INDEX('District Bulletin Data'!B44:B64,'District Bulletin Data'!B3) -> 0.05568228379 | E227: =IF(ISERROR((INDEX('District Bulletin Data'!F44:F64,'District Bulletin Data'!$B3)))," -",(INDEX('District Bulletin Data'!F44:F64,'District Bulletin Data'!$B3))) -> 8760 | F227: =IF(ISERROR((INDEX('District Bulletin Data'!G44:G64,'District Bulletin Data'!$B3)))," -",(INDEX('District Bulletin Data'!G44:G64,'District Bulletin Data'!$B3))) -> 0.02954817601 | G227: =IF(ISERROR((INDEX('District Bulletin Data'!I44:I64,'District Bulletin Data'!$B3)))," -",(INDEX('District Bulletin Data'!I44:I64,'District Bulletin Data'!$B3))) -> 26455 | H227: =IF(ISERROR((INDEX('District Bulletin Data'!J44:J64,'District Bulletin Data'!$B3)))," -",(INDEX('District Bulletin Data'!J44:J64,'District Bulletin Data'!$B3))) -> 0.0948990207
B233: Age group | C233: ="Number of claimants in "&'District Bulletin Data'!N1 -> Number of claimants in Kent | D233: ="% of all unemployed in "&'District Bulletin Data'!N1 -> % of all unemployed in Kent | E233: ="Number of claimants in "&'District Bulletin Data'!N2 -> Number of claimants in Great Britain | F233: ="% of all unemployed in "&'District Bulletin Data'!N2 -> % of all unemployed in Great Britain
B234: 18-24 | C234: =INDEX('District Bulletin Data'!C44:C64,'District Bulletin Data'!B2) -> 6730 | D234: =C234/$C$89 -> 0.1962671333 | E234: =INDEX('District Bulletin Data'!C44:C64,'District Bulletin Data'!B3) -> 305225 | F234: =E234/$C$90 -> 0.1755246042
B235: 25-49 | C235: =INDEX('District Bulletin Data'!C69:C89,'District Bulletin Data'!B2) -> 19585 | D235: =C235/$C$89 -> 0.5711577719 | E235: =INDEX('District Bulletin Data'!C69:C89,'District Bulletin Data'!B3) -> 1025930 | F235: =E235/$C$90 -> 0.5899777449
B236: 50-64 | C236: =INDEX('District Bulletin Data'!C94:C114,'District Bulletin Data'!B2) -> 7925 | D236: =C236/$C$89 -> 0.2311169437 | E236: =INDEX('District Bulletin Data'!C94:C114,'District Bulletin Data'!B3) -> 404395 | F236: =E236/$C$90 -> 0.2325539268

Sheet District Data (hidden)
A1: Claimant Count - Total Unemployment | HM1: Insert new column
A2: Source: NOMIS
A4: Percentage | B4: 2007-01-01 | C4: 2007-02-01 | D4: 2007-03-01 | E4: 2007-04-01 | F4: 2007-05-01 | G4: 2007-06-01 | H4: 2007-07-01 | I4: 2007-08-01 | J4: 2007-09-01 | K4: 2007-10-01 | L4: 2007-11-01 | M4: 2007-12-01 | N4: 2008-01-01 | O4: 2008-02-01 | P4: 2008-03-01 | Q4: 2008-04-01 | R4: 2008-05-01 | S4: 2008-06-01 | T4: 2008-07-01 | U4: 2008-08-01 | V4: 2008-09-01 | W4: 2008-10-01 | X4: 2008-11-01 | Y4: 2008-12-01 | Z4: 2009-01-01 | AA4: 2009-02-01 | AB4: 2009-03-01 | AC4: 2009-04-01 | AD4: 2009-05-01 | AE4: 2009-06-01 | AF4: 2009-07-01 | AG4: 2009-08-01 | AH4: 2009-09-01 | AI4: 2009-10-01 | AJ4: 2009-11-01 | AK4: 2009-12-01 | AL4: 2010-01-01 | AM4: 2010-02-01 | AN4: 2010-03-01 | AO4: 2010-04-01 | AP4: 2010-05-01 | AQ4: 2010-06-01 | AR4: 2010-07-01 | AS4: 2010-08-01 | AT4: 2010-09-01 | AU4: 2010-10-01 | AV4: 2010-11-01 | AW4: 2010-12-01 | AX4: 2011-01-01 | AY4: February 2011 | AZ4: March 2011 | BA4: April 2011 | BB4: May 2011 | BC4: June 2011 | BD4: July 2011 | BE4: August 2011 | BF4: 2011-09-01 | BG4: October 2011 | BH4: November 2011 | BI4: December 2011 | BJ4: 2012-01-01 | BK4: February 2012 | BL4: March 2012 | BM4: April 2012 | BN4: May 2012 | BO4: June 2012 | BP4: July 2012 | BQ4: August 2012 | BR4: September 2012 | BS4: October 2012 | BT4: November 2012 | BU4: December 2012 | BV4: January 2013 | BW4: February 2013 | BX4: March 2013 | BY4: April 2013 | BZ4: May 2013 | CA4: June 2013 | CB4: July 2013 | CC4: August 2013 | CD4: September 2013 | CE4: October 2013 | CF4: November 2013 | CG4: December 2013 | CH4: Jan 14 | CI4: Feb 14 | CJ4: Mar 14 | CK4: Apr 14 | CL4: May 14 | CM4: Jun 14 | CN4: Jul 14 | CO4: Aug 14 | CP4: Sep 14 | CQ4: 2014-10-01 | CR4: 2014-11-01 | CS4: 2014-12-01 | CT4: 2015-01-01 | CU4: 2015-02-01 | CV4: 2015-03-01 | CW4: 2015-04-01 | CX4: 2015-05-01 | CY4: 2015-06-01 | CZ4: 2015-07-01 | DA4: 2015-08-01 | DB4: 2015-09-01 | DC4: 2015-10-01 | DD4: 2015-11-01 | DE4: 2015-12-01 | DF4: 2016-01-01 | DG4: 2016-02-01 | DH4: 2016-03-01 | DI4: 2016-04-01 | DJ4: 2016-05-01 | DK4: 2016-06-01 | DL4: 2016-07-01 | DM4: 2016-08-01 | DN4: 2016-09-01 | DO4: 2016-10-01 | DP4: 2016-11-01 | DQ4: 2016-12-01 | DR4: 2017-01-01 | DS4: 2017-02-01 | DT4: 2017-03-01 | DU4: 2017-04-01 | DV4: 2017-05-01 | DW4: 2017-06-01 | DX4: 2017-07-01 | DY4: 2017-08-01 | DZ4: 2017-09-01 | EA4: 2017-10-01 | EB4: 2017-11-01 | EC4: 2017-12-01 | ED4: 2018-01-01 | EE4: 2018-02-01 | EF4: 2018-03-01 | EG4: 2018-04-01 | EH4: 2018-05-01 | EI4: 2018-06-01 | EJ4: 2018-07-01 | EK4: 2018-08-01 | EL4: 2018-09-01 | EM4: 2018-10-01 | EN4: 2018-11-01 | EO4: 2018-12-01 | EP4: 2019-01-01 | EQ4: 2019-02-01 | ER4: 2019-03-01 | ES4: 2019-04-01 | ET4: 2019-05-01 | EU4: 2019-06-01 | EV4: 2019-07-01 | EW4: 2019-08-01 | EX4: 2019-09-01 | EY4: 2019-10-01 | EZ4: 2019-11-01 | FA4: 2019-12-01 | FB4: 2020-01-01 | FC4: 2020-02-01 | FD4: 2020-03-01 | FE4: 2020-04-01 | FF4: 2020-05-01 | FG4: 2020-06-01 | FH4: 2020-07-01 | FI4: 2020-08-01 | FJ4: 2020-09-01 | FK4: 2020-10-01 | FL4: 2020-11-01 | FM4: 2020-12-01 | FN4: 2021-01-01 | FO4: 2021-02-01 | FP4: 2021-03-01 | FQ4: 2021-04-01 | FR4: 2021-05-01 | FS4: 2021-06-01 | FT4: 2021-07-01 | FU4: 2021-08-01 | FV4: 2021-09-01 | FW4: 2021-10-01 | FX4: 2021-11-01 | FY4: 2021-12-01 | FZ4: 2022-01-01 | GA4: 2022-02-01 | GB4: 2022-03-01 | GC4: 2022-04-01 | GD4: 2022-05-01 | GE4: 2022-06-01 | GF4: 2022-07-01 | GG4: 2022-08-01 | GH4: 2022-09-01 | GI4: 2022-10-01 | GJ4: 2022-11-01 | GK4: 2022-12-01 | GL4: 2023-01-01 | GM4: 2023-02-01 | GN4: 2023-03-01 | GO4: 2023-04-01 | GP4: 2023-05-01 | GQ4: 2023-06-01 | GR4: 2023-07-01 | GS4: 2023-08-01 | GT4: 2023-09-01 | GU4: 2023-10-01 | GV4: 2023-11-01 | GW4: 2023-12-01 | GX4: 2024-01-01 | GY4: 2024-02-01 | GZ4: 2024-03-01 | HA4: 2024-04-01 | HB4: 2024-05-01 | HC4: 2024-06-01 | HD4: 2024-07-01 | HE4: 2024-08-01 | HF4: 2024-09-01 | HG4: 2024-10-01 | HH4: 2024-11-01 | HI4: 2024-12-01 | HJ4: 2025-01-01 | HK4: 2025-02-01 | HL4: 2025-03-01
A5: Kent | B5: 1.9 | C5: 1.9 | D5: 1.9 | E5: 1.8 | F5: 1.7 | G5: 1.6 | H5: 1.6 | I5: 1.6 | J5: 1.5 | K5: 1.5 | L5: 1.4 | M5: 1.5 | N5: 1.5 | O5: 1.5 | P5: 1.5 | Q5: 1.5 | R5: 1.5 | S5: 1.5 | T5: 1.5 | U5: 1.6 | V5: 1.7 | W5: 1.7 | X5: 2 | Y5: 2.2 | Z5: 2.5 | AA5: 2.9 | AB5: 3.1 | AC5: 3.1 | AD5: 3.1 | AE5: 3 | AF5: 3 | AG5: 3.1 | AH5: 3.1 | AI5: 3.1 | AJ5: 3.1 | AK5: 3.1 | AL5: 3.3 | AM5: 3.3 | AN5: 3.2 | AO5: 3.1 | AP5: 3 | AQ5: 2.8 | AR5: 2.8 | AS5: 2.8 | AT5: 2.7 | AU5: 2.7 | AV5: 2.7 | AW5: 2.7 | AX5: 2.9 | AY5: 3 | AZ5: 3 | BA5: 2.9 | BB5: 3 | BC5: 2.9 | BD5: 3 | BE5: 3 | BF5: 3.1 | BG5: 3.1 | BH5: 3.1 | BI5: 3.2 | BJ5: 3.3 | BK5: 3.4 | BL5: 3.4 | BM5: 3.3 | BN5: 3.2 | BO5: 3.1 | BP5: 3.1 | BQ5: 3.1 | BR5: 3.1 | BS5: 3.1 | BT5: 3 | BU5: 3 | BV5: 3.1 | BW5: 3.2 | BX5: 3.2 | BY5: 3 | BZ5: 2.9 | CA5: 2.8 | CB5: 2.7 | CC5: 2.6 | CD5: 2.5 | CE5: 2.5 | CF5: 2.4 | CG5: 2.4 | CH5: 2.4 | CI5: 2.5 | CJ5: 2.4 | CK5: 2.2 | CL5: 2.1 | CM5: 2 | CN5: 1.9 | CO5: 1.8 | CP5: 1.7 | CQ5: 1.7 | CR5: 1.6 | CS5: 1.6 | CT5: 1.7 | CU5: 1.7 | CV5: 1.7 | CW5: 1.6 | CX5: 1.5 | CY5: 1.4 | CZ5: 1.4 | DA5: 1.4 | DB5: 1.4 | DC5: 1.4 | DD5: 1.4 | DE5: 1.4 | DF5: 1.5 | DG5: 1.6 | DH5: 1.6 | DI5: 1.6 | DJ5: 1.6 | DK5: 1.6 | DL5: 1.5 | DM5: 1.6 | DN5: 1.6 | DO5: 1.6 | DP5: 1.6 | DQ5: 1.6 | DR5: 1.6 | DS5: 1.7 | DT5: 1.7 | DU5: 1.7 | DV5: 1.7 | DW5: 1.6 | DX5: 1.6 | DY5: 1.6 | DZ5: 1.7 | EA5: 1.7 | EB5: 1.7 | EC5: 1.7 | ED5: 1.8 | EE5: 1.9 | EF5: 1.9 | EG5: 2 | EH5: 1.9 | EI5: 1.9 | EJ5: 1.9 | EK5: 1.9 | EL5: 1.9 | EM5: 2 | EN5: 2.1 | EO5: 2.1 | EP5: 2.2 | EQ5: 2.3 | ER5: 2.4 | ES5: 2.4 | ET5: 2.4 | EU5: 2.5 | EV5: 2.6 | EW5: 2.6 | EX5: 2.6 | EY5: 2.7 | EZ5: 2.7 | FA5: 2.7 | FB5: 2.8 | FC5: 2.8 | FD5: 2.8 | FE5: 5.1 | FF5: 6.3 | FG5: 5.9 | FH5: 6.1 | FI5: 6.2 | FJ5: 6.1 | FK5: 5.9 | FL5: 5.9 | FM5: 5.9 | FN5: 5.8 | FO5: 6 | FP5: 5.9 | FQ5: 5.8 | FR5: 5.4 | FS5: 5 | FT5: 4.9 | FU5: 4.7 | FV5: 4.5 | FW5: 4.3 | FX5: 4.1 | FY5: 4 | FZ5: 3.9 | GA5: 3.9 | GB5: 3.7 | GC5: 3.5 | GD5: 3.4 | GE5: 3.3 | GF5: 3.2 | GG5: 3.2 | GH5: 3.1 | GI5: 3.1 | GJ5: 3.2 | GK5: 3.2 | GL5: 3.2 | GM5: 3.2 | GN5: 3.3 | GO5: 3.3 | GP5: 3.2 | GQ5: 3.2 | GR5: 3.2 | GS5: 3.2 | GT5: 3.2 | GU5: 3.2 | GV5: 3.3 | GW5: 3.3 | GX5: 3.3 | GY5: 3.4 | GZ5: 3.4 | HA5: 3.3 | HB5: 3.3 | HC5: 3.3 | HD5: 3.5 | HE5: 3.5 | HF5: 3.5 | HG5: 3.5 | HH5: 3.4 | HI5: 3.4 | HJ5: 3.4 | HK5: 3.5 | HL5: 3.5
A6: Medway | B6: 2.6 | C6: 2.6 | D6: 2.5 | E6: 2.5 | F6: 2.4 | G6: 2.2 | H6: 2.2 | I6: 2.2 | J6: 2.1 | K6: 2.1 | L6: 2 | M6: 2 | N6: 2 | O6: 2.1 | P6: 2.2 | Q6: 2.2 | R6: 2.1 | S6: 2.1 | T6: 2.2 | U6: 2.3 | V6: 2.3 | W6: 2.5 | X6: 2.6 | Y6: 2.9 | Z6: 3.2 | AA6: 3.7 | AB6: 3.9 | AC6: 4 | AD6: 4.1 | AE6: 4 | AF6: 4.1 | AG6: 4.2 | AH6: 4.2 | AI6: 4.2 | AJ6: 4.3 | AK6: 4.3 | AL6: 4.4 | AM6: 4.4 | AN6: 4.3 | AO6: 4.2 | AP6: 4 | AQ6: 3.8 | AR6: 3.7 | AS6: 3.7 | AT6: 3.6 | AU6: 3.5 | AV6: 3.5 | AW6: 3.6 | AX6: 3.7 | AY6: 3.8 | AZ6: 3.8 | BA6: 3.9 | BB6: 3.9 | BC6: 3.8 | BD6: 4 | BE6: 4 | BF6: 4.1 | BG6: 4.1 | BH6: 4.1 | BI6: 4.1 | BJ6: 4.2 | BK6: 4.4 | BL6: 4.3 | BM6: 4.2 | BN6: 4.2 | BO6: 4.1 | BP6: 4.1 | BQ6: 4.1 | BR6: 4 | BS6: 4 | BT6: 3.9 | BU6: 3.8 | BV6: 3.9 | BW6: 4 | BX6: 3.9 | BY6: 3.8 | BZ6: 3.6 | CA6: 3.5 | CB6: 3.4 | CC6: 3.4 | CD6: 3.2 | CE6: 3.1 | CF6: 3 | CG6: 3 | CH6: 3.1 | CI6: 3.1 | CJ6: 3 | CK6: 2.9 | CL6: 2.8 | CM6: 2.6 | CN6: 2.5 | CO6: 2.4 | CP6: 2.4 | CQ6: 2.3 | CR6: 2.2 | CS6: 2.1 | CT6: 2.2 | CU6: 2.2 | CV6: 2.2 | CW6: 2.2 | CX6: 2.1 | CY6: 2.1 | CZ6: 2.1 | DA6: 2.1 | DB6: 2.1 | DC6: 2.1 | DD6: 2 | DE6: 1.9 | DF6: 2 | DG6: 2.1 | DH6: 2.1 | DI6: 2.1 | DJ6: 2 | DK6: 1.9 | DL6: 1.9 | DM6: 2 | DN6: 1.9 | DO6: 1.9 | DP6: 1.9 | DQ6: 1.9 | DR6: 1.9 | DS6: 1.9 | DT6: 2 | DU6: 2 | DV6: 1.9 | DW6: 1.9 | DX6: 1.9 | DY6: 1.9 | DZ6: 1.9 | EA6: 1.9 | EB6: 1.8 | EC6: 1.8 | ED6: 1.9 | EE6: 1.9 | EF6: 2 | EG6: 2 | EH6: 2 | EI6: 1.8 | EJ6: 1.9 | EK6: 2 | EL6: 2 | EM6: 2.2 | EN6: 2.2 | EO6: 2.3 | EP6: 2.4 | EQ6: 2.5 | ER6: 2.7 | ES6: 2.8 | ET6: 2.8 | EU6: 2.9 | EV6: 3 | EW6: 3 | EX6: 3 | EY6: 3.1 | EZ6: 3.1 | FA6: 3.1 | FB6: 3.2 | FC6: 3.3 | FD6: 3.3 | FE6: 5.3 | FF6: 7 | FG6: 6.5 | FH6: 6.7 | FI6: 6.9 | FJ6: 6.8 | FK6: 6.5 | FL6: 6.6 | FM6: 6.6 | FN6: 6.5 | FO6: 6.8 | FP6: 6.9 | FQ6: 6.8 | FR6: 6.5 | FS6: 6.1 | FT6: 5.9 | FU6: 5.7 | FV6: 5.4 | FW6: 5.2 | FX6: 5 | FY6: 4.9 | FZ6: 4.7 | GA6: 4.7 | GB6: 4.5 | GC6: 4.3 | GD6: 4.1 | GE6: 3.8 | GF6: 3.7 | GG6: 3.7 | GH6: 3.7 | GI6: 3.6 | GJ6: 3.6 | GK6: 3.7 | GL6: 3.7 | GM6: 3.7 | GN6: 3.7 | GO6: 3.8 | GP6: 3.7 | GQ6: 3.8 | GR6: 3.8 | GS6: 3.8 | GT6: 3.8 | GU6: 3.7 | GV6: 3.8 | GW6: 3.8 | GX6: 3.8 | GY6: 3.9 | GZ6: 3.9 | HA6: 3.9 | HB6: 3.9 | HC6: 3.9 | HD6: 4.2 | HE6: 4.2 | HF6: 4.2 | HG6: 4.2 | HH6: 4.1 | HI6: 4.1 | HJ6: 4.1 | HK6: 4.2 | HL6: 4.3
A7: Ashford | B7: 1.4 | C7: 1.5 | D7: 1.5 | E7: 1.5 | F7: 1.4 | G7: 1.4 | H7: 1.2 | I7: 1.2 | J7: 1.1 | K7: 1.1 | L7: 1.1 | M7: 1.1 | N7: 1.1 | O7: 1.2 | P7: 1.1 | Q7: 1.1 | R7: 1.1 | S7: 1.1 | T7: 1.2 | U7: 1.3 | V7: 1.4 | W7: 1.4 | X7: 1.6 | Y7: 1.8 | Z7: 2 | AA7: 2.5 | AB7: 2.7 | AC7: 2.8 | AD7: 2.8 | AE7: 2.6 | AF7: 2.6 | AG7: 2.7 | AH7: 2.8 | AI7: 2.7 | AJ7: 2.7 | AK7: 2.7 | AL7: 2.8 | AM7: 2.8 | AN7: 2.8 | AO7: 2.7 | AP7: 2.5 | AQ7: 2.4 | AR7: 2.4 | AS7: 2.4 | AT7: 2.4 | AU7: 2.3 | AV7: 2.3 | AW7: 2.4 | AX7: 2.6 | AY7: 2.7 | AZ7: 2.6 | BA7: 2.6 | BB7: 2.6 | BC7: 2.5 | BD7: 2.6 | BE7: 2.6 | BF7: 2.6 | BG7: 2.5 | BH7: 2.6 | BI7: 2.6 | BJ7: 2.7 | BK7: 2.9 | BL7: 2.9 | BM7: 2.8 | BN7: 2.7 | BO7: 2.7 | BP7: 2.6 | BQ7: 2.6 | BR7: 2.6 | BS7: 2.6 | BT7: 2.6 | BU7: 2.6 | BV7: 2.6 | BW7: 2.7 | BX7: 2.6 | BY7: 2.6 | BZ7: 2.6 | CA7: 2.4 | CB7: 2.4 | CC7: 2.3 | CD7: 2.1 | CE7: 2.1 | CF7: 2 | CG7: 2 | CH7: 2 | CI7: 2 | CJ7: 1.9 | CK7: 1.9 | CL7: 1.8 | CM7: 1.6 | CN7: 1.6 | CO7: 1.5 | CP7: 1.4 | CQ7: 1.3 | CR7: 1.4 | CS7: 1.3 | CT7: 1.4 | CU7: 1.5 | CV7: 1.4 | CW7: 1.4 | CX7: 1.3 | CY7: 1.2 | CZ7: 1.2 | DA7: 1.2 | DB7: 1.3 | DC7: 1.3 | DD7: 1.3 | DE7: 1.3 | DF7: 1.3 | DG7: 1.4 | DH7: 1.4 | DI7: 1.4 | DJ7: 1.4 | DK7: 1.4 | DL7: 1.4 | DM7: 1.5 | DN7: 1.4 | DO7: 1.4 | DP7: 1.5 | DQ7: 1.5 | DR7: 1.5 | DS7: 1.6 | DT7: 1.6 | DU7: 1.7 | DV7: 1.6 | DW7: 1.6 | DX7: 1.6 | DY7: 1.6 | DZ7: 1.6 | EA7: 1.6 | EB7: 1.6 | EC7: 1.7 | ED7: 1.7 | EE7: 1.7 | EF7: 1.8 | EG7: 1.7 | EH7: 1.7 | EI7: 1.7 | EJ7: 1.7 | EK7: 1.7 | EL7: 1.8 | EM7: 1.9 | EN7: 2.1 | EO7: 2.1 | EP7: 2.2 | EQ7: 2.3 | ER7: 2.4 | ES7: 2.3 | ET7: 2.4 | EU7: 2.4 | EV7: 2.5 | EW7: 2.5 | EX7: 2.5 | EY7: 2.6 | EZ7: 2.6 | FA7: 2.6 | FB7: 2.6 | FC7: 2.7 | FD7: 2.8 | FE7: 5 | FF7: 6.2 | FG7: 5.8 | FH7: 6 | FI7: 6.2 | FJ7: 6 | FK7: 5.8 | FL7: 5.8 | FM7: 5.7 | FN7: 5.6 | FO7: 5.8 | FP7: 5.7 | FQ7: 5.5 | FR7: 5.1 | FS7: 4.7 | FT7: 4.6 | FU7: 4.4 | FV7: 4.2 | FW7: 4 | FX7: 3.9 | FY7: 3.8 | FZ7: 3.7 | GA7: 3.7 | GB7: 3.5 | GC7: 3.3 | GD7: 3.2 | GE7: 3 | GF7: 2.9 | GG7: 2.9 | GH7: 2.9 | GI7: 2.8 | GJ7: 2.8 | GK7: 2.8 | GL7: 2.8 | GM7: 2.8 | GN7: 2.9 | GO7: 3 | GP7: 2.9 | GQ7: 2.9 | GR7: 2.9 | GS7: 2.9 | GT7: 2.9 | GU7: 2.9 | GV7: 2.9 | GW7: 2.9 | GX7: 2.9 | GY7: 3 | GZ7: 3.1 | HA7: 3 | HB7: 3 | HC7: 3 | HD7: 3.2 | HE7: 3.2 | HF7: 3.2 | HG7: 3.2 | HH7: 3.1 | HI7: 3.2 | HJ7: 3.1 | HK7: 3.2 | HL7: 3.2
A8: Canterbury | B8: 1.6 | C8: 1.6 | D8: 1.7 | E8: 1.6 | F8: 1.5 | G8: 1.4 | H8: 1.3 | I8: 1.3 | J8: 1.2 | K8: 1.2 | L8: 1.1 | M8: 1.1 | N8: 1.3 | O8: 1.3 | P8: 1.3 | Q8: 1.3 | R8: 1.3 | S8: 1.3 | T8: 1.2 | U8: 1.4 | V8: 1.4 | W8: 1.5 | X8: 1.7 | Y8: 1.9 | Z8: 2.1 | AA8: 2.4 | AB8: 2.5 | AC8: 2.6 | AD8: 2.5 | AE8: 2.5 | AF8: 2.4 | AG8: 2.5 | AH8: 2.5 | AI8: 2.5 | AJ8: 2.5 | AK8: 2.5 | AL8: 2.7 | AM8: 2.7 | AN8: 2.6 | AO8: 2.5 | AP8: 2.3 | AQ8: 2.2 | AR8: 2.2 | AS8: 2.2 | AT8: 2.2 | AU8: 2.1 | AV8: 2.1 | AW8: 2.1 | AX8: 2.2 | AY8: 2.4 | AZ8: 2.4 | BA8: 2.4 | BB8: 2.4 | BC8: 2.3 | BD8: 2.4 | BE8: 2.4 | BF8: 2.4 | BG8: 2.5 | BH8: 2.5 | BI8: 2.5 | BJ8: 2.7 | BK8: 2.7 | BL8: 2.7 | BM8: 2.6 | BN8: 2.5 | BO8: 2.5 | BP8: 2.5 | BQ8: 2.5 | BR8: 2.5 | BS8: 2.4 | BT8: 2.3 | BU8: 2.3 | BV8: 2.4 | BW8: 2.5 | BX8: 2.4 | BY8: 2.4 | BZ8: 2.3 | CA8: 2.2 | CB8: 2.1 | CC8: 2 | CD8: 2 | CE8: 1.9 | CF8: 1.8 | CG8: 1.8 | CH8: 1.8 | CI8: 1.9 | CJ8: 1.8 | CK8: 1.7 | CL8: 1.6 | CM8: 1.4 | CN8: 1.3 | CO8: 1.3 | CP8: 1.2 | CQ8: 1.2 | CR8: 1.1 | CS8: 1.1 | CT8: 1.1 | CU8: 1.2 | CV8: 1.2 | CW8: 1.1 | CX8: 1 | CY8: 1 | CZ8: 1 | DA8: 0.9 | DB8: 1 | DC8: 1 | DD8: 1 | DE8: 1.1 | DF8: 1.1 | DG8: 1.2 | DH8: 1.3 | DI8: 1.2 | DJ8: 1.2 | DK8: 1.2 | DL8: 1.3 | DM8: 1.3 | DN8: 1.3 | DO8: 1.3 | DP8: 1.3 | DQ8: 1.3 | DR8: 1.3 | DS8: 1.3 | DT8: 1.3 | DU8: 1.3 | DV8: 1.3 | DW8: 1.3 | DX8: 1.3 | DY8: 1.3 | DZ8: 1.3 | EA8: 1.3 | EB8: 1.3 | EC8: 1.3 | ED8: 1.4 | EE8: 1.5 | EF8: 1.5 | EG8: 1.5 | EH8: 1.4 | EI8: 1.4 | EJ8: 1.3 | EK8: 1.3 | EL8: 1.4 | EM8: 1.6 | EN8: 1.7 | EO8: 1.9 | EP8: 1.9 | EQ8: 2.1 | ER8: 2.1 | ES8: 2.1 | ET8: 2.2 | EU8: 2.2 | EV8: 2.3 | EW8: 2.3 | EX8: 2.3 | EY8: 2.3 | EZ8: 2.3 | FA8: 2.3 | FB8: 2.4 | FC8: 2.4 | FD8: 2.5 | FE8: 4.7 | FF8: 5.6 | FG8: 5.3 | FH8: 5.5 | FI8: 5.6 | FJ8: 5.5 | FK8: 5.2 | FL8: 5.2 | FM8: 5.2 | FN8: 5.2 | FO8: 5.4 | FP8: 5.3 | FQ8: 5.2 | FR8: 4.8 | FS8: 4.4 | FT8: 4.3 | FU8: 4.1 | FV8: 3.9 | FW8: 3.8 | FX8: 3.8 | FY8: 3.6 | FZ8: 3.6 | GA8: 3.6 | GB8: 3.5 | GC8: 3.3 | GD8: 3.1 | GE8: 3 | GF8: 2.9 | GG8: 2.9 | GH8: 2.9 | GI8: 3 | GJ8: 3 | GK8: 3.1 | GL8: 3.1 | GM8: 3.1 | GN8: 3.2 | GO8: 3.2 | GP8: 3.2 | GQ8: 3.2 | GR8: 3.1 | GS8: 3.1 | GT8: 3.1 | GU8: 3.1 | GV8: 3.2 | GW8: 3.3 | GX8: 3.3 | GY8: 3.4 | GZ8: 3.4 | HA8: 3.3 | HB8: 3.3 | HC8: 3.2 | HD8: 3.5 | HE8: 3.4 | HF8: 3.3 | HG8: 3.5 | HH8: 3.3 | HI8: 3.3 | HJ8: 3.3 | HK8: 3.4 | HL8: 3.5
A9: Dartford | B9: 1.7 | C9: 1.7 | D9: 1.6 | E9: 1.6 | F9: 1.5 | G9: 1.5 | H9: 1.5 | I9: 1.5 | J9: 1.5 | K9: 1.5 | L9: 1.4 | M9: 1.4 | N9: 1.3 | O9: 1.4 | P9: 1.4 | Q9: 1.3 | R9: 1.4 | S9: 1.4 | T9: 1.4 | U9: 1.5 | V9: 1.6 | W9: 1.6 | X9: 1.8 | Y9: 2 | Z9: 2.2 | AA9: 2.8 | AB9: 3 | AC9: 3 | AD9: 3.2 | AE9: 3.2 | AF9: 3.2 | AG9: 3.3 | AH9: 3.4 | AI9: 3.4 | AJ9: 3.2 | AK9: 3.1 | AL9: 3.4 | AM9: 3.5 | AN9: 3.4 | AO9: 3.4 | AP9: 3.2 | AQ9: 3 | AR9: 3 | AS9: 3 | AT9: 2.9 | AU9: 2.8 | AV9: 2.8 | AW9: 2.8 | AX9: 3 | AY9: 3.1 | AZ9: 3.1 | BA9: 3.1 | BB9: 3.1 | BC9: 3.1 | BD9: 3.1 | BE9: 3 | BF9: 3.1 | BG9: 3 | BH9: 3 | BI9: 3 | BJ9: 3.1 | BK9: 3.2 | BL9: 3.2 | BM9: 3.1 | BN9: 3 | BO9: 2.9 | BP9: 2.9 | BQ9: 2.8 | BR9: 2.7 | BS9: 2.7 | BT9: 2.7 | BU9: 2.7 | BV9: 2.8 | BW9: 2.9 | BX9: 2.9 | BY9: 2.7 | BZ9: 2.6 | CA9: 2.5 | CB9: 2.4 | CC9: 2.3 | CD9: 2.3 | CE9: 2.2 | CF9: 2.1 | CG9: 2 | CH9: 2.1 | CI9: 2.1 | CJ9: 2 | CK9: 1.9 | CL9: 1.9 | CM9: 1.7 | CN9: 1.6 | CO9: 1.6 | CP9: 1.5 | CQ9: 1.4 | CR9: 1.3 | CS9: 1.2 | CT9: 1.3 | CU9: 1.3 | CV9: 1.3 | CW9: 1.3 | CX9: 1.2 | CY9: 1.2 | CZ9: 1.2 | DA9: 1.1 | DB9: 1.1 | DC9: 1.1 | DD9: 1 | DE9: 1 | DF9: 1.1 | DG9: 1.1 | DH9: 1.1 | DI9: 1.1 | DJ9: 1.1 | DK9: 1.1 | DL9: 1.1 | DM9: 1.2 | DN9: 1.2 | DO9: 1.1 | DP9: 1.1 | DQ9: 1.1 | DR9: 1.1 | DS9: 1.2 | DT9: 1.2 | DU9: 1.2 | DV9: 1.2 | DW9: 1.1 | DX9: 1.1 | DY9: 1.2 | DZ9: 1.1 | EA9: 1.1 | EB9: 1.1 | EC9: 1.1 | ED9: 1.1 | EE9: 1.1 | EF9: 1.2 | EG9: 1.1 | EH9: 1.1 | EI9: 1 | EJ9: 1 | EK9: 1 | EL9: 1.1 | EM9: 1.2 | EN9: 1.2 | EO9: 1.3 | EP9: 1.3 | EQ9: 1.5 | ER9: 1.6 | ES9: 1.6 | ET9: 1.6 | EU9: 1.8 | EV9: 1.8 | EW9: 1.9 | EX9: 2 | EY9: 2.1 | EZ9: 2 | FA9: 2 | FB9: 2.1 | FC9: 2.2 | FD9: 2.2 | FE9: 4.2 | FF9: 5.6 | FG9: 5.3 | FH9: 5.4 | FI9: 5.5 | FJ9: 5.4 | FK9: 5.1 | FL9: 5.2 | FM9: 5.3 | FN9: 5.1 | FO9: 5.4 | FP9: 5.4 | FQ9: 5.3 | FR9: 4.9 | FS9: 4.5 | FT9: 4.4 | FU9: 4.1 | FV9: 3.9 | FW9: 3.6 | FX9: 3.4 | FY9: 3.3 | FZ9: 3.2 | GA9: 3.2 | GB9: 3 | GC9: 2.9 | GD9: 2.8 | GE9: 2.8 | GF9: 2.7 | GG9: 2.7 | GH9: 2.7 | GI9: 2.8 | GJ9: 2.8 | GK9: 2.8 | GL9: 2.7 | GM9: 2.8 | GN9: 2.8 | GO9: 2.9 | GP9: 2.9 | GQ9: 2.9 | GR9: 2.9 | GS9: 2.8 | GT9: 2.9 | GU9: 2.9 | GV9: 2.9 | GW9: 2.9 | GX9: 2.9 | GY9: 3 | GZ9: 3 | HA9: 2.9 | HB9: 3 | HC9: 3.1 | HD9: 3.3 | HE9: 3.3 | HF9: 3.3 | HG9: 3.1 | HH9: 3.1 | HI9: 3.1 | HJ9: 3 | HK9: 3.1 | HL9: 3.2
A10: Dover | B10: 2.5 | C10: 2.5 | D10: 2.5 | E10: 2.4 | F10: 2.2 | G10: 2 | H10: 2 | I10: 1.9 | J10: 1.8 | K10: 1.8 | L10: 1.7 | M10: 1.7 | N10: 1.9 | O10: 1.9 | P10: 1.8 | Q10: 1.8 | R10: 1.9 | S10: 1.8 | T10: 1.8 | U10: 1.9 | V10: 2 | W10: 2.1 | X10: 2.4 | Y10: 2.7 | Z10: 3 | AA10: 3.3 | AB10: 3.4 | AC10: 3.4 | AD10: 3.4 | AE10: 3.2 | AF10: 3.1 | AG10: 3.2 | AH10: 3.1 | AI10: 3.3 | AJ10: 3.5 | AK10: 3.6 | AL10: 3.7 | AM10: 3.8 | AN10: 3.7 | AO10: 3.5 | AP10: 3.3 | AQ10: 3.1 | AR10: 3 | AS10: 2.9 | AT10: 2.8 | AU10: 2.9 | AV10: 3 | AW10: 3.1 | AX10: 3.3 | AY10: 3.4 | AZ10: 3.4 | BA10: 3.2 | BB10: 3.3 | BC10: 3.2 | BD10: 3.3 | BE10: 3.4 | BF10: 3.5 | BG10: 3.5 | BH10: 3.7 | BI10: 3.8 | BJ10: 4 | BK10: 4.1 | BL10: 4.1 | BM10: 4.1 | BN10: 4 | BO10: 3.9 | BP10: 3.9 | BQ10: 3.8 | BR10: 3.7 | BS10: 3.8 | BT10: 3.7 | BU10: 3.9 | BV10: 4 | BW10: 4.1 | BX10: 4 | BY10: 3.9 | BZ10: 3.7 | CA10: 3.4 | CB10: 3.3 | CC10: 3.1 | CD10: 3 | CE10: 2.9 | CF10: 3 | CG10: 3.1 | CH10: 3.2 | CI10: 3.2 | CJ10: 3.2 | CK10: 3.1 | CL10: 2.9 | CM10: 2.6 | CN10: 2.5 | CO10: 2.3 | CP10: 2.3 | CQ10: 2.2 | CR10: 2.2 | CS10: 2.2 | CT10: 2.3 | CU10: 2.3 | CV10: 2.2 | CW10: 2.1 | CX10: 1.9 | CY10: 1.8 | CZ10: 1.7 | DA10: 1.6 | DB10: 1.6 | DC10: 1.6 | DD10: 1.8 | DE10: 1.9 | DF10: 1.9 | DG10: 2 | DH10: 2 | DI10: 2.1 | DJ10: 2 | DK10: 1.9 | DL10: 2 | DM10: 2 | DN10: 2 | DO10: 2.1 | DP10: 2 | DQ10: 2.1 | DR10: 2.1 | DS10: 2.2 | DT10: 2.3 | DU10: 2.3 | DV10: 2.2 | DW10: 2.3 | DX10: 2.2 | DY10: 2.4 | DZ10: 2.5 | EA10: 2.6 | EB10: 2.8 | EC10: 2.8 | ED10: 2.9 | EE10: 3.1 | EF10: 3.1 | EG10: 3.4 | EH10: 3.2 | EI10: 3.2 | EJ10: 3.2 | EK10: 3.2 | EL10: 3.2 | EM10: 3.3 | EN10: 3.3 | EO10: 3.5 | EP10: 3.5 | EQ10: 3.6 | ER10: 3.6 | ES10: 3.7 | ET10: 3.6 | EU10: 3.6 | EV10: 3.6 | EW10: 3.6 | EX10: 3.6 | EY10: 3.7 | EZ10: 3.6 | FA10: 3.6 | FB10: 3.6 | FC10: 3.7 | FD10: 3.8 | FE10: 6.4 | FF10: 7.1 | FG10: 6.8 | FH10: 6.9 | FI10: 7 | FJ10: 6.9 | FK10: 6.7 | FL10: 6.7 | FM10: 6.7 | FN10: 6.5 | FO10: 6.7 | FP10: 6.6 | FQ10: 6.4 | FR10: 6 | FS10: 5.5 | FT10: 5.4 | FU10: 5.1 | FV10: 4.9 | FW10: 4.8 | FX10: 4.7 | FY10: 4.5 | FZ10: 4.5 | GA10: 4.5 | GB10: 4.3 | GC10: 4.1 | GD10: 3.9 | GE10: 3.7 | GF10: 3.6 | GG10: 3.6 | GH10: 3.6 | GI10: 3.6 | GJ10: 3.7 | GK10: 3.8 | GL10: 3.8 | GM10: 3.8 | GN10: 3.9 | GO10: 3.8 | GP10: 3.8 | GQ10: 3.7 | GR10: 3.8 | GS10: 3.8 | GT10: 3.7 | GU10: 3.7 | GV10: 3.8 | GW10: 3.9 | GX10: 3.9 | GY10: 4 | GZ10: 4 | HA10: 3.8 | HB10: 3.8 | HC10: 3.8 | HD10: 3.9 | HE10: 3.8 | HF10: 3.9 | HG10: 3.8 | HH10: 3.7 | HI10: 3.6 | HJ10: 3.5 | HK10: 3.6 | HL10: 3.7
A11: Folkestone & Hythe | B11: 2.9 | C11: 2.9 | D11: 2.9 | E11: 2.8 | F11: 2.7 | G11: 2.6 | H11: 2.5 | I11: 2.5 | J11: 2.4 | K11: 2.3 | L11: 2.2 | M11: 2.2 | N11: 2.2 | O11: 2.2 | P11: 2.2 | Q11: 2.2 | R11: 2.3 | S11: 2.2 | T11: 2.2 | U11: 2.3 | V11: 2.4 | W11: 2.5 | X11: 2.7 | Y11: 3 | Z11: 3.3 | AA11: 3.7 | AB11: 3.8 | AC11: 3.8 | AD11: 3.8 | AE11: 3.6 | AF11: 3.5 | AG11: 3.7 | AH11: 3.7 | AI11: 3.7 | AJ11: 3.9 | AK11: 4 | AL11: 4.2 | AM11: 4.2 | AN11: 4.2 | AO11: 4 | AP11: 3.9 | AQ11: 3.7 | AR11: 3.6 | AS11: 3.7 | AT11: 3.5 | AU11: 3.5 | AV11: 3.6 | AW11: 3.7 | AX11: 3.9 | AY11: 3.9 | AZ11: 3.7 | BA11: 3.7 | BB11: 3.7 | BC11: 3.7 | BD11: 3.8 | BE11: 3.9 | BF11: 3.9 | BG11: 4 | BH11: 4.1 | BI11: 4.2 | BJ11: 4.3 | BK11: 4.4 | BL11: 4.4 | BM11: 4.2 | BN11: 4.2 | BO11: 4.1 | BP11: 4.1 | BQ11: 4.2 | BR11: 4.1 | BS11: 4 | BT11: 4.1 | BU11: 4.2 | BV11: 4.3 | BW11: 4.4 | BX11: 4.3 | BY11: 4.1 | BZ11: 4 | CA11: 3.8 | CB11: 3.7 | CC11: 3.6 | CD11: 3.3 | CE11: 3.3 | CF11: 3.3 | CG11: 3.3 | CH11: 3.3 | CI11: 3.3 | CJ11: 3.1 | CK11: 2.9 | CL11: 2.7 | CM11: 2.6 | CN11: 2.6 | CO11: 2.4 | CP11: 2.4 | CQ11: 2.4 | CR11: 2.4 | CS11: 2.4 | CT11: 2.5 | CU11: 2.5 | CV11: 2.3 | CW11: 2.2 | CX11: 2 | CY11: 1.8 | CZ11: 1.8 | DA11: 1.7 | DB11: 1.7 | DC11: 1.8 | DD11: 1.9 | DE11: 2 | DF11: 2.1 | DG11: 2.1 | DH11: 2.2 | DI11: 2.1 | DJ11: 2.1 | DK11: 2 | DL11: 2.1 | DM11: 2.1 | DN11: 2 | DO11: 2.1 | DP11: 2.1 | DQ11: 2.1 | DR11: 2.2 | DS11: 2.3 | DT11: 2.3 | DU11: 2.2 | DV11: 2.2 | DW11: 2.2 | DX11: 2.1 | DY11: 2.1 | DZ11: 2.1 | EA11: 2.1 | EB11: 2.1 | EC11: 2.2 | ED11: 2.3 | EE11: 2.5 | EF11: 2.5 | EG11: 2.5 | EH11: 2.5 | EI11: 2.3 | EJ11: 2.3 | EK11: 2.3 | EL11: 2.5 | EM11: 2.7 | EN11: 2.8 | EO11: 2.9 | EP11: 3 | EQ11: 3.2 | ER11: 3.3 | ES11: 3.3 | ET11: 3.4 | EU11: 3.5 | EV11: 3.4 | EW11: 3.4 | EX11: 3.5 | EY11: 3.5 | EZ11: 3.6 | FA11: 3.7 | FB11: 3.8 | FC11: 3.9 | FD11: 3.8 | FE11: 6.7 | FF11: 7.7 | FG11: 7.3 | FH11: 7.5 | FI11: 7.7 | FJ11: 7.7 | FK11: 7.4 | FL11: 7.5 | FM11: 7.6 | FN11: 7.4 | FO11: 7.6 | FP11: 7.4 | FQ11: 7.3 | FR11: 6.8 | FS11: 6.2 | FT11: 6.1 | FU11: 5.7 | FV11: 5.5 | FW11: 5.5 | FX11: 5.3 | FY11: 5.2 | FZ11: 5.1 | GA11: 5.1 | GB11: 4.8 | GC11: 4.5 | GD11: 4.3 | GE11: 4.1 | GF11: 4.1 | GG11: 4 | GH11: 4 | GI11: 3.9 | GJ11: 4 | GK11: 4 | GL11: 4 | GM11: 4 | GN11: 4 | GO11: 4 | GP11: 3.8 | GQ11: 3.8 | GR11: 3.8 | GS11: 3.8 | GT11: 3.8 | GU11: 3.9 | GV11: 3.9 | GW11: 4 | GX11: 4.1 | GY11: 4.3 | GZ11: 4.2 | HA11: 4 | HB11: 3.9 | HC11: 3.9 | HD11: 4.2 | HE11: 4.2 | HF11: 4.1 | HG11: 4.2 | HH11: 4.1 | HI11: 4.1 | HJ11: 4 | HK11: 4.2 | HL11: 4.2
A12: Gravesham | B12: 2.5 | C12: 2.6 | D12: 2.5 | E12: 2.6 | F12: 2.5 | G12: 2.4 | H12: 2.4 | I12: 2.4 | J12: 2.3 | K12: 2.3 | L12: 2.1 | M12: 2.2 | N12: 2.2 | O12: 2.2 | P12: 2.3 | Q12: 2.2 | R12: 2.2 | S12: 2.2 | T12: 2.2 | U12: 2.2 | V12: 2.3 | W12: 2.4 | X12: 2.5 | Y12: 2.9 | Z12: 3.3 | AA12: 3.9 | AB12: 4 | AC12: 4 | AD12: 4.1 | AE12: 4 | AF12: 4 | AG12: 4.1 | AH12: 4.2 | AI12: 4 | AJ12: 4 | AK12: 4 | AL12: 4.2 | AM12: 4.3 | AN12: 4.2 | AO12: 4.1 | AP12: 3.9 | AQ12: 3.7 | AR12: 3.5 | AS12: 3.6 | AT12: 3.4 | AU12: 3.4 | AV12: 3.4 | AW12: 3.5 | AX12: 3.7 | AY12: 3.9 | AZ12: 4 | BA12: 4 | BB12: 4 | BC12: 4 | BD12: 4.1 | BE12: 4.1 | BF12: 4.1 | BG12: 4.1 | BH12: 4.2 | BI12: 4.2 | BJ12: 4.4 | BK12: 4.5 | BL12: 4.6 | BM12: 4.4 | BN12: 4.3 | BO12: 4.2 | BP12: 4.1 | BQ12: 4.1 | BR12: 4 | BS12: 4 | BT12: 3.8 | BU12: 3.7 | BV12: 3.9 | BW12: 4.1 | BX12: 4 | BY12: 3.9 | BZ12: 3.7 | CA12: 3.5 | CB12: 3.4 | CC12: 3.3 | CD12: 3.2 | CE12: 3.1 | CF12: 2.9 | CG12: 2.9 | CH12: 3 | CI12: 3.1 | CJ12: 3 | CK12: 2.9 | CL12: 2.7 | CM12: 2.5 | CN12: 2.4 | CO12: 2.3 | CP12: 2.2 | CQ12: 2.1 | CR12: 2 | CS12: 2 | CT12: 2.1 | CU12: 2.1 | CV12: 2.1 | CW12: 2 | CX12: 2 | CY12: 1.9 | CZ12: 1.8 | DA12: 1.9 | DB12: 1.9 | DC12: 1.9 | DD12: 1.9 | DE12: 1.9 | DF12: 1.9 | DG12: 2.1 | DH12: 2.1 | DI12: 2.1 | DJ12: 2 | DK12: 2 | DL12: 1.9 | DM12: 1.9 | DN12: 2 | DO12: 1.9 | DP12: 1.9 | DQ12: 1.9 | DR12: 1.9 | DS12: 2 | DT12: 2.1 | DU12: 2.1 | DV12: 2.1 | DW12: 2.1 | DX12: 2.1 | DY12: 2.1 | DZ12: 2.1 | EA12: 2 | EB12: 2 | EC12: 2 | ED12: 2.1 | EE12: 2.2 | EF12: 2.2 | EG12: 2.1 | EH12: 2.1 | EI12: 2.1 | EJ12: 2.1 | EK12: 2.2 | EL12: 2.2 | EM12: 2.3 | EN12: 2.4 | EO12: 2.4 | EP12: 2.5 | EQ12: 2.6 | ER12: 2.7 | ES12: 2.9 | ET12: 2.9 | EU12: 3 | EV12: 3.2 | EW12: 3.2 | EX12: 3.3 | EY12: 3.2 | EZ12: 3.3 | FA12: 3.4 | FB12: 3.4 | FC12: 3.5 | FD12: 3.5 | FE12: 5.7 | FF12: 7.4 | FG12: 7.2 | FH12: 7.2 | FI12: 7.4 | FJ12: 7.4 | FK12: 7.2 | FL12: 7.2 | FM12: 7.2 | FN12: 7.1 | FO12: 7.4 | FP12: 7.5 | FQ12: 7.4 | FR12: 6.9 | FS12: 6.4 | FT12: 6.2 | FU12: 5.9 | FV12: 5.6 | FW12: 5.3 | FX12: 5 | FY12: 4.9 | FZ12: 4.8 | GA12: 4.7 | GB12: 4.5 | GC12: 4.3 | GD12: 4.1 | GE12: 4 | GF12: 3.9 | GG12: 4 | GH12: 3.9 | GI12: 3.9 | GJ12: 3.9 | GK12: 4 | GL12: 4.1 | GM12: 4.1 | GN12: 4.3 | GO12: 4.4 | GP12: 4.3 | GQ12: 4.2 | GR12: 4.3 | GS12: 4.2 | GT12: 4.3 | GU12: 4.2 | GV12: 4.3 | GW12: 4.2 | GX12: 4.3 | GY12: 4.5 | GZ12: 4.5 | HA12: 4.5 | HB12: 4.4 | HC12: 4.4 | HD12: 4.8 | HE12: 4.7 | HF12: 4.8 | HG12: 4.8 | HH12: 4.5 | HI12: 4.5 | HJ12: 4.5 | HK12: 4.6 | HL12: 4.6
A13: Maidstone | B13: 1.4 | C13: 1.4 | D13: 1.3 | E13: 1.3 | F13: 1.3 | G13: 1.2 | H13: 1.2 | I13: 1.2 | J13: 1.1 | K13: 1.1 | L13: 1 | M13: 1 | N13: 1 | O13: 1 | P13: 1.1 | Q13: 1 | R13: 1 | S13: 1 | T13: 1.1 | U13: 1.2 | V13: 1.3 | W13: 1.3 | X13: 1.4 | Y13: 1.6 | Z13: 1.8 | AA13: 2.2 | AB13: 2.4 | AC13: 2.5 | AD13: 2.5 | AE13: 2.4 | AF13: 2.5 | AG13: 2.5 | AH13: 2.6 | AI13: 2.6 | AJ13: 2.5 | AK13: 2.5 | AL13: 2.7 | AM13: 2.7 | AN13: 2.6 | AO13: 2.5 | AP13: 2.4 | AQ13: 2.3 | AR13: 2.2 | AS13: 2.2 | AT13: 2.2 | AU13: 2.2 | AV13: 2.2 | AW13: 2.1 | AX13: 2.3 | AY13: 2.3 | AZ13: 2.3 | BA13: 2.3 | BB13: 2.4 | BC13: 2.4 | BD13: 2.4 | BE13: 2.4 | BF13: 2.5 | BG13: 2.5 | BH13: 2.5 | BI13: 2.5 | BJ13: 2.6 | BK13: 2.7 | BL13: 2.7 | BM13: 2.6 | BN13: 2.5 | BO13: 2.4 | BP13: 2.5 | BQ13: 2.5 | BR13: 2.4 | BS13: 2.5 | BT13: 2.5 | BU13: 2.4 | BV13: 2.5 | BW13: 2.6 | BX13: 2.6 | BY13: 2.4 | BZ13: 2.4 | CA13: 2.2 | CB13: 2.1 | CC13: 2.1 | CD13: 2 | CE13: 1.9 | CF13: 1.8 | CG13: 1.8 | CH13: 1.9 | CI13: 1.9 | CJ13: 1.8 | CK13: 1.7 | CL13: 1.6 | CM13: 1.5 | CN13: 1.4 | CO13: 1.3 | CP13: 1.2 | CQ13: 1.2 | CR13: 1.2 | CS13: 1.2 | CT13: 1.2 | CU13: 1.3 | CV13: 1.3 | CW13: 1.2 | CX13: 1.2 | CY13: 1.1 | CZ13: 1.1 | DA13: 1.1 | DB13: 1.1 | DC13: 1.1 | DD13: 1.1 | DE13: 1 | DF13: 1.1 | DG13: 1.2 | DH13: 1.2 | DI13: 1.2 | DJ13: 1.2 | DK13: 1.1 | DL13: 1.1 | DM13: 1.2 | DN13: 1.2 | DO13: 1.2 | DP13: 1.2 | DQ13: 1.1 | DR13: 1.2 | DS13: 1.2 | DT13: 1.3 | DU13: 1.3 | DV13: 1.2 | DW13: 1.2 | DX13: 1.2 | DY13: 1.2 | DZ13: 1.2 | EA13: 1.1 | EB13: 1.1 | EC13: 1.1 | ED13: 1.2 | EE13: 1.2 | EF13: 1.2 | EG13: 1.2 | EH13: 1.2 | EI13: 1.1 | EJ13: 1.1 | EK13: 1.1 | EL13: 1.1 | EM13: 1.1 | EN13: 1.1 | EO13: 1.1 | EP13: 1.2 | EQ13: 1.3 | ER13: 1.4 | ES13: 1.6 | ET13: 1.6 | EU13: 1.7 | EV13: 1.8 | EW13: 1.8 | EX13: 1.9 | EY13: 1.9 | EZ13: 2 | FA13: 2 | FB13: 2 | FC13: 2.1 | FD13: 2.1 | FE13: 4 | FF13: 5.4 | FG13: 5 | FH13: 5.1 | FI13: 5.2 | FJ13: 5.1 | FK13: 4.8 | FL13: 4.9 | FM13: 4.9 | FN13: 4.7 | FO13: 5 | FP13: 5 | FQ13: 4.9 | FR13: 4.6 | FS13: 4.2 | FT13: 4.1 | FU13: 4.1 | FV13: 3.9 | FW13: 3.7 | FX13: 3.6 | FY13: 3.5 | FZ13: 3.4 | GA13: 3.4 | GB13: 3.2 | GC13: 3 | GD13: 2.8 | GE13: 2.8 | GF13: 2.7 | GG13: 2.7 | GH13: 2.6 | GI13: 2.7 | GJ13: 2.7 | GK13: 2.7 | GL13: 2.7 | GM13: 2.7 | GN13: 2.7 | GO13: 2.8 | GP13: 2.7 | GQ13: 2.8 | GR13: 2.8 | GS13: 2.8 | GT13: 2.8 | GU13: 2.9 | GV13: 2.9 | GW13: 2.9 | GX13: 3 | GY13: 3.1 | GZ13: 3.1 | HA13: 3.1 | HB13: 3 | HC13: 3.1 | HD13: 3.3 | HE13: 3.2 | HF13: 3.3 | HG13: 3.3 | HH13: 3.2 | HI13: 3.2 | HJ13: 3.1 | HK13: 3.2 | HL13: 3.3
A14: Sevenoaks | B14: 1 | C14: 1 | D14: 0.9 | E14: 0.9 | F14: 0.9 | G14: 0.8 | H14: 0.8 | I14: 0.8 | J14: 0.7 | K14: 0.7 | L14: 0.7 | M14: 0.7 | N14: 0.7 | O14: 0.7 | P14: 0.7 | Q14: 0.7 | R14: 0.7 | S14: 0.7 | T14: 0.7 | U14: 0.8 | V14: 0.9 | W14: 1 | X14: 1.1 | Y14: 1.3 | Z14: 1.5 | AA14: 1.9 | AB14: 2.1 | AC14: 2.1 | AD14: 2.1 | AE14: 2 | AF14: 2.1 | AG14: 2.1 | AH14: 2 | AI14: 2 | AJ14: 2.1 | AK14: 2 | AL14: 2.1 | AM14: 2.1 | AN14: 2.1 | AO14: 2 | AP14: 1.9 | AQ14: 1.7 | AR14: 1.7 | AS14: 1.7 | AT14: 1.7 | AU14: 1.7 | AV14: 1.7 | AW14: 1.7 | AX14: 1.7 | AY14: 1.8 | AZ14: 1.8 | BA14: 1.8 | BB14: 1.8 | BC14: 1.7 | BD14: 1.8 | BE14: 1.7 | BF14: 1.8 | BG14: 1.8 | BH14: 1.8 | BI14: 1.8 | BJ14: 2 | BK14: 2 | BL14: 2 | BM14: 1.9 | BN14: 1.8 | BO14: 1.8 | BP14: 1.8 | BQ14: 1.8 | BR14: 1.7 | BS14: 1.7 | BT14: 1.7 | BU14: 1.7 | BV14: 1.8 | BW14: 1.8 | BX14: 1.7 | BY14: 1.7 | BZ14: 1.5 | CA14: 1.5 | CB14: 1.4 | CC14: 1.4 | CD14: 1.3 | CE14: 1.3 | CF14: 1.3 | CG14: 1.2 | CH14: 1.3 | CI14: 1.3 | CJ14: 1.2 | CK14: 1.2 | CL14: 1.1 | CM14: 1.1 | CN14: 1 | CO14: 1 | CP14: 0.9 | CQ14: 0.9 | CR14: 0.9 | CS14: 0.9 | CT14: 0.9 | CU14: 0.9 | CV14: 0.9 | CW14: 0.8 | CX14: 0.8 | CY14: 0.8 | CZ14: 0.8 | DA14: 0.8 | DB14: 0.7 | DC14: 0.8 | DD14: 0.8 | DE14: 0.7 | DF14: 0.8 | DG14: 0.8 | DH14: 0.8 | DI14: 0.8 | DJ14: 0.8 | DK14: 0.7 | DL14: 0.7 | DM14: 0.8 | DN14: 0.8 | DO14: 0.8 | DP14: 0.7 | DQ14: 0.7 | DR14: 0.7 | DS14: 0.7 | DT14: 0.7 | DU14: 0.7 | DV14: 0.7 | DW14: 0.7 | DX14: 0.8 | DY14: 0.8 | DZ14: 0.7 | EA14: 0.7 | EB14: 0.7 | EC14: 0.8 | ED14: 0.8 | EE14: 0.8 | EF14: 0.8 | EG14: 0.8 | EH14: 0.8 | EI14: 0.7 | EJ14: 0.7 | EK14: 0.7 | EL14: 0.7 | EM14: 0.7 | EN14: 0.7 | EO14: 0.8 | EP14: 0.9 | EQ14: 1 | ER14: 1 | ES14: 1 | ET14: 1.1 | EU14: 1.1 | EV14: 1.2 | EW14: 1.2 | EX14: 1.3 | EY14: 1.3 | EZ14: 1.3 | FA14: 1.3 | FB14: 1.3 | FC14: 1.4 | FD14: 1.4 | FE14: 3.1 | FF14: 4.3 | FG14: 4 | FH14: 4.1 | FI14: 4.2 | FJ14: 4.2 | FK14: 4 | FL14: 4.1 | FM14: 4.1 | FN14: 3.9 | FO14: 4.2 | FP14: 4.1 | FQ14: 4.1 | FR14: 3.7 | FS14: 3.3 | FT14: 3.3 | FU14: 3.1 | FV14: 2.9 | FW14: 2.7 | FX14: 2.6 | FY14: 2.5 | FZ14: 2.4 | GA14: 2.3 | GB14: 2.2 | GC14: 2.1 | GD14: 2 | GE14: 2 | GF14: 2 | GG14: 2 | GH14: 1.9 | GI14: 2 | GJ14: 2 | GK14: 2 | GL14: 2 | GM14: 2 | GN14: 2 | GO14: 2.1 | GP14: 2 | GQ14: 2 | GR14: 2 | GS14: 1.9 | GT14: 2 | GU14: 2.1 | GV14: 2.1 | GW14: 2.1 | GX14: 2.1 | GY14: 2.1 | GZ14: 2.1 | HA14: 2.1 | HB14: 2 | HC14: 2.1 | HD14: 2.2 | HE14: 2.2 | HF14: 2.2 | HG14: 2.2 | HH14: 2.1 | HI14: 2.1 | HJ14: 2.2 | HK14: 2.2 | HL14: 2.3
A15: Swale | B15: 2.5 | C15: 2.6 | D15: 2.4 | E15: 2.3 | F15: 2.2 | G15: 2.1 | H15: 2 | I15: 2 | J15: 2 | K15: 1.9 | L15: 1.9 | M15: 1.9 | N15: 2 | O15: 2 | P15: 2 | Q15: 1.9 | R15: 1.9 | S15: 1.8 | T15: 1.9 | U15: 2 | V15: 2 | W15: 2.1 | X15: 2.5 | Y15: 2.8 | Z15: 3.2 | AA15: 3.7 | AB15: 3.8 | AC15: 3.7 | AD15: 3.8 | AE15: 3.7 | AF15: 3.6 | AG15: 3.6 | AH15: 3.6 | AI15: 3.7 | AJ15: 3.8 | AK15: 3.9 | AL15: 4 | AM15: 4 | AN15: 3.9 | AO15: 3.8 | AP15: 3.7 | AQ15: 3.5 | AR15: 3.4 | AS15: 3.4 | AT15: 3.4 | AU15: 3.4 | AV15: 3.5 | AW15: 3.5 | AX15: 3.6 | AY15: 3.7 | AZ15: 3.7 | BA15: 3.6 | BB15: 3.6 | BC15: 3.5 | BD15: 3.6 | BE15: 3.7 | BF15: 3.8 | BG15: 3.9 | BH15: 3.9 | BI15: 4 | BJ15: 4.2 | BK15: 4.5 | BL15: 4.4 | BM15: 4.2 | BN15: 4.1 | BO15: 3.9 | BP15: 3.9 | BQ15: 3.9 | BR15: 3.9 | BS15: 3.9 | BT15: 3.9 | BU15: 3.9 | BV15: 4.1 | BW15: 4.1 | BX15: 4 | BY15: 3.7 | BZ15: 3.6 | CA15: 3.5 | CB15: 3.5 | CC15: 3.4 | CD15: 3.2 | CE15: 3.2 | CF15: 3.1 | CG15: 3.2 | CH15: 3.2 | CI15: 3.1 | CJ15: 3 | CK15: 2.8 | CL15: 2.7 | CM15: 2.5 | CN15: 2.4 | CO15: 2.3 | CP15: 2.2 | CQ15: 2.1 | CR15: 2 | CS15: 2 | CT15: 2.2 | CU15: 2.1 | CV15: 2.1 | CW15: 2 | CX15: 2 | CY15: 1.9 | CZ15: 1.9 | DA15: 1.8 | DB15: 1.9 | DC15: 1.9 | DD15: 2 | DE15: 2 | DF15: 2.1 | DG15: 2.1 | DH15: 2.1 | DI15: 2.2 | DJ15: 2.1 | DK15: 2.1 | DL15: 2.1 | DM15: 2.1 | DN15: 2.1 | DO15: 2.2 | DP15: 2.2 | DQ15: 2.1 | DR15: 2.2 | DS15: 2.2 | DT15: 2.3 | DU15: 2.3 | DV15: 2.2 | DW15: 2.2 | DX15: 2.2 | DY15: 2.2 | DZ15: 2.2 | EA15: 2.2 | EB15: 2.2 | EC15: 2.2 | ED15: 2.2 | EE15: 2.3 | EF15: 2.5 | EG15: 2.7 | EH15: 2.7 | EI15: 2.7 | EJ15: 2.7 | EK15: 2.8 | EL15: 2.9 | EM15: 2.9 | EN15: 3 | EO15: 3 | EP15: 3 | EQ15: 3.2 | ER15: 3.2 | ES15: 3.2 | ET15: 3.2 | EU15: 3.2 | EV15: 3.2 | EW15: 3.2 | EX15: 3.3 | EY15: 3.4 | EZ15: 3.4 | FA15: 3.4 | FB15: 3.5 | FC15: 3.5 | FD15: 3.6 | FE15: 6 | FF15: 6.9 | FG15: 6.6 | FH15: 6.6 | FI15: 6.6 | FJ15: 6.6 | FK15: 6.3 | FL15: 6.4 | FM15: 6.4 | FN15: 6.2 | FO15: 6.4 | FP15: 6.4 | FQ15: 6.3 | FR15: 5.9 | FS15: 5.5 | FT15: 5.4 | FU15: 5.2 | FV15: 5.1 | FW15: 4.8 | FX15: 4.7 | FY15: 4.5 | FZ15: 4.4 | GA15: 4.4 | GB15: 4.2 | GC15: 4 | GD15: 3.8 | GE15: 3.6 | GF15: 3.5 | GG15: 3.5 | GH15: 3.5 | GI15: 3.5 | GJ15: 3.5 | GK15: 3.6 | GL15: 3.6 | GM15: 3.7 | GN15: 3.6 | GO15: 3.6 | GP15: 3.5 | GQ15: 3.4 | GR15: 3.5 | GS15: 3.4 | GT15: 3.4 | GU15: 3.5 | GV15: 3.6 | GW15: 3.6 | GX15: 3.7 | GY15: 3.7 | GZ15: 3.7 | HA15: 3.6 | HB15: 3.6 | HC15: 3.5 | HD15: 3.8 | HE15: 3.8 | HF15: 3.7 | HG15: 3.7 | HH15: 3.7 | HI15: 3.6 | HJ15: 3.6 | HK15: 3.7 | HL15: 3.7
A16: Thanet | B16: 3.3 | C16: 3.4 | D16: 3.4 | E16: 3.3 | F16: 3.1 | G16: 3 | H16: 2.9 | I16: 2.9 | J16: 2.8 | K16: 2.7 | L16: 2.6 | M16: 2.7 | N16: 2.7 | O16: 2.8 | P16: 2.7 | Q16: 2.8 | R16: 2.9 | S16: 2.9 | T16: 3 | U16: 3.2 | V16: 3.3 | W16: 3.3 | X16: 3.6 | Y16: 4 | Z16: 4.3 | AA16: 4.8 | AB16: 5 | AC16: 5.1 | AD16: 5.2 | AE16: 5 | AF16: 5 | AG16: 5.2 | AH16: 5.2 | AI16: 5.1 | AJ16: 5.3 | AK16: 5.4 | AL16: 5.5 | AM16: 5.6 | AN16: 5.5 | AO16: 5.4 | AP16: 5.1 | AQ16: 4.9 | AR16: 4.9 | AS16: 4.9 | AT16: 4.9 | AU16: 4.9 | AV16: 5 | AW16: 5.1 | AX16: 5.3 | AY16: 5.5 | AZ16: 5.4 | BA16: 5.5 | BB16: 5.5 | BC16: 5.3 | BD16: 5.4 | BE16: 5.5 | BF16: 5.7 | BG16: 5.7 | BH16: 5.8 | BI16: 6 | BJ16: 6.1 | BK16: 6.3 | BL16: 6.2 | BM16: 6.1 | BN16: 6.1 | BO16: 6 | BP16: 6 | BQ16: 6.1 | BR16: 6 | BS16: 6 | BT16: 6 | BU16: 6 | BV16: 6.1 | BW16: 6.3 | BX16: 6.1 | BY16: 6 | BZ16: 5.8 | CA16: 5.7 | CB16: 5.6 | CC16: 5.5 | CD16: 5.4 | CE16: 5.3 | CF16: 5.2 | CG16: 5.2 | CH16: 5.2 | CI16: 5.2 | CJ16: 5.1 | CK16: 4.8 | CL16: 4.6 | CM16: 4.4 | CN16: 4.2 | CO16: 4 | CP16: 3.9 | CQ16: 3.7 | CR16: 3.6 | CS16: 3.5 | CT16: 3.5 | CU16: 3.5 | CV16: 3.5 | CW16: 3.3 | CX16: 3.1 | CY16: 2.8 | CZ16: 2.8 | DA16: 2.7 | DB16: 2.7 | DC16: 2.7 | DD16: 2.7 | DE16: 2.9 | DF16: 3.2 | DG16: 3.3 | DH16: 3.4 | DI16: 3.4 | DJ16: 3.3 | DK16: 3.3 | DL16: 3.2 | DM16: 3.3 | DN16: 3.2 | DO16: 3.3 | DP16: 3.3 | DQ16: 3.3 | DR16: 3.4 | DS16: 3.5 | DT16: 3.5 | DU16: 3.6 | DV16: 3.5 | DW16: 3.4 | DX16: 3.3 | DY16: 3.3 | DZ16: 3.4 | EA16: 3.6 | EB16: 3.7 | EC16: 4 | ED16: 4.2 | EE16: 4.4 | EF16: 4.5 | EG16: 5 | EH16: 4.9 | EI16: 4.8 | EJ16: 4.8 | EK16: 4.8 | EL16: 4.8 | EM16: 4.9 | EN16: 5 | EO16: 5.1 | EP16: 5.2 | EQ16: 5.4 | ER16: 5.4 | ES16: 5.3 | ET16: 5.3 | EU16: 5.3 | EV16: 5.3 | EW16: 5.3 | EX16: 5.2 | EY16: 5.3 | EZ16: 5.3 | FA16: 5.3 | FB16: 5.5 | FC16: 5.7 | FD16: 5.7 | FE16: 9 | FF16: 10.8 | FG16: 10.2 | FH16: 10.4 | FI16: 10.6 | FJ16: 10.4 | FK16: 9.9 | FL16: 10.2 | FM16: 10.1 | FN16: 9.6 | FO16: 9.9 | FP16: 9.6 | FQ16: 9.5 | FR16: 9.1 | FS16: 8.5 | FT16: 8.3 | FU16: 8 | FV16: 7.6 | FW16: 7.4 | FX16: 7.2 | FY16: 7.1 | FZ16: 7.1 | GA16: 7.1 | GB16: 6.7 | GC16: 6.3 | GD16: 6.1 | GE16: 5.8 | GF16: 5.7 | GG16: 5.6 | GH16: 5.6 | GI16: 5.6 | GJ16: 5.6 | GK16: 5.7 | GL16: 5.6 | GM16: 5.7 | GN16: 5.7 | GO16: 5.8 | GP16: 5.6 | GQ16: 5.6 | GR16: 5.5 | GS16: 5.5 | GT16: 5.3 | GU16: 5.3 | GV16: 5.4 | GW16: 5.6 | GX16: 5.6 | GY16: 5.7 | GZ16: 5.6 | HA16: 5.4 | HB16: 5.3 | HC16: 5.2 | HD16: 5.6 | HE16: 5.6 | HF16: 5.5 | HG16: 5.6 | HH16: 5.6 | HI16: 5.6 | HJ16: 5.5 | HK16: 5.6 | HL16: 5.7
A17: Tonbridge & Malling | B17: 1.1 | C17: 1.1 | D17: 1 | E17: 0.9 | F17: 0.9 | G17: 0.9 | H17: 0.9 | I17: 0.9 | J17: 0.9 | K17: 0.8 | L17: 0.8 | M17: 0.8 | N17: 0.9 | O17: 0.9 | P17: 0.9 | Q17: 0.9 | R17: 0.8 | S17: 0.9 | T17: 0.9 | U17: 1 | V17: 1 | W17: 1 | X17: 1.2 | Y17: 1.4 | Z17: 1.6 | AA17: 2.1 | AB17: 2.2 | AC17: 2.2 | AD17: 2.3 | AE17: 2.2 | AF17: 2.3 | AG17: 2.2 | AH17: 2.3 | AI17: 2.2 | AJ17: 2.2 | AK17: 2.1 | AL17: 2.2 | AM17: 2.2 | AN17: 2.1 | AO17: 2 | AP17: 1.9 | AQ17: 1.8 | AR17: 1.9 | AS17: 1.9 | AT17: 1.8 | AU17: 1.7 | AV17: 1.7 | AW17: 1.6 | AX17: 1.8 | AY17: 1.9 | AZ17: 1.9 | BA17: 1.9 | BB17: 1.9 | BC17: 1.9 | BD17: 2 | BE17: 2 | BF17: 2 | BG17: 2 | BH17: 2 | BI17: 2 | BJ17: 2.1 | BK17: 2.3 | BL17: 2.2 | BM17: 2.2 | BN17: 2.1 | BO17: 2.1 | BP17: 2.1 | BQ17: 2 | BR17: 2 | BS17: 2 | BT17: 2 | BU17: 1.9 | BV17: 2 | BW17: 2.1 | BX17: 2 | BY17: 1.9 | BZ17: 1.9 | CA17: 1.8 | CB17: 1.7 | CC17: 1.7 | CD17: 1.6 | CE17: 1.5 | CF17: 1.4 | CG17: 1.4 | CH17: 1.5 | CI17: 1.5 | CJ17: 1.4 | CK17: 1.4 | CL17: 1.3 | CM17: 1.2 | CN17: 1.2 | CO17: 1.1 | CP17: 1.1 | CQ17: 1.1 | CR17: 1 | CS17: 1 | CT17: 1 | CU17: 1.1 | CV17: 1.1 | CW17: 1 | CX17: 1 | CY17: 0.9 | CZ17: 0.9 | DA17: 0.9 | DB17: 0.9 | DC17: 0.9 | DD17: 0.9 | DE17: 0.9 | DF17: 0.9 | DG17: 1 | DH17: 1 | DI17: 0.9 | DJ17: 1 | DK17: 0.9 | DL17: 0.9 | DM17: 0.9 | DN17: 0.9 | DO17: 0.9 | DP17: 0.9 | DQ17: 0.9 | DR17: 0.9 | DS17: 0.9 | DT17: 0.9 | DU17: 0.9 | DV17: 0.9 | DW17: 0.9 | DX17: 0.9 | DY17: 0.9 | DZ17: 0.9 | EA17: 0.9 | EB17: 0.9 | EC17: 1 | ED17: 1 | EE17: 1 | EF17: 1 | EG17: 1 | EH17: 0.9 | EI17: 0.9 | EJ17: 0.9 | EK17: 0.9 | EL17: 0.9 | EM17: 0.8 | EN17: 0.8 | EO17: 0.8 | EP17: 0.9 | EQ17: 1 | ER17: 1 | ES17: 1.1 | ET17: 1.1 | EU17: 1.2 | EV17: 1.3 | EW17: 1.4 | EX17: 1.4 | EY17: 1.5 | EZ17: 1.5 | FA17: 1.5 | FB17: 1.5 | FC17: 1.6 | FD17: 1.6 | FE17: 3.2 | FF17: 4.4 | FG17: 4.1 | FH17: 4.2 | FI17: 4.3 | FJ17: 4.4 | FK17: 4.2 | FL17: 4.1 | FM17: 4.1 | FN17: 4 | FO17: 4.2 | FP17: 4.1 | FQ17: 4.1 | FR17: 3.8 | FS17: 3.4 | FT17: 3.4 | FU17: 3.2 | FV17: 3 | FW17: 2.8 | FX17: 2.7 | FY17: 2.5 | FZ17: 2.4 | GA17: 2.4 | GB17: 2.3 | GC17: 2.1 | GD17: 2.1 | GE17: 2 | GF17: 2 | GG17: 2 | GH17: 1.9 | GI17: 2 | GJ17: 2 | GK17: 2.1 | GL17: 2 | GM17: 2 | GN17: 2.1 | GO17: 2.2 | GP17: 2 | GQ17: 2 | GR17: 2.1 | GS17: 2.1 | GT17: 2.1 | GU17: 2.1 | GV17: 2.2 | GW17: 2.2 | GX17: 2.1 | GY17: 2.2 | GZ17: 2.2 | HA17: 2.1 | HB17: 2.2 | HC17: 2.1 | HD17: 2.3 | HE17: 2.2 | HF17: 2.3 | HG17: 2.3 | HH17: 2.3 | HI17: 2.2 | HJ17: 2.3 | HK17: 2.4 | HL17: 2.4
A18: Tunbridge Wells | B18: 0.9 | C18: 0.9 | D18: 0.9 | E18: 0.9 | F18: 0.9 | G18: 0.9 | H18: 0.9 | I18: 0.9 | J18: 0.8 | K18: 0.8 | L18: 0.8 | M18: 0.8 | N18: 0.8 | O18: 0.8 | P18: 0.8 | Q18: 0.8 | R18: 0.8 | S18: 0.8 | T18: 0.8 | U18: 0.9 | V18: 0.9 | W18: 1 | X18: 1.2 | Y18: 1.3 | Z18: 1.5 | AA18: 1.8 | AB18: 1.9 | AC18: 2 | AD18: 2 | AE18: 2 | AF18: 2 | AG18: 2 | AH18: 2 | AI18: 1.8 | AJ18: 1.8 | AK18: 1.7 | AL18: 1.9 | AM18: 1.9 | AN18: 1.8 | AO18: 1.8 | AP18: 1.7 | AQ18: 1.6 | AR18: 1.6 | AS18: 1.6 | AT18: 1.6 | AU18: 1.5 | AV18: 1.4 | AW18: 1.4 | AX18: 1.5 | AY18: 1.5 | AZ18: 1.6 | BA18: 1.5 | BB18: 1.5 | BC18: 1.5 | BD18: 1.6 | BE18: 1.6 | BF18: 1.6 | BG18: 1.6 | BH18: 1.6 | BI18: 1.6 | BJ18: 1.7 | BK18: 1.7 | BL18: 1.7 | BM18: 1.6 | BN18: 1.6 | BO18: 1.5 | BP18: 1.5 | BQ18: 1.5 | BR18: 1.5 | BS18: 1.5 | BT18: 1.4 | BU18: 1.3 | BV18: 1.4 | BW18: 1.5 | BX18: 1.4 | BY18: 1.4 | BZ18: 1.3 | CA18: 1.2 | CB18: 1.2 | CC18: 1.1 | CD18: 1.1 | CE18: 1 | CF18: 0.9 | CG18: 0.9 | CH18: 1 | CI18: 1.1 | CJ18: 1.1 | CK18: 1 | CL18: 1 | CM18: 0.9 | CN18: 0.8 | CO18: 0.8 | CP18: 0.8 | CQ18: 0.7 | CR18: 0.7 | CS18: 0.7 | CT18: 0.7 | CU18: 0.8 | CV18: 0.7 | CW18: 0.7 | CX18: 0.7 | CY18: 0.7 | CZ18: 0.6 | DA18: 0.7 | DB18: 0.6 | DC18: 0.7 | DD18: 0.7 | DE18: 0.7 | DF18: 0.7 | DG18: 0.7 | DH18: 0.7 | DI18: 0.7 | DJ18: 0.7 | DK18: 0.7 | DL18: 0.7 | DM18: 0.8 | DN18: 0.8 | DO18: 0.8 | DP18: 0.8 | DQ18: 0.7 | DR18: 0.8 | DS18: 0.8 | DT18: 0.9 | DU18: 0.9 | DV18: 0.9 | DW18: 0.9 | DX18: 0.9 | DY18: 0.9 | DZ18: 0.9 | EA18: 0.9 | EB18: 0.9 | EC18: 0.9 | ED18: 1 | EE18: 1 | EF18: 1 | EG18: 0.9 | EH18: 0.9 | EI18: 0.9 | EJ18: 0.8 | EK18: 0.8 | EL18: 0.8 | EM18: 0.8 | EN18: 0.8 | EO18: 0.8 | EP18: 0.9 | EQ18: 1 | ER18: 1.2 | ES18: 1.2 | ET18: 1.2 | EU18: 1.3 | EV18: 1.3 | EW18: 1.3 | EX18: 1.4 | EY18: 1.5 | EZ18: 1.5 | FA18: 1.5 | FB18: 1.6 | FC18: 1.6 | FD18: 1.6 | FE18: 3.3 | FF18: 4.7 | FG18: 4.3 | FH18: 4.5 | FI18: 4.7 | FJ18: 4.6 | FK18: 4.4 | FL18: 4.4 | FM18: 4.4 | FN18: 4.4 | FO18: 4.6 | FP18: 4.6 | FQ18: 4.4 | FR18: 4 | FS18: 3.6 | FT18: 3.6 | FU18: 3.4 | FV18: 3.2 | FW18: 3.1 | FX18: 3 | FY18: 2.8 | FZ18: 2.8 | GA18: 2.7 | GB18: 2.7 | GC18: 2.5 | GD18: 2.4 | GE18: 2.3 | GF18: 2.3 | GG18: 2.3 | GH18: 2.3 | GI18: 2.3 | GJ18: 2.2 | GK18: 2.2 | GL18: 2.2 | GM18: 2.2 | GN18: 2.3 | GO18: 2.3 | GP18: 2.3 | GQ18: 2.4 | GR18: 2.3 | GS18: 2.4 | GT18: 2.3 | GU18: 2.3 | GV18: 2.3 | GW18: 2.3 | GX18: 2.3 | GY18: 2.4 | GZ18: 2.4 | HA18: 2.3 | HB18: 2.4 | HC18: 2.4 | HD18: 2.5 | HE18: 2.5 | HF18: 2.6 | HG18: 2.7 | HH18: 2.7 | HI18: 2.6 | HJ18: 2.6 | HK18: 2.6 | HL18: 2.6
A19: South East LEP | B19: 2 | C19: 2 | D19: 2 | E19: 1.9 | F19: 1.8 | G19: 1.7 | H19: 1.7 | I19: 1.7 | J19: 1.6 | K19: 1.6 | L19: 1.6 | M19: 1.6 | N19: 1.6 | O19: 1.7 | P19: 1.6 | Q19: 1.6 | R19: 1.6 | S19: 1.6 | T19: 1.7 | U19: 1.8 | V19: 1.8 | W19: 1.9 | X19: 2.2 | Y19: 2.4 | Z19: 2.7 | AA19: 3.2 | AB19: 3.3 | AC19: 3.4 | AD19: 3.4 | AE19: 3.3 | AF19: 3.3 | AG19: 3.4 | AH19: 3.3 | AI19: 3.3 | AJ19: 3.3 | AK19: 3.3 | AL19: 3.5 | AM19: 3.5 | AN19: 3.5 | AO19: 3.3 | AP19: 3.2 | AQ19: 3 | AR19: 3 | AS19: 3 | AT19: 3 | AU19: 2.9 | AV19: 2.9 | AW19: 3 | AX19: 3.1 | AY19: 3.2 | AZ19: 3.2 | BA19: 3.1 | BB19: 3.1 | BC19: 3.1 | BD19: 3.2 | BE19: 3.2 | BF19: 3.2 | BG19: 3.3 | BH19: 3.3 | BI19: 3.3 | BJ19: 3.5 | BK19: 3.6 | BL19: 3.5 | BM19: 3.4 | BN19: 3.3 | BO19: 3.2 | BP19: 3.2 | BQ19: 3.2 | BR19: 3.2 | BS19: 3.2 | BT19: 3.2 | BU19: 3.2 | BV19: 3.3 | BW19: 3.4 | BX19: 3.3 | BY19: 3.2 | BZ19: 3.1 | CA19: 2.9 | CB19: 2.8 | CC19: 2.8 | CD19: 2.7 | CE19: 2.6 | CF19: 2.5 | CG19: 2.5 | CH19: 2.5 | CI19: 2.5 | CJ19: 2.4 | CK19: 2.3 | CL19: 2.2 | CM19: 2 | CN19: 1.9 | CO19: 1.9 | CP19: 1.8 | CQ19: 1.7 | CR19: 1.7 | CS19: 1.6 | CT19: 1.7 | CU19: 1.7 | CV19: 1.7 | CW19: 1.6 | CX19: 1.5 | CY19: 1.5 | CZ19: 1.5 | DA19: 1.5 | DB19: 1.5 | DC19: 1.5 | DD19: 1.4 | DE19: 1.5 | DF19: 1.5 | DG19: 1.6 | DH19: 1.6 | DI19: 1.6 | DJ19: 1.5 | DK19: 1.5 | DL19: 1.5 | DM19: 1.5 | DN19: 1.5 | DO19: 1.5 | DP19: 1.5 | DQ19: 1.5 | DR19: 1.5 | DS19: 1.6 | DT19: 1.6 | DU19: 1.6 | DV19: 1.6 | DW19: 1.6 | DX19: 1.6 | DY19: 1.6 | DZ19: 1.5 | EA19: 1.6 | EB19: 1.6 | EC19: 1.6 | ED19: 1.7 | EE19: 1.8 | EF19: 1.8 | EG19: 1.9 | EH19: 1.9 | EI19: 1.8 | EJ19: 1.8 | EK19: 1.9 | EL19: 1.9 | EM19: 2 | EN19: 2 | EO19: 2.1 | EP19: 2.2 | EQ19: 2.3 | ER19: 2.4 | ES19: 2.4 | ET19: 2.4 | EU19: 2.5 | EV19: 2.5 | EW19: 2.5 | EX19: 2.5 | EY19: 2.6 | EZ19: 2.6 | FA19: 2.6 | FB19: 2.7 | FC19: 2.8 | FD19: 2.8 | FE19: 4.9 | FF19: 6.4 | FG19: 6 | FH19: 6.1 | FI19: 6.3 | FJ19: 6.2 | FK19: 5.9 | FL19: 6 | FM19: 6 | FN19: 5.8 | FO19: 6.1 | FP19: 6.1 | FQ19: 6 | FR19: 5.5 | FS19: 5.1 | FT19: 4.9 | FU19: 4.7 | FV19: 4.5 | FW19: 4.3 | FX19: 4.1 | FY19: 4 | FZ19: 3.9 | GA19: 3.9 | GB19: 3.7 | GC19: 3.5 | GD19: 3.4 | GE19: 3.3 | GF19: 3.2 | GG19: 3.2 | GH19: 3.2 | GI19: 3.1 | GJ19: 3.2 | GK19: 3.2 | GL19: 3.1 | GM19: 3.2 | GN19: 3.2 | GO19: 3.3 | GP19: 3.2 | GQ19: 3.2 | GR19: 3.2 | GS19: 3.2 | GT19: 3.2 | GU19: 3.2 | GV19: 3.2 | GW19: 3.3 | GX19: 3.3 | GY19: 3.4 | GZ19: 3.4 | HA19: 3.3 | HB19: 3.3 | HC19: 3.3 | HD19: 3.6 | HE19: 3.6 | HF19: 3.6 | HG19: 3.5 | HH19: 3.5 | HI19: 3.5 | HJ19: 3.4 | HK19: 3.6 | HL19: 3.6
A20: England | B20: 2.4 | C20: 2.4 | D20: 2.4 | E20: 2.3 | F20: 2.2 | G20: 2.1 | H20: 2.1 | I20: 2.1 | J20: 2.1 | K20: 2 | L20: 2 | M20: 2 | N20: 2 | O20: 2.1 | P20: 2.1 | Q20: 2.1 | R20: 2.1 | S20: 2.1 | T20: 2.1 | U20: 2.3 | V20: 2.3 | W20: 2.4 | X20: 2.6 | Y20: 2.8 | Z20: 3.1 | AA20: 3.6 | AB20: 3.8 | AC20: 3.8 | AD20: 3.9 | AE20: 3.8 | AF20: 3.9 | AG20: 3.9 | AH20: 3.9 | AI20: 3.9 | AJ20: 3.9 | AK20: 3.8 | AL20: 4 | AM20: 4 | AN20: 3.9 | AO20: 3.8 | AP20: 3.6 | AQ20: 3.5 | AR20: 3.5 | AS20: 3.5 | AT20: 3.5 | AU20: 3.4 | AV20: 3.4 | AW20: 3.4 | AX20: 3.6 | AY20: 3.6 | AZ20: 3.6 | BA20: 3.6 | BB20: 3.6 | BC20: 3.6 | BD20: 3.7 | BE20: 3.8 | BF20: 3.8 | BG20: 3.8 | BH20: 3.7 | BI20: 3.8 | BJ20: 3.9 | BK20: 4 | BL20: 4 | BM20: 3.9 | BN20: 3.8 | BO20: 3.7 | BP20: 3.7 | BQ20: 3.7 | BR20: 3.7 | BS20: 3.7 | BT20: 3.7 | BU20: 3.6 | BV20: 3.8 | BW20: 3.8 | BX20: 3.8 | BY20: 3.7 | BZ20: 3.5 | CA20: 3.4 | CB20: 3.3 | CC20: 3.3 | CD20: 3.1 | CE20: 3 | CF20: 2.9 | CG20: 2.8 | CH20: 2.9 | CI20: 2.9 | CJ20: 2.8 | CK20: 2.7 | CL20: 2.5 | CM20: 2.4 | CN20: 2.3 | CO20: 2.2 | CP20: 2.1 | CQ20: 2.1 | CR20: 2 | CS20: 1.9 | CT20: 2 | CU20: 2 | CV20: 1.9 | CW20: 1.9 | CX20: 1.8 | CY20: 1.8 | CZ20: 1.8 | DA20: 1.8 | DB20: 1.7 | DC20: 1.7 | DD20: 1.7 | DE20: 1.7 | DF20: 1.7 | DG20: 1.8 | DH20: 1.8 | DI20: 1.8 | DJ20: 1.8 | DK20: 1.7 | DL20: 1.7 | DM20: 1.8 | DN20: 1.7 | DO20: 1.7 | DP20: 1.7 | DQ20: 1.7 | DR20: 1.8 | DS20: 1.8 | DT20: 1.9 | DU20: 1.9 | DV20: 1.9 | DW20: 1.8 | DX20: 1.8 | DY20: 1.8 | DZ20: 1.8 | EA20: 1.8 | EB20: 1.8 | EC20: 1.8 | ED20: 1.9 | EE20: 2 | EF20: 2 | EG20: 2.1 | EH20: 2.1 | EI20: 2.1 | EJ20: 2.1 | EK20: 2.1 | EL20: 2.1 | EM20: 2.2 | EN20: 2.2 | EO20: 2.3 | EP20: 2.3 | EQ20: 2.5 | ER20: 2.5 | ES20: 2.6 | ET20: 2.6 | EU20: 2.7 | EV20: 2.7 | EW20: 2.7 | EX20: 2.7 | EY20: 2.8 | EZ20: 2.8 | FA20: 2.8 | FB20: 2.9 | FC20: 3 | FD20: 3 | FE20: 5 | FF20: 6.4 | FG20: 6.2 | FH20: 6.3 | FI20: 6.4 | FJ20: 6.4 | FK20: 6.2 | FL20: 6.3 | FM20: 6.2 | FN20: 6.1 | FO20: 6.4 | FP20: 6.4 | FQ20: 6.3 | FR20: 5.9 | FS20: 5.5 | FT20: 5.4 | FU20: 5.2 | FV20: 4.9 | FW20: 4.7 | FX20: 4.5 | FY20: 4.4 | FZ20: 4.2 | GA20: 4.3 | GB20: 4.1 | GC20: 3.9 | GD20: 3.8 | GE20: 3.7 | GF20: 3.7 | GG20: 3.6 | GH20: 3.6 | GI20: 3.6 | GJ20: 3.6 | GK20: 3.6 | GL20: 3.6 | GM20: 3.6 | GN20: 3.7 | GO20: 3.8 | GP20: 3.6 | GQ20: 3.7 | GR20: 3.7 | GS20: 3.6 | GT20: 3.6 | GU20: 3.7 | GV20: 3.7 | GW20: 3.7 | GX20: 3.7 | GY20: 3.8 | GZ20: 3.9 | HA20: 3.8 | HB20: 3.9 | HC20: 3.9 | HD20: 4.3 | HE20: 4.3 | HF20: 4.3 | HG20: 4.2 | HH20: 4.2 | HI20: 4.1 | HJ20: 4.1 | HK20: 4.2 | HL20: 4.3
A21: England and Wales | B21: 2.4 | C21: 2.4 | D21: 2.4 | E21: 2.3 | F21: 2.2 | G21: 2.1 | H21: 2.1 | I21: 2.1 | J21: 2.1 | K21: 2 | L21: 2 | M21: 2 | N21: 2.1 | O21: 2.1 | P21: 2.1 | Q21: 2.1 | R21: 2.1 | S21: 2.1 | T21: 2.1 | U21: 2.3 | V21: 2.3 | W21: 2.4 | X21: 2.6 | Y21: 2.9 | Z21: 3.2 | AA21: 3.6 | AB21: 3.8 | AC21: 3.9 | AD21: 3.9 | AE21: 3.8 | AF21: 3.9 | AG21: 3.9 | AH21: 3.9 | AI21: 3.9 | AJ21: 3.9 | AK21: 3.9 | AL21: 4 | AM21: 4 | AN21: 3.9 | AO21: 3.8 | AP21: 3.6 | AQ21: 3.5 | AR21: 3.5 | AS21: 3.5 | AT21: 3.5 | AU21: 3.4 | AV21: 3.4 | AW21: 3.4 | AX21: 3.6 | AY21: 3.7 | AZ21: 3.6 | BA21: 3.6 | BB21: 3.6 | BC21: 3.6 | BD21: 3.7 | BE21: 3.8 | BF21: 3.8 | BG21: 3.8 | BH21: 3.8 | BI21: 3.8 | BJ21: 4 | BK21: 4.1 | BL21: 4 | BM21: 3.9 | BN21: 3.8 | BO21: 3.7 | BP21: 3.8 | BQ21: 3.7 | BR21: 3.7 | BS21: 3.7 | BT21: 3.7 | BU21: 3.7 | BV21: 3.8 | BW21: 3.9 | BX21: 3.8 | BY21: 3.7 | BZ21: 3.6 | CA21: 3.4 | CB21: 3.4 | CC21: 3.3 | CD21: 3.2 | CE21: 3 | CF21: 2.9 | CG21: 2.9 | CH21: 2.9 | CI21: 2.9 | CJ21: 2.8 | CK21: 2.7 | CL21: 2.6 | CM21: 2.4 | CN21: 2.3 | CO21: 2.2 | CP21: 2.2 | CQ21: 2.1 | CR21: 2 | CS21: 1.9 | CT21: 2 | CU21: 2 | CV21: 2 | CW21: 1.9 | CX21: 1.9 | CY21: 1.8 | CZ21: 1.8 | DA21: 1.8 | DB21: 1.8 | DC21: 1.8 | DD21: 1.7 | DE21: 1.7 | DF21: 1.8 | DG21: 1.8 | DH21: 1.9 | DI21: 1.8 | DJ21: 1.8 | DK21: 1.8 | DL21: 1.8 | DM21: 1.8 | DN21: 1.8 | DO21: 1.8 | DP21: 1.8 | DQ21: 1.7 | DR21: 1.8 | DS21: 1.8 | DT21: 1.9 | DU21: 1.9 | DV21: 1.9 | DW21: 1.9 | DX21: 1.8 | DY21: 1.8 | DZ21: 1.8 | EA21: 1.8 | EB21: 1.8 | EC21: 1.9 | ED21: 1.9 | EE21: 2 | EF21: 2.1 | EG21: 2.1 | EH21: 2.1 | EI21: 2.1 | EJ21: 2.1 | EK21: 2.1 | EL21: 2.1 | EM21: 2.2 | EN21: 2.2 | EO21: 2.3 | EP21: 2.3 | EQ21: 2.5 | ER21: 2.6 | ES21: 2.6 | ET21: 2.6 | EU21: 2.7 | EV21: 2.7 | EW21: 2.7 | EX21: 2.8 | EY21: 2.8 | EZ21: 2.8 | FA21: 2.8 | FB21: 2.9 | FC21: 3 | FD21: 3 | FE21: 5 | FF21: 6.4 | FG21: 6.2 | FH21: 6.3 | FI21: 6.4 | FJ21: 6.4 | FK21: 6.2 | FL21: 6.3 | FM21: 6.2 | FN21: 6.1 | FO21: 6.4 | FP21: 6.4 | FQ21: 6.3 | FR21: 5.9 | FS21: 5.5 | FT21: 5.4 | FU21: 5.1 | FV21: 4.9 | FW21: 4.7 | FX21: 4.5 | FY21: 4.4 | FZ21: 4.2 | GA21: 4.2 | GB21: 4.1 | GC21: 3.9 | GD21: 3.8 | GE21: 3.7 | GF21: 3.6 | GG21: 3.6 | GH21: 3.6 | GI21: 3.6 | GJ21: 3.6 | GK21: 3.6 | GL21: 3.6 | GM21: 3.6 | GN21: 3.7 | GO21: 3.7 | GP21: 3.6 | GQ21: 3.6 | GR21: 3.7 | GS21: 3.6 | GT21: 3.6 | GU21: 3.6 | GV21: 3.7 | GW21: 3.7 | GX21: 3.7 | GY21: 3.8 | GZ21: 3.8 | HA21: 3.8 | HB21: 3.8 | HC21: 3.9 | HD21: 4.2 | HE21: 4.2 | HF21: 4.2 | HG21: 4.2 | HH21: 4.1 | HI21: 4.1 | HJ21: 4.1 | HK21: 4.2 | HL21: 4.3
A22: Great Britain | B22: 2.4 | C22: 2.4 | D22: 2.4 | E22: 2.3 | F22: 2.2 | G22: 2.1 | H22: 2.1 | I22: 2.1 | J22: 2.1 | K22: 2 | L22: 2 | M22: 2 | N22: 2.1 | O22: 2.1 | P22: 2.1 | Q22: 2.1 | R22: 2.1 | S22: 2.1 | T22: 2.2 | U22: 2.3 | V22: 2.3 | W22: 2.4 | X22: 2.6 | Y22: 2.9 | Z22: 3.2 | AA22: 3.6 | AB22: 3.8 | AC22: 3.8 | AD22: 3.9 | AE22: 3.8 | AF22: 3.9 | AG22: 3.9 | AH22: 3.9 | AI22: 3.9 | AJ22: 3.9 | AK22: 3.9 | AL22: 4 | AM22: 4 | AN22: 3.9 | AO22: 3.8 | AP22: 3.7 | AQ22: 3.5 | AR22: 3.5 | AS22: 3.5 | AT22: 3.5 | AU22: 3.4 | AV22: 3.4 | AW22: 3.5 | AX22: 3.6 | AY22: 3.7 | AZ22: 3.7 | BA22: 3.7 | BB22: 3.6 | BC22: 3.6 | BD22: 3.7 | BE22: 3.8 | BF22: 3.8 | BG22: 3.8 | BH22: 3.8 | BI22: 3.8 | BJ22: 4 | BK22: 4.1 | BL22: 4 | BM22: 3.9 | BN22: 3.8 | BO22: 3.8 | BP22: 3.8 | BQ22: 3.8 | BR22: 3.7 | BS22: 3.7 | BT22: 3.7 | BU22: 3.7 | BV22: 3.8 | BW22: 3.9 | BX22: 3.8 | BY22: 3.7 | BZ22: 3.6 | CA22: 3.5 | CB22: 3.4 | CC22: 3.3 | CD22: 3.2 | CE22: 3 | CF22: 2.9 | CG22: 2.9 | CH22: 3 | CI22: 3 | CJ22: 2.9 | CK22: 2.7 | CL22: 2.6 | CM22: 2.4 | CN22: 2.4 | CO22: 2.3 | CP22: 2.2 | CQ22: 2.1 | CR22: 2 | CS22: 2 | CT22: 2 | CU22: 2.1 | CV22: 2 | CW22: 2 | CX22: 1.9 | CY22: 1.8 | CZ22: 1.8 | DA22: 1.8 | DB22: 1.8 | DC22: 1.8 | DD22: 1.7 | DE22: 1.7 | DF22: 1.8 | DG22: 1.9 | DH22: 1.9 | DI22: 1.9 | DJ22: 1.8 | DK22: 1.8 | DL22: 1.8 | DM22: 1.8 | DN22: 1.8 | DO22: 1.8 | DP22: 1.8 | DQ22: 1.8 | DR22: 1.8 | DS22: 1.9 | DT22: 1.9 | DU22: 1.9 | DV22: 1.9 | DW22: 1.9 | DX22: 1.9 | DY22: 1.9 | DZ22: 1.9 | EA22: 1.9 | EB22: 1.9 | EC22: 1.9 | ED22: 1.9 | EE22: 2.1 | EF22: 2.1 | EG22: 2.2 | EH22: 2.1 | EI22: 2.1 | EJ22: 2.1 | EK22: 2.2 | EL22: 2.2 | EM22: 2.2 | EN22: 2.3 | EO22: 2.3 | EP22: 2.4 | EQ22: 2.5 | ER22: 2.6 | ES22: 2.6 | ET22: 2.7 | EU22: 2.7 | EV22: 2.7 | EW22: 2.8 | EX22: 2.8 | EY22: 2.8 | EZ22: 2.9 | FA22: 2.9 | FB22: 2.9 | FC22: 3 | FD22: 3 | FE22: 5 | FF22: 6.4 | FG22: 6.2 | FH22: 6.3 | FI22: 6.4 | FJ22: 6.4 | FK22: 6.1 | FL22: 6.2 | FM22: 6.2 | FN22: 6.1 | FO22: 6.4 | FP22: 6.4 | FQ22: 6.3 | FR22: 5.9 | FS22: 5.5 | FT22: 5.3 | FU22: 5.1 | FV22: 4.8 | FW22: 4.7 | FX22: 4.5 | FY22: 4.3 | FZ22: 4.2 | GA22: 4.2 | GB22: 4.1 | GC22: 3.9 | GD22: 3.7 | GE22: 3.7 | GF22: 3.6 | GG22: 3.6 | GH22: 3.6 | GI22: 3.5 | GJ22: 3.6 | GK22: 3.6 | GL22: 3.5 | GM22: 3.6 | GN22: 3.7 | GO22: 3.7 | GP22: 3.6 | GQ22: 3.6 | GR22: 3.6 | GS22: 3.6 | GT22: 3.6 | GU22: 3.6 | GV22: 3.6 | GW22: 3.6 | GX22: 3.6 | GY22: 3.7 | GZ22: 3.8 | HA22: 3.7 | HB22: 3.8 | HC22: 3.8 | HD22: 4.2 | HE22: 4.2 | HF22: 4.1 | HG22: 4.1 | HH22: 4 | HI22: 4 | HJ22: 4 | HK22: 4.1 | HL22: 4.2
A23: United Kingdom | B23: 2.4 | C23: 2.4 | D23: 2.4 | E23: 2.3 | F23: 2.2 | G23: 2.1 | H23: 2.1 | I23: 2.1 | J23: 2.1 | K23: 2 | L23: 2 | M23: 2 | N23: 2.1 | O23: 2.1 | P23: 2.1 | Q23: 2.1 | R23: 2.1 | S23: 2.1 | T23: 2.2 | U23: 2.3 | V23: 2.3 | W23: 2.4 | X23: 2.6 | Y23: 2.9 | Z23: 3.2 | AA23: 3.6 | AB23: 3.8 | AC23: 3.9 | AD23: 3.9 | AE23: 3.8 | AF23: 3.9 | AG23: 4 | AH23: 3.9 | AI23: 3.9 | AJ23: 3.9 | AK23: 3.9 | AL23: 4.1 | AM23: 4.1 | AN23: 4 | AO23: 3.9 | AP23: 3.7 | AQ23: 3.5 | AR23: 3.5 | AS23: 3.6 | AT23: 3.5 | AU23: 3.5 | AV23: 3.5 | AW23: 3.5 | AX23: 3.7 | AY23: 3.8 | AZ23: 3.7 | BA23: 3.7 | BB23: 3.7 | BC23: 3.6 | BD23: 3.8 | BE23: 3.9 | BF23: 3.9 | BG23: 3.8 | BH23: 3.8 | BI23: 3.8 | BJ23: 4 | BK23: 4.1 | BL23: 4.1 | BM23: 4 | BN23: 3.9 | BO23: 3.8 | BP23: 3.8 | BQ23: 3.8 | BR23: 3.8 | BS23: 3.8 | BT23: 3.8 | BU23: 3.7 | BV23: 3.9 | BW23: 3.9 | BX23: 3.9 | BY23: 3.8 | BZ23: 3.6 | CA23: 3.5 | CB23: 3.5 | CC23: 3.4 | CD23: 3.2 | CE23: 3.1 | CF23: 3 | CG23: 2.9 | CH23: 3 | CI23: 3 | CJ23: 2.9 | CK23: 2.8 | CL23: 2.7 | CM23: 2.5 | CN23: 2.4 | CO23: 2.4 | CP23: 2.3 | CQ23: 2.2 | CR23: 2.1 | CS23: 2 | CT23: 2.1 | CU23: 2.1 | CV23: 2.1 | CW23: 2 | CX23: 2 | CY23: 1.9 | CZ23: 1.9 | DA23: 1.9 | DB23: 1.9 | DC23: 1.8 | DD23: 1.8 | DE23: 1.8 | DF23: 1.9 | DG23: 1.9 | DH23: 1.9 | DI23: 1.9 | DJ23: 1.9 | DK23: 1.8 | DL23: 1.8 | DM23: 1.9 | DN23: 1.8 | DO23: 1.8 | DP23: 1.8 | DQ23: 1.8 | DR23: 1.8 | DS23: 1.9 | DT23: 2 | DU23: 2 | DV23: 1.9 | DW23: 1.9 | DX23: 1.9 | DY23: 1.9 | DZ23: 1.9 | EA23: 1.9 | EB23: 1.9 | EC23: 1.9 | ED23: 2 | EE23: 2.1 | EF23: 2.1 | EG23: 2.2 | EH23: 2.1 | EI23: 2.1 | EJ23: 2.1 | EK23: 2.2 | EL23: 2.2 | EM23: 2.2 | EN23: 2.3 | EO23: 2.3 | EP23: 2.4 | EQ23: 2.5 | ER23: 2.6 | ES23: 2.6 | ET23: 2.7 | EU23: 2.7 | EV23: 2.7 | EW23: 2.8 | EX23: 2.8 | EY23: 2.8 | EZ23: 2.9 | FA23: 2.9 | FB23: 2.9 | FC23: 3 | FD23: 3 | FE23: 5 | FF23: 6.3 | FG23: 6.2 | FH23: 6.3 | FI23: 6.4 | FJ23: 6.3 | FK23: 6.1 | FL23: 6.2 | FM23: 6.2 | FN23: 6.1 | FO23: 6.4 | FP23: 6.3 | FQ23: 6.2 | FR23: 5.8 | FS23: 5.4 | FT23: 5.3 | FU23: 5.1 | FV23: 4.8 | FW23: 4.6 | FX23: 4.5 | FY23: 4.3 | FZ23: 4.2 | GA23: 4.2 | GB23: 4 | GC23: 3.8 | GD23: 3.7 | GE23: 3.6 | GF23: 3.6 | GG23: 3.6 | GH23: 3.6 | GI23: 3.5 | GJ23: 3.5 | GK23: 3.6 | GL23: 3.5 | GM23: 3.6 | GN23: 3.6 | GO23: 3.7 | GP23: 3.6 | GQ23: 3.6 | GR23: 3.6 | GS23: 3.6 | GT23: 3.6 | GU23: 3.6 | GV23: 3.6 | GW23: 3.6 | GX23: 3.6 | GY23: 3.7 | GZ23: 3.8 | HA23: 3.7 | HB23: 3.8 | HC23: 3.8 | HD23: 4.2 | HE23: 4.1 | HF23: 4.1 | HG23: 4.1 | HH23: 4 | HI23: 4 | HJ23: 4 | HK23: 4.1 | HL23: 4.2
A24: South East Region | B24: 1.5 | C24: 1.5 | D24: 1.5 | E24: 1.4 | F24: 1.4 | G24: 1.3 | H24: 1.3 | I24: 1.3 | J24: 1.3 | K24: 1.2 | L24: 1.2 | M24: 1.2 | N24: 1.3 | O24: 1.3 | P24: 1.3 | Q24: 1.3 | R24: 1.3 | S24: 1.3 | T24: 1.3 | U24: 1.4 | V24: 1.5 | W24: 1.5 | X24: 1.7 | Y24: 1.9 | Z24: 2.2 | AA24: 2.6 | AB24: 2.8 | AC24: 2.8 | AD24: 2.8 | AE24: 2.8 | AF24: 2.8 | AG24: 2.9 | AH24: 2.8 | AI24: 2.8 | AJ24: 2.8 | AK24: 2.8 | AL24: 3 | AM24: 2.9 | AN24: 2.8 | AO24: 2.8 | AP24: 2.6 | AQ24: 2.4 | AR24: 2.4 | AS24: 2.4 | AT24: 2.4 | AU24: 2.3 | AV24: 2.3 | AW24: 2.3 | AX24: 2.5 | AY24: 2.5 | AZ24: 2.5 | BA24: 2.5 | BB24: 2.5 | BC24: 2.4 | BD24: 2.5 | BE24: 2.5 | BF24: 2.5 | BG24: 2.5 | BH24: 2.5 | BI24: 2.5 | BJ24: 2.7 | BK24: 2.8 | BL24: 2.7 | BM24: 2.6 | BN24: 2.6 | BO24: 2.5 | BP24: 2.5 | BQ24: 2.5 | BR24: 2.4 | BS24: 2.4 | BT24: 2.4 | BU24: 2.4 | BV24: 2.5 | BW24: 2.6 | BX24: 2.5 | BY24: 2.4 | BZ24: 2.3 | CA24: 2.2 | CB24: 2.1 | CC24: 2 | CD24: 2 | CE24: 1.9 | CF24: 1.8 | CG24: 1.8 | CH24: 1.8 | CI24: 1.8 | CJ24: 1.7 | CK24: 1.6 | CL24: 1.5 | CM24: 1.4 | CN24: 1.4 | CO24: 1.3 | CP24: 1.3 | CQ24: 1.2 | CR24: 1.2 | CS24: 1.2 | CT24: 1.2 | CU24: 1.2 | CV24: 1.2 | CW24: 1.1 | CX24: 1.1 | CY24: 1 | CZ24: 1 | DA24: 1 | DB24: 1 | DC24: 1 | DD24: 1 | DE24: 1 | DF24: 1.1 | DG24: 1.1 | DH24: 1.1 | DI24: 1.1 | DJ24: 1.1 | DK24: 1 | DL24: 1 | DM24: 1 | DN24: 1.1 | DO24: 1.1 | DP24: 1.1 | DQ24: 1 | DR24: 1.1 | DS24: 1.1 | DT24: 1.2 | DU24: 1.2 | DV24: 1.1 | DW24: 1.1 | DX24: 1.1 | DY24: 1.1 | DZ24: 1.1 | EA24: 1.1 | EB24: 1.1 | EC24: 1.2 | ED24: 1.2 | EE24: 1.3 | EF24: 1.3 | EG24: 1.4 | EH24: 1.3 | EI24: 1.3 | EJ24: 1.3 | EK24: 1.3 | EL24: 1.4 | EM24: 1.4 | EN24: 1.4 | EO24: 1.5 | EP24: 1.5 | EQ24: 1.6 | ER24: 1.7 | ES24: 1.7 | ET24: 1.7 | EU24: 1.8 | EV24: 1.8 | EW24: 1.8 | EX24: 1.9 | EY24: 1.9 | EZ24: 2 | FA24: 2 | FB24: 2 | FC24: 2.1 | FD24: 2.1 | FE24: 3.8 | FF24: 5.3 | FG24: 5 | FH24: 5.1 | FI24: 5.3 | FJ24: 5.2 | FK24: 5 | FL24: 5.1 | FM24: 5.1 | FN24: 5 | FO24: 5.2 | FP24: 5.2 | FQ24: 5.1 | FR24: 4.7 | FS24: 4.3 | FT24: 4.2 | FU24: 4 | FV24: 3.8 | FW24: 3.6 | FX24: 3.5 | FY24: 3.4 | FZ24: 3.3 | GA24: 3.3 | GB24: 3.2 | GC24: 3 | GD24: 2.9 | GE24: 2.8 | GF24: 2.8 | GG24: 2.8 | GH24: 2.8 | GI24: 2.7 | GJ24: 2.8 | GK24: 2.8 | GL24: 2.7 | GM24: 2.8 | GN24: 2.8 | GO24: 2.8 | GP24: 2.7 | GQ24: 2.8 | GR24: 2.8 | GS24: 2.8 | GT24: 2.8 | GU24: 2.8 | GV24: 2.8 | GW24: 2.8 | GX24: 2.9 | GY24: 2.9 | GZ24: 2.9 | HA24: 2.9 | HB24: 2.9 | HC24: 3 | HD24: 3.2 | HE24: 3.2 | HF24: 3.2 | HG24: 3.2 | HH24: 3.1 | HI24: 3.1 | HJ24: 3.1 | HK24: 3.2 | HL24: 3.3
A25: Kent & Medway | B25: 2 | C25: 2 | D25: 2 | E25: 1.9 | F25: 1.8 | G25: 1.7 | H25: 1.7 | I25: 1.7 | J25: 1.6 | K25: 1.6 | L25: 1.5 | M25: 1.5 | N25: 1.6 | O25: 1.6 | P25: 1.6 | Q25: 1.6 | R25: 1.6 | S25: 1.6 | T25: 1.6 | U25: 1.7 | V25: 1.8 | W25: 1.9 | X25: 2.1 | Y25: 2.3 | Z25: 2.6 | AA25: 3 | AB25: 3.2 | AC25: 3.2 | AD25: 3.3 | AE25: 3.2 | AF25: 3.2 | AG25: 3.3 | AH25: 3.3 | AI25: 3.3 | AJ25: 3.3 | AK25: 3.3 | AL25: 3.4 | AM25: 3.5 | AN25: 3.4 | AO25: 3.3 | AP25: 3.1 | AQ25: 3 | AR25: 2.9 | AS25: 2.9 | AT25: 2.9 | AU25: 2.8 | AV25: 2.8 | AW25: 2.9 | AX25: 3 | AY25: 3.1 | AZ25: 3.1 | BA25: 3.1 | BB25: 3.1 | BC25: 3.1 | BD25: 3.1 | BE25: 3.2 | BF25: 3.2 | BG25: 3.2 | BH25: 3.3 | BI25: 3.3 | BJ25: 3.5 | BK25: 3.6 | BL25: 3.5 | BM25: 3.4 | BN25: 3.4 | BO25: 3.3 | BP25: 3.3 | BQ25: 3.3 | BR25: 3.2 | BS25: 3.2 | BT25: 3.2 | BU25: 3.2 | BV25: 3.3 | BW25: 3.4 | BX25: 3.3 | BY25: 3.2 | BZ25: 3.1 | CA25: 2.9 | CB25: 2.8 | CC25: 2.8 | CD25: 2.7 | CE25: 2.6 | CF25: 2.5 | CG25: 2.5 | CH25: 2.5 | CI25: 2.6 | CJ25: 2.5 | CK25: 2.3 | CL25: 2.2 | CM25: 2.1 | CN25: 2 | CO25: 1.9 | CP25: 1.8 | CQ25: 1.8 | CR25: 1.7 | CS25: 1.7 | CT25: 1.8 | CU25: 1.8 | CV25: 1.8 | CW25: 1.7 | CX25: 1.6 | CY25: 1.5 | CZ25: 1.5 | DA25: 1.5 | DB25: 1.5 | DC25: 1.5 | DD25: 1.5 | DE25: 1.5 | DF25: 1.6 | DG25: 1.7 | DH25: 1.7 | DI25: 1.7 | DJ25: 1.7 | DK25: 1.6 | DL25: 1.6 | DM25: 1.6 | DN25: 1.6 | DO25: 1.7 | DP25: 1.6 | DQ25: 1.6 | DR25: 1.6 | DS25: 1.7 | DT25: 1.7 | DU25: 1.7 | DV25: 1.7 | DW25: 1.7 | DX25: 1.7 | DY25: 1.7 | DZ25: 1.7 | EA25: 1.7 | EB25: 1.7 | EC25: 1.8 | ED25: 1.8 | EE25: 1.9 | EF25: 1.9 | EG25: 2 | EH25: 1.9 | EI25: 1.9 | EJ25: 1.9 | EK25: 1.9 | EL25: 1.9 | EM25: 2 | EN25: 2.1 | EO25: 2.2 | EP25: 2.2 | EQ25: 2.4 | ER25: 2.4 | ES25: 2.5 | ET25: 2.5 | EU25: 2.6 | EV25: 2.6 | EW25: 2.6 | EX25: 2.7 | EY25: 2.7 | EZ25: 2.8 | FA25: 2.8 | FB25: 2.8 | FC25: 2.9 | FD25: 2.9 | FE25: 5.1 | FF25: 6.4 | FG25: 6 | FH25: 6.2 | FI25: 6.3 | FJ25: 6.2 | FK25: 6 | FL25: 6 | FM25: 6 | FN25: 5.9 | FO25: 6.1 | FP25: 6.1 | FQ25: 6 | FR25: 5.6 | FS25: 5.2 | FT25: 5 | FU25: 4.8 | FV25: 4.6 | FW25: 4.4 | FX25: 4.3 | FY25: 4.1 | FZ25: 4 | GA25: 4 | GB25: 3.9 | GC25: 3.6 | GD25: 3.5 | GE25: 3.3 | GF25: 3.3 | GG25: 3.2 | GH25: 3.2 | GI25: 3.2 | GJ25: 3.2 | GK25: 3.3 | GL25: 3.3 | GM25: 3.3 | GN25: 3.3 | GO25: 3.4 | GP25: 3.3 | GQ25: 3.3 | GR25: 3.3 | GS25: 3.3 | GT25: 3.3 | GU25: 3.3 | GV25: 3.3 | GW25: 3.4 | GX25: 3.4 | GY25: 3.5 | GZ25: 3.5 | HA25: 3.4 | HB25: 3.4 | HC25: 3.4 | HD25: 3.7 | HE25: 3.6 | HF25: 3.6 | HG25: 3.6 | HH25: 3.5 | HI25: 3.5 | HJ25: 3.5 | HK25: 3.6 | HL25: 3.7
A29: Number | B29: 2007-01-01 | C29: 2007-02-01 | D29: 2007-03-01 | E29: 2007-04-01 | F29: 2007-05-01 | G29: 2007-06-01 | H29: 2007-07-01 | I29: 2007-08-01 | J29: 2007-09-01 | K29: 2007-10-01 | L29: 2007-11-01 | M29: 2007-12-01 | N29: 2008-01-01 | O29: 2008-02-01 | P29: 2008-03-01 | Q29: 2008-04-01 | R29: 2008-05-01 | S29: 2008-06-01 | T29: 2008-07-01 | U29: 2008-08-01 | V29: 2008-09-01 | W29: 2008-10-01 | X29: 2008-11-01 | Y29: 2008-12-01 | Z29: 2009-01-01 | AA29: 2009-02-01 | AB29: 2009-03-01 | AC29: 2009-04-01 | AD29: 2009-05-01 | AE29: 2009-06-01 | AF29: 2009-07-01 | AG29: 2009-08-01 | AH29: 2009-09-01 | AI29: 2009-10-01 | AJ29: 2009-11-01 | AK29: 2009-12-01 | AL29: 2010-01-01 | AM29: 2010-02-01 | AN29: 2010-03-01 | AO29: 2010-04-01 | AP29: 2010-05-01 | AQ29: 2010-06-01 | AR29: 2010-07-01 | AS29: 2010-08-01 | AT29: 2010-09-01 | AU29: 2010-10-01 | AV29: 2010-11-01 | AW29: 2010-12-01 | AX29: 2011-01-01 | AY29: February 2011 | AZ29: March 2011 | BA29: April 2011 | BB29: May 2011 | BC29: June 2011 | BD29: July 2011 | BE29: August 2011 | BF29: 2011-09-01 | BG29: October 2011 | BH29: November 2011 | BI29: December 2011 | BJ29: 2012-01-01 | BK29: February 2012 | BL29: March 2012 | BM29: April 2012 | BN29: May 2012 | BO29: June 2012 | BP29: July 2012 | BQ29: August 2012 | BR29: September 2012 | BS29: October 2012 | BT29: November 2012 | BU29: December 2012 | BV29: January 2013 | BW29: February 2013 | BX29: March 2013 | BY29: April 2013 | BZ29: May 2013 | CA29: June 2013 | CB29: July 2013 | CC29: August 2013 | CD29: September 2013 | CE29: October 2013 | CF29: November 2013 | CG29: December 2013 | CH29: Jan 14 | CI29: Feb 14 | CJ29: Mar 14 | CK29: Apr 14 | CL29: May 14 | CM29: Jun 14 | CN29: Jul 14 | CO29: Aug 14 | CP29: Sep 14 | CQ29: 2014-10-01 | CR29: 2014-11-01 | CS29: 2014-12-01 | CT29: 2015-01-01 | CU29: 2015-02-01 | CV29: 2015-03-01 | CW29: 2015-04-01 | CX29: 2015-05-01 | CY29: 2015-06-01 | CZ29: 2015-07-01 | DA29: 2015-08-01 | DB29: 2015-09-01 | DC29: 2015-10-01 | DD29: 2015-11-01 | DE29: 2015-12-01 | DF29: 2016-01-01 | DG29: 2016-02-01 | DH29: 2016-03-01 | DI29: 2016-04-01 | DJ29: 2016-05-01 | DK29: 2016-06-01 | DL29: 2016-07-01 | DM29: 2016-08-01 | DN29: 2016-09-01 | DO29: 2016-10-01 | DP29: 2016-11-01 | DQ29: 2016-12-01 | DR29: 2017-01-01 | DS29: 2017-02-01 | DT29: 2017-03-01 | DU29: 2017-04-01 | DV29: 2017-05-01 | DW29: 2017-06-01 | DX29: 2017-07-01 | DY29: 2017-08-01 | DZ29: 2017-09-01 | EA29: 2017-10-01 | EB29: 2017-11-01 | EC29: 2017-12-01 | ED29: 2018-01-01 | EE29: 2018-02-01 | EF29: 2018-03-01 | EG29: 2018-04-01 | EH29: 2018-05-01 | EI29: 2018-06-01 | EJ29: 2018-07-01 | EK29: 2018-08-01 | EL29: 2018-09-01 | EM29: 2018-10-01 | EN29: 2018-11-01 | EO29: 2018-12-01 | EP29: 2019-01-01 | EQ29: 2019-02-01 | ER29: 2019-03-01 | ES29: 2019-04-01 | ET29: 2019-05-01 | EU29: 2019-06-01 | EV29: 2019-07-01 | EW29: 2019-08-01 | EX29: 2019-09-01 | EY29: 2019-10-01 | EZ29: 2019-11-01 | FA29: 2019-12-01 | FB29: 2020-01-01 | FC29: 2020-02-01 | FD29: 2020-03-01 | FE29: 2020-04-01 | FF29: 2020-05-01 | FG29: 2020-06-01 | FH29: 2020-07-01 | FI29: 2020-08-01 | FJ29: 2020-09-01 | FK29: 2020-10-01 | FL29: 2020-11-01 | FM29: 2020-12-01 | FN29: 2021-01-01 | FO29: 2021-02-01 | FP29: 2021-03-01 | FQ29: 2021-04-01 | FR29: 2021-05-01 | FS29: 2021-06-01 | FT29: 2021-07-01 | FU29: 2021-08-01 | FV29: 2021-09-01 | FW29: 2021-10-01 | FX29: 2021-11-01 | FY29: 2021-12-01 | FZ29: 2022-01-01 | GA29: 2022-02-01 | GB29: 2022-03-01 | GC29: 2022-04-01 | GD29: 2022-05-01 | GE29: 2022-06-01 | GF29: 2022-07-01 | GG29: 2022-08-01 | GH29: 2022-09-01 | GI29: 2022-10-01 | GJ29: 2022-11-01 | GK29: 2022-12-01 | GL29: 2023-01-01 | GM29: 2023-02-01 | GN29: 2023-03-01 | GO29: 2023-04-01 | GP29: 2023-05-01 | GQ29: 2023-06-01 | GR29: 2023-07-01 | GS29: 2023-08-01 | GT29: 2023-09-01 | GU29: 2023-10-01 | GV29: 2023-11-01 | GW29: 2023-12-01 | GX29: 2024-01-01 | GY29: 2024-02-01 | GZ29: 2024-03-01 | HA29: 2024-04-01 | HB29: 2024-05-01 | HC29: 2024-06-01 | HD29: 2024-07-01 | HE29: 2024-08-01 | HF29: 2024-09-01 | HG29: 2024-10-01 | HH29: 2024-11-01 | HI29: 2024-12-01 | HJ29: 2025-01-01 | HK29: 2025-02-01 | HL29: 2025-03-01
A30: Kent | B30: 16785 | C30: 17110 | D30: 16660 | E30: 16225 | F30: 15505 | G30: 14625 | H30: 14440 | I30: 14270 | J30: 13735 | K30: 13290 | L30: 12840 | M30: 12890 | N30: 13465 | O30: 13560 | P30: 13540 | Q30: 13380 | R30: 13595 | S30: 13350 | T30: 13730 | U30: 14775 | V30: 15210 | W30: 15665 | X30: 17660 | Y30: 19855 | Z30: 22450 | AA30: 26345 | AB30: 27565 | AC30: 27930 | AD30: 28180 | AE30: 27220 | AF30: 27055 | AG30: 27825 | AH30: 27835 | AI30: 27765 | AJ30: 27915 | AK30: 28065 | AL30: 29675 | AM30: 30145 | AN30: 29400 | AO30: 28455 | AP30: 27125 | AQ30: 25535 | AR30: 25165 | AS30: 25170 | AT30: 24825 | AU30: 24530 | AV30: 24750 | AW30: 25025 | AX30: 26595 | AY30: 27405 | AZ30: 27205 | BA30: 27045 | BB30: 27195 | BC30: 26650 | BD30: 27310 | BE30: 27755 | BF30: 28200 | BG30: 28290 | BH30: 28585 | BI30: 29070 | BJ30: 30295 | BK30: 31525 | BL30: 31090 | BM30: 30190 | BN30: 29625 | BO30: 28820 | BP30: 28745 | BQ30: 28630 | BR30: 28100 | BS30: 28085 | BT30: 27920 | BU30: 27745 | BV30: 28915 | BW30: 29800 | BX30: 29065 | BY30: 28005 | BZ30: 27030 | CA30: 25685 | CB30: 24970 | CC30: 24300 | CD30: 23325 | CE30: 22660 | CF30: 22055 | CG30: 21940 | CH30: 22645 | CI30: 22825 | CJ30: 21955 | CK30: 20830 | CL30: 19795 | CM30: 18265 | CN30: 17650 | CO30: 16785 | CP30: 16165 | CQ30: 15570 | CR30: 15180 | CS30: 14835 | CT30: 15555 | CU30: 15875 | CV30: 15510 | CW30: 14885 | CX30: 13905 | CY30: 13265 | CZ30: 12985 | DA30: 12865 | DB30: 12945 | DC30: 13070 | DD30: 13085 | DE30: 13350 | DF30: 14195 | DG30: 14745 | DH30: 15055 | DI30: 15050 | DJ30: 14905 | DK30: 14535 | DL30: 14445 | DM30: 14835 | DN30: 14780 | DO30: 14940 | DP30: 14845 | DQ30: 14785 | DR30: 15075 | DS30: 15610 | DT30: 15995 | DU30: 15940 | DV30: 15595 | DW30: 15500 | DX30: 15465 | DY30: 15545 | DZ30: 15575 | EA30: 15750 | EB30: 15990 | EC30: 16400 | ED30: 17025 | EE30: 17870 | EF30: 18180 | EG30: 18805 | EH30: 18310 | EI30: 17935 | EJ30: 17705 | EK30: 17910 | EL30: 18275 | EM30: 18945 | EN30: 19525 | EO30: 20135 | EP30: 20885 | EQ30: 22225 | ER30: 22710 | ES30: 23030 | ET30: 23265 | EU30: 23805 | EV30: 24280 | EW30: 24395 | EX30: 24795 | EY30: 25410 | EZ30: 25655 | FA30: 25690 | FB30: 26275 | FC30: 27030 | FD30: 27110 | FE30: 48245 | FF30: 60045 | FG30: 56595 | FH30: 57930 | FI30: 59165 | FJ30: 58450 | FK30: 55865 | FL30: 56360 | FM30: 56460 | FN30: 55185 | FO30: 57650 | FP30: 56950 | FQ30: 55845 | FR30: 51960 | FS30: 47850 | FT30: 46810 | FU30: 44735 | FV30: 42710 | FW30: 41010 | FX30: 39740 | FY30: 38365 | FZ30: 37655 | GA30: 37570 | GB30: 35965 | GC30: 33870 | GD30: 32510 | GE30: 31340 | GF30: 30535 | GG30: 30445 | GH30: 30270 | GI30: 30245 | GJ30: 30520 | GK30: 30960 | GL30: 30960 | GM30: 31230 | GN30: 31755 | GO30: 32260 | GP30: 31275 | GQ30: 31285 | GR30: 31420 | GS30: 31045 | GT30: 31105 | GU30: 31420 | GV30: 31685 | GW30: 32150 | GX30: 32375 | GY30: 33355 | GZ30: 33185 | HA30: 32475 | HB30: 32245 | HC30: 32050 | HD30: 34410 | HE30: 33965 | HF30: 34110 | HG30: 34040 | HH30: 33295 | HI30: 33170 | HJ30: 32845 | HK30: 33730 | HL30: 34290
A31: Medway | B31: 4385 | C31: 4360 | D31: 4235 | E31: 4215 | F31: 4000 | G31: 3760 | H31: 3695 | I31: 3700 | J31: 3610 | K31: 3535 | L31: 3375 | M31: 3315 | N31: 3465 | O31: 3635 | P31: 3830 | Q31: 3680 | R31: 3550 | S31: 3600 | T31: 3735 | U31: 3890 | V31: 3985 | W31: 4190 | X31: 4505 | Y31: 4950 | Z31: 5500 | AA31: 6360 | AB31: 6635 | AC31: 6810 | AD31: 7020 | AE31: 6890 | AF31: 7110 | AG31: 7160 | AH31: 7195 | AI31: 7265 | AJ31: 7305 | AK31: 7305 | AL31: 7660 | AM31: 7595 | AN31: 7445 | AO31: 7270 | AP31: 6955 | AQ31: 6525 | AR31: 6435 | AS31: 6330 | AT31: 6175 | AU31: 6050 | AV31: 6000 | AW31: 6175 | AX31: 6510 | AY31: 6680 | AZ31: 6655 | BA31: 6765 | BB31: 6755 | BC31: 6675 | BD31: 6885 | BE31: 6980 | BF31: 7120 | BG31: 7120 | BH31: 7140 | BI31: 7145 | BJ31: 7415 | BK31: 7650 | BL31: 7540 | BM31: 7410 | BN31: 7310 | BO31: 7145 | BP31: 7205 | BQ31: 7140 | BR31: 6940 | BS31: 6950 | BT31: 6810 | BU31: 6655 | BV31: 6915 | BW31: 7080 | BX31: 6890 | BY31: 6635 | BZ31: 6395 | CA31: 6185 | CB31: 5970 | CC31: 5940 | CD31: 5695 | CE31: 5465 | CF31: 5355 | CG31: 5205 | CH31: 5405 | CI31: 5495 | CJ31: 5345 | CK31: 5080 | CL31: 4980 | CM31: 4630 | CN31: 4500 | CO31: 4325 | CP31: 4235 | CQ31: 4100 | CR31: 3935 | CS31: 3780 | CT31: 3930 | CU31: 3965 | CV31: 3900 | CW31: 3855 | CX31: 3825 | CY31: 3730 | CZ31: 3730 | DA31: 3710 | DB31: 3685 | DC31: 3670 | DD31: 3495 | DE31: 3465 | DF31: 3560 | DG31: 3760 | DH31: 3725 | DI31: 3725 | DJ31: 3580 | DK31: 3470 | DL31: 3450 | DM31: 3475 | DN31: 3435 | DO31: 3465 | DP31: 3410 | DQ31: 3345 | DR31: 3330 | DS31: 3435 | DT31: 3525 | DU31: 3510 | DV31: 3455 | DW31: 3385 | DX31: 3380 | DY31: 3340 | DZ31: 3300 | EA31: 3295 | EB31: 3260 | EC31: 3245 | ED31: 3345 | EE31: 3450 | EF31: 3475 | EG31: 3460 | EH31: 3470 | EI31: 3240 | EJ31: 3305 | EK31: 3475 | EL31: 3620 | EM31: 3815 | EN31: 3850 | EO31: 4095 | EP31: 4295 | EQ31: 4510 | ER31: 4750 | ES31: 4955 | ET31: 4985 | EU31: 5125 | EV31: 5250 | EW31: 5270 | EX31: 5325 | EY31: 5430 | EZ31: 5495 | FA31: 5490 | FB31: 5630 | FC31: 5765 | FD31: 5800 | FE31: 9310 | FF31: 12325 | FG31: 11525 | FH31: 11885 | FI31: 12250 | FJ31: 12015 | FK31: 11595 | FL31: 11695 | FM31: 11695 | FN31: 11475 | FO31: 12025 | FP31: 12165 | FQ31: 12030 | FR31: 11425 | FS31: 10705 | FT31: 10430 | FU31: 10055 | FV31: 9505 | FW31: 9230 | FX31: 8860 | FY31: 8625 | FZ31: 8315 | GA31: 8305 | GB31: 7990 | GC31: 7575 | GD31: 7235 | GE31: 6835 | GF31: 6655 | GG31: 6545 | GH31: 6560 | GI31: 6410 | GJ31: 6485 | GK31: 6485 | GL31: 6565 | GM31: 6615 | GN31: 6655 | GO31: 6780 | GP31: 6610 | GQ31: 6755 | GR31: 6785 | GS31: 6760 | GT31: 6755 | GU31: 6720 | GV31: 6790 | GW31: 6770 | GX31: 6790 | GY31: 6965 | GZ31: 7090 | HA31: 6940 | HB31: 7065 | HC31: 7050 | HD31: 7625 | HE31: 7560 | HF31: 7525 | HG31: 7535 | HH31: 7410 | HI31: 7425 | HJ31: 7325 | HK31: 7565 | HL31: 7730
A32: Ashford | B32: 985 | C32: 1075 | D32: 1070 | E32: 1090 | F32: 1030 | G32: 965 | H32: 885 | I32: 880 | J32: 810 | K32: 765 | L32: 755 | M32: 775 | N32: 815 | O32: 840 | P32: 810 | Q32: 795 | R32: 810 | S32: 800 | T32: 880 | U32: 965 | V32: 990 | W32: 990 | X32: 1130 | Y32: 1315 | Z32: 1475 | AA32: 1840 | AB32: 1980 | AC32: 2025 | AD32: 2040 | AE32: 1875 | AF32: 1865 | AG32: 1950 | AH32: 2010 | AI32: 1975 | AJ32: 1925 | AK32: 1935 | AL32: 2025 | AM32: 2060 | AN32: 2065 | AO32: 1970 | AP32: 1860 | AQ32: 1740 | AR32: 1735 | AS32: 1745 | AT32: 1715 | AU32: 1680 | AV32: 1710 | AW32: 1780 | AX32: 1905 | AY32: 1975 | AZ32: 1895 | BA32: 1910 | BB32: 1930 | BC32: 1820 | BD32: 1895 | BE32: 1905 | BF32: 1890 | BG32: 1855 | BH32: 1905 | BI32: 1935 | BJ32: 2035 | BK32: 2145 | BL32: 2120 | BM32: 2060 | BN32: 2025 | BO32: 1975 | BP32: 1965 | BQ32: 1940 | BR32: 1950 | BS32: 1960 | BT32: 1960 | BU32: 1900 | BV32: 1935 | BW32: 2045 | BX32: 1970 | BY32: 1950 | BZ32: 1905 | CA32: 1800 | CB32: 1760 | CC32: 1710 | CD32: 1585 | CE32: 1560 | CF32: 1520 | CG32: 1495 | CH32: 1515 | CI32: 1515 | CJ32: 1455 | CK32: 1400 | CL32: 1375 | CM32: 1240 | CN32: 1175 | CO32: 1140 | CP32: 1060 | CQ32: 1020 | CR32: 1035 | CS32: 980 | CT32: 1040 | CU32: 1125 | CV32: 1075 | CW32: 1065 | CX32: 955 | CY32: 905 | CZ32: 910 | DA32: 945 | DB32: 955 | DC32: 985 | DD32: 975 | DE32: 1000 | DF32: 1035 | DG32: 1075 | DH32: 1105 | DI32: 1115 | DJ32: 1095 | DK32: 1055 | DL32: 1100 | DM32: 1140 | DN32: 1115 | DO32: 1115 | DP32: 1130 | DQ32: 1125 | DR32: 1175 | DS32: 1225 | DT32: 1280 | DU32: 1285 | DV32: 1265 | DW32: 1250 | DX32: 1265 | DY32: 1250 | DZ32: 1235 | EA32: 1230 | EB32: 1235 | EC32: 1295 | ED32: 1320 | EE32: 1360 | EF32: 1395 | EG32: 1380 | EH32: 1350 | EI32: 1360 | EJ32: 1315 | EK32: 1365 | EL32: 1430 | EM32: 1535 | EN32: 1620 | EO32: 1690 | EP32: 1760 | EQ32: 1845 | ER32: 1880 | ES32: 1860 | ET32: 1880 | EU32: 1895 | EV32: 1965 | EW32: 1950 | EX32: 1955 | EY32: 2050 | EZ32: 2090 | FA32: 2095 | FB32: 2110 | FC32: 2190 | FD32: 2220 | FE32: 4000 | FF32: 4945 | FG32: 4650 | FH32: 4770 | FI32: 4930 | FJ32: 4830 | FK32: 4605 | FL32: 4615 | FM32: 4585 | FN32: 4515 | FO32: 4695 | FP32: 4585 | FQ32: 4450 | FR32: 4165 | FS32: 3835 | FT32: 3725 | FU32: 3550 | FV32: 3430 | FW32: 3275 | FX32: 3190 | FY32: 3060 | FZ32: 3010 | GA32: 3025 | GB32: 2895 | GC32: 2735 | GD32: 2615 | GE32: 2505 | GF32: 2380 | GG32: 2355 | GH32: 2355 | GI32: 2290 | GJ32: 2330 | GK32: 2325 | GL32: 2390 | GM32: 2380 | GN32: 2430 | GO32: 2490 | GP32: 2405 | GQ32: 2420 | GR32: 2450 | GS32: 2410 | GT32: 2440 | GU32: 2430 | GV32: 2475 | GW32: 2460 | GX32: 2440 | GY32: 2550 | GZ32: 2570 | HA32: 2530 | HB32: 2555 | HC32: 2510 | HD32: 2710 | HE32: 2655 | HF32: 2665 | HG32: 2675 | HH32: 2620 | HI32: 2655 | HJ32: 2615 | HK32: 2690 | HL32: 2705
A33: Canterbury | B33: 1495 | C33: 1515 | D33: 1545 | E33: 1530 | F33: 1375 | G33: 1270 | H33: 1235 | I33: 1210 | J33: 1160 | K33: 1110 | L33: 1055 | M33: 1070 | N33: 1200 | O33: 1230 | P33: 1185 | Q33: 1185 | R33: 1205 | S33: 1180 | T33: 1170 | U33: 1315 | V33: 1330 | W33: 1370 | X33: 1555 | Y33: 1770 | Z33: 1985 | AA33: 2300 | AB33: 2390 | AC33: 2430 | AD33: 2355 | AE33: 2310 | AF33: 2280 | AG33: 2385 | AH33: 2325 | AI33: 2340 | AJ33: 2365 | AK33: 2375 | AL33: 2555 | AM33: 2610 | AN33: 2505 | AO33: 2385 | AP33: 2230 | AQ33: 2115 | AR33: 2075 | AS33: 2075 | AT33: 2095 | AU33: 2020 | AV33: 1985 | AW33: 1980 | AX33: 2175 | AY33: 2280 | AZ33: 2275 | BA33: 2305 | BB33: 2285 | BC33: 2240 | BD33: 2275 | BE33: 2370 | BF33: 2350 | BG33: 2425 | BH33: 2415 | BI33: 2450 | BJ33: 2580 | BK33: 2655 | BL33: 2585 | BM33: 2525 | BN33: 2455 | BO33: 2380 | BP33: 2375 | BQ33: 2370 | BR33: 2380 | BS33: 2305 | BT33: 2230 | BU33: 2270 | BV33: 2365 | BW33: 2420 | BX33: 2395 | BY33: 2315 | BZ33: 2250 | CA33: 2135 | CB33: 2055 | CC33: 2005 | CD33: 1940 | CE33: 1890 | CF33: 1795 | CG33: 1775 | CH33: 1820 | CI33: 1830 | CJ33: 1770 | CK33: 1635 | CL33: 1535 | CM33: 1345 | CN33: 1305 | CO33: 1245 | CP33: 1205 | CQ33: 1155 | CR33: 1115 | CS33: 1095 | CT33: 1140 | CU33: 1225 | CV33: 1185 | CW33: 1115 | CX33: 1040 | CY33: 985 | CZ33: 950 | DA33: 940 | DB33: 965 | DC33: 995 | DD33: 1030 | DE33: 1070 | DF33: 1115 | DG33: 1165 | DH33: 1250 | DI33: 1235 | DJ33: 1250 | DK33: 1235 | DL33: 1255 | DM33: 1290 | DN33: 1305 | DO33: 1330 | DP33: 1335 | DQ33: 1330 | DR33: 1325 | DS33: 1340 | DT33: 1330 | DU33: 1305 | DV33: 1265 | DW33: 1265 | DX33: 1300 | DY33: 1325 | DZ33: 1310 | EA33: 1285 | EB33: 1305 | EC33: 1350 | ED33: 1405 | EE33: 1465 | EF33: 1485 | EG33: 1465 | EH33: 1415 | EI33: 1360 | EJ33: 1275 | EK33: 1315 | EL33: 1430 | EM33: 1575 | EN33: 1690 | EO33: 1845 | EP33: 1905 | EQ33: 2045 | ER33: 2120 | ES33: 2120 | ET33: 2140 | EU33: 2165 | EV33: 2225 | EW33: 2235 | EX33: 2225 | EY33: 2280 | EZ33: 2305 | FA33: 2300 | FB33: 2365 | FC33: 2400 | FD33: 2415 | FE33: 4585 | FF33: 5475 | FG33: 5180 | FH33: 5395 | FI33: 5475 | FJ33: 5405 | FK33: 5110 | FL33: 5100 | FM33: 5145 | FN33: 5045 | FO33: 5285 | FP33: 5200 | FQ33: 5035 | FR33: 4690 | FS33: 4300 | FT33: 4185 | FU33: 3990 | FV33: 3790 | FW33: 3710 | FX33: 3710 | FY33: 3495 | FZ33: 3480 | GA33: 3530 | GB33: 3430 | GC33: 3230 | GD33: 3085 | GE33: 2970 | GF33: 2870 | GG33: 2860 | GH33: 2835 | GI33: 2900 | GJ33: 2925 | GK33: 3005 | GL33: 3015 | GM33: 3060 | GN33: 3140 | GO33: 3165 | GP33: 3125 | GQ33: 3145 | GR33: 3085 | GS33: 3065 | GT33: 3105 | GU33: 3075 | GV33: 3155 | GW33: 3225 | GX33: 3295 | GY33: 3395 | GZ33: 3365 | HA33: 3280 | HB33: 3225 | HC33: 3195 | HD33: 3420 | HE33: 3385 | HF33: 3305 | HG33: 3410 | HH33: 3310 | HI33: 3275 | HJ33: 3305 | HK33: 3370 | HL33: 3485
A34: Dartford | B34: 1025 | C34: 1055 | D34: 995 | E34: 960 | F34: 925 | G34: 900 | H34: 930 | I34: 925 | J34: 900 | K34: 885 | L34: 850 | M34: 820 | N34: 820 | O34: 835 | P34: 845 | Q34: 820 | R34: 845 | S34: 845 | T34: 880 | U34: 950 | V34: 1010 | W34: 1000 | X34: 1110 | Y34: 1220 | Z34: 1385 | AA34: 1775 | AB34: 1895 | AC34: 1900 | AD34: 2000 | AE34: 1970 | AF34: 1975 | AG34: 2060 | AH34: 2120 | AI34: 2105 | AJ34: 2015 | AK34: 1950 | AL34: 2150 | AM34: 2210 | AN34: 2155 | AO34: 2120 | AP34: 2040 | AQ34: 1895 | AR34: 1895 | AS34: 1895 | AT34: 1825 | AU34: 1790 | AV34: 1755 | AW34: 1745 | AX34: 1920 | AY34: 1975 | AZ34: 1975 | BA34: 1990 | BB34: 1985 | BC34: 1940 | BD34: 1970 | BE34: 1920 | BF34: 1970 | BG34: 1935 | BH34: 1875 | BI34: 1875 | BJ34: 1975 | BK34: 2040 | BL34: 2035 | BM34: 2005 | BN34: 1940 | BO34: 1855 | BP34: 1845 | BQ34: 1830 | BR34: 1740 | BS34: 1750 | BT34: 1730 | BU34: 1705 | BV34: 1825 | BW34: 1920 | BX34: 1865 | BY34: 1785 | BZ34: 1695 | CA34: 1625 | CB34: 1590 | CC34: 1530 | CD34: 1480 | CE34: 1410 | CF34: 1350 | CG34: 1310 | CH34: 1360 | CI34: 1400 | CJ34: 1310 | CK34: 1270 | CL34: 1245 | CM34: 1130 | CN34: 1090 | CO34: 1045 | CP34: 975 | CQ34: 925 | CR34: 875 | CS34: 795 | CT34: 865 | CU34: 900 | CV34: 885 | CW34: 865 | CX34: 825 | CY34: 835 | CZ34: 800 | DA34: 760 | DB34: 770 | DC34: 755 | DD34: 700 | DE34: 670 | DF34: 720 | DG34: 775 | DH34: 760 | DI34: 770 | DJ34: 775 | DK34: 770 | DL34: 750 | DM34: 795 | DN34: 800 | DO34: 775 | DP34: 760 | DQ34: 740 | DR34: 745 | DS34: 805 | DT34: 815 | DU34: 805 | DV34: 805 | DW34: 800 | DX34: 800 | DY34: 810 | DZ34: 795 | EA34: 775 | EB34: 765 | EC34: 755 | ED34: 765 | EE34: 815 | EF34: 845 | EG34: 795 | EH34: 765 | EI34: 735 | EJ34: 725 | EK34: 715 | EL34: 760 | EM34: 820 | EN34: 855 | EO34: 920 | EP34: 950 | EQ34: 1085 | ER34: 1140 | ES34: 1175 | ET34: 1195 | EU34: 1300 | EV34: 1325 | EW34: 1385 | EX34: 1445 | EY34: 1500 | EZ34: 1480 | FA34: 1475 | FB34: 1555 | FC34: 1590 | FD34: 1605 | FE34: 3135 | FF34: 4170 | FG34: 3895 | FH34: 4010 | FI34: 4060 | FJ34: 3985 | FK34: 3790 | FL34: 3865 | FM34: 3890 | FN34: 3840 | FO34: 4070 | FP34: 4025 | FQ34: 3990 | FR34: 3660 | FS34: 3350 | FT34: 3315 | FU34: 3100 | FV34: 2895 | FW34: 2725 | FX34: 2570 | FY34: 2480 | FZ34: 2400 | GA34: 2390 | GB34: 2275 | GC34: 2180 | GD34: 2155 | GE34: 2095 | GF34: 2050 | GG34: 2060 | GH34: 2075 | GI34: 2100 | GJ34: 2095 | GK34: 2110 | GL34: 2105 | GM34: 2145 | GN34: 2185 | GO34: 2265 | GP34: 2190 | GQ34: 2230 | GR34: 2245 | GS34: 2185 | GT34: 2205 | GU34: 2225 | GV34: 2225 | GW34: 2220 | GX34: 2265 | GY34: 2315 | GZ34: 2320 | HA34: 2250 | HB34: 2300 | HC34: 2360 | HD34: 2560 | HE34: 2530 | HF34: 2540 | HG34: 2415 | HH34: 2375 | HI34: 2395 | HJ34: 2335 | HK34: 2395 | HL34: 2455
A35: Dover | B35: 1705 | C35: 1725 | D35: 1695 | E35: 1600 | F35: 1465 | G35: 1365 | H35: 1335 | I35: 1325 | J35: 1255 | K35: 1210 | L35: 1160 | M35: 1160 | N35: 1290 | O35: 1280 | P35: 1215 | Q35: 1240 | R35: 1320 | S35: 1240 | T35: 1250 | U35: 1270 | V35: 1360 | W35: 1410 | X35: 1650 | Y35: 1850 | Z35: 2050 | AA35: 2270 | AB35: 2300 | AC35: 2310 | AD35: 2330 | AE35: 2190 | AF35: 2135 | AG35: 2180 | AH35: 2150 | AI35: 2250 | AJ35: 2375 | AK35: 2435 | AL35: 2525 | AM35: 2610 | AN35: 2525 | AO35: 2420 | AP35: 2265 | AQ35: 2135 | AR35: 2045 | AS35: 2005 | AT35: 1940 | AU35: 2005 | AV35: 2080 | AW35: 2150 | AX35: 2275 | AY35: 2360 | AZ35: 2340 | BA35: 2225 | BB35: 2270 | BC35: 2205 | BD35: 2255 | BE35: 2360 | BF35: 2430 | BG35: 2405 | BH35: 2525 | BI35: 2600 | BJ35: 2735 | BK35: 2790 | BL35: 2800 | BM35: 2785 | BN35: 2705 | BO35: 2650 | BP35: 2645 | BQ35: 2605 | BR35: 2475 | BS35: 2545 | BT35: 2505 | BU35: 2625 | BV35: 2680 | BW35: 2755 | BX35: 2705 | BY35: 2630 | BZ35: 2495 | CA35: 2290 | CB35: 2215 | CC35: 2105 | CD35: 2025 | CE35: 1985 | CF35: 2055 | CG35: 2100 | CH35: 2145 | CI35: 2180 | CJ35: 2160 | CK35: 2080 | CL35: 1950 | CM35: 1755 | CN35: 1715 | CO35: 1580 | CP35: 1520 | CQ35: 1500 | CR35: 1505 | CS35: 1510 | CT35: 1545 | CU35: 1555 | CV35: 1475 | CW35: 1420 | CX35: 1255 | CY35: 1195 | CZ35: 1120 | DA35: 1105 | DB35: 1090 | DC35: 1100 | DD35: 1200 | DE35: 1245 | DF35: 1300 | DG35: 1330 | DH35: 1375 | DI35: 1385 | DJ35: 1350 | DK35: 1305 | DL35: 1315 | DM35: 1350 | DN35: 1360 | DO35: 1390 | DP35: 1370 | DQ35: 1400 | DR35: 1420 | DS35: 1490 | DT35: 1550 | DU35: 1540 | DV35: 1515 | DW35: 1535 | DX35: 1510 | DY35: 1620 | DZ35: 1690 | EA35: 1785 | EB35: 1865 | EC35: 1915 | ED35: 1985 | EE35: 2110 | EF35: 2140 | EG35: 2330 | EH35: 2180 | EI35: 2210 | EJ35: 2210 | EK35: 2185 | EL35: 2170 | EM35: 2230 | EN35: 2265 | EO35: 2355 | EP35: 2410 | EQ35: 2485 | ER35: 2490 | ES35: 2500 | ET35: 2490 | EU35: 2440 | EV35: 2460 | EW35: 2450 | EX35: 2465 | EY35: 2525 | EZ35: 2435 | FA35: 2440 | FB35: 2465 | FC35: 2550 | FD35: 2575 | FE35: 4360 | FF35: 4845 | FG35: 4650 | FH35: 4710 | FI35: 4755 | FJ35: 4720 | FK35: 4545 | FL35: 4540 | FM35: 4600 | FN35: 4460 | FO35: 4590 | FP35: 4525 | FQ35: 4400 | FR35: 4070 | FS35: 3780 | FT35: 3670 | FU35: 3480 | FV35: 3355 | FW35: 3285 | FX35: 3200 | FY35: 3100 | FZ35: 3065 | GA35: 3090 | GB35: 2955 | GC35: 2790 | GD35: 2665 | GE35: 2545 | GF35: 2465 | GG35: 2475 | GH35: 2490 | GI35: 2475 | GJ35: 2540 | GK35: 2620 | GL35: 2615 | GM35: 2615 | GN35: 2695 | GO35: 2640 | GP35: 2610 | GQ35: 2580 | GR35: 2595 | GS35: 2585 | GT35: 2580 | GU35: 2565 | GV35: 2605 | GW35: 2710 | GX35: 2675 | GY35: 2765 | GZ35: 2760 | HA35: 2635 | HB35: 2635 | HC35: 2590 | HD35: 2680 | HE35: 2625 | HF35: 2650 | HG35: 2585 | HH35: 2530 | HI35: 2475 | HJ35: 2425 | HK35: 2460 | HL35: 2515
A36: Folkestone & Hythe | B36: 1850 | C36: 1850 | D36: 1850 | E36: 1810 | F36: 1730 | G36: 1635 | H36: 1605 | I36: 1605 | J36: 1535 | K36: 1465 | L36: 1395 | M36: 1380 | N36: 1445 | O36: 1425 | P36: 1420 | Q36: 1430 | R36: 1470 | S36: 1420 | T36: 1405 | U36: 1485 | V36: 1535 | W36: 1615 | X36: 1745 | Y36: 1915 | Z36: 2160 | AA36: 2380 | AB36: 2445 | AC36: 2455 | AD36: 2470 | AE36: 2370 | AF36: 2290 | AG36: 2420 | AH36: 2390 | AI36: 2440 | AJ36: 2530 | AK36: 2620 | AL36: 2750 | AM36: 2770 | AN36: 2745 | AO36: 2635 | AP36: 2570 | AQ36: 2415 | AR36: 2395 | AS36: 2415 | AT36: 2330 | AU36: 2330 | AV36: 2400 | AW36: 2460 | AX36: 2560 | AY36: 2585 | AZ36: 2470 | BA36: 2465 | BB36: 2460 | BC36: 2435 | BD36: 2505 | BE36: 2575 | BF36: 2595 | BG36: 2650 | BH36: 2705 | BI36: 2810 | BJ36: 2835 | BK36: 2890 | BL36: 2875 | BM36: 2775 | BN36: 2770 | BO36: 2715 | BP36: 2715 | BQ36: 2720 | BR36: 2665 | BS36: 2640 | BT36: 2660 | BU36: 2730 | BV36: 2810 | BW36: 2835 | BX36: 2780 | BY36: 2665 | BZ36: 2595 | CA36: 2475 | CB36: 2365 | CC36: 2305 | CD36: 2150 | CE36: 2135 | CF36: 2115 | CG36: 2125 | CH36: 2150 | CI36: 2145 | CJ36: 1995 | CK36: 1860 | CL36: 1765 | CM36: 1655 | CN36: 1690 | CO36: 1560 | CP36: 1545 | CQ36: 1525 | CR36: 1535 | CS36: 1550 | CT36: 1595 | CU36: 1585 | CV36: 1505 | CW36: 1425 | CX36: 1275 | CY36: 1190 | CZ36: 1155 | DA36: 1120 | DB36: 1110 | DC36: 1180 | DD36: 1215 | DE36: 1285 | DF36: 1370 | DG36: 1370 | DH36: 1395 | DI36: 1370 | DJ36: 1390 | DK36: 1320 | DL36: 1330 | DM36: 1360 | DN36: 1305 | DO36: 1340 | DP36: 1345 | DQ36: 1355 | DR36: 1395 | DS36: 1445 | DT36: 1475 | DU36: 1420 | DV36: 1420 | DW36: 1405 | DX36: 1355 | DY36: 1330 | DZ36: 1315 | EA36: 1355 | EB36: 1355 | EC36: 1435 | ED36: 1510 | EE36: 1585 | EF36: 1610 | EG36: 1590 | EH36: 1590 | EI36: 1500 | EJ36: 1470 | EK36: 1505 | EL36: 1580 | EM36: 1740 | EN36: 1800 | EO36: 1850 | EP36: 1945 | EQ36: 2045 | ER36: 2105 | ES36: 2130 | ET36: 2175 | EU36: 2210 | EV36: 2195 | EW36: 2165 | EX36: 2220 | EY36: 2270 | EZ36: 2330 | FA36: 2365 | FB36: 2440 | FC36: 2465 | FD36: 2420 | FE36: 4260 | FF36: 4895 | FG36: 4650 | FH36: 4800 | FI36: 4950 | FJ36: 4900 | FK36: 4740 | FL36: 4790 | FM36: 4850 | FN36: 4735 | FO36: 4910 | FP36: 4775 | FQ36: 4660 | FR36: 4355 | FS36: 3985 | FT36: 3890 | FU36: 3670 | FV36: 3560 | FW36: 3505 | FX36: 3410 | FY36: 3335 | FZ36: 3295 | GA36: 3260 | GB36: 3105 | GC36: 2900 | GD36: 2730 | GE36: 2605 | GF36: 2605 | GG36: 2575 | GH36: 2545 | GI36: 2520 | GJ36: 2540 | GK36: 2550 | GL36: 2580 | GM36: 2595 | GN36: 2595 | GO36: 2550 | GP36: 2440 | GQ36: 2430 | GR36: 2445 | GS36: 2435 | GT36: 2475 | GU36: 2490 | GV36: 2535 | GW36: 2595 | GX36: 2650 | GY36: 2750 | GZ36: 2700 | HA36: 2605 | HB36: 2520 | HC36: 2500 | HD36: 2690 | HE36: 2695 | HF36: 2655 | HG36: 2675 | HH36: 2640 | HI36: 2660 | HJ36: 2600 | HK36: 2680 | HL36: 2715
A37: Gravesham | B37: 1580 | C37: 1645 | D37: 1600 | E37: 1630 | F37: 1585 | G37: 1510 | H37: 1490 | I37: 1490 | J37: 1470 | K37: 1435 | L37: 1335 | M37: 1400 | N37: 1380 | O37: 1395 | P37: 1435 | Q37: 1395 | R37: 1400 | S37: 1370 | T37: 1395 | U37: 1410 | V37: 1450 | W37: 1500 | X37: 1620 | Y37: 1845 | Z37: 2125 | AA37: 2465 | AB37: 2560 | AC37: 2585 | AD37: 2605 | AE37: 2565 | AF37: 2570 | AG37: 2600 | AH37: 2660 | AI37: 2585 | AJ37: 2540 | AK37: 2530 | AL37: 2695 | AM37: 2770 | AN37: 2725 | AO37: 2670 | AP37: 2535 | AQ37: 2370 | AR37: 2280 | AS37: 2305 | AT37: 2215 | AU37: 2195 | AV37: 2170 | AW37: 2250 | AX37: 2415 | AY37: 2520 | AZ37: 2575 | BA37: 2590 | BB37: 2610 | BC37: 2595 | BD37: 2645 | BE37: 2675 | BF37: 2660 | BG37: 2675 | BH37: 2690 | BI37: 2730 | BJ37: 2845 | BK37: 2940 | BL37: 2960 | BM37: 2865 | BN37: 2820 | BO37: 2700 | BP37: 2685 | BQ37: 2690 | BR37: 2595 | BS37: 2570 | BT37: 2460 | BU37: 2430 | BV37: 2565 | BW37: 2700 | BX37: 2610 | BY37: 2525 | BZ37: 2400 | CA37: 2310 | CB37: 2205 | CC37: 2145 | CD37: 2100 | CE37: 2040 | CF37: 1895 | CG37: 1900 | CH37: 1990 | CI37: 2050 | CJ37: 1985 | CK37: 1910 | CL37: 1760 | CM37: 1640 | CN37: 1570 | CO37: 1520 | CP37: 1490 | CQ37: 1385 | CR37: 1315 | CS37: 1305 | CT37: 1395 | CU37: 1430 | CV37: 1405 | CW37: 1345 | CX37: 1305 | CY37: 1240 | CZ37: 1230 | DA37: 1270 | DB37: 1285 | DC37: 1255 | DD37: 1240 | DE37: 1235 | DF37: 1280 | DG37: 1375 | DH37: 1390 | DI37: 1405 | DJ37: 1355 | DK37: 1310 | DL37: 1290 | DM37: 1290 | DN37: 1310 | DO37: 1290 | DP37: 1280 | DQ37: 1240 | DR37: 1290 | DS37: 1355 | DT37: 1395 | DU37: 1380 | DV37: 1365 | DW37: 1380 | DX37: 1385 | DY37: 1385 | DZ37: 1365 | EA37: 1325 | EB37: 1345 | EC37: 1330 | ED37: 1370 | EE37: 1440 | EF37: 1450 | EG37: 1400 | EH37: 1405 | EI37: 1365 | EJ37: 1405 | EK37: 1440 | EL37: 1470 | EM37: 1520 | EN37: 1565 | EO37: 1610 | EP37: 1650 | EQ37: 1730 | ER37: 1810 | ES37: 1920 | ET37: 1955 | EU37: 2015 | EV37: 2140 | EW37: 2165 | EX37: 2180 | EY37: 2160 | EZ37: 2215 | FA37: 2240 | FB37: 2230 | FC37: 2305 | FD37: 2300 | FE37: 3755 | FF37: 4915 | FG37: 4745 | FH37: 4780 | FI37: 4895 | FJ37: 4880 | FK37: 4740 | FL37: 4785 | FM37: 4760 | FN37: 4705 | FO37: 4920 | FP37: 4955 | FQ37: 4895 | FR37: 4535 | FS37: 4220 | FT37: 4095 | FU37: 3885 | FV37: 3685 | FW37: 3505 | FX37: 3305 | FY37: 3245 | FZ37: 3130 | GA37: 3095 | GB37: 2975 | GC37: 2815 | GD37: 2720 | GE37: 2650 | GF37: 2595 | GG37: 2610 | GH37: 2575 | GI37: 2570 | GJ37: 2550 | GK37: 2615 | GL37: 2680 | GM37: 2695 | GN37: 2835 | GO37: 2925 | GP37: 2850 | GQ37: 2805 | GR37: 2840 | GS37: 2785 | GT37: 2820 | GU37: 2800 | GV37: 2810 | GW37: 2805 | GX37: 2845 | GY37: 2940 | GZ37: 2955 | HA37: 2980 | HB37: 2920 | HC37: 2940 | HD37: 3200 | HE37: 3125 | HF37: 3170 | HG37: 3165 | HH37: 2985 | HI37: 2980 | HJ37: 2980 | HK37: 3025 | HL37: 3060
A38: Maidstone | B38: 1310 | C38: 1320 | D38: 1245 | E38: 1225 | F38: 1230 | G38: 1145 | H38: 1140 | I38: 1110 | J38: 1050 | K38: 1005 | L38: 980 | M38: 980 | N38: 975 | O38: 985 | P38: 1020 | Q38: 970 | R38: 980 | S38: 985 | T38: 1040 | U38: 1170 | V38: 1220 | W38: 1235 | X38: 1375 | Y38: 1550 | Z38: 1775 | AA38: 2190 | AB38: 2315 | AC38: 2415 | AD38: 2410 | AE38: 2365 | AF38: 2395 | AG38: 2465 | AH38: 2495 | AI38: 2495 | AJ38: 2465 | AK38: 2445 | AL38: 2645 | AM38: 2680 | AN38: 2595 | AO38: 2510 | AP38: 2365 | AQ38: 2225 | AR38: 2180 | AS38: 2155 | AT38: 2165 | AU38: 2120 | AV38: 2120 | AW38: 2115 | AX38: 2265 | AY38: 2290 | AZ38: 2325 | BA38: 2265 | BB38: 2365 | BC38: 2340 | BD38: 2420 | BE38: 2410 | BF38: 2445 | BG38: 2460 | BH38: 2490 | BI38: 2520 | BJ38: 2610 | BK38: 2705 | BL38: 2635 | BM38: 2550 | BN38: 2480 | BO38: 2415 | BP38: 2430 | BQ38: 2430 | BR38: 2405 | BS38: 2480 | BT38: 2470 | BU38: 2345 | BV38: 2535 | BW38: 2625 | BX38: 2580 | BY38: 2440 | BZ38: 2405 | CA38: 2220 | CB38: 2135 | CC38: 2070 | CD38: 2005 | CE38: 1900 | CF38: 1830 | CG38: 1770 | CH38: 1900 | CI38: 1925 | CJ38: 1800 | CK38: 1685 | CL38: 1595 | CM38: 1465 | CN38: 1405 | CO38: 1330 | CP38: 1255 | CQ38: 1230 | CR38: 1210 | CS38: 1160 | CT38: 1255 | CU38: 1315 | CV38: 1325 | CW38: 1245 | CX38: 1195 | CY38: 1175 | CZ38: 1170 | DA38: 1170 | DB38: 1175 | DC38: 1150 | DD38: 1115 | DE38: 1070 | DF38: 1150 | DG38: 1245 | DH38: 1280 | DI38: 1255 | DJ38: 1245 | DK38: 1175 | DL38: 1170 | DM38: 1235 | DN38: 1220 | DO38: 1215 | DP38: 1215 | DQ38: 1185 | DR38: 1210 | DS38: 1270 | DT38: 1335 | DU38: 1305 | DV38: 1280 | DW38: 1265 | DX38: 1225 | DY38: 1220 | DZ38: 1220 | EA38: 1195 | EB38: 1195 | EC38: 1195 | ED38: 1260 | EE38: 1315 | EF38: 1295 | EG38: 1275 | EH38: 1245 | EI38: 1195 | EJ38: 1165 | EK38: 1165 | EL38: 1165 | EM38: 1160 | EN38: 1170 | EO38: 1175 | EP38: 1320 | EQ38: 1415 | ER38: 1485 | ES38: 1650 | ET38: 1665 | EU38: 1810 | EV38: 1860 | EW38: 1880 | EX38: 1980 | EY38: 2015 | EZ38: 2080 | FA38: 2100 | FB38: 2185 | FC38: 2250 | FD38: 2250 | FE38: 4270 | FF38: 5745 | FG38: 5340 | FH38: 5410 | FI38: 5555 | FJ38: 5445 | FK38: 5145 | FL38: 5215 | FM38: 5220 | FN38: 5140 | FO38: 5430 | FP38: 5445 | FQ38: 5390 | FR38: 4995 | FS38: 4585 | FT38: 4500 | FU38: 4430 | FV38: 4280 | FW38: 4065 | FX38: 3930 | FY38: 3785 | FZ38: 3730 | GA38: 3775 | GB38: 3580 | GC38: 3335 | GD38: 3145 | GE38: 3065 | GF38: 2970 | GG38: 2980 | GH38: 2935 | GI38: 2980 | GJ38: 3025 | GK38: 3025 | GL38: 3010 | GM38: 3000 | GN38: 3080 | GO38: 3185 | GP38: 3090 | GQ38: 3145 | GR38: 3145 | GS38: 3130 | GT38: 3165 | GU38: 3300 | GV38: 3225 | GW38: 3265 | GX38: 3340 | GY38: 3455 | GZ38: 3500 | HA38: 3475 | HB38: 3445 | HC38: 3475 | HD38: 3755 | HE38: 3645 | HF38: 3745 | HG38: 3740 | HH38: 3570 | HI38: 3565 | HJ38: 3510 | HK38: 3645 | HL38: 3735
A39: Sevenoaks | B39: 715 | C39: 725 | D39: 665 | E39: 615 | F39: 610 | G39: 545 | H39: 565 | I39: 540 | J39: 520 | K39: 500 | L39: 520 | M39: 490 | N39: 520 | O39: 510 | P39: 515 | Q39: 505 | R39: 510 | S39: 495 | T39: 520 | U39: 580 | V39: 670 | W39: 700 | X39: 800 | Y39: 925 | Z39: 1080 | AA39: 1350 | AB39: 1455 | AC39: 1510 | AD39: 1500 | AE39: 1445 | AF39: 1460 | AG39: 1465 | AH39: 1435 | AI39: 1410 | AJ39: 1455 | AK39: 1405 | AL39: 1515 | AM39: 1520 | AN39: 1485 | AO39: 1430 | AP39: 1335 | AQ39: 1230 | AR39: 1205 | AS39: 1185 | AT39: 1210 | AU39: 1195 | AV39: 1195 | AW39: 1185 | AX39: 1240 | AY39: 1260 | AZ39: 1270 | BA39: 1260 | BB39: 1255 | BC39: 1210 | BD39: 1255 | BE39: 1235 | BF39: 1300 | BG39: 1310 | BH39: 1310 | BI39: 1305 | BJ39: 1390 | BK39: 1420 | BL39: 1405 | BM39: 1330 | BN39: 1300 | BO39: 1270 | BP39: 1270 | BQ39: 1265 | BR39: 1205 | BS39: 1195 | BT39: 1195 | BU39: 1180 | BV39: 1240 | BW39: 1235 | BX39: 1200 | BY39: 1170 | BZ39: 1085 | CA39: 1030 | CB39: 980 | CC39: 970 | CD39: 915 | CE39: 890 | CF39: 880 | CG39: 845 | CH39: 890 | CI39: 880 | CJ39: 870 | CK39: 820 | CL39: 780 | CM39: 760 | CN39: 725 | CO39: 705 | CP39: 660 | CQ39: 640 | CR39: 615 | CS39: 595 | CT39: 635 | CU39: 625 | CV39: 600 | CW39: 590 | CX39: 550 | CY39: 530 | CZ39: 535 | DA39: 530 | DB39: 515 | DC39: 530 | DD39: 535 | DE39: 515 | DF39: 540 | DG39: 525 | DH39: 530 | DI39: 535 | DJ39: 525 | DK39: 505 | DL39: 515 | DM39: 535 | DN39: 535 | DO39: 535 | DP39: 505 | DQ39: 510 | DR39: 505 | DS39: 510 | DT39: 505 | DU39: 520 | DV39: 505 | DW39: 505 | DX39: 525 | DY39: 530 | DZ39: 515 | EA39: 520 | EB39: 510 | EC39: 525 | ED39: 530 | EE39: 540 | EF39: 540 | EG39: 540 | EH39: 535 | EI39: 490 | EJ39: 465 | EK39: 460 | EL39: 470 | EM39: 480 | EN39: 510 | EO39: 570 | EP39: 610 | EQ39: 700 | ER39: 715 | ES39: 730 | ET39: 745 | EU39: 800 | EV39: 830 | EW39: 855 | EX39: 905 | EY39: 930 | EZ39: 910 | FA39: 915 | FB39: 940 | FC39: 970 | FD39: 985 | FE39: 2185 | FF39: 3025 | FG39: 2795 | FH39: 2890 | FI39: 2985 | FJ39: 2960 | FK39: 2840 | FL39: 2880 | FM39: 2865 | FN39: 2785 | FO39: 3005 | FP39: 2925 | FQ39: 2905 | FR39: 2630 | FS39: 2360 | FT39: 2305 | FU39: 2215 | FV39: 2030 | FW39: 1925 | FX39: 1845 | FY39: 1765 | FZ39: 1705 | GA39: 1640 | GB39: 1570 | GC39: 1490 | GD39: 1440 | GE39: 1430 | GF39: 1440 | GG39: 1420 | GH39: 1375 | GI39: 1390 | GJ39: 1390 | GK39: 1435 | GL39: 1385 | GM39: 1410 | GN39: 1410 | GO39: 1470 | GP39: 1400 | GQ39: 1385 | GR39: 1380 | GS39: 1355 | GT39: 1410 | GU39: 1455 | GV39: 1455 | GW39: 1470 | GX39: 1450 | GY39: 1480 | GZ39: 1460 | HA39: 1450 | HB39: 1440 | HC39: 1470 | HD39: 1570 | HE39: 1530 | HF39: 1555 | HG39: 1535 | HH39: 1515 | HI39: 1500 | HJ39: 1540 | HK39: 1580 | HL39: 1625
A40: Swale | B40: 2060 | C40: 2135 | D40: 1990 | E40: 1935 | F40: 1820 | G40: 1730 | H40: 1685 | I40: 1670 | J40: 1625 | K40: 1605 | L40: 1605 | M40: 1605 | N40: 1665 | O40: 1650 | P40: 1675 | Q40: 1600 | R40: 1560 | S40: 1555 | T40: 1595 | U40: 1685 | V40: 1690 | W40: 1785 | X40: 2085 | Y40: 2380 | Z40: 2745 | AA40: 3155 | AB40: 3230 | AC40: 3155 | AD40: 3220 | AE40: 3105 | AF40: 3015 | AG40: 3080 | AH40: 3090 | AI40: 3155 | AJ40: 3180 | AK40: 3285 | AL40: 3410 | AM40: 3385 | AN40: 3315 | AO40: 3260 | AP40: 3160 | AQ40: 2955 | AR40: 2890 | AS40: 2870 | AT40: 2880 | AU40: 2880 | AV40: 2985 | AW40: 3025 | AX40: 3140 | AY40: 3170 | AZ40: 3180 | BA40: 3130 | BB40: 3065 | BC40: 3040 | BD40: 3135 | BE40: 3195 | BF40: 3265 | BG40: 3315 | BH40: 3380 | BI40: 3435 | BJ40: 3625 | BK40: 3890 | BL40: 3800 | BM40: 3600 | BN40: 3535 | BO40: 3390 | BP40: 3360 | BQ40: 3310 | BR40: 3320 | BS40: 3315 | BT40: 3350 | BU40: 3355 | BV40: 3515 | BW40: 3540 | BX40: 3445 | BY40: 3220 | BZ40: 3150 | CA40: 3015 | CB40: 2995 | CC40: 2895 | CD40: 2780 | CE40: 2730 | CF40: 2695 | CG40: 2725 | CH40: 2775 | CI40: 2735 | CJ40: 2605 | CK40: 2480 | CL40: 2355 | CM40: 2160 | CN40: 2065 | CO40: 1990 | CP40: 1885 | CQ40: 1835 | CR40: 1760 | CS40: 1765 | CT40: 1900 | CU40: 1855 | CV40: 1840 | CW40: 1785 | CX40: 1730 | CY40: 1680 | CZ40: 1675 | DA40: 1625 | DB40: 1680 | DC40: 1695 | DD40: 1725 | DE40: 1770 | DF40: 1850 | DG40: 1900 | DH40: 1920 | DI40: 1940 | DJ40: 1910 | DK40: 1920 | DL40: 1880 | DM40: 1865 | DN40: 1885 | DO40: 1940 | DP40: 1925 | DQ40: 1915 | DR40: 1955 | DS40: 1980 | DT40: 2045 | DU40: 2035 | DV40: 1975 | DW40: 1960 | DX40: 1980 | DY40: 1960 | DZ40: 1965 | EA40: 2000 | EB40: 1990 | EC40: 1950 | ED40: 2010 | EE40: 2110 | EF40: 2255 | EG40: 2470 | EH40: 2445 | EI40: 2440 | EJ40: 2480 | EK40: 2560 | EL40: 2615 | EM40: 2640 | EN40: 2695 | EO40: 2720 | EP40: 2755 | EQ40: 2920 | ER40: 2910 | ES40: 2895 | ET40: 2910 | EU40: 2980 | EV40: 2975 | EW40: 2980 | EX40: 3035 | EY40: 3115 | EZ40: 3140 | FA40: 3155 | FB40: 3205 | FC40: 3260 | FD40: 3280 | FE40: 5520 | FF40: 6370 | FG40: 6065 | FH40: 6070 | FI40: 6130 | FJ40: 6070 | FK40: 5845 | FL40: 5910 | FM40: 5890 | FN40: 5795 | FO40: 6010 | FP40: 6020 | FQ40: 5865 | FR40: 5540 | FS40: 5130 | FT40: 5075 | FU40: 4875 | FV40: 4745 | FW40: 4520 | FX40: 4415 | FY40: 4235 | FZ40: 4135 | GA40: 4155 | GB40: 4000 | GC40: 3775 | GD40: 3570 | GE40: 3420 | GF40: 3280 | GG40: 3325 | GH40: 3300 | GI40: 3280 | GJ40: 3315 | GK40: 3405 | GL40: 3420 | GM40: 3515 | GN40: 3440 | GO40: 3425 | GP40: 3320 | GQ40: 3255 | GR40: 3320 | GS40: 3240 | GT40: 3240 | GU40: 3370 | GV40: 3395 | GW40: 3465 | GX40: 3505 | GY40: 3560 | GZ40: 3535 | HA40: 3440 | HB40: 3455 | HC40: 3365 | HD40: 3590 | HE40: 3620 | HF40: 3565 | HG40: 3490 | HH40: 3480 | HI40: 3400 | HJ40: 3395 | HK40: 3510 | HL40: 3515
A41: Thanet | B41: 2615 | C41: 2625 | D41: 2625 | E41: 2550 | F41: 2445 | G41: 2330 | H41: 2275 | I41: 2235 | J41: 2185 | K41: 2125 | L41: 2045 | M41: 2095 | N41: 2140 | O41: 2180 | P41: 2165 | Q41: 2215 | R41: 2305 | S41: 2290 | T41: 2380 | U41: 2565 | V41: 2575 | W41: 2620 | X41: 2865 | Y41: 3165 | Z41: 3410 | AA41: 3795 | AB41: 3995 | AC41: 4060 | AD41: 4085 | AE41: 3970 | AF41: 3970 | AG41: 4135 | AH41: 4095 | AI41: 4080 | AJ41: 4195 | AK41: 4305 | AL41: 4370 | AM41: 4480 | AN41: 4360 | AO41: 4285 | AP41: 4110 | AQ41: 3910 | AR41: 3915 | AS41: 3925 | AT41: 3925 | AU41: 3945 | AV41: 4020 | AW41: 4075 | AX41: 4285 | AY41: 4420 | AZ41: 4340 | BA41: 4380 | BB41: 4415 | BC41: 4280 | BD41: 4305 | BE41: 4435 | BF41: 4585 | BG41: 4570 | BH41: 4615 | BI41: 4765 | BJ41: 4895 | BK41: 5070 | BL41: 4945 | BM41: 4900 | BN41: 4865 | BO41: 4795 | BP41: 4825 | BQ41: 4860 | BR41: 4805 | BS41: 4785 | BT41: 4835 | BU41: 4815 | BV41: 4920 | BW41: 5050 | BX41: 4945 | BY41: 4865 | BZ41: 4700 | CA41: 4580 | CB41: 4520 | CC41: 4460 | CD41: 4395 | CE41: 4275 | CF41: 4180 | CG41: 4175 | CH41: 4245 | CI41: 4275 | CJ41: 4155 | CK41: 3950 | CL41: 3775 | CM41: 3590 | CN41: 3465 | CO41: 3245 | CP41: 3165 | CQ41: 3025 | CR41: 2945 | CS41: 2870 | CT41: 2895 | CU41: 2920 | CV41: 2850 | CW41: 2720 | CX41: 2530 | CY41: 2335 | CZ41: 2270 | DA41: 2230 | DB41: 2240 | DC41: 2240 | DD41: 2205 | DE41: 2350 | DF41: 2610 | DG41: 2720 | DH41: 2805 | DI41: 2785 | DJ41: 2755 | DK41: 2715 | DL41: 2625 | DM41: 2680 | DN41: 2660 | DO41: 2720 | DP41: 2700 | DQ41: 2735 | DR41: 2775 | DS41: 2860 | DT41: 2915 | DU41: 2980 | DV41: 2850 | DW41: 2765 | DX41: 2745 | DY41: 2755 | DZ41: 2790 | EA41: 2930 | EB41: 3070 | EC41: 3275 | ED41: 3420 | EE41: 3650 | EF41: 3715 | EG41: 4140 | EH41: 4020 | EI41: 3955 | EJ41: 3920 | EK41: 3950 | EL41: 3940 | EM41: 4035 | EN41: 4140 | EO41: 4200 | EP41: 4230 | EQ41: 4430 | ER41: 4390 | ES41: 4330 | ET41: 4315 | EU41: 4320 | EV41: 4325 | EW41: 4305 | EX41: 4295 | EY41: 4355 | EZ41: 4380 | FA41: 4340 | FB41: 4490 | FC41: 4635 | FD41: 4630 | FE41: 7310 | FF41: 8795 | FG41: 8290 | FH41: 8500 | FI41: 8630 | FJ41: 8460 | FK41: 8100 | FL41: 8275 | FM41: 8230 | FN41: 7920 | FO41: 8095 | FP41: 7915 | FQ41: 7835 | FR41: 7455 | FS41: 7010 | FT41: 6840 | FU41: 6545 | FV41: 6245 | FW41: 6090 | FX41: 5930 | FY41: 5860 | FZ41: 5825 | GA41: 5790 | GB41: 5500 | GC41: 5155 | GD41: 4990 | GE41: 4765 | GF41: 4655 | GG41: 4585 | GH41: 4590 | GI41: 4540 | GJ41: 4595 | GK41: 4640 | GL41: 4590 | GM41: 4625 | GN41: 4660 | GO41: 4735 | GP41: 4540 | GQ41: 4555 | GR41: 4520 | GS41: 4450 | GT41: 4305 | GU41: 4335 | GV41: 4435 | GW41: 4530 | GX41: 4565 | GY41: 4640 | GZ41: 4560 | HA41: 4415 | HB41: 4315 | HC41: 4260 | HD41: 4605 | HE41: 4545 | HF41: 4525 | HG41: 4580 | HH41: 4545 | HI41: 4600 | HJ41: 4480 | HK41: 4595 | HL41: 4650
A42: Tonbridge & Malling | B42: 810 | C42: 800 | D42: 740 | E42: 690 | F42: 680 | G42: 640 | H42: 680 | I42: 680 | J42: 645 | K42: 610 | L42: 580 | M42: 570 | N42: 640 | O42: 675 | P42: 685 | Q42: 645 | R42: 610 | S42: 635 | T42: 670 | U42: 760 | V42: 765 | W42: 755 | X42: 890 | Y42: 1010 | Z42: 1185 | AA42: 1525 | AB42: 1625 | AC42: 1660 | AD42: 1710 | AE42: 1650 | AF42: 1685 | AG42: 1655 | AH42: 1670 | AI42: 1635 | AJ42: 1595 | AK42: 1550 | AL42: 1685 | AM42: 1670 | AN42: 1595 | AO42: 1490 | AP42: 1425 | AQ42: 1380 | AR42: 1400 | AS42: 1420 | AT42: 1370 | AU42: 1260 | AV42: 1285 | AW42: 1235 | AX42: 1350 | AY42: 1460 | AZ42: 1420 | BA42: 1415 | BB42: 1440 | BC42: 1445 | BD42: 1485 | BE42: 1500 | BF42: 1525 | BG42: 1525 | BH42: 1530 | BI42: 1510 | BJ42: 1585 | BK42: 1730 | BL42: 1685 | BM42: 1650 | BN42: 1605 | BO42: 1575 | BP42: 1545 | BQ42: 1525 | BR42: 1495 | BS42: 1490 | BT42: 1515 | BU42: 1435 | BV42: 1510 | BW42: 1570 | BX42: 1525 | BY42: 1445 | BZ42: 1405 | CA42: 1345 | CB42: 1305 | CC42: 1290 | CD42: 1190 | CE42: 1135 | CF42: 1085 | CG42: 1040 | CH42: 1110 | CI42: 1125 | CJ42: 1085 | CK42: 1035 | CL42: 975 | CM42: 900 | CN42: 880 | CO42: 875 | CP42: 840 | CQ42: 810 | CR42: 745 | CS42: 730 | CT42: 775 | CU42: 810 | CV42: 830 | CW42: 805 | CX42: 760 | CY42: 720 | CZ42: 715 | DA42: 705 | DB42: 720 | DC42: 720 | DD42: 685 | DE42: 680 | DF42: 720 | DG42: 750 | DH42: 740 | DI42: 735 | DJ42: 745 | DK42: 715 | DL42: 695 | DM42: 725 | DN42: 720 | DO42: 720 | DP42: 720 | DQ42: 730 | DR42: 725 | DS42: 740 | DT42: 740 | DU42: 735 | DV42: 730 | DW42: 715 | DX42: 715 | DY42: 725 | DZ42: 735 | EA42: 730 | EB42: 730 | EC42: 745 | ED42: 780 | EE42: 790 | EF42: 775 | EG42: 770 | EH42: 740 | EI42: 715 | EJ42: 695 | EK42: 680 | EL42: 675 | EM42: 660 | EN42: 650 | EO42: 655 | EP42: 740 | EQ42: 785 | ER42: 835 | ES42: 900 | ET42: 915 | EU42: 975 | EV42: 1045 | EW42: 1080 | EX42: 1120 | EY42: 1165 | EZ42: 1215 | FA42: 1190 | FB42: 1205 | FC42: 1265 | FD42: 1295 | FE42: 2540 | FF42: 3560 | FG42: 3290 | FH42: 3400 | FI42: 3480 | FJ42: 3540 | FK42: 3335 | FL42: 3295 | FM42: 3305 | FN42: 3175 | FO42: 3375 | FP42: 3325 | FQ42: 3285 | FR42: 3040 | FS42: 2740 | FT42: 2705 | FU42: 2600 | FV42: 2420 | FW42: 2255 | FX42: 2155 | FY42: 2015 | FZ42: 1945 | GA42: 1925 | GB42: 1825 | GC42: 1735 | GD42: 1730 | GE42: 1660 | GF42: 1615 | GG42: 1595 | GH42: 1570 | GI42: 1615 | GJ42: 1650 | GK42: 1665 | GL42: 1635 | GM42: 1630 | GN42: 1695 | GO42: 1765 | GP42: 1675 | GQ42: 1675 | GR42: 1750 | GS42: 1730 | GT42: 1720 | GU42: 1735 | GV42: 1765 | GW42: 1775 | GX42: 1760 | GY42: 1830 | GZ42: 1815 | HA42: 1760 | HB42: 1770 | HC42: 1730 | HD42: 1870 | HE42: 1845 | HF42: 1885 | HG42: 1900 | HH42: 1845 | HI42: 1845 | HJ42: 1865 | HK42: 1955 | HL42: 2000
A43: Tunbridge Wells | B43: 630 | C43: 640 | D43: 645 | E43: 595 | F43: 605 | G43: 585 | H43: 615 | I43: 605 | J43: 585 | K43: 580 | L43: 560 | M43: 545 | N43: 560 | O43: 565 | P43: 580 | Q43: 580 | R43: 580 | S43: 535 | T43: 545 | U43: 620 | V43: 615 | W43: 695 | X43: 835 | Y43: 910 | Z43: 1075 | AA43: 1305 | AB43: 1385 | AC43: 1435 | AD43: 1455 | AE43: 1405 | AF43: 1410 | AG43: 1425 | AH43: 1400 | AI43: 1290 | AJ43: 1265 | AK43: 1235 | AL43: 1345 | AM43: 1390 | AN43: 1330 | AO43: 1280 | AP43: 1230 | AQ43: 1165 | AR43: 1150 | AS43: 1175 | AT43: 1150 | AU43: 1105 | AV43: 1045 | AW43: 1025 | AX43: 1065 | AY43: 1110 | AZ43: 1140 | BA43: 1105 | BB43: 1120 | BC43: 1110 | BD43: 1170 | BE43: 1175 | BF43: 1180 | BG43: 1155 | BH43: 1145 | BI43: 1135 | BJ43: 1190 | BK43: 1250 | BL43: 1240 | BM43: 1150 | BN43: 1125 | BO43: 1095 | BP43: 1080 | BQ43: 1080 | BR43: 1060 | BS43: 1045 | BT43: 1010 | BU43: 955 | BV43: 1010 | BW43: 1100 | BX43: 1030 | BY43: 990 | BZ43: 945 | CA43: 865 | CB43: 845 | CC43: 820 | CD43: 775 | CE43: 705 | CF43: 660 | CG43: 675 | CH43: 740 | CI43: 760 | CJ43: 755 | CK43: 710 | CL43: 690 | CM43: 625 | CN43: 565 | CO43: 545 | CP43: 565 | CQ43: 520 | CR43: 525 | CS43: 475 | CT43: 515 | CU43: 530 | CV43: 520 | CW43: 505 | CX43: 480 | CY43: 480 | CZ43: 455 | DA43: 460 | DB43: 440 | DC43: 465 | DD43: 465 | DE43: 465 | DF43: 500 | DG43: 515 | DH43: 505 | DI43: 520 | DJ43: 515 | DK43: 510 | DL43: 525 | DM43: 580 | DN43: 565 | DO43: 565 | DP43: 560 | DQ43: 520 | DR43: 560 | DS43: 585 | DT43: 605 | DU43: 630 | DV43: 625 | DW43: 655 | DX43: 650 | DY43: 640 | DZ43: 640 | EA43: 620 | EB43: 635 | EC43: 620 | ED43: 670 | EE43: 695 | EF43: 670 | EG43: 645 | EH43: 615 | EI43: 610 | EJ43: 585 | EK43: 570 | EL43: 570 | EM43: 555 | EN43: 565 | EO43: 550 | EP43: 615 | EQ43: 730 | ER43: 830 | ES43: 815 | ET43: 875 | EU43: 900 | EV43: 930 | EW43: 935 | EX43: 975 | EY43: 1040 | EZ43: 1080 | FA43: 1075 | FB43: 1090 | FC43: 1135 | FD43: 1130 | FE43: 2325 | FF43: 3315 | FG43: 3040 | FH43: 3185 | FI43: 3325 | FJ43: 3245 | FK43: 3065 | FL43: 3080 | FM43: 3120 | FN43: 3065 | FO43: 3265 | FP43: 3255 | FQ43: 3125 | FR43: 2820 | FS43: 2545 | FT43: 2505 | FU43: 2400 | FV43: 2265 | FW43: 2155 | FX43: 2075 | FY43: 1990 | FZ43: 1925 | GA43: 1895 | GB43: 1860 | GC43: 1725 | GD43: 1665 | GE43: 1635 | GF43: 1615 | GG43: 1610 | GH43: 1630 | GI43: 1580 | GJ43: 1565 | GK43: 1565 | GL43: 1540 | GM43: 1560 | GN43: 1595 | GO43: 1645 | GP43: 1635 | GQ43: 1660 | GR43: 1645 | GS43: 1675 | GT43: 1645 | GU43: 1635 | GV43: 1610 | GW43: 1630 | GX43: 1595 | GY43: 1665 | GZ43: 1655 | HA43: 1650 | HB43: 1665 | HC43: 1655 | HD43: 1765 | HE43: 1765 | HF43: 1850 | HG43: 1865 | HH43: 1880 | HI43: 1820 | HJ43: 1795 | HK43: 1825 | HL43: 1830
A44: South East LEP | B44: 47580 | C44: 49090 | D44: 47605 | E44: 46190 | F44: 44410 | G44: 42210 | H44: 41250 | I44: 40815 | J44: 39740 | K44: 38615 | L44: 37925 | M44: 38310 | N44: 40125 | O44: 40615 | P44: 40385 | Q44: 39990 | R44: 39960 | S44: 39590 | T44: 41095 | U44: 43840 | V44: 45205 | W44: 47395 | X44: 53085 | Y44: 58970 | Z44: 66465 | AA44: 78185 | AB44: 81655 | AC44: 83780 | AD44: 84175 | AE44: 81785 | AF44: 81390 | AG44: 83045 | AH44: 82375 | AI44: 82365 | AJ44: 82010 | AK44: 82480 | AL44: 87420 | AM44: 87875 | AN44: 86005 | AO44: 83290 | AP44: 79175 | AQ44: 75265 | AR44: 74265 | AS44: 74780 | AT44: 73490 | AU44: 72465 | AV44: 72600 | AW44: 73715 | AX44: 77505 | AY44: 79275 | AZ44: 78740 | BA44: 78035 | BB44: 77915 | BC44: 76845 | BD44: 78965 | BE44: 80190 | BF44: 81185 | BG44: 81505 | BH44: 81515 | BI44: 82375 | BJ44: 86205 | BK44: 89120 | BL44: 87945 | BM44: 84555 | BN44: 82965 | BO44: 80735 | BP44: 80375 | BQ44: 79855 | BR44: 78885 | BS44: 78840 | BT44: 78775 | BU44: 78685 | BV44: 81555 | BW44: 83890 | BX44: 82020 | BY44: 78940 | BZ44: 76480 | CA44: 72795 | CB44: 70735 | CC44: 69310 | CD44: 66825 | CE44: 64525 | CF44: 62755 | CG44: 61710 | CH44: 63455 | CI44: 63730 | CJ44: 61280 | CK44: 57825 | CL44: 54740 | CM44: 50395 | CN44: 48825 | CO44: 46695 | CP44: 45135 | CQ44: 43530 | CR44: 42355 | CS44: 41495 | CT44: 43275 | CU44: 43700 | CV44: 42360 | CW44: 40590 | CX44: 38675 | CY44: 37195 | CZ44: 37090 | DA44: 37105 | DB44: 37030 | DC44: 37115 | DD44: 36635 | DE44: 36835 | DF44: 38395 | DG44: 40005 | DH44: 40445 | DI44: 39765 | DJ44: 39220 | DK44: 38030 | DL44: 37550 | DM44: 38165 | DN44: 38010 | DO44: 38250 | DP44: 38005 | DQ44: 38100 | DR44: 38955 | DS44: 40250 | DT44: 41000 | DU44: 41225 | DV44: 40325 | DW44: 39865 | DX44: 39730 | DY44: 39620 | DZ44: 39570 | EA44: 39845 | EB44: 40115 | EC44: 41160 | ED44: 42745 | EE44: 45320 | EF44: 46415 | EG44: 48725 | EH44: 47530 | EI44: 46935 | EJ44: 47125 | EK44: 47880 | EL44: 49015 | EM44: 50800 | EN44: 52385 | EO44: 53900 | EP44: 55845 | EQ44: 59355 | ER44: 60570 | ES44: 61450 | ET44: 61800 | EU44: 63130 | EV44: 63785 | EW44: 64015 | EX44: 64550 | EY44: 66100 | EZ44: 66910 | FA44: 67415 | FB44: 68495 | FC44: 70980 | FD44: 71750 | FE44: 125810 | FF44: 164125 | FG44: 153900 | FH44: 157805 | FI44: 161830 | FJ44: 159295 | FK44: 151765 | FL44: 154085 | FM44: 154265 | FN44: 150685 | FO44: 158405 | FP44: 157225 | FQ44: 154225 | FR44: 142790 | FS44: 130915 | FT44: 127635 | FU44: 122190 | FV44: 115210 | FW44: 110775 | FX44: 107215 | FY44: 103845 | FZ44: 101595 | GA44: 101620 | GB44: 96950 | GC44: 90915 | GD44: 87640 | GE44: 84665 | GF44: 83100 | GG44: 82840 | GH44: 82205 | GI44: 81485 | GJ44: 82230 | GK44: 82705 | GL44: 82435 | GM44: 83345 | GN44: 84385 | GO44: 85865 | GP44: 83230 | GQ44: 83770 | GR44: 83735 | GS44: 82820 | GT44: 83025 | GU44: 83460 | GV44: 84795 | GW44: 85550 | GX44: 86230 | GY44: 88605 | GZ44: 88605 | HA44: 87035 | HB44: 86870 | HC44: 87555 | HD44: 94005 | HE44: 93570 | HF44: 93520 | HG44: 92980 | HH44: 91325 | HI44: 90770 | HJ44: 90445 | HK44: 93245 | HL44: 94720
A45: England | B45: 804585 | C45: 812545 | D45: 797610 | E45: 767705 | F45: 744455 | G45: 716285 | H45: 713365 | I45: 714735 | J45: 693585 | K45: 671685 | L45: 657270 | M45: 659910 | N45: 690665 | O45: 705185 | P45: 700435 | Q45: 695260 | R45: 693870 | S45: 695550 | T45: 722895 | U45: 766180 | V45: 786600 | W45: 808075 | X45: 878045 | Y45: 959420 | Z45: 1065840 | AA45: 1217445 | AB45: 1272860 | AC45: 1304455 | AD45: 1311685 | AE45: 1298570 | AF45: 1311100 | AG45: 1333860 | AH45: 1329140 | AI45: 1322075 | AJ45: 1307140 | AK45: 1302100 | AL45: 1369810 | AM45: 1370285 | AN45: 1333660 | AO45: 1294910 | AP45: 1238930 | AQ45: 1186345 | AR45: 1177670 | AS45: 1187865 | AT45: 1181555 | AU45: 1161850 | AV45: 1156395 | AW45: 1161930 | AX45: 1224055 | AY45: 1253470 | AZ45: 1246555 | BA45: 1246165 | BB45: 1234190 | BC45: 1222220 | BD45: 1259485 | BE45: 1289550 | BF45: 1300330 | BG45: 1288740 | BH45: 1285145 | BI45: 1293890 | BJ45: 1355580 | BK45: 1386370 | BL45: 1370505 | BM45: 1329765 | BN45: 1308640 | BO45: 1282670 | BP45: 1284930 | BQ45: 1279990 | BR45: 1274290 | BS45: 1270720 | BT45: 1260185 | BU45: 1248665 | BV45: 1292540 | BW45: 1318870 | BX45: 1295435 | BY45: 1258065 | BZ45: 1222425 | CA45: 1173090 | CB45: 1151955 | CC45: 1125820 | CD45: 1079680 | CE45: 1033050 | CF45: 992955 | CG45: 973930 | CH45: 1004480 | CI45: 1005555 | CJ45: 966190 | CK45: 921835 | CL45: 878305 | CM45: 818840 | CN45: 795900 | CO45: 767700 | CP45: 742875 | CQ45: 714945 | CR45: 682685 | CS45: 662750 | CT45: 687110 | CU45: 698690 | CV45: 676490 | CW45: 660415 | CX45: 639175 | CY45: 618860 | CZ45: 616725 | DA45: 615915 | DB45: 608530 | DC45: 601120 | DD45: 586195 | DE45: 582380 | DF45: 612080 | DG45: 634725 | DH45: 638775 | DI45: 630975 | DJ45: 621960 | DK45: 610745 | DL45: 607515 | DM45: 613435 | DN45: 612205 | DO45: 612275 | DP45: 606750 | DQ45: 600915 | DR45: 617440 | DS45: 641545 | DT45: 657050 | DU45: 662795 | DV45: 656765 | DW45: 648715 | DX45: 643485 | DY45: 645780 | DZ45: 644825 | EA45: 643420 | EB45: 641250 | EC45: 648130 | ED45: 670475 | EE45: 706970 | EF45: 722750 | EG45: 751250 | EH45: 734830 | EI45: 727930 | EJ45: 728440 | EK45: 739645 | EL45: 751880 | EM45: 765680 | EN45: 778325 | EO45: 796815 | EP45: 826180 | EQ45: 875840 | ER45: 900650 | ES45: 915240 | ET45: 922775 | EU45: 942115 | EV45: 949770 | EW45: 965275 | EX45: 969255 | EY45: 987540 | EZ45: 998185 | FA45: 1003150 | FB45: 1014875 | FC45: 1050875 | FD45: 1063505 | FE45: 1764725 | FF45: 2264855 | FG45: 2200615 | FH45: 2241155 | FI45: 2282005 | FJ45: 2262510 | FK45: 2188335 | FL45: 2225600 | FM45: 2216785 | FN45: 2189260 | FO45: 2295430 | FP45: 2294110 | FQ45: 2255825 | FR45: 2113170 | FS45: 1961300 | FT45: 1915360 | FU45: 1838805 | FV45: 1745650 | FW45: 1682990 | FX45: 1617805 | FY45: 1560280 | FZ45: 1526305 | GA45: 1526960 | GB45: 1477445 | GC45: 1405800 | GD45: 1364815 | GE45: 1335760 | GF45: 1311605 | GG45: 1307840 | GH45: 1302410 | GI45: 1285635 | GJ45: 1298065 | GK45: 1307230 | GL45: 1296625 | GM45: 1317065 | GN45: 1343645 | GO45: 1365680 | GP45: 1320975 | GQ45: 1328495 | GR45: 1336080 | GS45: 1323000 | GT45: 1321305 | GU45: 1323745 | GV45: 1332875 | GW45: 1341150 | GX45: 1350895 | GY45: 1388605 | GZ45: 1399085 | HA45: 1387390 | HB45: 1399125 | HC45: 1429560 | HD45: 1552255 | HE45: 1546345 | HF45: 1546695 | HG45: 1536235 | HH45: 1511445 | HI45: 1491080 | HJ45: 1487450 | HK45: 1534215 | HL45: 1560475
A46: England and Wales | B46: 850005 | C46: 858780 | D46: 842700 | E46: 810525 | F46: 785185 | G46: 755565 | H46: 752945 | I46: 755025 | J46: 732575 | K46: 709375 | L46: 694810 | M46: 698525 | N46: 732020 | O46: 748185 | P46: 743045 | Q46: 736790 | R46: 734805 | S46: 736135 | T46: 765990 | U46: 812255 | V46: 833690 | W46: 856480 | X46: 931995 | Y46: 1019790 | Z46: 1134160 | AA46: 1294285 | AB46: 1351745 | AC46: 1383935 | AD46: 1389825 | AE46: 1375550 | AF46: 1389140 | AG46: 1413295 | AH46: 1408050 | AI46: 1400310 | AJ46: 1385035 | AK46: 1380185 | AL46: 1452985 | AM46: 1453270 | AN46: 1413750 | AO46: 1372070 | AP46: 1311495 | AQ46: 1255310 | AR46: 1246880 | AS46: 1258420 | AT46: 1251140 | AU46: 1229975 | AV46: 1225170 | AW46: 1232110 | AX46: 1299220 | AY46: 1329710 | AZ46: 1321405 | BA46: 1319265 | BB46: 1306160 | BC46: 1293815 | BD46: 1334240 | BE46: 1366330 | BF46: 1377185 | BG46: 1365160 | BH46: 1361355 | BI46: 1370600 | BJ46: 1438715 | BK46: 1471315 | BL46: 1454130 | BM46: 1410205 | BN46: 1387170 | BO46: 1359525 | BP46: 1362885 | BQ46: 1358970 | BR46: 1353005 | BS46: 1349505 | BT46: 1337565 | BU46: 1326145 | BV46: 1373870 | BW46: 1401665 | BX46: 1376270 | BY46: 1336390 | BZ46: 1298220 | CA46: 1245560 | CB46: 1223550 | CC46: 1196950 | CD46: 1147925 | CE46: 1098910 | CF46: 1057120 | CG46: 1037465 | CH46: 1071995 | CI46: 1073210 | CJ46: 1031505 | CK46: 984745 | CL46: 938085 | CM46: 874555 | CN46: 850905 | CO46: 820965 | CP46: 794395 | CQ46: 764450 | CR46: 730730 | CS46: 710055 | CT46: 737110 | CU46: 749120 | CV46: 724950 | CW46: 707190 | CX46: 684430 | CY46: 663065 | CZ46: 661175 | DA46: 660610 | DB46: 652610 | DC46: 644405 | DD46: 628245 | DE46: 624385 | DF46: 656585 | DG46: 680745 | DH46: 684770 | DI46: 675870 | DJ46: 665720 | DK46: 653450 | DL46: 649995 | DM46: 656395 | DN46: 654525 | DO46: 653620 | DP46: 647230 | DQ46: 640515 | DR46: 658240 | DS46: 683790 | DT46: 699870 | DU46: 705025 | DV46: 697365 | DW46: 688145 | DX46: 682270 | DY46: 684520 | DZ46: 682730 | EA46: 680710 | EB46: 678405 | EC46: 685840 | ED46: 709980 | EE46: 749115 | EF46: 765600 | EG46: 795520 | EH46: 778030 | EI46: 771115 | EJ46: 771920 | EK46: 783685 | EL46: 796315 | EM46: 810375 | EN46: 823820 | EO46: 843570 | EP46: 875345 | EQ46: 928000 | ER46: 954375 | ES46: 969010 | ET46: 976715 | EU46: 997440 | EV46: 1004985 | EW46: 1022045 | EX46: 1026545 | EY46: 1044940 | EZ46: 1056905 | FA46: 1062110 | FB46: 1073885 | FC46: 1111250 | FD46: 1123770 | FE46: 1868965 | FF46: 2382930 | FG46: 2315230 | FH46: 2359125 | FI46: 2400910 | FJ46: 2378430 | FK46: 2299050 | FL46: 2337230 | FM46: 2327000 | FN46: 2297820 | FO46: 2408420 | FP46: 2406260 | FQ46: 2365595 | FR46: 2215985 | FS46: 2056345 | FT46: 2007615 | FU46: 1927260 | FV46: 1829975 | FW46: 1764335 | FX46: 1696630 | FY46: 1636800 | FZ46: 1602165 | GA46: 1602680 | GB46: 1550605 | GC46: 1473710 | GD46: 1430370 | GE46: 1399915 | GF46: 1374495 | GG46: 1371190 | GH46: 1364845 | GI46: 1346585 | GJ46: 1359810 | GK46: 1369520 | GL46: 1358310 | GM46: 1379895 | GN46: 1407680 | GO46: 1430350 | GP46: 1382860 | GQ46: 1390305 | GR46: 1397185 | GS46: 1383445 | GT46: 1381295 | GU46: 1384015 | GV46: 1394645 | GW46: 1402515 | GX46: 1412495 | GY46: 1452035 | GZ46: 1462805 | HA46: 1450500 | HB46: 1462485 | HC46: 1493850 | HD46: 1621015 | HE46: 1614820 | HF46: 1614755 | HG46: 1602595 | HH46: 1577415 | HI46: 1555895 | HJ46: 1552750 | HK46: 1600970 | HL46: 1627940
A47: Great Britain | B47: 938625 | C47: 948575 | D47: 930095 | E47: 893330 | F47: 864705 | G47: 831955 | H47: 829900 | I47: 832295 | J47: 804080 | K47: 778055 | L47: 763345 | M47: 767690 | N47: 806430 | O47: 824300 | P47: 818295 | Q47: 810415 | R47: 807190 | S47: 809955 | T47: 843890 | U47: 894680 | V47: 914930 | W47: 939900 | X47: 1022480 | Y47: 1117510 | Z47: 1243065 | AA47: 1416215 | AB47: 1478195 | AC47: 1510760 | AD47: 1516920 | AE47: 1504115 | AF47: 1521710 | AG47: 1548680 | AH47: 1537620 | AI47: 1529820 | AJ47: 1516905 | AK47: 1513920 | AL47: 1597855 | AM47: 1600180 | AN47: 1558195 | AO47: 1512280 | AP47: 1447035 | AQ47: 1388760 | AR47: 1383990 | AS47: 1397010 | AT47: 1381105 | AU47: 1359280 | AV47: 1356440 | AW47: 1368310 | AX47: 1445380 | AY47: 1477740 | AZ47: 1466985 | BA47: 1461645 | BB47: 1446270 | BC47: 1434375 | BD47: 1481160 | BE47: 1515030 | BF47: 1517195 | BG47: 1502530 | BH47: 1499385 | BI47: 1509735 | BJ47: 1586865 | BK47: 1623210 | BL47: 1604510 | BM47: 1554550 | BN47: 1529000 | BO47: 1502355 | BP47: 1508910 | BQ47: 1505210 | BR47: 1488740 | BS47: 1483955 | BT47: 1471660 | BU47: 1459645 | BV47: 1515845 | BW47: 1547585 | BX47: 1519235 | BY47: 1474430 | BZ47: 1432630 | CA47: 1378130 | CB47: 1356265 | CC47: 1327110 | CD47: 1264125 | CE47: 1210480 | CF47: 1166300 | CG47: 1145775 | CH47: 1185785 | CI47: 1187815 | CJ47: 1142445 | CK47: 1090370 | CL47: 1039410 | CM47: 971865 | CN47: 948130 | CO47: 915290 | CP47: 879990 | CQ47: 847465 | CR47: 811575 | CS47: 790135 | CT47: 821760 | CU47: 836160 | CV47: 809915 | CW47: 788855 | CX47: 763775 | CY47: 741075 | CZ47: 741940 | DA47: 740900 | DB47: 727180 | DC47: 716750 | DD47: 699175 | DE47: 695555 | DF47: 732770 | DG47: 760480 | DH47: 765420 | DI47: 755265 | DJ47: 743925 | DK47: 731665 | DL47: 729780 | DM47: 737385 | DN47: 732030 | DO47: 729630 | DP47: 722740 | DQ47: 715425 | DR47: 736425 | DS47: 765510 | DT47: 783460 | DU47: 788575 | DV47: 779385 | DW47: 769335 | DX47: 764515 | DY47: 766670 | DZ47: 760885 | EA47: 757355 | EB47: 755405 | EC47: 764875 | ED47: 792300 | EE47: 835810 | EF47: 854520 | EG47: 887630 | EH47: 867935 | EI47: 861965 | EJ47: 864700 | EK47: 877910 | EL47: 888285 | EM47: 902215 | EN47: 916910 | EO47: 938565 | EP47: 974305 | EQ47: 1032935 | ER47: 1062140 | ES47: 1077045 | ET47: 1083740 | EU47: 1106150 | EV47: 1116115 | EW47: 1134355 | EX47: 1135235 | EY47: 1153535 | EZ47: 1167155 | FA47: 1172810 | FB47: 1185840 | FC47: 1225855 | FD47: 1238420 | FE47: 2057135 | FF47: 2597480 | FG47: 2528255 | FH47: 2580900 | FI47: 2625750 | FJ47: 2595285 | FK47: 2506175 | FL47: 2546060 | FM47: 2532610 | FN47: 2503140 | FO47: 2620625 | FP47: 2618190 | FQ47: 2572820 | FR47: 2409350 | FS47: 2235405 | FT47: 2182935 | FU47: 2095500 | FV47: 1985480 | FW47: 1911955 | FX47: 1838875 | FY47: 1774660 | FZ47: 1738270 | GA47: 1737785 | GB47: 1679790 | GC47: 1595075 | GD47: 1546425 | GE47: 1513010 | GF47: 1487650 | GG47: 1483995 | GH47: 1474045 | GI47: 1453515 | GJ47: 1468540 | GK47: 1479460 | GL47: 1467835 | GM47: 1491050 | GN47: 1521740 | GO47: 1546785 | GP47: 1493655 | GQ47: 1500885 | GR47: 1509115 | GS47: 1492950 | GT47: 1486320 | GU47: 1487820 | GV47: 1500115 | GW47: 1507975 | GX47: 1517375 | GY47: 1559530 | GZ47: 1571945 | HA47: 1557550 | HB47: 1569060 | HC47: 1602390 | HD47: 1736525 | HE47: 1730555 | HF47: 1726795 | HG47: 1711675 | HH47: 1685710 | HI47: 1661560 | HJ47: 1659555 | HK47: 1711100 | HL47: 1738930
A48: United Kingdom | B48: 965095 | C48: 974865 | D48: 956020 | E48: 918510 | F48: 889130 | G48: 855630 | H48: 854150 | I48: 857135 | J48: 827890 | K48: 800960 | L48: 785760 | M48: 790370 | N48: 830540 | O48: 848940 | P48: 842825 | Q48: 835185 | R48: 831850 | S48: 835315 | T48: 871290 | U48: 923875 | V48: 944715 | W48: 970280 | X48: 1056145 | Y48: 1153330 | Z48: 1282645 | AA48: 1459840 | AB48: 1523480 | AC48: 1557615 | AD48: 1564980 | AE48: 1553255 | AF48: 1573140 | AG48: 1602190 | AH48: 1591110 | AI48: 1582555 | AJ48: 1569445 | AK48: 1567005 | AL48: 1654025 | AM48: 1657040 | AN48: 1614850 | AO48: 1568130 | AP48: 1502155 | AQ48: 1444095 | AR48: 1441035 | AS48: 1456025 | AT48: 1439600 | AU48: 1416785 | AV48: 1413265 | AW48: 1425190 | AX48: 1505070 | AY48: 1538185 | AZ48: 1526945 | BA48: 1520805 | BB48: 1504915 | BC48: 1493075 | BD48: 1541795 | BE48: 1576835 | BF48: 1578610 | BG48: 1562500 | BH48: 1558755 | BI48: 1568850 | BJ48: 1649190 | BK48: 1685990 | BL48: 1666860 | BM48: 1616850 | BN48: 1590710 | BO48: 1564155 | BP48: 1572670 | BQ48: 1569925 | BR48: 1552985 | BS48: 1547425 | BT48: 1534985 | BU48: 1523220 | BV48: 1581840 | BW48: 1613790 | BX48: 1584470 | BY48: 1538575 | BZ48: 1495780 | CA48: 1439910 | CB48: 1418935 | CC48: 1390400 | CD48: 1326110 | CE48: 1270600 | CF48: 1225105 | CG48: 1203875 | CH48: 1245615 | CI48: 1247095 | CJ48: 1200145 | CK48: 1146415 | CL48: 1094135 | CM48: 1024755 | CN48: 1000755 | CO48: 968545 | CP48: 932365 | CQ48: 898865 | CR48: 861595 | CS48: 839200 | CT48: 871340 | CU48: 883895 | CV48: 855800 | CW48: 833025 | CX48: 806585 | CY48: 783565 | CZ48: 784960 | DA48: 783665 | DB48: 768325 | DC48: 756505 | DD48: 737865 | DE48: 733800 | DF48: 772090 | DG48: 799970 | DH48: 804430 | DI48: 792760 | DJ48: 780220 | DK48: 767345 | DL48: 766105 | DM48: 773460 | DN48: 767200 | DO48: 763300 | DP48: 755500 | DQ48: 747420 | DR48: 768870 | DS48: 798135 | DT48: 815715 | DU48: 819985 | DV48: 809855 | DW48: 799145 | DX48: 794850 | DY48: 797460 | DZ48: 790595 | EA48: 786365 | EB48: 783680 | EC48: 793430 | ED48: 821310 | EE48: 865350 | EF48: 883865 | EG48: 916745 | EH48: 896425 | EI48: 889860 | EJ48: 892935 | EK48: 906795 | EL48: 917560 | EM48: 931140 | EN48: 945630 | EO48: 967220 | EP48: 1003670 | EQ48: 1062430 | ER48: 1091805 | ES48: 1106610 | ET48: 1112855 | EU48: 1135440 | EV48: 1145690 | EW48: 1163945 | EX48: 1164740 | EY48: 1183895 | EZ48: 1196765 | FA48: 1202795 | FB48: 1215555 | FC48: 1255770 | FD48: 1268620 | FE48: 2113560 | FF48: 2661340 | FG48: 2590175 | FH48: 2642815 | FI48: 2688110 | FJ48: 2656115 | FK48: 2565320 | FL48: 2604825 | FM48: 2589740 | FN48: 2558550 | FO48: 2678280 | FP48: 2675305 | FQ48: 2629480 | FR48: 2462865 | FS48: 2285995 | FT48: 2232760 | FU48: 2144330 | FV48: 2032690 | FW48: 1957735 | FX48: 1881715 | FY48: 1815325 | FZ48: 1777485 | GA48: 1776875 | GB48: 1717660 | GC48: 1632180 | GD48: 1582215 | GE48: 1548500 | GF48: 1523345 | GG48: 1520035 | GH48: 1509885 | GI48: 1489340 | GJ48: 1504010 | GK48: 1515210 | GL48: 1502820 | GM48: 1526525 | GN48: 1557915 | GO48: 1584450 | GP48: 1529090 | GQ48: 1536465 | GR48: 1545730 | GS48: 1529745 | GT48: 1523970 | GU48: 1524915 | GV48: 1535890 | GW48: 1543460 | GX48: 1551970 | GY48: 1595355 | GZ48: 1608340 | HA48: 1594025 | HB48: 1605290 | HC48: 1640155 | HD48: 1777620 | HE48: 1772555 | HF48: 1769680 | HG48: 1754330 | HH48: 1726340 | HI48: 1700385 | HJ48: 1697365 | HK48: 1750620 | HL48: 1778055
A49: South East Region | B49: 81710 | C49: 82745 | D49: 80965 | E49: 77845 | F49: 74470 | G49: 71290 | H49: 70735 | I49: 70720 | J49: 67485 | K49: 65445 | L49: 64445 | M49: 64395 | N49: 68095 | O49: 69815 | P49: 69305 | Q49: 69090 | R49: 68740 | S49: 69370 | T49: 72745 | U49: 78300 | V49: 80615 | W49: 83960 | X49: 94800 | Y49: 104295 | Z49: 119760 | AA49: 142325 | AB49: 149890 | AC49: 153590 | AD49: 154845 | AE49: 152105 | AF49: 153535 | AG49: 156610 | AH49: 155180 | AI49: 154840 | AJ49: 154675 | AK49: 152605 | AL49: 162570 | AM49: 161395 | AN49: 156260 | AO49: 151880 | AP49: 142340 | AQ49: 134115 | AR49: 132020 | AS49: 132175 | AT49: 130425 | AU49: 127410 | AV49: 127150 | AW49: 127810 | AX49: 135255 | AY49: 139840 | AZ49: 138850 | BA49: 137010 | BB49: 135685 | BC49: 132545 | BD49: 136245 | BE49: 139285 | BF49: 140385 | BG49: 139650 | BH49: 138945 | BI49: 140025 | BJ49: 146955 | BK49: 152080 | BL49: 150545 | BM49: 143385 | BN49: 140960 | BO49: 137520 | BP49: 136520 | BQ49: 136025 | BR49: 134135 | BS49: 133835 | BT49: 133195 | BU49: 131875 | BV49: 137435 | BW49: 141530 | BX49: 138030 | BY49: 132085 | BZ49: 126810 | CA49: 119385 | CB49: 116320 | CC49: 113365 | CD49: 108280 | CE49: 104390 | CF49: 100925 | CG49: 98455 | CH49: 101710 | CI49: 102155 | CJ49: 97255 | CK49: 91260 | CL49: 86240 | CM49: 79270 | CN49: 76615 | CO49: 73570 | CP49: 70935 | CQ49: 68890 | CR49: 66580 | CS49: 65095 | CT49: 68110 | CU49: 69370 | CV49: 66685 | CW49: 63630 | CX49: 60660 | CY49: 58175 | CZ49: 57635 | DA49: 57265 | DB49: 56970 | DC49: 56435 | DD49: 55925 | DE49: 56140 | DF49: 59800 | DG49: 62495 | DH49: 62735 | DI49: 61515 | DJ49: 60355 | DK49: 58725 | DL49: 58285 | DM49: 59155 | DN49: 59380 | DO49: 59850 | DP49: 59650 | DQ49: 59135 | DR49: 60935 | DS49: 63670 | DT49: 65325 | DU49: 65380 | DV49: 64635 | DW49: 63705 | DX49: 63770 | DY49: 64100 | DZ49: 64070 | EA49: 64865 | EB49: 64970 | EC49: 66165 | ED49: 69165 | EE49: 73165 | EF49: 74200 | EG49: 76860 | EH49: 74860 | EI49: 73520 | EJ49: 73920 | EK49: 75540 | EL49: 77355 | EM49: 79400 | EN49: 81455 | EO49: 84330 | EP49: 88265 | EQ49: 94020 | ER49: 96645 | ES49: 98185 | ET49: 99125 | EU49: 101855 | EV49: 103020 | EW49: 104990 | EX49: 106795 | EY49: 110160 | EZ49: 112035 | FA49: 113260 | FB49: 115330 | FC49: 119620 | FD49: 120930 | FE49: 219285 | FF49: 300540 | FG49: 284595 | FH49: 292815 | FI49: 300975 | FJ49: 298050 | FK49: 285145 | FL49: 289985 | FM49: 288820 | FN49: 285175 | FO49: 300435 | FP49: 299550 | FQ49: 293270 | FR49: 270110 | FS49: 246810 | FT49: 240785 | FU49: 229695 | FV49: 216375 | FW49: 208830 | FX49: 201050 | FY49: 194330 | FZ49: 190275 | GA49: 189650 | GB49: 182640 | GC49: 173085 | GD49: 166720 | GE49: 163055 | GF49: 160335 | GG49: 160345 | GH49: 159990 | GI49: 158910 | GJ49: 159805 | GK49: 161015 | GL49: 160020 | GM49: 161775 | GN49: 163540 | GO49: 165005 | GP49: 159795 | GQ49: 161325 | GR49: 161655 | GS49: 160875 | GT49: 161450 | GU49: 162235 | GV49: 163505 | GW49: 165150 | GX49: 166975 | GY49: 172200 | GZ49: 172200 | HA49: 170210 | HB49: 170540 | HC49: 172520 | HD49: 184925 | HE49: 184635 | HF49: 185465 | HG49: 184680 | HH49: 181825 | HI49: 180170 | HJ49: 180910 | HK49: 187270 | HL49: 190540
A50: Kent & Medway | B50: 21170 | C50: 21465 | D50: 20895 | E50: 20435 | F50: 19505 | G50: 18385 | H50: 18135 | I50: 17970 | J50: 17350 | K50: 16825 | L50: 16220 | M50: 16205 | N50: 16930 | O50: 17200 | P50: 17370 | Q50: 17060 | R50: 17145 | S50: 16950 | T50: 17460 | U50: 18670 | V50: 19195 | W50: 19855 | X50: 22165 | Y50: 24805 | Z50: 27955 | AA50: 32705 | AB50: 34200 | AC50: 34740 | AD50: 35200 | AE50: 34110 | AF50: 34165 | AG50: 34990 | AH50: 35030 | AI50: 35030 | AJ50: 35225 | AK50: 35370 | AL50: 37330 | AM50: 37745 | AN50: 36845 | AO50: 35725 | AP50: 34080 | AQ50: 32060 | AR50: 31600 | AS50: 31500 | AT50: 31000 | AU50: 30580 | AV50: 30750 | AW50: 31200 | AX50: 33100 | AY50: 34085 | AZ50: 33860 | BA50: 33810 | BB50: 33950 | BC50: 33325 | BD50: 34200 | BE50: 34730 | BF50: 35320 | BG50: 35405 | BH50: 35725 | BI50: 36215 | BJ50: 37715 | BK50: 39175 | BL50: 38630 | BM50: 37600 | BN50: 36935 | BO50: 35965 | BP50: 35950 | BQ50: 35770 | BR50: 35035 | BS50: 35035 | BT50: 34725 | BU50: 34400 | BV50: 35825 | BW50: 36880 | BX50: 35955 | BY50: 34640 | BZ50: 33425 | CA50: 31870 | CB50: 30940 | CC50: 30235 | CD50: 29020 | CE50: 28125 | CF50: 27415 | CG50: 27145 | CH50: 28050 | CI50: 28320 | CJ50: 27300 | CK50: 25910 | CL50: 24775 | CM50: 22895 | CN50: 22150 | CO50: 21110 | CP50: 20400 | CQ50: 19670 | CR50: 19120 | CS50: 18615 | CT50: 19485 | CU50: 19840 | CV50: 19410 | CW50: 18740 | CX50: 17725 | CY50: 16995 | CZ50: 16710 | DA50: 16580 | DB50: 16630 | DC50: 16740 | DD50: 16580 | DE50: 16815 | DF50: 17755 | DG50: 18505 | DH50: 18780 | DI50: 18775 | DJ50: 18485 | DK50: 18005 | DL50: 17900 | DM50: 18315 | DN50: 18215 | DO50: 18405 | DP50: 18255 | DQ50: 18125 | DR50: 18405 | DS50: 19045 | DT50: 19520 | DU50: 19455 | DV50: 19055 | DW50: 18885 | DX50: 18850 | DY50: 18885 | DZ50: 18875 | EA50: 19045 | EB50: 19250 | EC50: 19645 | ED50: 20370 | EE50: 21320 | EF50: 21655 | EG50: 22265 | EH50: 21780 | EI50: 21175 | EJ50: 21010 | EK50: 21380 | EL50: 21895 | EM50: 22760 | EN50: 23375 | EO50: 24225 | EP50: 25180 | EQ50: 26735 | ER50: 27460 | ES50: 27985 | ET50: 28250 | EU50: 28930 | EV50: 29530 | EW50: 29665 | EX50: 30120 | EY50: 30840 | EZ50: 31150 | FA50: 31180 | FB50: 31905 | FC50: 32795 | FD50: 32910 | FE50: 57555 | FF50: 72375 | FG50: 68120 | FH50: 69815 | FI50: 71415 | FJ50: 70470 | FK50: 67460 | FL50: 68050 | FM50: 68155 | FN50: 66660 | FO50: 69675 | FP50: 69115 | FQ50: 67875 | FR50: 63385 | FS50: 58555 | FT50: 57240 | FU50: 54790 | FV50: 52210 | FW50: 50240 | FX50: 48600 | FY50: 46990 | FZ50: 45970 | GA50: 45875 | GB50: 43955 | GC50: 41445 | GD50: 39745 | GE50: 38175 | GF50: 37195 | GG50: 36995 | GH50: 36830 | GI50: 36655 | GJ50: 37005 | GK50: 37445 | GL50: 37525 | GM50: 37845 | GN50: 38410 | GO50: 39040 | GP50: 37885 | GQ50: 38045 | GR50: 38210 | GS50: 37810 | GT50: 37860 | GU50: 38140 | GV50: 38480 | GW50: 38925 | GX50: 39165 | GY50: 40320 | GZ50: 40280 | HA50: 39410 | HB50: 39310 | HC50: 39100 | HD50: 42035 | HE50: 41525 | HF50: 41635 | HG50: 41575 | HH50: 40705 | HI50: 40595 | HJ50: 40170 | HK50: 41295 | HL50: 42020

Sheet District Age Data (hidden)
A1: Claimant Count - Unemployment by Age Group
A2: Source: NOMIS | HM2: Insert new column
A3: 18-24
A4: Number | B4: 2007-01-01 | C4: 2007-02-01 | D4: 2007-03-01 | E4: 2007-04-01 | F4: 2007-05-01 | G4: 2007-06-01 | H4: 2007-07-01 | I4: 2007-08-01 | J4: 2007-09-01 | K4: 2007-10-01 | L4: 2007-11-01 | M4: 2007-12-01 | N4: 2008-01-01 | O4: 2008-02-01 | P4: 2008-03-01 | Q4: 2008-04-01 | R4: 2008-05-01 | S4: 2008-06-01 | T4: 2008-07-01 | U4: 2008-08-01 | V4: 2008-09-01 | W4: 2008-10-01 | X4: 2008-11-01 | Y4: 2008-12-01 | Z4: 2009-01-01 | AA4: 2009-02-01 | AB4: 2009-03-01 | AC4: 2009-04-01 | AD4: 2009-05-01 | AE4: 2009-06-01 | AF4: 2009-07-01 | AG4: 2009-08-01 | AH4: 2009-09-01 | AI4: 2009-10-01 | AJ4: 2009-11-01 | AK4: 2009-12-01 | AL4: 2010-01-01 | AM4: 2010-02-01 | AN4: 2010-03-01 | AO4: 2010-04-01 | AP4: 2010-05-01 | AQ4: 2010-06-01 | AR4: 2010-07-01 | AS4: 2010-08-01 | AT4: 2010-09-01 | AU4: 2010-10-01 | AV4: 2010-11-01 | AW4: 2010-12-01 | AX4: 2011-01-01 | AY4: February 2011 | AZ4: March 2011 | BA4: April 2011 | BB4: May 2011 | BC4: June 2011 | BD4: July 2011 | BE4: August 2011 | BF4: 2011-09-01 | BG4: October 2011 | BH4: November 2011 | BI4: December 2011 | BJ4: 2012-01-01 | BK4: February 2012 | BL4: March 2012 | BM4: April 2012 | BN4: May 2012 | BO4: June 2012 | BP4: July 2012 | BQ4: August 2012 | BR4: September 2012 | BS4: October 2012 | BT4: November 2012 | BU4: December 2012 | BV4: January 2013 | BW4: February 2013 | BX4: March 2013 | BY4: April 2013 | BZ4: May 2013 | CA4: June 2013 | CB4: July 2013 | CC4: August 2013 | CD4: September 2013 | CE4: October 2013 | CF4: November 2013 | CG4: December 2013 | CH4: 2014-01-01 | CI4: 2014-02-01 | CJ4: 2014-03-01 | CK4: 2014-04-01 | CL4: 2014-05-01 | CM4: 2014-06-01 | CN4: 2014-07-01 | CO4: 2014-08-01 | CP4: 2014-09-01 | CQ4: 2014-10-01 | CR4: 2014-11-01 | CS4: 2014-12-01 | CT4: 2015-01-01 | CU4: 2015-02-01 | CV4: 2015-03-01 | CW4: 2015-04-01 | CX4: 2015-05-01 | CY4: 2015-06-01 | CZ4: 2015-07-01 | DA4: 2015-08-01 | DB4: 2015-09-01 | DC4: 2015-10-01 | DD4: 2015-11-01 | DE4: 2015-12-01 | DF4: 2016-01-01 | DG4: 2016-02-01 | DH4: 2016-03-01 | DI4: 2016-04-01 | DJ4: 2016-05-01 | DK4: 2016-06-01 | DL4: 2016-07-01 | DM4: 2016-08-01 | DN4: 2016-09-01 | DO4: 2016-10-01 | DP4: 2016-11-01 | DQ4: 2016-12-01 | DR4: 2017-01-01 | DS4: 2017-02-01 | DT4: 2017-03-01 | DU4: 2017-04-01 | DV4: 2017-05-01 | DW4: 2017-06-01 | DX4: 2017-07-01 | DY4: 2017-08-01 | DZ4: 2017-09-01 | EA4: 2017-10-01 | EB4: 2017-11-01 | EC4: 2017-12-01 | ED4: 2018-01-01 | EE4: 2018-02-01 | EF4: 2018-03-01 | EG4: 2018-04-01 | EH4: 2018-05-01 | EI4: 2018-06-01 | EJ4: 2018-07-01 | EK4: 2018-08-01 | EL4: 2018-09-01 | EM4: 2018-10-01 | EN4: 2018-11-01 | EO4: 2018-12-01 | EP4: 2019-01-01 | EQ4: 2019-02-01 | ER4: 2019-03-01 | ES4: 2019-04-01 | ET4: 2019-05-01 | EU4: 2019-06-01 | EV4: 2019-07-01 | EW4: 2019-08-01 | EX4: 2019-09-01 | EY4: 2019-10-01 | EZ4: 2019-11-01 | FA4: 2019-12-01 | FB4: 2020-01-01 | FC4: 2020-02-01 | FD4: 2020-03-01 | FE4: 2020-04-01 | FF4: 2020-05-01 | FG4: 2020-06-01 | FH4: 2020-07-01 | FI4: 2020-08-01 | FJ4: 2020-09-01 | FK4: 2020-10-01 | FL4: 2020-11-01 | FM4: 2020-12-01 | FN4: 2021-01-01 | FO4: 2021-02-01 | FP4: 2021-03-01 | FQ4: 2021-04-01 | FR4: 2021-05-01 | FS4: 2021-06-01 | FT4: 2021-07-01 | FU4: 2021-08-01 | FV4: 2021-09-01 | FW4: 2021-10-01 | FX4: 2021-11-01 | FY4: 2021-12-01 | FZ4: 2022-01-01 | GA4: 2022-02-01 | GB4: 2022-03-01 | GC4: 2022-04-01 | GD4: 2022-05-01 | GE4: 2022-06-01 | GF4: 2022-07-01 | GG4: 2022-08-01 | GH4: 2022-09-01 | GI4: 2022-10-01 | GJ4: 2022-11-01 | GK4: 2022-12-01 | GL4: 2023-01-01 | GM4: 2023-02-01 | GN4: 2023-03-01 | GO4: 2023-04-01 | GP4: 2023-05-01 | GQ4: 2023-06-01 | GR4: 2023-07-01 | GS4: 2023-08-01 | GT4: 2023-09-01 | GU4: 2023-10-01 | GV4: 2023-11-01 | GW4: 2023-12-01 | GX4: 2024-01-01 | GY4: 2024-02-01 | GZ4: 2024-03-01 | HA4: 2024-04-01 | HB4: 2024-05-01 | HC4: 2024-06-01 | HD4: 2024-07-01 | HE4: 2024-08-01 | HF4: 2024-09-01 | HG4: 2024-10-01 | HH4: 2024-11-01 | HI4: 2024-12-01 | HJ4: 2025-01-01 | HK4: 2025-02-01 | HL4: 2025-03-01
A5: Kent | B5: 4900 | C5: 5140 | D5: 5055 | E5: 4905 | F5: 4590 | G5: 4265 | H5: 4410 | I5: 4400 | J5: 4195 | K5: 3960 | L5: 3855 | M5: 3810 | N5: 3950 | O5: 4180 | P5: 4300 | Q5: 4125 | R5: 4155 | S5: 3980 | T5: 4180 | U5: 4750 | V5: 4850 | W5: 4855 | X5: 5350 | Y5: 5930 | Z5: 6615 | AA5: 8175 | AB5: 8485 | AC5: 8495 | AD5: 8335 | AE5: 7900 | AF5: 7950 | AG5: 8615 | AH5: 8735 | AI5: 8665 | AJ5: 8740 | AK5: 8610 | AL5: 8995 | AM5: 9395 | AN5: 8900 | AO5: 8265 | AP5: 7540 | AQ5: 6845 | AR5: 6770 | AS5: 7050 | AT5: 7160 | AU5: 7075 | AV5: 7010 | AW5: 6900 | AX5: 7405 | AY5: 7905 | AZ5: 7780 | BA5: 7655 | BB5: 7675 | BC5: 7475 | BD5: 8090 | BE5: 8515 | BF5: 8900 | BG5: 8995 | BH5: 8970 | BI5: 8960 | BJ5: 9165 | BK5: 9615 | BL5: 9520 | BM5: 8990 | BN5: 8555 | BO5: 8195 | BP5: 8300 | BQ5: 8315 | BR5: 8270 | BS5: 8140 | BT5: 7870 | BU5: 7525 | BV5: 7800 | BW5: 8315 | BX5: 8125 | BY5: 7645 | BZ5: 7325 | CA5: 6835 | CB5: 6780 | CC5: 6625 | CD5: 6425 | CE5: 6295 | CF5: 6045 | CG5: 5865 | CH5: 6000 | CI5: 6240 | CJ5: 5940 | CK5: 5405 | CL5: 5040 | CM5: 4545 | CN5: 4475 | CO5: 4225 | CP5: 4285 | CQ5: 4125 | CR5: 3905 | CS5: 3735 | CT5: 3875 | CU5: 4110 | CV5: 3970 | CW5: 3600 | CX5: 3360 | CY5: 3135 | CZ5: 3100 | DA5: 3080 | DB5: 3150 | DC5: 3200 | DD5: 3155 | DE5: 3105 | DF5: 3255 | DG5: 3430 | DH5: 3485 | DI5: 3415 | DJ5: 3390 | DK5: 3255 | DL5: 3220 | DM5: 3325 | DN5: 3410 | DO5: 3540 | DP5: 3560 | DQ5: 3440 | DR5: 3360 | DS5: 3500 | DT5: 3660 | DU5: 3595 | DV5: 3450 | DW5: 3385 | DX5: 3330 | DY5: 3405 | DZ5: 3470 | EA5: 3545 | EB5: 3525 | EC5: 3475 | ED5: 3550 | EE5: 3830 | EF5: 3950 | EG5: 3980 | EH5: 3830 | EI5: 3680 | EJ5: 3595 | EK5: 3640 | EL5: 3760 | EM5: 3985 | EN5: 4160 | EO5: 4210 | EP5: 4355 | EQ5: 4665 | ER5: 4805 | ES5: 4865 | ET5: 4860 | EU5: 4810 | EV5: 4850 | EW5: 4915 | EX5: 5020 | EY5: 5200 | EZ5: 5195 | FA5: 5240 | FB5: 5385 | FC5: 5570 | FD5: 5675 | FE5: 9155 | FF5: 11780 | FG5: 11965 | FH5: 12205 | FI5: 12195 | FJ5: 12135 | FK5: 11755 | FL5: 11635 | FM5: 11660 | FN5: 11455 | FO5: 11640 | FP5: 11545 | FQ5: 11205 | FR5: 10345 | FS5: 9475 | FT5: 8865 | FU5: 8265 | FV5: 7790 | FW5: 7390 | FX5: 7105 | FY5: 6675 | FZ5: 6475 | GA5: 6430 | GB5: 6260 | GC5: 5850 | GD5: 5535 | GE5: 5280 | GF5: 5195 | GG5: 5325 | GH5: 5275 | GI5: 5485 | GJ5: 5580 | GK5: 5665 | GL5: 5605 | GM5: 5705 | GN5: 5815 | GO5: 5860 | GP5: 5755 | GQ5: 5775 | GR5: 5760 | GS5: 5730 | GT5: 5805 | GU5: 5955 | GV5: 6000 | GW5: 5925 | GX5: 5990 | GY5: 6130 | GZ5: 6240 | HA5: 6130 | HB5: 6000 | HC5: 5835 | HD5: 6020 | HE5: 6025 | HF5: 6085 | HG5: 6295 | HH5: 6385 | HI5: 6450 | HJ5: 6355 | HK5: 6465 | HL5: 6730
A6: Medway | B6: 1255 | C6: 1290 | D6: 1240 | E6: 1270 | F6: 1230 | G6: 1160 | H6: 1170 | I6: 1215 | J6: 1220 | K6: 1195 | L6: 1125 | M6: 1065 | N6: 1080 | O6: 1175 | P6: 1265 | Q6: 1185 | R6: 1110 | S6: 1145 | T6: 1215 | U6: 1295 | V6: 1340 | W6: 1425 | X6: 1440 | Y6: 1565 | Z6: 1720 | AA6: 2015 | AB6: 2125 | AC6: 2150 | AD6: 2155 | AE6: 2050 | AF6: 2185 | AG6: 2325 | AH6: 2385 | AI6: 2405 | AJ6: 2460 | AK6: 2415 | AL6: 2530 | AM6: 2520 | AN6: 2415 | AO6: 2265 | AP6: 2090 | AQ6: 1920 | AR6: 1885 | AS6: 1875 | AT6: 1815 | AU6: 1785 | AV6: 1760 | AW6: 1745 | AX6: 1910 | AY6: 2025 | AZ6: 2020 | BA6: 2065 | BB6: 2015 | BC6: 1980 | BD6: 2090 | BE6: 2155 | BF6: 2310 | BG6: 2340 | BH6: 2330 | BI6: 2280 | BJ6: 2360 | BK6: 2455 | BL6: 2420 | BM6: 2355 | BN6: 2315 | BO6: 2205 | BP6: 2245 | BQ6: 2220 | BR6: 2150 | BS6: 2105 | BT6: 2025 | BU6: 1870 | BV6: 1960 | BW6: 2065 | BX6: 2045 | BY6: 1930 | BZ6: 1870 | CA6: 1790 | CB6: 1740 | CC6: 1750 | CD6: 1750 | CE6: 1630 | CF6: 1555 | CG6: 1450 | CH6: 1500 | CI6: 1550 | CJ6: 1510 | CK6: 1430 | CL6: 1370 | CM6: 1250 | CN6: 1245 | CO6: 1200 | CP6: 1190 | CQ6: 1125 | CR6: 1080 | CS6: 1010 | CT6: 1055 | CU6: 1090 | CV6: 1055 | CW6: 990 | CX6: 970 | CY6: 910 | CZ6: 930 | DA6: 920 | DB6: 880 | DC6: 845 | DD6: 775 | DE6: 755 | DF6: 770 | DG6: 805 | DH6: 815 | DI6: 805 | DJ6: 785 | DK6: 755 | DL6: 750 | DM6: 780 | DN6: 795 | DO6: 820 | DP6: 775 | DQ6: 725 | DR6: 690 | DS6: 715 | DT6: 770 | DU6: 800 | DV6: 775 | DW6: 770 | DX6: 775 | DY6: 755 | DZ6: 755 | EA6: 745 | EB6: 720 | EC6: 690 | ED6: 720 | EE6: 775 | EF6: 785 | EG6: 785 | EH6: 775 | EI6: 670 | EJ6: 675 | EK6: 725 | EL6: 750 | EM6: 805 | EN6: 820 | EO6: 855 | EP6: 900 | EQ6: 985 | ER6: 1015 | ES6: 1075 | ET6: 1075 | EU6: 1100 | EV6: 1125 | EW6: 1155 | EX6: 1160 | EY6: 1180 | EZ6: 1160 | FA6: 1170 | FB6: 1140 | FC6: 1190 | FD6: 1220 | FE6: 1805 | FF6: 2470 | FG6: 2465 | FH6: 2575 | FI6: 2585 | FJ6: 2530 | FK6: 2510 | FL6: 2530 | FM6: 2470 | FN6: 2440 | FO6: 2520 | FP6: 2565 | FQ6: 2550 | FR6: 2435 | FS6: 2245 | FT6: 2125 | FU6: 1960 | FV6: 1840 | FW6: 1705 | FX6: 1650 | FY6: 1560 | FZ6: 1440 | GA6: 1455 | GB6: 1395 | GC6: 1275 | GD6: 1165 | GE6: 1135 | GF6: 1135 | GG6: 1130 | GH6: 1160 | GI6: 1190 | GJ6: 1195 | GK6: 1170 | GL6: 1150 | GM6: 1195 | GN6: 1205 | GO6: 1210 | GP6: 1200 | GQ6: 1205 | GR6: 1215 | GS6: 1235 | GT6: 1225 | GU6: 1245 | GV6: 1265 | GW6: 1240 | GX6: 1250 | GY6: 1275 | GZ6: 1320 | HA6: 1300 | HB6: 1315 | HC6: 1290 | HD6: 1375 | HE6: 1355 | HF6: 1340 | HG6: 1390 | HH6: 1395 | HI6: 1425 | HJ6: 1405 | HK6: 1460 | HL6: 1525
A7: Ashford | B7: 290 | C7: 350 | D7: 340 | E7: 330 | F7: 310 | G7: 290 | H7: 290 | I7: 285 | J7: 290 | K7: 245 | L7: 240 | M7: 245 | N7: 245 | O7: 265 | P7: 275 | Q7: 235 | R7: 230 | S7: 240 | T7: 270 | U7: 330 | V7: 330 | W7: 300 | X7: 350 | Y7: 385 | Z7: 440 | AA7: 600 | AB7: 625 | AC7: 630 | AD7: 645 | AE7: 580 | AF7: 565 | AG7: 635 | AH7: 655 | AI7: 625 | AJ7: 605 | AK7: 585 | AL7: 600 | AM7: 640 | AN7: 655 | AO7: 590 | AP7: 555 | AQ7: 485 | AR7: 450 | AS7: 465 | AT7: 460 | AU7: 460 | AV7: 450 | AW7: 465 | AX7: 505 | AY7: 540 | AZ7: 515 | BA7: 510 | BB7: 515 | BC7: 475 | BD7: 560 | BE7: 565 | BF7: 575 | BG7: 580 | BH7: 600 | BI7: 605 | BJ7: 610 | BK7: 650 | BL7: 660 | BM7: 620 | BN7: 585 | BO7: 545 | BP7: 575 | BQ7: 580 | BR7: 585 | BS7: 570 | BT7: 575 | BU7: 505 | BV7: 505 | BW7: 575 | BX7: 540 | BY7: 540 | BZ7: 505 | CA7: 455 | CB7: 470 | CC7: 455 | CD7: 395 | CE7: 405 | CF7: 395 | CG7: 360 | CH7: 385 | CI7: 390 | CJ7: 370 | CK7: 325 | CL7: 320 | CM7: 290 | CN7: 290 | CO7: 285 | CP7: 270 | CQ7: 245 | CR7: 265 | CS7: 235 | CT7: 260 | CU7: 295 | CV7: 265 | CW7: 255 | CX7: 225 | CY7: 210 | CZ7: 220 | DA7: 250 | DB7: 260 | DC7: 270 | DD7: 270 | DE7: 260 | DF7: 250 | DG7: 265 | DH7: 260 | DI7: 270 | DJ7: 265 | DK7: 250 | DL7: 265 | DM7: 275 | DN7: 270 | DO7: 285 | DP7: 285 | DQ7: 280 | DR7: 280 | DS7: 305 | DT7: 325 | DU7: 330 | DV7: 315 | DW7: 310 | DX7: 305 | DY7: 295 | DZ7: 310 | EA7: 310 | EB7: 295 | EC7: 295 | ED7: 295 | EE7: 310 | EF7: 345 | EG7: 340 | EH7: 325 | EI7: 325 | EJ7: 295 | EK7: 325 | EL7: 325 | EM7: 370 | EN7: 385 | EO7: 390 | EP7: 410 | EQ7: 430 | ER7: 460 | ES7: 450 | ET7: 445 | EU7: 415 | EV7: 425 | EW7: 405 | EX7: 405 | EY7: 445 | EZ7: 430 | FA7: 445 | FB7: 450 | FC7: 470 | FD7: 475 | FE7: 795 | FF7: 1030 | FG7: 1060 | FH7: 1055 | FI7: 1050 | FJ7: 1015 | FK7: 975 | FL7: 955 | FM7: 975 | FN7: 975 | FO7: 980 | FP7: 955 | FQ7: 910 | FR7: 865 | FS7: 775 | FT7: 705 | FU7: 660 | FV7: 605 | FW7: 575 | FX7: 550 | FY7: 505 | FZ7: 510 | GA7: 520 | GB7: 520 | GC7: 490 | GD7: 465 | GE7: 435 | GF7: 420 | GG7: 425 | GH7: 430 | GI7: 420 | GJ7: 445 | GK7: 430 | GL7: 435 | GM7: 435 | GN7: 445 | GO7: 455 | GP7: 440 | GQ7: 430 | GR7: 440 | GS7: 450 | GT7: 450 | GU7: 445 | GV7: 465 | GW7: 450 | GX7: 440 | GY7: 440 | GZ7: 480 | HA7: 485 | HB7: 480 | HC7: 475 | HD7: 485 | HE7: 490 | HF7: 490 | HG7: 515 | HH7: 515 | HI7: 525 | HJ7: 490 | HK7: 490 | HL7: 510
A8: Canterbury | B8: 475 | C8: 505 | D8: 550 | E8: 545 | F8: 475 | G8: 410 | H8: 430 | I8: 410 | J8: 375 | K8: 350 | L8: 360 | M8: 335 | N8: 385 | O8: 415 | P8: 395 | Q8: 405 | R8: 395 | S8: 355 | T8: 360 | U8: 435 | V8: 440 | W8: 435 | X8: 490 | Y8: 560 | Z8: 615 | AA8: 790 | AB8: 815 | AC8: 820 | AD8: 760 | AE8: 710 | AF8: 715 | AG8: 790 | AH8: 770 | AI8: 780 | AJ8: 780 | AK8: 750 | AL8: 815 | AM8: 885 | AN8: 810 | AO8: 730 | AP8: 635 | AQ8: 565 | AR8: 565 | AS8: 585 | AT8: 635 | AU8: 610 | AV8: 565 | AW8: 555 | AX8: 645 | AY8: 700 | AZ8: 710 | BA8: 710 | BB8: 690 | BC8: 650 | BD8: 690 | BE8: 780 | BF8: 785 | BG8: 810 | BH8: 800 | BI8: 820 | BJ8: 835 | BK8: 870 | BL8: 845 | BM8: 810 | BN8: 780 | BO8: 725 | BP8: 750 | BQ8: 755 | BR8: 765 | BS8: 745 | BT8: 690 | BU8: 705 | BV8: 720 | BW8: 770 | BX8: 790 | BY8: 755 | BZ8: 710 | CA8: 655 | CB8: 620 | CC8: 630 | CD8: 600 | CE8: 595 | CF8: 565 | CG8: 525 | CH8: 545 | CI8: 565 | CJ8: 535 | CK8: 475 | CL8: 430 | CM8: 365 | CN8: 350 | CO8: 335 | CP8: 340 | CQ8: 315 | CR8: 295 | CS8: 275 | CT8: 285 | CU8: 335 | CV8: 325 | CW8: 290 | CX8: 260 | CY8: 250 | CZ8: 230 | DA8: 220 | DB8: 220 | DC8: 230 | DD8: 250 | DE8: 250 | DF8: 245 | DG8: 255 | DH8: 270 | DI8: 250 | DJ8: 255 | DK8: 240 | DL8: 265 | DM8: 280 | DN8: 285 | DO8: 310 | DP8: 305 | DQ8: 305 | DR8: 295 | DS8: 300 | DT8: 305 | DU8: 300 | DV8: 290 | DW8: 290 | DX8: 305 | DY8: 305 | DZ8: 300 | EA8: 290 | EB8: 300 | EC8: 300 | ED8: 315 | EE8: 350 | EF8: 355 | EG8: 335 | EH8: 305 | EI8: 290 | EJ8: 265 | EK8: 270 | EL8: 310 | EM8: 350 | EN8: 385 | EO8: 405 | EP8: 430 | EQ8: 455 | ER8: 465 | ES8: 490 | ET8: 505 | EU8: 495 | EV8: 510 | EW8: 525 | EX8: 510 | EY8: 500 | EZ8: 525 | FA8: 545 | FB8: 555 | FC8: 560 | FD8: 580 | FE8: 990 | FF8: 1225 | FG8: 1270 | FH8: 1350 | FI8: 1340 | FJ8: 1340 | FK8: 1260 | FL8: 1205 | FM8: 1185 | FN8: 1195 | FO8: 1215 | FP8: 1190 | FQ8: 1120 | FR8: 1030 | FS8: 970 | FT8: 900 | FU8: 865 | FV8: 805 | FW8: 765 | FX8: 765 | FY8: 720 | FZ8: 710 | GA8: 700 | GB8: 700 | GC8: 655 | GD8: 615 | GE8: 575 | GF8: 550 | GG8: 565 | GH8: 555 | GI8: 580 | GJ8: 590 | GK8: 605 | GL8: 610 | GM8: 645 | GN8: 665 | GO8: 660 | GP8: 650 | GQ8: 680 | GR8: 660 | GS8: 670 | GT8: 680 | GU8: 655 | GV8: 680 | GW8: 675 | GX8: 680 | GY8: 695 | GZ8: 690 | HA8: 680 | HB8: 685 | HC8: 660 | HD8: 660 | HE8: 675 | HF8: 660 | HG8: 675 | HH8: 690 | HI8: 690 | HJ8: 705 | HK8: 700 | HL8: 740
A9: Dartford | B9: 295 | C9: 320 | D9: 305 | E9: 295 | F9: 275 | G9: 275 | H9: 295 | I9: 290 | J9: 295 | K9: 275 | L9: 265 | M9: 255 | N9: 240 | O9: 250 | P9: 250 | Q9: 240 | R9: 260 | S9: 255 | T9: 280 | U9: 305 | V9: 330 | W9: 320 | X9: 315 | Y9: 340 | Z9: 395 | AA9: 565 | AB9: 600 | AC9: 580 | AD9: 575 | AE9: 545 | AF9: 565 | AG9: 615 | AH9: 670 | AI9: 665 | AJ9: 630 | AK9: 595 | AL9: 655 | AM9: 710 | AN9: 675 | AO9: 635 | AP9: 580 | AQ9: 510 | AR9: 545 | AS9: 535 | AT9: 515 | AU9: 505 | AV9: 500 | AW9: 470 | AX9: 495 | AY9: 540 | AZ9: 555 | BA9: 570 | BB9: 555 | BC9: 555 | BD9: 615 | BE9: 600 | BF9: 630 | BG9: 600 | BH9: 545 | BI9: 550 | BJ9: 585 | BK9: 615 | BL9: 635 | BM9: 585 | BN9: 555 | BO9: 540 | BP9: 550 | BQ9: 510 | BR9: 485 | BS9: 500 | BT9: 450 | BU9: 425 | BV9: 475 | BW9: 520 | BX9: 510 | BY9: 475 | BZ9: 445 | CA9: 410 | CB9: 420 | CC9: 410 | CD9: 415 | CE9: 385 | CF9: 360 | CG9: 340 | CH9: 350 | CI9: 385 | CJ9: 360 | CK9: 330 | CL9: 305 | CM9: 280 | CN9: 275 | CO9: 270 | CP9: 260 | CQ9: 255 | CR9: 225 | CS9: 200 | CT9: 225 | CU9: 230 | CV9: 215 | CW9: 200 | CX9: 195 | CY9: 195 | CZ9: 180 | DA9: 160 | DB9: 175 | DC9: 170 | DD9: 160 | DE9: 150 | DF9: 165 | DG9: 185 | DH9: 165 | DI9: 170 | DJ9: 170 | DK9: 170 | DL9: 180 | DM9: 190 | DN9: 200 | DO9: 195 | DP9: 200 | DQ9: 190 | DR9: 180 | DS9: 190 | DT9: 185 | DU9: 190 | DV9: 185 | DW9: 180 | DX9: 170 | DY9: 175 | DZ9: 175 | EA9: 190 | EB9: 185 | EC9: 170 | ED9: 155 | EE9: 175 | EF9: 195 | EG9: 165 | EH9: 150 | EI9: 145 | EJ9: 150 | EK9: 150 | EL9: 165 | EM9: 175 | EN9: 190 | EO9: 195 | EP9: 195 | EQ9: 225 | ER9: 245 | ES9: 250 | ET9: 235 | EU9: 250 | EV9: 245 | EW9: 260 | EX9: 280 | EY9: 285 | EZ9: 280 | FA9: 285 | FB9: 300 | FC9: 305 | FD9: 315 | FE9: 530 | FF9: 730 | FG9: 755 | FH9: 755 | FI9: 750 | FJ9: 755 | FK9: 745 | FL9: 755 | FM9: 760 | FN9: 755 | FO9: 760 | FP9: 755 | FQ9: 720 | FR9: 655 | FS9: 610 | FT9: 575 | FU9: 530 | FV9: 500 | FW9: 450 | FX9: 415 | FY9: 395 | FZ9: 385 | GA9: 405 | GB9: 385 | GC9: 355 | GD9: 360 | GE9: 350 | GF9: 355 | GG9: 355 | GH9: 350 | GI9: 365 | GJ9: 360 | GK9: 360 | GL9: 350 | GM9: 375 | GN9: 370 | GO9: 375 | GP9: 375 | GQ9: 375 | GR9: 390 | GS9: 375 | GT9: 385 | GU9: 390 | GV9: 410 | GW9: 385 | GX9: 400 | GY9: 425 | GZ9: 430 | HA9: 410 | HB9: 400 | HC9: 395 | HD9: 405 | HE9: 410 | HF9: 425 | HG9: 415 | HH9: 420 | HI9: 425 | HJ9: 410 | HK9: 415 | HL9: 435
A10: Dover | B10: 485 | C10: 515 | D10: 520 | E10: 480 | F10: 425 | G10: 400 | H10: 400 | I10: 395 | J10: 380 | K10: 360 | L10: 355 | M10: 350 | N10: 380 | O10: 405 | P10: 390 | Q10: 405 | R10: 425 | S10: 395 | T10: 385 | U10: 415 | V10: 425 | W10: 410 | X10: 490 | Y10: 550 | Z10: 620 | AA10: 705 | AB10: 720 | AC10: 725 | AD10: 705 | AE10: 685 | AF10: 675 | AG10: 700 | AH10: 690 | AI10: 725 | AJ10: 790 | AK10: 805 | AL10: 815 | AM10: 840 | AN10: 775 | AO10: 715 | AP10: 640 | AQ10: 575 | AR10: 520 | AS10: 515 | AT10: 510 | AU10: 600 | AV10: 615 | AW10: 565 | AX10: 600 | AY10: 650 | AZ10: 620 | BA10: 560 | BB10: 615 | BC10: 625 | BD10: 665 | BE10: 715 | BF10: 780 | BG10: 780 | BH10: 820 | BI10: 840 | BJ10: 845 | BK10: 850 | BL10: 855 | BM10: 840 | BN10: 785 | BO10: 740 | BP10: 745 | BQ10: 740 | BR10: 705 | BS10: 730 | BT10: 725 | BU10: 755 | BV10: 745 | BW10: 800 | BX10: 775 | BY10: 730 | BZ10: 695 | CA10: 620 | CB10: 600 | CC10: 570 | CD10: 520 | CE10: 535 | CF10: 560 | CG10: 575 | CH10: 565 | CI10: 585 | CJ10: 585 | CK10: 530 | CL10: 485 | CM10: 425 | CN10: 430 | CO10: 405 | CP10: 415 | CQ10: 400 | CR10: 380 | CS10: 385 | CT10: 380 | CU10: 405 | CV10: 385 | CW10: 345 | CX10: 315 | CY10: 285 | CZ10: 265 | DA10: 255 | DB10: 250 | DC10: 265 | DD10: 295 | DE10: 300 | DF10: 310 | DG10: 310 | DH10: 310 | DI10: 300 | DJ10: 295 | DK10: 275 | DL10: 280 | DM10: 290 | DN10: 310 | DO10: 325 | DP10: 335 | DQ10: 340 | DR10: 320 | DS10: 335 | DT10: 375 | DU10: 355 | DV10: 340 | DW10: 355 | DX10: 320 | DY10: 340 | DZ10: 350 | EA10: 380 | EB10: 380 | EC10: 390 | ED10: 405 | EE10: 425 | EF10: 445 | EG10: 485 | EH10: 460 | EI10: 445 | EJ10: 445 | EK10: 425 | EL10: 430 | EM10: 445 | EN10: 460 | EO10: 485 | EP10: 505 | EQ10: 530 | ER10: 525 | ES10: 520 | ET10: 520 | EU10: 485 | EV10: 500 | EW10: 500 | EX10: 505 | EY10: 510 | EZ10: 485 | FA10: 490 | FB10: 490 | FC10: 515 | FD10: 540 | FE10: 890 | FF10: 1010 | FG10: 1045 | FH10: 1065 | FI10: 1060 | FJ10: 1040 | FK10: 1020 | FL10: 985 | FM10: 995 | FN10: 950 | FO10: 940 | FP10: 915 | FQ10: 885 | FR10: 815 | FS10: 755 | FT10: 700 | FU10: 615 | FV10: 580 | FW10: 575 | FX10: 565 | FY10: 540 | FZ10: 520 | GA10: 510 | GB10: 490 | GC10: 445 | GD10: 420 | GE10: 390 | GF10: 390 | GG10: 410 | GH10: 415 | GI10: 445 | GJ10: 460 | GK10: 475 | GL10: 475 | GM10: 495 | GN10: 525 | GO10: 510 | GP10: 525 | GQ10: 505 | GR10: 505 | GS10: 510 | GT10: 525 | GU10: 545 | GV10: 545 | GW10: 560 | GX10: 560 | GY10: 585 | GZ10: 605 | HA10: 565 | HB10: 535 | HC10: 505 | HD10: 510 | HE10: 505 | HF10: 515 | HG10: 525 | HH10: 530 | HI10: 530 | HJ10: 520 | HK10: 545 | HL10: 560
A11: Folkestone & Hythe | B11: 500 | C11: 515 | D11: 525 | E11: 510 | F11: 490 | G11: 445 | H11: 465 | I11: 470 | J11: 425 | K11: 400 | L11: 360 | M11: 355 | N11: 365 | O11: 390 | P11: 385 | Q11: 390 | R11: 400 | S11: 375 | T11: 365 | U11: 400 | V11: 415 | W11: 445 | X11: 495 | Y11: 545 | Z11: 615 | AA11: 695 | AB11: 720 | AC11: 695 | AD11: 655 | AE11: 620 | AF11: 595 | AG11: 680 | AH11: 650 | AI11: 675 | AJ11: 720 | AK11: 765 | AL11: 785 | AM11: 785 | AN11: 760 | AO11: 710 | AP11: 665 | AQ11: 615 | AR11: 600 | AS11: 650 | AT11: 605 | AU11: 640 | AV11: 645 | AW11: 645 | AX11: 695 | AY11: 700 | AZ11: 660 | BA11: 645 | BB11: 630 | BC11: 600 | BD11: 655 | BE11: 715 | BF11: 735 | BG11: 755 | BH11: 790 | BI11: 785 | BJ11: 795 | BK11: 800 | BL11: 800 | BM11: 760 | BN11: 740 | BO11: 700 | BP11: 710 | BQ11: 740 | BR11: 745 | BS11: 705 | BT11: 680 | BU11: 670 | BV11: 690 | BW11: 705 | BX11: 685 | BY11: 635 | BZ11: 615 | CA11: 595 | CB11: 570 | CC11: 550 | CD11: 520 | CE11: 535 | CF11: 555 | CG11: 565 | CH11: 545 | CI11: 575 | CJ11: 520 | CK11: 440 | CL11: 415 | CM11: 365 | CN11: 395 | CO11: 355 | CP11: 385 | CQ11: 390 | CR11: 395 | CS11: 400 | CT11: 390 | CU11: 400 | CV11: 365 | CW11: 340 | CX11: 290 | CY11: 255 | CZ11: 250 | DA11: 240 | DB11: 220 | DC11: 255 | DD11: 285 | DE11: 300 | DF11: 310 | DG11: 295 | DH11: 305 | DI11: 290 | DJ11: 285 | DK11: 270 | DL11: 260 | DM11: 275 | DN11: 265 | DO11: 280 | DP11: 290 | DQ11: 285 | DR11: 290 | DS11: 300 | DT11: 305 | DU11: 290 | DV11: 290 | DW11: 280 | DX11: 265 | DY11: 265 | DZ11: 270 | EA11: 270 | EB11: 265 | EC11: 285 | ED11: 280 | EE11: 300 | EF11: 315 | EG11: 285 | EH11: 265 | EI11: 245 | EJ11: 255 | EK11: 255 | EL11: 280 | EM11: 330 | EN11: 355 | EO11: 360 | EP11: 380 | EQ11: 405 | ER11: 425 | ES11: 435 | ET11: 445 | EU11: 440 | EV11: 435 | EW11: 430 | EX11: 450 | EY11: 470 | EZ11: 480 | FA11: 480 | FB11: 485 | FC11: 490 | FD11: 480 | FE11: 780 | FF11: 935 | FG11: 945 | FH11: 955 | FI11: 965 | FJ11: 950 | FK11: 890 | FL11: 925 | FM11: 950 | FN11: 905 | FO11: 915 | FP11: 905 | FQ11: 860 | FR11: 815 | FS11: 730 | FT11: 670 | FU11: 615 | FV11: 620 | FW11: 620 | FX11: 625 | FY11: 585 | FZ11: 560 | GA11: 550 | GB11: 520 | GC11: 470 | GD11: 445 | GE11: 410 | GF11: 400 | GG11: 410 | GH11: 410 | GI11: 445 | GJ11: 475 | GK11: 465 | GL11: 465 | GM11: 460 | GN11: 475 | GO11: 480 | GP11: 440 | GQ11: 445 | GR11: 445 | GS11: 445 | GT11: 460 | GU11: 490 | GV11: 495 | GW11: 495 | GX11: 500 | GY11: 525 | GZ11: 505 | HA11: 475 | HB11: 455 | HC11: 440 | HD11: 435 | HE11: 430 | HF11: 440 | HG11: 455 | HH11: 500 | HI11: 515 | HJ11: 505 | HK11: 525 | HL11: 565
A12: Gravesham | B12: 465 | C12: 485 | D12: 460 | E12: 465 | F12: 445 | G12: 420 | H12: 425 | I12: 425 | J12: 435 | K12: 405 | L12: 360 | M12: 395 | N12: 380 | O12: 420 | P12: 450 | Q12: 425 | R12: 405 | S12: 380 | T12: 420 | U12: 435 | V12: 450 | W12: 440 | X12: 460 | Y12: 525 | Z12: 600 | AA12: 715 | AB12: 725 | AC12: 750 | AD12: 755 | AE12: 745 | AF12: 725 | AG12: 775 | AH12: 840 | AI12: 805 | AJ12: 790 | AK12: 765 | AL12: 795 | AM12: 850 | AN12: 825 | AO12: 800 | AP12: 735 | AQ12: 670 | AR12: 645 | AS12: 685 | AT12: 660 | AU12: 635 | AV12: 595 | AW12: 600 | AX12: 675 | AY12: 740 | AZ12: 765 | BA12: 775 | BB12: 760 | BC12: 740 | BD12: 820 | BE12: 845 | BF12: 855 | BG12: 860 | BH12: 830 | BI12: 805 | BJ12: 835 | BK12: 885 | BL12: 910 | BM12: 865 | BN12: 825 | BO12: 790 | BP12: 805 | BQ12: 805 | BR12: 765 | BS12: 760 | BT12: 670 | BU12: 670 | BV12: 685 | BW12: 760 | BX12: 730 | BY12: 700 | BZ12: 680 | CA12: 640 | CB12: 610 | CC12: 590 | CD12: 600 | CE12: 575 | CF12: 495 | CG12: 480 | CH12: 520 | CI12: 560 | CJ12: 525 | CK12: 490 | CL12: 435 | CM12: 390 | CN12: 380 | CO12: 385 | CP12: 380 | CQ12: 370 | CR12: 330 | CS12: 305 | CT12: 335 | CU12: 370 | CV12: 365 | CW12: 325 | CX12: 330 | CY12: 290 | CZ12: 290 | DA12: 310 | DB12: 330 | DC12: 315 | DD12: 300 | DE12: 275 | DF12: 280 | DG12: 320 | DH12: 330 | DI12: 335 | DJ12: 310 | DK12: 290 | DL12: 290 | DM12: 300 | DN12: 315 | DO12: 315 | DP12: 315 | DQ12: 265 | DR12: 270 | DS12: 290 | DT12: 310 | DU12: 325 | DV12: 320 | DW12: 305 | DX12: 305 | DY12: 315 | DZ12: 315 | EA12: 315 | EB12: 295 | EC12: 265 | ED12: 265 | EE12: 300 | EF12: 300 | EG12: 300 | EH12: 315 | EI12: 295 | EJ12: 295 | EK12: 300 | EL12: 310 | EM12: 320 | EN12: 325 | EO12: 325 | EP12: 310 | EQ12: 335 | ER12: 365 | ES12: 395 | ET12: 390 | EU12: 405 | EV12: 430 | EW12: 425 | EX12: 425 | EY12: 425 | EZ12: 430 | FA12: 440 | FB12: 445 | FC12: 460 | FD12: 455 | FE12: 655 | FF12: 885 | FG12: 920 | FH12: 935 | FI12: 965 | FJ12: 970 | FK12: 955 | FL12: 960 | FM12: 940 | FN12: 925 | FO12: 965 | FP12: 1000 | FQ12: 995 | FR12: 920 | FS12: 865 | FT12: 795 | FU12: 735 | FV12: 675 | FW12: 660 | FX12: 620 | FY12: 580 | FZ12: 550 | GA12: 550 | GB12: 535 | GC12: 485 | GD12: 475 | GE12: 475 | GF12: 460 | GG12: 475 | GH12: 465 | GI12: 485 | GJ12: 455 | GK12: 460 | GL12: 455 | GM12: 470 | GN12: 490 | GO12: 510 | GP12: 520 | GQ12: 520 | GR12: 505 | GS12: 485 | GT12: 505 | GU12: 515 | GV12: 520 | GW12: 490 | GX12: 490 | GY12: 500 | GZ12: 505 | HA12: 520 | HB12: 505 | HC12: 510 | HD12: 555 | HE12: 555 | HF12: 560 | HG12: 590 | HH12: 600 | HI12: 585 | HJ12: 605 | HK12: 595 | HL12: 635
A13: Maidstone | B13: 360 | C13: 345 | D13: 335 | E13: 340 | F13: 345 | G13: 325 | H13: 330 | I13: 335 | J13: 320 | K13: 305 | L13: 305 | M13: 300 | N13: 280 | O13: 300 | P13: 335 | Q13: 300 | R13: 310 | S13: 290 | T13: 330 | U13: 380 | V13: 400 | W13: 390 | X13: 415 | Y13: 445 | Z13: 505 | AA13: 660 | AB13: 680 | AC13: 690 | AD13: 660 | AE13: 645 | AF13: 675 | AG13: 760 | AH13: 785 | AI13: 780 | AJ13: 765 | AK13: 745 | AL13: 785 | AM13: 800 | AN13: 765 | AO13: 710 | AP13: 655 | AQ13: 585 | AR13: 610 | AS13: 640 | AT13: 665 | AU13: 625 | AV13: 625 | AW13: 600 | AX13: 635 | AY13: 680 | AZ13: 685 | BA13: 630 | BB13: 660 | BC13: 660 | BD13: 715 | BE13: 715 | BF13: 760 | BG13: 800 | BH13: 795 | BI13: 780 | BJ13: 795 | BK13: 840 | BL13: 820 | BM13: 775 | BN13: 705 | BO13: 675 | BP13: 660 | BQ13: 670 | BR13: 695 | BS13: 700 | BT13: 665 | BU13: 580 | BV13: 635 | BW13: 705 | BX13: 695 | BY13: 635 | BZ13: 645 | CA13: 595 | CB13: 585 | CC13: 555 | CD13: 535 | CE13: 520 | CF13: 500 | CG13: 465 | CH13: 505 | CI13: 530 | CJ13: 485 | CK13: 445 | CL13: 405 | CM13: 375 | CN13: 365 | CO13: 320 | CP13: 305 | CQ13: 300 | CR13: 305 | CS13: 275 | CT13: 300 | CU13: 325 | CV13: 335 | CW13: 295 | CX13: 285 | CY13: 290 | CZ13: 295 | DA13: 305 | DB13: 315 | DC13: 300 | DD13: 265 | DE13: 250 | DF13: 275 | DG13: 300 | DH13: 310 | DI13: 295 | DJ13: 295 | DK13: 285 | DL13: 280 | DM13: 280 | DN13: 280 | DO13: 285 | DP13: 280 | DQ13: 255 | DR13: 250 | DS13: 270 | DT13: 290 | DU13: 260 | DV13: 240 | DW13: 240 | DX13: 260 | DY13: 265 | DZ13: 265 | EA13: 255 | EB13: 260 | EC13: 245 | ED13: 260 | EE13: 280 | EF13: 280 | EG13: 270 | EH13: 260 | EI13: 240 | EJ13: 230 | EK13: 215 | EL13: 220 | EM13: 220 | EN13: 225 | EO13: 210 | EP13: 245 | EQ13: 275 | ER13: 290 | ES13: 320 | ET13: 320 | EU13: 335 | EV13: 320 | EW13: 350 | EX13: 365 | EY13: 380 | EZ13: 405 | FA13: 400 | FB13: 410 | FC13: 435 | FD13: 435 | FE13: 745 | FF13: 1050 | FG13: 1050 | FH13: 1070 | FI13: 1090 | FJ13: 1075 | FK13: 1030 | FL13: 1035 | FM13: 1025 | FN13: 1010 | FO13: 1030 | FP13: 1045 | FQ13: 1045 | FR13: 935 | FS13: 875 | FT13: 835 | FU13: 800 | FV13: 755 | FW13: 715 | FX13: 685 | FY13: 630 | FZ13: 650 | GA13: 655 | GB13: 640 | GC13: 595 | GD13: 510 | GE13: 510 | GF13: 500 | GG13: 525 | GH13: 525 | GI13: 535 | GJ13: 555 | GK13: 560 | GL13: 555 | GM13: 545 | GN13: 570 | GO13: 590 | GP13: 565 | GQ13: 570 | GR13: 565 | GS13: 550 | GT13: 575 | GU13: 605 | GV13: 595 | GW13: 555 | GX13: 590 | GY13: 595 | GZ13: 635 | HA13: 625 | HB13: 630 | HC13: 645 | HD13: 665 | HE13: 650 | HF13: 675 | HG13: 700 | HH13: 680 | HI13: 685 | HJ13: 670 | HK13: 680 | HL13: 710
A14: Sevenoaks | B14: 190 | C14: 195 | D14: 190 | E14: 170 | F14: 165 | G14: 150 | H14: 160 | I14: 155 | J14: 160 | K14: 135 | L14: 135 | M14: 125 | N14: 140 | O14: 140 | P14: 140 | Q14: 135 | R14: 135 | S14: 125 | T14: 145 | U14: 165 | V14: 185 | W14: 175 | X14: 215 | Y14: 245 | Z14: 280 | AA14: 365 | AB14: 400 | AC14: 405 | AD14: 380 | AE14: 365 | AF14: 395 | AG14: 415 | AH14: 415 | AI14: 395 | AJ14: 415 | AK14: 370 | AL14: 410 | AM14: 435 | AN14: 405 | AO14: 360 | AP14: 330 | AQ14: 280 | AR14: 280 | AS14: 285 | AT14: 305 | AU14: 295 | AV14: 295 | AW14: 295 | AX14: 305 | AY14: 305 | AZ14: 290 | BA14: 305 | BB14: 300 | BC14: 290 | BD14: 315 | BE14: 320 | BF14: 360 | BG14: 370 | BH14: 375 | BI14: 355 | BJ14: 365 | BK14: 380 | BL14: 380 | BM14: 360 | BN14: 335 | BO14: 320 | BP14: 325 | BQ14: 325 | BR14: 305 | BS14: 305 | BT14: 290 | BU14: 255 | BV14: 275 | BW14: 275 | BX14: 275 | BY14: 270 | BZ14: 240 | CA14: 250 | CB14: 235 | CC14: 220 | CD14: 215 | CE14: 225 | CF14: 210 | CG14: 190 | CH14: 210 | CI14: 205 | CJ14: 200 | CK14: 190 | CL14: 180 | CM14: 160 | CN14: 155 | CO14: 155 | CP14: 150 | CQ14: 145 | CR14: 120 | CS14: 115 | CT14: 125 | CU14: 130 | CV14: 130 | CW14: 115 | CX14: 100 | CY14: 85 | CZ14: 85 | DA14: 95 | DB14: 95 | DC14: 90 | DD14: 85 | DE14: 75 | DF14: 85 | DG14: 85 | DH14: 85 | DI14: 80 | DJ14: 90 | DK14: 85 | DL14: 95 | DM14: 95 | DN14: 100 | DO14: 105 | DP14: 100 | DQ14: 105 | DR14: 90 | DS14: 95 | DT14: 100 | DU14: 100 | DV14: 90 | DW14: 95 | DX14: 95 | DY14: 95 | DZ14: 110 | EA14: 105 | EB14: 105 | EC14: 105 | ED14: 100 | EE14: 100 | EF14: 95 | EG14: 95 | EH14: 90 | EI14: 90 | EJ14: 75 | EK14: 80 | EL14: 85 | EM14: 90 | EN14: 95 | EO14: 110 | EP14: 115 | EQ14: 115 | ER14: 115 | ES14: 115 | ET14: 120 | EU14: 115 | EV14: 115 | EW14: 120 | EX14: 135 | EY14: 150 | EZ14: 145 | FA14: 150 | FB14: 165 | FC14: 170 | FD14: 180 | FE14: 345 | FF14: 545 | FG14: 560 | FH14: 570 | FI14: 570 | FJ14: 590 | FK14: 580 | FL14: 580 | FM14: 575 | FN14: 555 | FO14: 580 | FP14: 570 | FQ14: 565 | FR14: 510 | FS14: 435 | FT14: 405 | FU14: 375 | FV14: 355 | FW14: 330 | FX14: 305 | FY14: 280 | FZ14: 260 | GA14: 260 | GB14: 255 | GC14: 240 | GD14: 240 | GE14: 225 | GF14: 235 | GG14: 225 | GH14: 205 | GI14: 210 | GJ14: 220 | GK14: 230 | GL14: 195 | GM14: 210 | GN14: 195 | GO14: 200 | GP14: 190 | GQ14: 195 | GR14: 210 | GS14: 205 | GT14: 225 | GU14: 225 | GV14: 215 | GW14: 225 | GX14: 210 | GY14: 220 | GZ14: 220 | HA14: 220 | HB14: 215 | HC14: 210 | HD14: 210 | HE14: 220 | HF14: 215 | HG14: 220 | HH14: 220 | HI14: 225 | HJ14: 220 | HK14: 235 | HL14: 240
A15: Swale | B15: 725 | C15: 760 | D15: 705 | E15: 675 | F15: 625 | G15: 585 | H15: 585 | I15: 590 | J15: 545 | K15: 560 | L15: 560 | M15: 560 | N15: 585 | O15: 595 | P15: 630 | Q15: 580 | R15: 550 | S15: 535 | T15: 530 | U15: 620 | V15: 630 | W15: 675 | X15: 790 | Y15: 870 | Z15: 970 | AA15: 1120 | AB15: 1130 | AC15: 1100 | AD15: 1075 | AE15: 1015 | AF15: 970 | AG15: 1030 | AH15: 1075 | AI15: 1095 | AJ15: 1120 | AK15: 1140 | AL15: 1165 | AM15: 1185 | AN15: 1155 | AO15: 1100 | AP15: 1020 | AQ15: 935 | AR15: 890 | AS15: 915 | AT15: 975 | AU15: 965 | AV15: 1000 | AW15: 990 | AX15: 1035 | AY15: 1075 | AZ15: 1045 | BA15: 1040 | BB15: 1010 | BC15: 1000 | BD15: 1060 | BE15: 1135 | BF15: 1185 | BG15: 1230 | BH15: 1225 | BI15: 1230 | BJ15: 1260 | BK15: 1340 | BL15: 1305 | BM15: 1180 | BN15: 1115 | BO15: 1090 | BP15: 1075 | BQ15: 1045 | BR15: 1080 | BS15: 1055 | BT15: 1070 | BU15: 1055 | BV15: 1120 | BW15: 1150 | BX15: 1090 | BY15: 985 | BZ15: 955 | CA15: 895 | CB15: 930 | CC15: 895 | CD15: 890 | CE15: 880 | CF15: 870 | CG15: 865 | CH15: 860 | CI15: 865 | CJ15: 825 | CK15: 745 | CL15: 715 | CM15: 640 | CN15: 610 | CO15: 580 | CP15: 605 | CQ15: 580 | CR15: 560 | CS15: 565 | CT15: 595 | CU15: 600 | CV15: 590 | CW15: 535 | CX15: 510 | CY15: 510 | CZ15: 510 | DA15: 500 | DB15: 515 | DC15: 530 | DD15: 525 | DE15: 500 | DF15: 530 | DG15: 550 | DH15: 560 | DI15: 545 | DJ15: 540 | DK15: 530 | DL15: 510 | DM15: 505 | DN15: 520 | DO15: 545 | DP15: 555 | DQ15: 535 | DR15: 520 | DS15: 525 | DT15: 530 | DU15: 520 | DV15: 485 | DW15: 470 | DX15: 475 | DY15: 490 | DZ15: 505 | EA15: 530 | EB15: 520 | EC15: 485 | ED15: 500 | EE15: 550 | EF15: 575 | EG15: 610 | EH15: 600 | EI15: 600 | EJ15: 605 | EK15: 610 | EL15: 625 | EM15: 645 | EN15: 675 | EO15: 670 | EP15: 685 | EQ15: 725 | ER15: 730 | ES15: 710 | ET15: 700 | EU15: 705 | EV15: 705 | EW15: 695 | EX15: 730 | EY15: 755 | EZ15: 740 | FA15: 715 | FB15: 755 | FC15: 760 | FD15: 775 | FE15: 1160 | FF15: 1410 | FG15: 1440 | FH15: 1410 | FI15: 1360 | FJ15: 1355 | FK15: 1355 | FL15: 1340 | FM15: 1345 | FN15: 1335 | FO15: 1350 | FP15: 1350 | FQ15: 1310 | FR15: 1230 | FS15: 1125 | FT15: 1075 | FU15: 1025 | FV15: 990 | FW15: 910 | FX15: 870 | FY15: 800 | FZ15: 745 | GA15: 735 | GB15: 715 | GC15: 680 | GD15: 625 | GE15: 590 | GF15: 560 | GG15: 610 | GH15: 615 | GI15: 650 | GJ15: 665 | GK15: 690 | GL15: 710 | GM15: 725 | GN15: 700 | GO15: 690 | GP15: 680 | GQ15: 655 | GR15: 655 | GS15: 655 | GT15: 670 | GU15: 710 | GV15: 705 | GW15: 715 | GX15: 710 | GY15: 725 | GZ15: 725 | HA15: 710 | HB15: 705 | HC15: 675 | HD15: 705 | HE15: 710 | HF15: 710 | HG15: 735 | HH15: 750 | HI15: 745 | HJ15: 735 | HK15: 775 | HL15: 760
A16: Thanet | B16: 730 | C16: 765 | D16: 765 | E16: 780 | F16: 720 | G16: 665 | H16: 675 | I16: 680 | J16: 635 | K16: 625 | L16: 615 | M16: 605 | N16: 630 | O16: 645 | P16: 665 | Q16: 665 | R16: 725 | S16: 720 | T16: 750 | U16: 845 | V16: 810 | W16: 840 | X16: 860 | Y16: 955 | Z16: 995 | AA16: 1180 | AB16: 1230 | AC16: 1270 | AD16: 1265 | AE16: 1180 | AF16: 1200 | AG16: 1305 | AH16: 1285 | AI16: 1285 | AJ16: 1315 | AK16: 1320 | AL16: 1330 | AM16: 1380 | AN16: 1285 | AO16: 1235 | AP16: 1115 | AQ16: 1020 | AR16: 1020 | AS16: 1070 | AT16: 1130 | AU16: 1150 | AV16: 1140 | AW16: 1160 | AX16: 1225 | AY16: 1305 | AZ16: 1285 | BA16: 1265 | BB16: 1290 | BC16: 1235 | BD16: 1310 | BE16: 1405 | BF16: 1490 | BG16: 1470 | BH16: 1465 | BI16: 1515 | BJ16: 1535 | BK16: 1585 | BL16: 1505 | BM16: 1455 | BN16: 1430 | BO16: 1425 | BP16: 1475 | BQ16: 1500 | BR16: 1510 | BS16: 1465 | BT16: 1475 | BU16: 1395 | BV16: 1410 | BW16: 1455 | BX16: 1440 | BY16: 1405 | BZ16: 1350 | CA16: 1265 | CB16: 1265 | CC16: 1275 | CD16: 1250 | CE16: 1215 | CF16: 1155 | CG16: 1145 | CH16: 1120 | CI16: 1175 | CJ16: 1135 | CK16: 1070 | CL16: 1020 | CM16: 950 | CN16: 930 | CO16: 855 | CP16: 860 | CQ16: 830 | CR16: 755 | CS16: 720 | CT16: 720 | CU16: 745 | CV16: 720 | CW16: 670 | CX16: 620 | CY16: 550 | CZ16: 550 | DA16: 515 | DB16: 540 | DC16: 540 | DD16: 510 | DE16: 530 | DF16: 570 | DG16: 605 | DH16: 625 | DI16: 625 | DJ16: 635 | DK16: 620 | DL16: 575 | DM16: 590 | DN16: 595 | DO16: 635 | DP16: 645 | DQ16: 630 | DR16: 625 | DS16: 655 | DT16: 675 | DU16: 685 | DV16: 650 | DW16: 605 | DX16: 590 | DY16: 615 | DZ16: 610 | EA16: 645 | EB16: 660 | EC16: 675 | ED16: 690 | EE16: 750 | EF16: 755 | EG16: 820 | EH16: 795 | EI16: 765 | EJ16: 755 | EK16: 790 | EL16: 795 | EM16: 805 | EN16: 845 | EO16: 840 | EP16: 840 | EQ16: 885 | ER16: 880 | ES16: 875 | ET16: 855 | EU16: 825 | EV16: 835 | EW16: 840 | EX16: 820 | EY16: 860 | EZ16: 835 | FA16: 850 | FB16: 890 | FC16: 945 | FD16: 960 | FE16: 1425 | FF16: 1680 | FG16: 1665 | FH16: 1715 | FI16: 1715 | FJ16: 1710 | FK16: 1675 | FL16: 1655 | FM16: 1665 | FN16: 1615 | FO16: 1600 | FP16: 1560 | FQ16: 1530 | FR16: 1440 | FS16: 1340 | FT16: 1270 | FU16: 1145 | FV16: 1075 | FW16: 1045 | FX16: 1000 | FY16: 985 | FZ16: 970 | GA16: 935 | GB16: 905 | GC16: 860 | GD16: 830 | GE16: 800 | GF16: 780 | GG16: 795 | GH16: 800 | GI16: 820 | GJ16: 830 | GK16: 845 | GL16: 845 | GM16: 850 | GN16: 855 | GO16: 860 | GP16: 845 | GQ16: 860 | GR16: 845 | GS16: 830 | GT16: 805 | GU16: 840 | GV16: 845 | GW16: 865 | GX16: 890 | GY16: 900 | GZ16: 910 | HA16: 875 | HB16: 845 | HC16: 845 | HD16: 900 | HE16: 890 | HF16: 880 | HG16: 915 | HH16: 925 | HI16: 950 | HJ16: 930 | HK16: 955 | HL16: 1000
A17: Tonbridge & Malling | B17: 225 | C17: 225 | D17: 200 | E17: 180 | F17: 175 | G17: 170 | H17: 210 | I17: 210 | J17: 190 | K17: 175 | L17: 155 | M17: 150 | N17: 180 | O17: 205 | P17: 215 | Q17: 190 | R17: 195 | S17: 185 | T17: 200 | U17: 255 | V17: 255 | W17: 225 | X17: 265 | Y17: 285 | Z17: 330 | AA17: 460 | AB17: 505 | AC17: 490 | AD17: 515 | AE17: 470 | AF17: 500 | AG17: 505 | AH17: 500 | AI17: 480 | AJ17: 475 | AK17: 455 | AL17: 485 | AM17: 505 | AN17: 450 | AO17: 380 | AP17: 340 | AQ17: 350 | AR17: 390 | AS17: 415 | AT17: 425 | AU17: 365 | AV17: 380 | AW17: 345 | AX17: 375 | AY17: 415 | AZ17: 390 | BA17: 390 | BB17: 400 | BC17: 400 | BD17: 425 | BE17: 445 | BF17: 460 | BG17: 465 | BH17: 475 | BI17: 440 | BJ17: 455 | BK17: 525 | BL17: 515 | BM17: 490 | BN17: 460 | BO17: 430 | BP17: 405 | BQ17: 405 | BR17: 390 | BS17: 380 | BT17: 390 | BU17: 335 | BV17: 350 | BW17: 370 | BX17: 375 | BY17: 330 | BZ17: 310 | CA17: 295 | CB17: 295 | CC17: 305 | CD17: 305 | CE17: 275 | CF17: 265 | CG17: 240 | CH17: 265 | CI17: 270 | CJ17: 260 | CK17: 240 | CL17: 210 | CM17: 190 | CN17: 195 | CO17: 185 | CP17: 210 | CQ17: 195 | CR17: 175 | CS17: 170 | CT17: 175 | CU17: 190 | CV17: 185 | CW17: 170 | CX17: 160 | CY17: 150 | CZ17: 155 | DA17: 145 | DB17: 155 | DC17: 150 | DD17: 155 | DE17: 140 | DF17: 155 | DG17: 160 | DH17: 175 | DI17: 160 | DJ17: 160 | DK17: 155 | DL17: 140 | DM17: 150 | DN17: 165 | DO17: 155 | DP17: 165 | DQ17: 165 | DR17: 150 | DS17: 160 | DT17: 165 | DU17: 150 | DV17: 155 | DW17: 150 | DX17: 145 | DY17: 155 | DZ17: 160 | EA17: 160 | EB17: 165 | EC17: 165 | ED17: 175 | EE17: 175 | EF17: 180 | EG17: 170 | EH17: 155 | EI17: 145 | EJ17: 130 | EK17: 125 | EL17: 135 | EM17: 145 | EN17: 135 | EO17: 125 | EP17: 140 | EQ17: 160 | ER17: 165 | ES17: 175 | ET17: 180 | EU17: 195 | EV17: 195 | EW17: 210 | EX17: 225 | EY17: 235 | EZ17: 235 | FA17: 235 | FB17: 240 | FC17: 265 | FD17: 280 | FE17: 480 | FF17: 710 | FG17: 695 | FH17: 720 | FI17: 720 | FJ17: 735 | FK17: 715 | FL17: 690 | FM17: 690 | FN17: 670 | FO17: 690 | FP17: 685 | FQ17: 685 | FR17: 625 | FS17: 540 | FT17: 495 | FU17: 475 | FV17: 430 | FW17: 390 | FX17: 365 | FY17: 325 | FZ17: 310 | GA17: 315 | GB17: 300 | GC17: 290 | GD17: 280 | GE17: 255 | GF17: 265 | GG17: 260 | GH17: 260 | GI17: 285 | GJ17: 295 | GK17: 300 | GL17: 285 | GM17: 280 | GN17: 305 | GO17: 310 | GP17: 305 | GQ17: 305 | GR17: 315 | GS17: 320 | GT17: 290 | GU17: 300 | GV17: 305 | GW17: 275 | GX17: 285 | GY17: 290 | GZ17: 310 | HA17: 305 | HB17: 290 | HC17: 265 | HD17: 270 | HE17: 270 | HF17: 285 | HG17: 310 | HH17: 310 | HI17: 340 | HJ17: 330 | HK17: 320 | HL17: 340
A18: Tunbridge Wells | B18: 155 | C18: 165 | D18: 160 | E18: 135 | F18: 135 | G18: 130 | H18: 150 | I18: 150 | J18: 145 | K18: 130 | L18: 140 | M18: 135 | N18: 145 | O18: 150 | P18: 175 | Q18: 145 | R18: 135 | S18: 130 | T18: 140 | U18: 170 | V18: 170 | W18: 195 | X18: 215 | Y18: 230 | Z18: 255 | AA18: 325 | AB18: 335 | AC18: 345 | AD18: 340 | AE18: 340 | AF18: 365 | AG18: 400 | AH18: 395 | AI18: 350 | AJ18: 335 | AK18: 320 | AL18: 345 | AM18: 380 | AN18: 335 | AO18: 295 | AP18: 265 | AQ18: 255 | AR18: 255 | AS18: 295 | AT18: 270 | AU18: 230 | AV18: 205 | AW18: 210 | AX18: 215 | AY18: 250 | AZ18: 260 | BA18: 250 | BB18: 250 | BC18: 245 | BD18: 260 | BE18: 265 | BF18: 280 | BG18: 275 | BH18: 245 | BI18: 245 | BJ18: 250 | BK18: 280 | BL18: 290 | BM18: 255 | BN18: 245 | BO18: 220 | BP18: 225 | BQ18: 240 | BR18: 235 | BS18: 230 | BT18: 195 | BU18: 170 | BV18: 185 | BW18: 225 | BX18: 215 | BY18: 185 | BZ18: 180 | CA18: 155 | CB18: 175 | CC18: 170 | CD18: 170 | CE18: 150 | CF18: 115 | CG18: 120 | CH18: 130 | CI18: 140 | CJ18: 140 | CK18: 130 | CL18: 125 | CM18: 110 | CN18: 100 | CO18: 100 | CP18: 110 | CQ18: 95 | CR18: 100 | CS18: 85 | CT18: 90 | CU18: 85 | CV18: 85 | CW18: 60 | CX18: 70 | CY18: 70 | CZ18: 70 | DA18: 80 | DB18: 75 | DC18: 80 | DD18: 60 | DE18: 75 | DF18: 80 | DG18: 95 | DH18: 90 | DI18: 90 | DJ18: 90 | DK18: 80 | DL18: 90 | DM18: 95 | DN18: 100 | DO18: 105 | DP18: 95 | DQ18: 90 | DR18: 80 | DS18: 80 | DT18: 85 | DU18: 95 | DV18: 95 | DW18: 105 | DX18: 95 | DY18: 90 | DZ18: 95 | EA18: 95 | EB18: 100 | EC18: 90 | ED18: 110 | EE18: 115 | EF18: 115 | EG18: 110 | EH18: 105 | EI18: 95 | EJ18: 95 | EK18: 95 | EL18: 85 | EM18: 90 | EN18: 90 | EO18: 90 | EP18: 100 | EQ18: 125 | ER18: 140 | ES18: 135 | ET18: 135 | EU18: 135 | EV18: 140 | EW18: 150 | EX18: 165 | EY18: 185 | EZ18: 200 | FA18: 195 | FB18: 195 | FC18: 195 | FD18: 200 | FE18: 365 | FF18: 575 | FG18: 555 | FH18: 600 | FI18: 605 | FJ18: 595 | FK18: 555 | FL18: 555 | FM18: 560 | FN18: 565 | FO18: 610 | FP18: 610 | FQ18: 580 | FR18: 495 | FS18: 460 | FT18: 435 | FU18: 425 | FV18: 395 | FW18: 355 | FX18: 345 | FY18: 325 | FZ18: 310 | GA18: 295 | GB18: 295 | GC18: 290 | GD18: 265 | GE18: 270 | GF18: 275 | GG18: 265 | GH18: 240 | GI18: 250 | GJ18: 235 | GK18: 245 | GL18: 225 | GM18: 220 | GN18: 225 | GO18: 220 | GP18: 220 | GQ18: 230 | GR18: 225 | GS18: 235 | GT18: 235 | GU18: 235 | GV18: 225 | GW18: 240 | GX18: 235 | GY18: 230 | GZ18: 225 | HA18: 255 | HB18: 245 | HC18: 215 | HD18: 225 | HE18: 225 | HF18: 230 | HG18: 235 | HH18: 255 | HI18: 240 | HJ18: 240 | HK18: 235 | HL18: 240
A19: South East LEP | B19: 13825 | C19: 14750 | D19: 14320 | E19: 13750 | F19: 13025 | G19: 12200 | H19: 12235 | I19: 12295 | J19: 12025 | K19: 11575 | L19: 11325 | M19: 11360 | N19: 11870 | O19: 12410 | P19: 12510 | Q19: 12025 | R19: 11795 | S19: 11475 | T19: 12215 | U19: 13675 | V19: 14205 | W19: 14600 | X19: 16110 | Y19: 17570 | Z19: 19555 | AA19: 23850 | AB19: 24790 | AC19: 24960 | AD19: 24355 | AE19: 23220 | AF19: 23650 | AG19: 24765 | AH19: 24715 | AI19: 24680 | AJ19: 24525 | AK19: 24290 | AL19: 25690 | AM19: 26395 | AN19: 25430 | AO19: 23750 | AP19: 21730 | AQ19: 20095 | AR19: 20120 | AS19: 20950 | AT19: 20955 | AU19: 20680 | AV19: 20300 | AW19: 20020 | AX19: 21285 | AY19: 22395 | AZ19: 22085 | BA19: 21645 | BB19: 21280 | BC19: 20890 | BD19: 22640 | BE19: 23645 | BF19: 24725 | BG19: 25135 | BH19: 24690 | BI19: 24635 | BJ19: 25560 | BK19: 26775 | BL19: 26415 | BM19: 24655 | BN19: 23605 | BO19: 22625 | BP19: 22875 | BQ19: 22900 | BR19: 22895 | BS19: 22640 | BT19: 22155 | BU19: 21550 | BV19: 22310 | BW19: 23420 | BX19: 22925 | BY19: 21515 | BZ19: 20660 | CA19: 19400 | CB19: 19180 | CC19: 18925 | CD19: 18625 | CE19: 17855 | CF19: 17050 | CG19: 16370 | CH19: 16790 | CI19: 17215 | CJ19: 16420 | CK19: 14975 | CL19: 13895 | CM19: 12380 | CN19: 12315 | CO19: 11770 | CP19: 11845 | CQ19: 11335 | CR19: 10700 | CS19: 10185 | CT19: 10655 | CU19: 11090 | CV19: 10570 | CW19: 9690 | CX19: 9085 | CY19: 8600 | CZ19: 8725 | DA19: 8820 | DB19: 8885 | DC19: 8920 | DD19: 8655 | DE19: 8500 | DF19: 8710 | DG19: 9270 | DH19: 9370 | DI19: 9130 | DJ19: 8950 | DK19: 8575 | DL19: 8510 | DM19: 8715 | DN19: 8855 | DO19: 9065 | DP19: 8950 | DQ19: 8545 | DR19: 8360 | DS19: 8665 | DT19: 9095 | DU19: 8980 | DV19: 8585 | DW19: 8420 | DX19: 8260 | DY19: 8390 | DZ19: 8495 | EA19: 8585 | EB19: 8505 | EC19: 8435 | ED19: 8645 | EE19: 9385 | EF19: 9680 | EG19: 9920 | EH19: 9545 | EI19: 9170 | EJ19: 9190 | EK19: 9290 | EL19: 9635 | EM19: 10125 | EN19: 10490 | EO19: 10660 | EP19: 10980 | EQ19: 11820 | ER19: 12060 | ES19: 12230 | ET19: 12210 | EU19: 12125 | EV19: 12280 | EW19: 12430 | EX19: 12610 | EY19: 12905 | EZ19: 12950 | FA19: 13095 | FB19: 13290 | FC19: 13845 | FD19: 14250 | FE19: 22920 | FF19: 31290 | FG19: 31735 | FH19: 32600 | FI19: 32380 | FJ19: 32085 | FK19: 31215 | FL19: 31140 | FM19: 30990 | FN19: 30570 | FO19: 31435 | FP19: 31270 | FQ19: 30400 | FR19: 27955 | FS19: 25460 | FT19: 23730 | FU19: 22200 | FV19: 20685 | FW19: 19425 | FX19: 18635 | FY19: 17570 | FZ19: 16830 | GA19: 16900 | GB19: 16210 | GC19: 14990 | GD19: 14080 | GE19: 13610 | GF19: 13595 | GG19: 13960 | GH19: 13945 | GI19: 14285 | GJ19: 14470 | GK19: 14580 | GL19: 14495 | GM19: 14895 | GN19: 15200 | GO19: 15375 | GP19: 14940 | GQ19: 14900 | GR19: 14925 | GS19: 14940 | GT19: 15200 | GU19: 15435 | GV19: 15755 | GW19: 15630 | GX19: 15735 | GY19: 16145 | GZ19: 16395 | HA19: 16090 | HB19: 15850 | HC19: 15550 | HD19: 15995 | HE19: 16035 | HF19: 16125 | HG19: 16550 | HH19: 16790 | HI19: 17010 | HJ19: 17010 | HK19: 17475 | HL19: 18005
A20: England | B20: 235285 | C20: 243545 | D20: 239570 | E20: 226635 | F20: 218350 | G20: 208330 | H20: 212970 | I20: 217495 | J20: 213950 | K20: 202530 | L20: 194575 | M20: 194980 | N20: 203385 | O20: 214290 | P20: 213740 | Q20: 208520 | R20: 205915 | S20: 205020 | T20: 219855 | U20: 239360 | V20: 248235 | W20: 249285 | X20: 265490 | Y20: 286260 | Z20: 311295 | AA20: 364815 | AB20: 379515 | AC20: 380585 | AD20: 374825 | AE20: 368790 | AF20: 383770 | AG20: 401690 | AH20: 404045 | AI20: 397405 | AJ20: 385380 | AK20: 378695 | AL20: 396730 | AM20: 402250 | AN20: 386445 | AO20: 363265 | AP20: 338475 | AQ20: 318895 | AR20: 324845 | AS20: 336775 | AT20: 341980 | AU20: 334980 | AV20: 326680 | AW20: 321125 | AX20: 337220 | AY20: 355045 | AZ20: 351150 | BA20: 347080 | BB20: 337990 | BC20: 333300 | BD20: 363285 | BE20: 383990 | BF20: 397455 | BG20: 392510 | BH20: 385975 | BI20: 382440 | BJ20: 396955 | BK20: 411170 | BL20: 405260 | BM20: 381895 | BN20: 368750 | BO20: 355205 | BP20: 362475 | BQ20: 361815 | BR20: 363380 | BS20: 355850 | BT20: 343870 | BU20: 329955 | BV20: 340670 | BW20: 353545 | BX20: 345770 | BY20: 327115 | BZ20: 314240 | CA20: 298570 | CB20: 299710 | CC20: 294915 | CD20: 286985 | CE20: 269700 | CF20: 252985 | CG20: 241165 | CH20: 247485 | CI20: 253230 | CJ20: 240665 | CK20: 222775 | CL20: 207325 | CM20: 189550 | CN20: 188580 | CO20: 183880 | CP20: 183125 | CQ20: 173820 | CR20: 159750 | CS20: 149465 | CT20: 153935 | CU20: 162715 | CV20: 156265 | CW20: 148340 | CX20: 140430 | CY20: 134155 | CZ20: 136670 | DA20: 139380 | DB20: 139850 | DC20: 137105 | DD20: 128165 | DE20: 122720 | DF20: 127230 | DG20: 135530 | DH20: 137700 | DI20: 134020 | DJ20: 130330 | DK20: 126705 | DL20: 127880 | DM20: 132230 | DN20: 133735 | DO20: 135845 | DP20: 132145 | DQ20: 125910 | DR20: 123430 | DS20: 129185 | DT20: 135185 | DU20: 135055 | DV20: 131085 | DW20: 128230 | DX20: 127340 | DY20: 129090 | DZ20: 130505 | EA20: 129820 | EB20: 127555 | EC20: 124225 | ED20: 126505 | EE20: 135290 | EF20: 139565 | EG20: 142045 | EH20: 138255 | EI20: 134540 | EJ20: 134205 | EK20: 136470 | EL20: 140085 | EM20: 143760 | EN20: 145110 | EO20: 146575 | EP20: 150520 | EQ20: 160555 | ER20: 166990 | ES20: 170065 | ET20: 169890 | EU20: 171715 | EV20: 174680 | EW20: 179905 | EX20: 181035 | EY20: 184670 | EZ20: 185850 | FA20: 185200 | FB20: 184650 | FC20: 193070 | FD20: 197730 | FE20: 312410 | FF20: 418875 | FG20: 428715 | FH20: 439470 | FI20: 438145 | FJ20: 436915 | FK20: 428560 | FL20: 427065 | FM20: 421495 | FN20: 416090 | FO20: 429965 | FP20: 431955 | FQ20: 421895 | FR20: 389720 | FS20: 357735 | FT20: 337215 | FU20: 318665 | FV20: 299005 | FW20: 279660 | FX20: 264360 | FY20: 247500 | FZ20: 236780 | GA20: 238030 | GB20: 231590 | GC20: 218520 | GD20: 210020 | GE20: 206825 | GF20: 208845 | GG20: 213855 | GH20: 214450 | GI20: 216700 | GJ20: 220240 | GK20: 220845 | GL20: 219335 | GM20: 225375 | GN20: 230685 | GO20: 231125 | GP20: 225515 | GQ20: 225990 | GR20: 228755 | GS20: 231250 | GT20: 232285 | GU20: 234965 | GV20: 238160 | GW20: 237420 | GX20: 238620 | GY20: 244435 | GZ20: 246965 | HA20: 243300 | HB20: 240210 | HC20: 238915 | HD20: 246635 | HE20: 249400 | HF20: 250885 | HG20: 254870 | HH20: 257620 | HI20: 256575 | HJ20: 256010 | HK20: 264100 | HL20: 272085
A21: England and Wales | B21: 251100 | C21: 260280 | D21: 255925 | E21: 241815 | F21: 232625 | G21: 222045 | H21: 227230 | I21: 232335 | J21: 228440 | K21: 216240 | L21: 207970 | M21: 208855 | N21: 218050 | O21: 230040 | P21: 229350 | Q21: 223370 | R21: 220395 | S21: 219280 | T21: 235405 | U21: 256375 | V21: 265870 | W21: 267045 | X21: 284940 | Y21: 307580 | Z21: 334750 | AA21: 391770 | AB21: 407095 | AC21: 407670 | AD21: 400945 | AE21: 394510 | AF21: 410450 | AG21: 429250 | AH21: 431735 | AI21: 424900 | AJ21: 412315 | AK21: 405325 | AL21: 424940 | AM21: 430945 | AN21: 414050 | AO21: 389185 | AP21: 362325 | AQ21: 341010 | AR21: 347570 | AS21: 360335 | AT21: 365620 | AU21: 358115 | AV21: 349650 | AW21: 344275 | AX21: 361870 | AY21: 380730 | AZ21: 376330 | BA21: 371170 | BB21: 361325 | BC21: 356490 | BD21: 388615 | BE21: 410635 | BF21: 424625 | BG21: 419390 | BH21: 412395 | BI21: 408600 | BJ21: 425155 | BK21: 440280 | BL21: 433715 | BM21: 408665 | BN21: 394665 | BO21: 379870 | BP21: 387845 | BQ21: 387440 | BR21: 388880 | BS21: 380860 | BT21: 367740 | BU21: 353080 | BV21: 364940 | BW21: 378560 | BX21: 370060 | BY21: 350165 | BZ21: 336245 | CA21: 319445 | CB21: 320780 | CC21: 316150 | CD21: 307560 | CE21: 289330 | CF21: 271640 | CG21: 259280 | CH21: 266790 | CI21: 272940 | CJ21: 259555 | CK21: 240630 | CL21: 223800 | CM21: 204645 | CN21: 203770 | CO21: 198490 | CP21: 197560 | CQ21: 187485 | CR21: 172745 | CS21: 161760 | CT21: 167005 | CU21: 176405 | CV21: 169440 | CW21: 160555 | CX21: 152020 | CY21: 145385 | CZ21: 148160 | DA21: 151060 | DB21: 151390 | DC21: 148410 | DD21: 138710 | DE21: 133035 | DF21: 138025 | DG21: 147190 | DH21: 149370 | DI21: 145255 | DJ21: 141075 | DK21: 137120 | DL21: 138460 | DM21: 143250 | DN21: 144630 | DO21: 146660 | DP21: 142600 | DQ21: 135800 | DR21: 133230 | DS21: 139560 | DT21: 146050 | DU21: 145655 | DV21: 141200 | DW21: 137945 | DX21: 136945 | DY21: 138780 | DZ21: 140100 | EA21: 139290 | EB21: 136850 | EC21: 133190 | ED21: 135640 | EE21: 145260 | EF21: 149625 | EG21: 152120 | EH21: 147950 | EI21: 144095 | EJ21: 143680 | EK21: 146060 | EL21: 149800 | EM21: 153595 | EN21: 154965 | EO21: 156550 | EP21: 160920 | EQ21: 171815 | ER21: 178630 | ES21: 181760 | ET21: 181470 | EU21: 183360 | EV21: 186465 | EW21: 192320 | EX21: 193520 | EY21: 197285 | EZ21: 198565 | FA21: 197895 | FB21: 197080 | FC21: 205855 | FD21: 210745 | FE21: 333550 | FF21: 443570 | FG21: 453915 | FH21: 465850 | FI21: 464335 | FJ21: 462335 | FK21: 452860 | FL21: 451090 | FM21: 445050 | FN21: 439200 | FO21: 453685 | FP21: 455740 | FQ21: 445110 | FR21: 411115 | FS21: 377340 | FT21: 355625 | FU21: 336115 | FV21: 315355 | FW21: 295060 | FX21: 278975 | FY21: 261405 | FZ21: 250300 | GA21: 251720 | GB21: 244765 | GC21: 230375 | GD21: 221480 | GE21: 218205 | GF21: 220295 | GG21: 225700 | GH21: 226275 | GI21: 228595 | GJ21: 232400 | GK21: 233090 | GL21: 231380 | GM21: 237895 | GN21: 243420 | GO21: 243730 | GP21: 237735 | GQ21: 237970 | GR21: 240730 | GS21: 243390 | GT21: 244445 | GU21: 247235 | GV21: 250670 | GW21: 249825 | GX21: 250980 | GY21: 257030 | GZ21: 259650 | HA21: 255650 | HB21: 252340 | HC21: 250950 | HD21: 258885 | HE21: 261865 | HF21: 263445 | HG21: 267455 | HH21: 270480 | HI21: 269395 | HJ21: 268945 | HK21: 277450 | HL21: 285785
A22: Great Britain | B22: 275805 | C22: 285995 | D22: 281100 | E22: 265335 | F22: 255225 | G22: 243980 | H22: 250365 | I22: 255740 | J22: 249300 | K22: 235625 | L22: 226890 | M22: 228100 | N22: 238895 | O22: 252495 | P22: 251600 | Q22: 244895 | R22: 241370 | S22: 240920 | T22: 259400 | U22: 282140 | V22: 290105 | W22: 291520 | X22: 311180 | Y22: 335720 | Z22: 365990 | AA22: 428110 | AB22: 444830 | AC22: 444800 | AD22: 437605 | AE22: 432155 | AF22: 450975 | AG22: 471010 | AH22: 469595 | AI22: 462250 | AJ22: 449895 | AK22: 443015 | AL22: 465880 | AM22: 473390 | AN22: 455515 | AO22: 428320 | AP22: 400005 | AQ22: 378780 | AR22: 388355 | AS22: 402225 | AT22: 402755 | AU22: 394165 | AV22: 385730 | AW22: 381125 | AX22: 401840 | AY22: 422455 | AZ22: 417560 | BA22: 411195 | BB22: 400380 | BC22: 396315 | BD22: 433650 | BE22: 456980 | BF22: 466250 | BG22: 459615 | BH22: 452410 | BI22: 448370 | BJ22: 467415 | BK22: 484465 | BL22: 477400 | BM22: 449645 | BN22: 434670 | BO22: 421170 | BP22: 431555 | BQ22: 431180 | BR22: 426825 | BS22: 417760 | BT22: 403625 | BU22: 387760 | BV22: 402040 | BW22: 417500 | BX22: 408260 | BY22: 386230 | BZ22: 370990 | CA22: 354735 | CB22: 357810 | CC22: 352400 | CD22: 337675 | CE22: 317575 | CF22: 298720 | CG22: 285405 | CH22: 294510 | CI22: 301885 | CJ22: 287550 | CK22: 266480 | CL22: 248350 | CM22: 228440 | CN22: 229230 | CO22: 222910 | CP22: 217920 | CQ22: 206775 | CR22: 190945 | CS22: 179345 | CT22: 185920 | CU22: 196540 | CV22: 188885 | CW22: 178605 | CX22: 169270 | CY22: 162860 | CZ22: 167480 | DA22: 170640 | DB22: 168675 | DC22: 164925 | DD22: 154290 | DE22: 148260 | DF22: 154060 | DG22: 164785 | DH22: 167350 | DI22: 162765 | DJ22: 158230 | DK22: 154485 | DL22: 157350 | DM22: 162675 | DN22: 163155 | DO22: 164460 | DP22: 159590 | DQ22: 151945 | DR22: 149155 | DS22: 156600 | DT22: 163995 | DU22: 163490 | DV22: 158490 | DW22: 154975 | DX22: 154775 | DY22: 156835 | DZ22: 157275 | EA22: 155575 | EB22: 152630 | EC22: 148765 | ED22: 151570 | EE22: 162325 | EF22: 167450 | EG22: 170345 | EH22: 165685 | EI22: 161965 | EJ22: 162415 | EK22: 165110 | EL22: 167620 | EM22: 171150 | EN22: 172450 | EO22: 174250 | EP22: 179060 | EQ22: 191280 | ER22: 198920 | ES22: 202285 | ET22: 201830 | EU22: 204065 | EV22: 208460 | EW22: 214725 | EX22: 214365 | EY22: 217635 | EZ22: 218975 | FA22: 218315 | FB22: 217210 | FC22: 226835 | FD22: 232190 | FE22: 366420 | FF22: 482910 | FG22: 496260 | FH22: 511090 | FI22: 509200 | FJ22: 504725 | FK22: 492860 | FL22: 490055 | FM22: 483205 | FN22: 477150 | FO22: 492765 | FP22: 495450 | FQ22: 483920 | FR22: 447015 | FS22: 410525 | FT22: 387980 | FU22: 366600 | FV22: 342035 | FW22: 319285 | FX22: 301825 | FY22: 282905 | FZ22: 270920 | GA22: 272600 | GB22: 264685 | GC22: 248950 | GD22: 239435 | GE22: 236185 | GF22: 239455 | GG22: 245220 | GH22: 244635 | GI22: 246735 | GJ22: 250755 | GK22: 251665 | GL22: 249860 | GM22: 256875 | GN22: 263035 | GO22: 263500 | GP22: 256940 | GQ22: 257180 | GR22: 260615 | GS22: 263255 | GT22: 262835 | GU22: 265580 | GV22: 269150 | GW22: 268220 | GX22: 269420 | GY22: 275705 | GZ22: 278770 | HA22: 274450 | HB22: 271030 | HC22: 269755 | HD22: 278510 | HE22: 281740 | HF22: 281915 | HG22: 285915 | HH22: 288800 | HI22: 287615 | HJ22: 287295 | HK22: 296465 | HL22: 305225
A23: United Kingdom | B23: 284185 | C23: 294445 | D23: 289365 | E23: 273300 | F23: 262950 | G23: 251630 | H23: 258355 | I23: 264020 | J23: 257165 | K23: 242990 | L23: 233900 | M23: 235210 | N23: 246560 | O23: 260585 | P23: 259610 | Q23: 253030 | R23: 249455 | S23: 249605 | T23: 269195 | U23: 292715 | V23: 300895 | W23: 302300 | X23: 322920 | Y23: 348015 | Z23: 379535 | AA23: 443200 | AB23: 460420 | AC23: 460590 | AD23: 453505 | AE23: 448735 | AF23: 468990 | AG23: 489630 | AH23: 487880 | AI23: 479575 | AJ23: 466615 | AK23: 459565 | AL23: 483510 | AM23: 491295 | AN23: 473230 | AO23: 445450 | AP23: 416840 | AQ23: 396090 | AR23: 406785 | AS23: 421250 | AT23: 421845 | AU23: 412340 | AV23: 403230 | AW23: 398390 | AX23: 420025 | AY23: 440960 | AZ23: 435855 | BA23: 428985 | BB23: 417680 | BC23: 413930 | BD23: 452490 | BE23: 476345 | BF23: 485655 | BG23: 478130 | BH23: 470295 | BI23: 465880 | BJ23: 485810 | BK23: 502910 | BL23: 495605 | BM23: 467395 | BN23: 452045 | BO23: 438780 | BP23: 450310 | BQ23: 450205 | BR23: 445830 | BS23: 436000 | BT23: 421395 | BU23: 405115 | BV23: 420050 | BW23: 435450 | BX23: 425820 | BY23: 403005 | BZ23: 387330 | CA23: 370885 | CB23: 374815 | CC23: 369690 | CD23: 354750 | CE23: 333515 | CF23: 313725 | CG23: 299790 | CH23: 309380 | CI23: 316735 | CJ23: 301805 | CK23: 279950 | CL23: 261230 | CM23: 241040 | CN23: 242295 | CO23: 236200 | CP23: 231450 | CQ23: 219715 | CR23: 203000 | CS23: 190795 | CT23: 197635 | CU23: 208150 | CV23: 199905 | CW23: 189165 | CX23: 179665 | CY23: 173615 | CZ23: 178830 | DA23: 182160 | DB23: 180100 | DC23: 175730 | DD23: 164440 | DE23: 158050 | DF23: 164095 | DG23: 174880 | DH23: 177280 | DI23: 172010 | DJ23: 167000 | DK23: 163150 | DL23: 166435 | DM23: 171760 | DN23: 172160 | DO23: 172805 | DP23: 167470 | DQ23: 159360 | DR23: 156600 | DS23: 164290 | DT23: 171565 | DU23: 170650 | DV23: 165250 | DW23: 161665 | DX23: 161760 | DY23: 163940 | DZ23: 164140 | EA23: 162190 | EB23: 158825 | EC23: 154830 | ED23: 157650 | EE23: 168625 | EF23: 173605 | EG23: 176305 | EH23: 171490 | EI23: 167685 | EJ23: 168310 | EK23: 171335 | EL23: 173910 | EM23: 177330 | EN23: 178460 | EO23: 180080 | EP23: 185010 | EQ23: 197190 | ER23: 204915 | ES23: 208210 | ET23: 207525 | EU23: 209745 | EV23: 214285 | EW23: 220725 | EX23: 220375 | EY23: 223725 | EZ23: 224810 | FA23: 224210 | FB23: 222920 | FC23: 232620 | FD23: 238085 | FE23: 377505 | FF23: 496175 | FG23: 510040 | FH23: 525415 | FI23: 523340 | FJ23: 518445 | FK23: 506085 | FL23: 502770 | FM23: 495225 | FN23: 488620 | FO23: 504495 | FP23: 507210 | FQ23: 495260 | FR23: 457585 | FS23: 420500 | FT23: 397515 | FU23: 375920 | FV23: 350700 | FW23: 327420 | FX23: 309335 | FY23: 289800 | FZ23: 277295 | GA23: 279030 | GB23: 270970 | GC23: 255100 | GD23: 245245 | GE23: 241910 | GF23: 245315 | GG23: 251265 | GH23: 250690 | GI23: 252815 | GJ23: 256840 | GK23: 257755 | GL23: 255705 | GM23: 262835 | GN23: 269205 | GO23: 269705 | GP23: 262830 | GQ23: 262970 | GR23: 266605 | GS23: 269440 | GT23: 269165 | GU23: 271820 | GV23: 275190 | GW23: 274135 | GX23: 275090 | GY23: 281405 | GZ23: 284620 | HA23: 280130 | HB23: 276550 | HC23: 275245 | HD23: 284290 | HE23: 287715 | HF23: 287920 | HG23: 291980 | HH23: 294645 | HI23: 293260 | HJ23: 292730 | HK23: 302060 | HL23: 310960
A24: South East Region | B24: 22165 | C24: 23220 | D24: 22780 | E24: 21480 | F24: 20290 | G24: 19195 | H24: 19905 | I24: 20385 | J24: 19380 | K24: 18390 | L24: 17835 | M24: 17735 | N24: 18645 | O24: 19940 | P24: 19865 | Q24: 19430 | R24: 19060 | S24: 19080 | T24: 20885 | U24: 23515 | V24: 24200 | W24: 24615 | X24: 27130 | Y24: 29250 | Z24: 32905 | AA24: 40985 | AB24: 42855 | AC24: 43020 | AD24: 42240 | AE24: 41100 | AF24: 42820 | AG24: 45505 | AH24: 45275 | AI24: 44380 | AJ24: 43510 | AK24: 42175 | AL24: 44765 | AM24: 45225 | AN24: 43315 | AO24: 40695 | AP24: 36630 | AQ24: 33690 | AR24: 34085 | AS24: 35490 | AT24: 35495 | AU24: 34485 | AV24: 33900 | AW24: 33355 | AX24: 35290 | AY24: 37890 | AZ24: 37410 | BA24: 36715 | BB24: 35630 | BC24: 34180 | BD24: 37250 | BE24: 39600 | BF24: 41055 | BG24: 40560 | BH24: 39710 | BI24: 39295 | BJ24: 40665 | BK24: 42790 | BL24: 42480 | BM24: 38955 | BN24: 37500 | BO24: 35810 | BP24: 36205 | BQ24: 36330 | BR24: 36005 | BS24: 35325 | BT24: 34150 | BU24: 32635 | BV24: 34005 | BW24: 35995 | BX24: 35075 | BY24: 32590 | BZ24: 30700 | CA24: 28495 | CB24: 28445 | CC24: 27925 | CD24: 26985 | CE24: 25650 | CF24: 24265 | CG24: 22915 | CH24: 23500 | CI24: 24455 | CJ24: 22915 | CK24: 20680 | CL24: 19090 | CM24: 17140 | CN24: 17060 | CO24: 16455 | CP24: 16330 | CQ24: 15800 | CR24: 14825 | CS24: 13940 | CT24: 14500 | CU24: 15485 | CV24: 14820 | CW24: 13260 | CX24: 12215 | CY24: 11530 | CZ24: 11745 | DA24: 11970 | DB24: 12175 | DC24: 11930 | DD24: 11365 | DE24: 10990 | DF24: 11565 | DG24: 12500 | DH24: 12725 | DI24: 12280 | DJ24: 11940 | DK24: 11575 | DL24: 11545 | DM24: 11995 | DN24: 12290 | DO24: 12725 | DP24: 12510 | DQ24: 12045 | DR24: 11710 | DS24: 12275 | DT24: 12865 | DU24: 12810 | DV24: 12325 | DW24: 12000 | DX24: 11945 | DY24: 12265 | DZ24: 12410 | EA24: 12530 | EB24: 12390 | EC24: 12230 | ED24: 12710 | EE24: 13665 | EF24: 14050 | EG24: 14190 | EH24: 13625 | EI24: 13135 | EJ24: 13215 | EK24: 13510 | EL24: 14005 | EM24: 14565 | EN24: 14925 | EO24: 15285 | EP24: 15925 | EQ24: 17115 | ER24: 17720 | ES24: 18035 | ET24: 18025 | EU24: 18175 | EV24: 18495 | EW24: 18965 | EX24: 19440 | EY24: 20095 | EZ24: 20320 | FA24: 20390 | FB24: 20630 | FC24: 21490 | FD24: 22095 | FE24: 37560 | FF24: 54905 | FG24: 56195 | FH24: 58275 | FI24: 58425 | FJ24: 58070 | FK24: 56390 | FL24: 56090 | FM24: 55240 | FN24: 54890 | FO24: 56755 | FP24: 56855 | FQ24: 55260 | FR24: 50440 | FS24: 45520 | FT24: 42445 | FU24: 39690 | FV24: 37000 | FW24: 34570 | FX24: 32735 | FY24: 30535 | FZ24: 29190 | GA24: 29135 | GB24: 28185 | GC24: 26350 | GD24: 24945 | GE24: 24380 | GF24: 24400 | GG24: 25055 | GH24: 25030 | GI24: 25490 | GJ24: 25890 | GK24: 26025 | GL24: 25950 | GM24: 26395 | GN24: 26905 | GO24: 26970 | GP24: 26300 | GQ24: 26300 | GR24: 26550 | GS24: 26875 | GT24: 27060 | GU24: 27480 | GV24: 27760 | GW24: 27615 | GX24: 28060 | GY24: 28795 | GZ24: 29195 | HA24: 28640 | HB24: 28230 | HC24: 27615 | HD24: 28445 | HE24: 28530 | HF24: 28530 | HG24: 29330 | HH24: 29655 | HI24: 29915 | HJ24: 30050 | HK24: 31000 | HL24: 32110
A25: Kent & Medway | B25: 6150 | C25: 6425 | D25: 6300 | E25: 6175 | F25: 5820 | G25: 5425 | H25: 5575 | I25: 5620 | J25: 5415 | K25: 5155 | L25: 4980 | M25: 4875 | N25: 5025 | O25: 5355 | P25: 5565 | Q25: 5310 | R25: 5265 | S25: 5125 | T25: 5395 | U25: 6045 | V25: 6190 | W25: 6280 | X25: 6790 | Y25: 7495 | Z25: 8335 | AA25: 10190 | AB25: 10610 | AC25: 10645 | AD25: 10490 | AE25: 9945 | AF25: 10135 | AG25: 10935 | AH25: 11125 | AI25: 11070 | AJ25: 11200 | AK25: 11030 | AL25: 11525 | AM25: 11915 | AN25: 11315 | AO25: 10530 | AP25: 9630 | AQ25: 8765 | AR25: 8655 | AS25: 8920 | AT25: 8970 | AU25: 8860 | AV25: 8765 | AW25: 8645 | AX25: 9315 | AY25: 9930 | AZ25: 9800 | BA25: 9725 | BB25: 9690 | BC25: 9455 | BD25: 10180 | BE25: 10670 | BF25: 11210 | BG25: 11335 | BH25: 11300 | BI25: 11240 | BJ25: 11525 | BK25: 12070 | BL25: 11940 | BM25: 11345 | BN25: 10870 | BO25: 10400 | BP25: 10545 | BQ25: 10535 | BR25: 10420 | BS25: 10245 | BT25: 9895 | BU25: 9395 | BV25: 9755 | BW25: 10380 | BX25: 10170 | BY25: 9575 | BZ25: 9190 | CA25: 8625 | CB25: 8520 | CC25: 8370 | CD25: 8175 | CE25: 7925 | CF25: 7605 | CG25: 7315 | CH25: 7505 | CI25: 7790 | CJ25: 7450 | CK25: 6835 | CL25: 6405 | CM25: 5790 | CN25: 5720 | CO25: 5425 | CP25: 5470 | CQ25: 5250 | CR25: 4985 | CS25: 4745 | CT25: 4930 | CU25: 5200 | CV25: 5025 | CW25: 4590 | CX25: 4330 | CY25: 4045 | CZ25: 4030 | DA25: 4000 | DB25: 4025 | DC25: 4040 | DD25: 3935 | DE25: 3860 | DF25: 4020 | DG25: 4235 | DH25: 4295 | DI25: 4220 | DJ25: 4175 | DK25: 4015 | DL25: 3970 | DM25: 4105 | DN25: 4205 | DO25: 4360 | DP25: 4335 | DQ25: 4165 | DR25: 4050 | DS25: 4210 | DT25: 4430 | DU25: 4395 | DV25: 4225 | DW25: 4160 | DX25: 4105 | DY25: 4160 | DZ25: 4225 | EA25: 4285 | EB25: 4245 | EC25: 4170 | ED25: 4270 | EE25: 4605 | EF25: 4735 | EG25: 4765 | EH25: 4605 | EI25: 4350 | EJ25: 4270 | EK25: 4365 | EL25: 4515 | EM25: 4790 | EN25: 4975 | EO25: 5065 | EP25: 5255 | EQ25: 5650 | ER25: 5820 | ES25: 5940 | ET25: 5930 | EU25: 5910 | EV25: 5975 | EW25: 6070 | EX25: 6175 | EY25: 6380 | EZ25: 6355 | FA25: 6405 | FB25: 6525 | FC25: 6760 | FD25: 6895 | FE25: 10960 | FF25: 14250 | FG25: 14430 | FH25: 14780 | FI25: 14780 | FJ25: 14665 | FK25: 14265 | FL25: 14170 | FM25: 14130 | FN25: 13900 | FO25: 14160 | FP25: 14115 | FQ25: 13755 | FR25: 12780 | FS25: 11720 | FT25: 10990 | FU25: 10225 | FV25: 9630 | FW25: 9095 | FX25: 8755 | FY25: 8235 | FZ25: 7915 | GA25: 7885 | GB25: 7660 | GC25: 7125 | GD25: 6705 | GE25: 6415 | GF25: 6330 | GG25: 6455 | GH25: 6430 | GI25: 6675 | GJ25: 6775 | GK25: 6835 | GL25: 6755 | GM25: 6900 | GN25: 7020 | GO25: 7075 | GP25: 6955 | GQ25: 6980 | GR25: 6975 | GS25: 6960 | GT25: 7030 | GU25: 7200 | GV25: 7265 | GW25: 7165 | GX25: 7240 | GY25: 7405 | GZ25: 7560 | HA25: 7430 | HB25: 7310 | HC25: 7125 | HD25: 7395 | HE25: 7375 | HF25: 7425 | HG25: 7685 | HH25: 7780 | HI25: 7875 | HJ25: 7760 | HK25: 7925 | HL25: 8255
A27: 25-49
A28: Number | B28: 2007-01-01 | C28: 2007-02-01 | D28: 2007-03-01 | E28: 2007-04-01 | F28: 2007-05-01 | G28: 2007-06-01 | H28: 2007-07-01 | I28: 2007-08-01 | J28: 2007-09-01 | K28: 2007-10-01 | L28: 2007-11-01 | M28: 2007-12-01 | N28: 2008-01-01 | O28: 2008-02-01 | P28: 2008-03-01 | Q28: 2008-04-01 | R28: 2008-05-01 | S28: 2008-06-01 | T28: 2008-07-01 | U28: 2008-08-01 | V28: 2008-09-01 | W28: 2008-10-01 | X28: 2008-11-01 | Y28: 2008-12-01 | Z28: 2009-01-01 | AA28: 2009-02-01 | AB28: 2009-03-01 | AC28: 2009-04-01 | AD28: 2009-05-01 | AE28: 2009-06-01 | AF28: 2009-07-01 | AG28: 2009-08-01 | AH28: 2009-09-01 | AI28: 2009-10-01 | AJ28: 2009-11-01 | AK28: 2009-12-01 | AL28: 2010-01-01 | AM28: 2010-02-01 | AN28: 2010-03-01 | AO28: 2010-04-01 | AP28: 2010-05-01 | AQ28: 2010-06-01 | AR28: 2010-07-01 | AS28: 2010-08-01 | AT28: 2010-09-01 | AU28: 2010-10-01 | AV28: 2010-11-01 | AW28: 2010-12-01 | AX28: 2011-01-01 | AY28: February 2011 | AZ28: March 2011 | BA28: April 2011 | BB28: May 2011 | BC28: June 2011 | BD28: July 2011 | BE28: August 2011 | BF28: 2011-09-01 | BG28: October 2011 | BH28: November 2011 | BI28: December 2011 | BJ28: 2012-01-01 | BK28: February 2012 | BL28: March 2012 | BM28: April 2012 | BN28: May 2012 | BO28: June 2012 | BP28: July 2012 | BQ28: August 2012 | BR28: September 2012 | BS28: October 2012 | BT28: November 2012 | BU28: December 2012 | BV28: January 2013 | BW28: February 2013 | BX28: March 2013 | BY28: April 2013 | BZ28: May 2013 | CA28: June 2013 | CB28: July 2013 | CC28: August 2013 | CD28: September 2013 | CE28: October 2013 | CF28: November 2013 | CG28: December 2013 | CH28: 2014-01-01 | CI28: 2014-02-01 | CJ28: 2014-03-01 | CK28: 2014-04-01 | CL28: 2014-05-01 | CM28: 2014-06-01 | CN28: 2014-07-01 | CO28: 2014-08-01 | CP28: 2014-09-01 | CQ28: 2014-10-01 | CR28: 2014-11-01 | CS28: 2014-12-01 | CT28: 2015-01-01 | CU28: 2015-02-01 | CV28: 2015-03-01 | CW28: 2015-04-01 | CX28: 2015-05-01 | CY28: 2015-06-01 | CZ28: 2015-07-01 | DA28: 2015-08-01 | DB28: 2015-09-01 | DC28: 2015-10-01 | DD28: 2015-11-01 | DE28: 2015-12-01 | DF28: 2016-01-01 | DG28: 2016-02-01 | DH28: 2016-03-01 | DI28: 2016-04-01 | DJ28: 2016-05-01 | DK28: 2016-06-01 | DL28: 2016-07-01 | DM28: 2016-08-01 | DN28: 2016-09-01 | DO28: 2016-10-01 | DP28: 2016-11-01 | DQ28: 2016-12-01 | DR28: 2017-01-01 | DS28: 2017-02-01 | DT28: 2017-03-01 | DU28: 2017-04-01 | DV28: 2017-05-01 | DW28: 2017-06-01 | DX28: 2017-07-01 | DY28: 2017-08-01 | DZ28: 2017-09-01 | EA28: 2017-10-01 | EB28: 2017-11-01 | EC28: 2017-12-01 | ED28: 2018-01-01 | EE28: 2018-02-01 | EF28: 2018-03-01 | EG28: 2018-04-01 | EH28: 2018-05-01 | EI28: 2018-06-01 | EJ28: 2018-07-01 | EK28: 2018-08-01 | EL28: 2018-09-01 | EM28: 2018-10-01 | EN28: 2018-11-01 | EO28: 2018-12-01 | EP28: 2019-01-01 | EQ28: 2019-02-01 | ER28: 2019-03-01 | ES28: 2019-04-01 | ET28: 2019-05-01 | EU28: 2019-06-01 | EV28: 2019-07-01 | EW28: 2019-08-01 | EX28: 2019-09-01 | EY28: 2019-10-01 | EZ28: 2019-11-01 | FA28: 2019-12-01 | FB28: 2020-01-01 | FC28: 2020-02-01 | FD28: 2020-03-01 | FE28: 2020-04-01 | FF28: 2020-05-01 | FG28: 2020-06-01 | FH28: 2020-07-01 | FI28: 2020-08-01 | FJ28: 2020-09-01 | FK28: 2020-10-01 | FL28: 2020-11-01 | FM28: 2020-12-01 | FN28: 2021-01-01 | FO28: 2021-02-01 | FP28: 2021-03-01 | FQ28: 2021-04-01 | FR28: 2021-05-01 | FS28: 2021-06-01 | FT28: 2021-07-01 | FU28: 2021-08-01 | FV28: 2021-09-01 | FW28: 2021-10-01 | FX28: 2021-11-01 | FY28: 2021-12-01 | FZ28: 2022-01-01 | GA28: 2022-02-01 | GB28: 2022-03-01 | GC28: 2022-04-01 | GD28: 2022-05-01 | GE28: 2022-06-01 | GF28: 2022-07-01 | GG28: 2022-08-01 | GH28: 2022-09-01 | GI28: 2022-10-01 | GJ28: 2022-11-01 | GK28: 2022-12-01 | GL28: 2023-01-01 | GM28: 2023-02-01 | GN28: 2023-03-01 | GO28: 2023-04-01 | GP28: 2023-05-01 | GQ28: 2023-06-01 | GR28: 2023-07-01 | GS28: 2023-08-01 | GT28: 2023-09-01 | GU28: 2023-10-01 | GV28: 2023-11-01 | GW28: 2023-12-01 | GX28: 2024-01-01 | GY28: 2024-02-01 | GZ28: 2024-03-01 | HA28: 2024-04-01 | HB28: 2024-05-01 | HC28: 2024-06-01 | HD28: 2024-07-01 | HE28: 2024-08-01 | HF28: 2024-09-01 | HG28: 2024-10-01 | HH28: 2024-11-01 | HI28: 2024-12-01 | HJ28: 2025-01-01 | HK28: 2025-02-01 | HL28: 2025-03-01
A29: Kent | B29: 8315 | C29: 8395 | D29: 8170 | E29: 7970 | F29: 7635 | G29: 7210 | H29: 6970 | I29: 6860 | J29: 6710 | K29: 6550 | L29: 6325 | M29: 6445 | N29: 6765 | O29: 6750 | P29: 6660 | Q29: 6680 | R29: 6785 | S29: 6730 | T29: 6905 | U29: 7355 | V29: 7600 | W29: 7935 | X29: 9030 | Y29: 10220 | Z29: 11670 | AA29: 13480 | AB29: 14165 | AC29: 14415 | AD29: 14745 | AE29: 14380 | AF29: 14205 | AG29: 14305 | AH29: 14285 | AI29: 14290 | AJ29: 14265 | AK29: 14475 | AL29: 15375 | AM29: 15495 | AN29: 15325 | AO29: 15090 | AP29: 14620 | AQ29: 13930 | AR29: 13785 | AS29: 13530 | AT29: 13245 | AU29: 13030 | AV29: 13210 | AW29: 13550 | AX29: 14335 | AY29: 14605 | AZ29: 14580 | BA29: 14480 | BB29: 14620 | BC29: 14350 | BD29: 14390 | BE29: 14370 | BF29: 14385 | BG29: 14445 | BH29: 14685 | BI29: 14985 | BJ29: 15700 | BK29: 16265 | BL29: 16080 | BM29: 15700 | BN29: 15545 | BO29: 15255 | BP29: 15140 | BQ29: 15115 | BR29: 14840 | BS29: 14875 | BT29: 14960 | BU29: 15045 | BV29: 15640 | BW29: 15980 | BX29: 15585 | BY29: 15105 | BZ29: 14620 | CA29: 13880 | CB29: 13375 | CC29: 12960 | CD29: 12410 | CE29: 12005 | CF29: 11715 | CG29: 11800 | CH29: 12210 | CI29: 12145 | CJ29: 11710 | CK29: 11240 | CL29: 10705 | CM29: 9895 | CN29: 9440 | CO29: 8970 | CP29: 8485 | CQ29: 8135 | CR29: 7995 | CS29: 7870 | CT29: 8280 | CU29: 8260 | CV29: 8115 | CW29: 7865 | CX29: 7295 | CY29: 6985 | CZ29: 6800 | DA29: 6665 | DB29: 6660 | DC29: 6725 | DD29: 6705 | DE29: 6900 | DF29: 7355 | DG29: 7605 | DH29: 7760 | DI29: 7760 | DJ29: 7650 | DK29: 7405 | DL29: 7290 | DM29: 7480 | DN29: 7400 | DO29: 7375 | DP29: 7345 | DQ29: 7410 | DR29: 7630 | DS29: 7915 | DT29: 8070 | DU29: 8035 | DV29: 7910 | DW29: 7835 | DX29: 7855 | DY29: 7805 | DZ29: 7770 | EA29: 7790 | EB29: 7920 | EC29: 8125 | ED29: 8515 | EE29: 8880 | EF29: 9025 | EG29: 9480 | EH29: 9150 | EI29: 8975 | EJ29: 8925 | EK29: 9040 | EL29: 9185 | EM29: 9575 | EN29: 9820 | EO29: 10210 | EP29: 10585 | EQ29: 11310 | ER29: 11565 | ES29: 11780 | ET29: 12000 | EU29: 12520 | EV29: 12850 | EW29: 12905 | EX29: 13230 | EY29: 13615 | EZ29: 13790 | FA29: 13840 | FB29: 14085 | FC29: 14540 | FD29: 14530 | FE29: 27215 | FF29: 33570 | FG29: 30925 | FH29: 31720 | FI29: 32495 | FJ29: 31975 | FK29: 30280 | FL29: 30600 | FM29: 30585 | FN29: 29850 | FO29: 31580 | FP29: 31205 | FQ29: 30745 | FR29: 28665 | FS29: 26470 | FT29: 26195 | FU29: 25240 | FV29: 24260 | FW29: 23335 | FX29: 22620 | FY29: 21995 | FZ29: 21650 | GA29: 21720 | GB29: 20710 | GC29: 19535 | GD29: 18855 | GE29: 18280 | GF29: 17765 | GG29: 17600 | GH29: 17665 | GI29: 17555 | GJ29: 17670 | GK29: 17915 | GL29: 17990 | GM29: 18115 | GN29: 18535 | GO29: 18885 | GP29: 18330 | GQ29: 18275 | GR29: 18390 | GS29: 18180 | GT29: 18305 | GU29: 18345 | GV29: 18520 | GW29: 18900 | GX29: 19000 | GY29: 19605 | GZ29: 19295 | HA29: 18820 | HB29: 18765 | HC29: 18700 | HD29: 20300 | HE29: 20035 | HF29: 20030 | HG29: 19810 | HH29: 19090 | HI29: 18925 | HJ29: 18875 | HK29: 19470 | HL29: 19585
A30: Medway | B30: 2245 | C30: 2190 | D30: 2115 | E30: 2085 | F30: 1955 | G30: 1845 | H30: 1805 | I30: 1775 | J30: 1725 | K30: 1710 | L30: 1640 | M30: 1660 | N30: 1760 | O30: 1845 | P30: 1930 | Q30: 1860 | R30: 1845 | S30: 1850 | T30: 1890 | U30: 1965 | V30: 2035 | W30: 2105 | X30: 2340 | Y30: 2565 | Z30: 2840 | AA30: 3260 | AB30: 3365 | AC30: 3460 | AD30: 3605 | AE30: 3620 | AF30: 3675 | AG30: 3630 | AH30: 3640 | AI30: 3695 | AJ30: 3715 | AK30: 3715 | AL30: 3900 | AM30: 3845 | AN30: 3775 | AO30: 3770 | AP30: 3660 | AQ30: 3480 | AR30: 3460 | AS30: 3405 | AT30: 3355 | AU30: 3235 | AV30: 3235 | AW30: 3400 | AX30: 3535 | AY30: 3595 | AZ30: 3585 | BA30: 3640 | BB30: 3655 | BC30: 3605 | BD30: 3680 | BE30: 3715 | BF30: 3700 | BG30: 3680 | BH30: 3710 | BI30: 3735 | BJ30: 3880 | BK30: 3985 | BL30: 3925 | BM30: 3900 | BN30: 3865 | BO30: 3850 | BP30: 3860 | BQ30: 3800 | BR30: 3720 | BS30: 3750 | BT30: 3705 | BU30: 3715 | BV30: 3780 | BW30: 3850 | BX30: 3720 | BY30: 3615 | BZ30: 3485 | CA30: 3365 | CB30: 3240 | CC30: 3220 | CD30: 3050 | CE30: 2950 | CF30: 2915 | CG30: 2860 | CH30: 2940 | CI30: 2975 | CJ30: 2895 | CK30: 2735 | CL30: 2700 | CM30: 2520 | CN30: 2440 | CO30: 2305 | CP30: 2240 | CQ30: 2180 | CR30: 2075 | CS30: 1985 | CT30: 2060 | CU30: 2060 | CV30: 2000 | CW30: 1995 | CX30: 1980 | CY30: 1970 | CZ30: 1960 | DA30: 1975 | DB30: 1960 | DC30: 1990 | DD30: 1905 | DE30: 1905 | DF30: 1975 | DG30: 2110 | DH30: 2065 | DI30: 2015 | DJ30: 1920 | DK30: 1885 | DL30: 1880 | DM30: 1865 | DN30: 1820 | DO30: 1810 | DP30: 1815 | DQ30: 1760 | DR30: 1775 | DS30: 1830 | DT30: 1855 | DU30: 1815 | DV30: 1795 | DW30: 1740 | DX30: 1735 | DY30: 1715 | DZ30: 1715 | EA30: 1705 | EB30: 1680 | EC30: 1685 | ED30: 1740 | EE30: 1785 | EF30: 1790 | EG30: 1765 | EH30: 1760 | EI30: 1670 | EJ30: 1705 | EK30: 1775 | EL30: 1875 | EM30: 1995 | EN30: 2005 | EO30: 2170 | EP30: 2285 | EQ30: 2390 | ER30: 2525 | ES30: 2660 | ET30: 2670 | EU30: 2775 | EV30: 2825 | EW30: 2840 | EX30: 2880 | EY30: 2940 | EZ30: 3010 | FA30: 2995 | FB30: 3110 | FC30: 3225 | FD30: 3245 | FE30: 5470 | FF30: 7120 | FG30: 6520 | FH30: 6715 | FI30: 7005 | FJ30: 6860 | FK30: 6540 | FL30: 6550 | FM30: 6585 | FN30: 6460 | FO30: 6845 | FP30: 6920 | FQ30: 6840 | FR30: 6500 | FS30: 6120 | FT30: 6010 | FU30: 5875 | FV30: 5595 | FW30: 5500 | FX30: 5280 | FY30: 5165 | FZ30: 5005 | GA30: 5000 | GB30: 4795 | GC30: 4650 | GD30: 4470 | GE30: 4210 | GF30: 4100 | GG30: 4040 | GH30: 4015 | GI30: 3865 | GJ30: 3900 | GK30: 3935 | GL30: 4005 | GM30: 3995 | GN30: 4005 | GO30: 4065 | GP30: 3965 | GQ30: 4120 | GR30: 4125 | GS30: 4095 | GT30: 4105 | GU30: 4000 | GV30: 4045 | GW30: 4090 | GX30: 4115 | GY30: 4225 | GZ30: 4285 | HA30: 4175 | HB30: 4285 | HC30: 4305 | HD30: 4700 | HE30: 4645 | HF30: 4590 | HG30: 4555 | HH30: 4410 | HI30: 4425 | HJ30: 4335 | HK30: 4520 | HL30: 4575
A31: Ashford | B31: 510 | C31: 525 | D31: 535 | E31: 555 | F31: 535 | G31: 480 | H31: 425 | I31: 425 | J31: 385 | K31: 370 | L31: 365 | M31: 380 | N31: 410 | O31: 410 | P31: 380 | Q31: 395 | R31: 410 | S31: 390 | T31: 445 | U31: 465 | V31: 490 | W31: 505 | X31: 575 | Y31: 685 | Z31: 760 | AA31: 920 | AB31: 1005 | AC31: 1030 | AD31: 1020 | AE31: 935 | AF31: 940 | AG31: 955 | AH31: 1005 | AI31: 1000 | AJ31: 970 | AK31: 985 | AL31: 1045 | AM31: 1050 | AN31: 1030 | AO31: 1005 | AP31: 965 | AQ31: 930 | AR31: 940 | AS31: 945 | AT31: 950 | AU31: 910 | AV31: 915 | AW31: 975 | AX31: 1045 | AY31: 1085 | AZ31: 1045 | BA31: 1060 | BB31: 1070 | BC31: 1010 | BD31: 1000 | BE31: 1005 | BF31: 970 | BG31: 955 | BH31: 980 | BI31: 995 | BJ31: 1075 | BK31: 1135 | BL31: 1120 | BM31: 1095 | BN31: 1100 | BO31: 1070 | BP31: 1045 | BQ31: 1035 | BR31: 1050 | BS31: 1070 | BT31: 1065 | BU31: 1080 | BV31: 1100 | BW31: 1135 | BX31: 1100 | BY31: 1080 | BZ31: 1075 | CA31: 1040 | CB31: 980 | CC31: 950 | CD31: 900 | CE31: 875 | CF31: 845 | CG31: 845 | CH31: 845 | CI31: 850 | CJ31: 820 | CK31: 815 | CL31: 795 | CM31: 710 | CN31: 660 | CO31: 630 | CP31: 585 | CQ31: 565 | CR31: 565 | CS31: 540 | CT31: 560 | CU31: 600 | CV31: 580 | CW31: 585 | CX31: 520 | CY31: 485 | CZ31: 475 | DA31: 480 | DB31: 470 | DC31: 490 | DD31: 485 | DE31: 505 | DF31: 525 | DG31: 550 | DH31: 575 | DI31: 575 | DJ31: 550 | DK31: 520 | DL31: 550 | DM31: 570 | DN31: 555 | DO31: 545 | DP31: 550 | DQ31: 565 | DR31: 600 | DS31: 615 | DT31: 625 | DU31: 620 | DV31: 600 | DW31: 600 | DX31: 625 | DY31: 620 | DZ31: 590 | EA31: 585 | EB31: 610 | EC31: 645 | ED31: 665 | EE31: 670 | EF31: 655 | EG31: 645 | EH31: 640 | EI31: 640 | EJ31: 640 | EK31: 655 | EL31: 695 | EM31: 740 | EN31: 780 | EO31: 830 | EP31: 875 | EQ31: 920 | ER31: 915 | ES31: 915 | ET31: 950 | EU31: 980 | EV31: 1015 | EW31: 1025 | EX31: 1050 | EY31: 1105 | EZ31: 1150 | FA31: 1140 | FB31: 1135 | FC31: 1185 | FD31: 1185 | FE31: 2250 | FF31: 2720 | FG31: 2495 | FH31: 2575 | FI31: 2670 | FJ31: 2615 | FK31: 2460 | FL31: 2450 | FM31: 2405 | FN31: 2375 | FO31: 2500 | FP31: 2450 | FQ31: 2405 | FR31: 2240 | FS31: 2075 | FT31: 2075 | FU31: 1975 | FV31: 1935 | FW31: 1875 | FX31: 1835 | FY31: 1765 | FZ31: 1725 | GA31: 1740 | GB31: 1660 | GC31: 1570 | GD31: 1500 | GE31: 1470 | GF31: 1395 | GG31: 1365 | GH31: 1380 | GI31: 1315 | GJ31: 1360 | GK31: 1345 | GL31: 1395 | GM31: 1385 | GN31: 1415 | GO31: 1440 | GP31: 1410 | GQ31: 1415 | GR31: 1440 | GS31: 1415 | GT31: 1450 | GU31: 1450 | GV31: 1445 | GW31: 1455 | GX31: 1440 | GY31: 1520 | GZ31: 1495 | HA31: 1465 | HB31: 1480 | HC31: 1460 | HD31: 1600 | HE31: 1555 | HF31: 1565 | HG31: 1560 | HH31: 1520 | HI31: 1510 | HJ31: 1500 | HK31: 1570 | HL31: 1560
A32: Canterbury | B32: 685 | C32: 680 | D32: 685 | E32: 685 | F32: 625 | G32: 580 | H32: 540 | I32: 555 | J32: 545 | K32: 520 | L32: 480 | M32: 510 | N32: 570 | O32: 570 | P32: 555 | Q32: 545 | R32: 580 | S32: 595 | T32: 575 | U32: 645 | V32: 660 | W32: 685 | X32: 780 | Y32: 915 | Z32: 1055 | AA32: 1150 | AB32: 1210 | AC32: 1230 | AD32: 1205 | AE32: 1225 | AF32: 1185 | AG32: 1210 | AH32: 1180 | AI32: 1180 | AJ32: 1195 | AK32: 1215 | AL32: 1295 | AM32: 1285 | AN32: 1280 | AO32: 1240 | AP32: 1190 | AQ32: 1140 | AR32: 1120 | AS32: 1120 | AT32: 1095 | AU32: 1050 | AV32: 1060 | AW32: 1060 | AX32: 1105 | AY32: 1145 | AZ32: 1155 | BA32: 1180 | BB32: 1185 | BC32: 1160 | BD32: 1165 | BE32: 1170 | BF32: 1135 | BG32: 1190 | BH32: 1185 | BI32: 1205 | BJ32: 1310 | BK32: 1335 | BL32: 1305 | BM32: 1290 | BN32: 1260 | BO32: 1230 | BP32: 1210 | BQ32: 1220 | BR32: 1230 | BS32: 1195 | BT32: 1175 | BU32: 1185 | BV32: 1240 | BW32: 1255 | BX32: 1200 | BY32: 1155 | BZ32: 1135 | CA32: 1085 | CB32: 1055 | CC32: 1000 | CD32: 990 | CE32: 960 | CF32: 910 | CG32: 930 | CH32: 945 | CI32: 920 | CJ32: 900 | CK32: 840 | CL32: 795 | CM32: 695 | CN32: 665 | CO32: 640 | CP32: 615 | CQ32: 595 | CR32: 575 | CS32: 590 | CT32: 610 | CU32: 635 | CV32: 615 | CW32: 585 | CX32: 545 | CY32: 515 | CZ32: 505 | DA32: 500 | DB32: 505 | DC32: 525 | DD32: 515 | DE32: 550 | DF32: 585 | DG32: 610 | DH32: 645 | DI32: 645 | DJ32: 655 | DK32: 645 | DL32: 645 | DM32: 660 | DN32: 665 | DO32: 645 | DP32: 675 | DQ32: 665 | DR32: 655 | DS32: 665 | DT32: 660 | DU32: 645 | DV32: 625 | DW32: 615 | DX32: 635 | DY32: 645 | DZ32: 640 | EA32: 645 | EB32: 640 | EC32: 655 | ED32: 690 | EE32: 695 | EF32: 720 | EG32: 730 | EH32: 710 | EI32: 675 | EJ32: 645 | EK32: 675 | EL32: 725 | EM32: 790 | EN32: 835 | EO32: 925 | EP32: 950 | EQ32: 1050 | ER32: 1090 | ES32: 1080 | ET32: 1075 | EU32: 1130 | EV32: 1165 | EW32: 1165 | EX32: 1190 | EY32: 1225 | EZ32: 1215 | FA32: 1195 | FB32: 1210 | FC32: 1235 | FD32: 1225 | FE32: 2470 | FF32: 2920 | FG32: 2690 | FH32: 2800 | FI32: 2850 | FJ32: 2795 | FK32: 2650 | FL32: 2660 | FM32: 2710 | FN32: 2660 | FO32: 2805 | FP32: 2770 | FQ32: 2730 | FR32: 2530 | FS32: 2315 | FT32: 2275 | FU32: 2170 | FV32: 2075 | FW32: 2065 | FX32: 2065 | FY32: 1945 | FZ32: 1935 | GA32: 1980 | GB32: 1885 | GC32: 1790 | GD32: 1750 | GE32: 1695 | GF32: 1645 | GG32: 1625 | GH32: 1620 | GI32: 1640 | GJ32: 1640 | GK32: 1705 | GL32: 1710 | GM32: 1715 | GN32: 1775 | GO32: 1800 | GP32: 1765 | GQ32: 1740 | GR32: 1710 | GS32: 1695 | GT32: 1715 | GU32: 1710 | GV32: 1755 | GW32: 1805 | GX32: 1830 | GY32: 1885 | GZ32: 1835 | HA32: 1765 | HB32: 1730 | HC32: 1730 | HD32: 1885 | HE32: 1860 | HF32: 1815 | HG32: 1865 | HH32: 1795 | HI32: 1760 | HJ32: 1790 | HK32: 1860 | HL32: 1915
A33: Dartford | B33: 515 | C33: 530 | D33: 485 | E33: 460 | F33: 450 | G33: 440 | H33: 440 | I33: 440 | J33: 425 | K33: 445 | L33: 430 | M33: 405 | N33: 415 | O33: 440 | P33: 450 | Q33: 440 | R33: 440 | S33: 450 | T33: 455 | U33: 475 | V33: 505 | W33: 505 | X33: 590 | Y33: 660 | Z33: 735 | AA33: 905 | AB33: 985 | AC33: 1005 | AD33: 1090 | AE33: 1080 | AF33: 1070 | AG33: 1095 | AH33: 1090 | AI33: 1080 | AJ33: 1040 | AK33: 1020 | AL33: 1100 | AM33: 1100 | AN33: 1105 | AO33: 1115 | AP33: 1110 | AQ33: 1055 | AR33: 1040 | AS33: 1040 | AT33: 1015 | AU33: 985 | AV33: 960 | AW33: 975 | AX33: 1105 | AY33: 1120 | AZ33: 1105 | BA33: 1080 | BB33: 1090 | BC33: 1060 | BD33: 1030 | BE33: 1000 | BF33: 1015 | BG33: 1015 | BH33: 1020 | BI33: 1015 | BJ33: 1055 | BK33: 1070 | BL33: 1080 | BM33: 1085 | BN33: 1060 | BO33: 1010 | BP33: 975 | BQ33: 1005 | BR33: 960 | BS33: 950 | BT33: 980 | BU33: 970 | BV33: 1010 | BW33: 1065 | BX33: 1040 | BY33: 990 | BZ33: 945 | CA33: 915 | CB33: 890 | CC33: 830 | CD33: 805 | CE33: 770 | CF33: 745 | CG33: 745 | CH33: 765 | CI33: 785 | CJ33: 730 | CK33: 710 | CL33: 715 | CM33: 645 | CN33: 615 | CO33: 590 | CP33: 530 | CQ33: 505 | CR33: 490 | CS33: 445 | CT33: 485 | CU33: 490 | CV33: 490 | CW33: 480 | CX33: 455 | CY33: 460 | CZ33: 445 | DA33: 420 | DB33: 425 | DC33: 430 | DD33: 390 | DE33: 375 | DF33: 385 | DG33: 405 | DH33: 415 | DI33: 425 | DJ33: 435 | DK33: 435 | DL33: 400 | DM33: 415 | DN33: 410 | DO33: 395 | DP33: 390 | DQ33: 385 | DR33: 400 | DS33: 430 | DT33: 435 | DU33: 425 | DV33: 430 | DW33: 430 | DX33: 440 | DY33: 445 | DZ33: 425 | EA33: 385 | EB33: 390 | EC33: 385 | ED33: 410 | EE33: 440 | EF33: 445 | EG33: 440 | EH33: 435 | EI33: 410 | EJ33: 405 | EK33: 390 | EL33: 410 | EM33: 460 | EN33: 465 | EO33: 510 | EP33: 530 | EQ33: 595 | ER33: 630 | ES33: 645 | ET33: 680 | EU33: 745 | EV33: 770 | EW33: 815 | EX33: 855 | EY33: 915 | EZ33: 895 | FA33: 900 | FB33: 940 | FC33: 970 | FD33: 965 | FE33: 1970 | FF33: 2590 | FG33: 2345 | FH33: 2435 | FI33: 2475 | FJ33: 2420 | FK33: 2260 | FL33: 2320 | FM33: 2345 | FN33: 2295 | FO33: 2485 | FP33: 2445 | FQ33: 2450 | FR33: 2240 | FS33: 2035 | FT33: 2010 | FU33: 1905 | FV33: 1775 | FW33: 1690 | FX33: 1600 | FY33: 1570 | FZ33: 1500 | GA33: 1495 | GB33: 1430 | GC33: 1365 | GD33: 1350 | GE33: 1295 | GF33: 1250 | GG33: 1265 | GH33: 1295 | GI33: 1315 | GJ33: 1305 | GK33: 1335 | GL33: 1335 | GM33: 1350 | GN33: 1390 | GO33: 1460 | GP33: 1405 | GQ33: 1420 | GR33: 1420 | GS33: 1390 | GT33: 1415 | GU33: 1405 | GV33: 1385 | GW33: 1415 | GX33: 1425 | GY33: 1415 | GZ33: 1405 | HA33: 1365 | HB33: 1425 | HC33: 1485 | HD33: 1625 | HE33: 1600 | HF33: 1590 | HG33: 1525 | HH33: 1490 | HI33: 1495 | HJ33: 1475 | HK33: 1510 | HL33: 1530
A34: Dover | B34: 850 | C34: 845 | D34: 835 | E34: 785 | F34: 710 | G34: 645 | H34: 630 | I34: 620 | J34: 595 | K34: 595 | L34: 575 | M34: 585 | N34: 665 | O34: 630 | P34: 600 | Q34: 620 | R34: 655 | S34: 615 | T34: 630 | U34: 620 | V34: 680 | W34: 715 | X34: 835 | Y34: 940 | Z34: 1030 | AA34: 1140 | AB34: 1145 | AC34: 1145 | AD34: 1175 | AE34: 1085 | AF34: 1055 | AG34: 1075 | AH34: 1060 | AI34: 1115 | AJ34: 1150 | AK34: 1190 | AL34: 1255 | AM34: 1305 | AN34: 1275 | AO34: 1260 | AP34: 1205 | AQ34: 1160 | AR34: 1145 | AS34: 1115 | AT34: 1060 | AU34: 1045 | AV34: 1095 | AW34: 1185 | AX34: 1250 | AY34: 1265 | AZ34: 1285 | BA34: 1245 | BB34: 1235 | BC34: 1180 | BD34: 1185 | BE34: 1235 | BF34: 1230 | BG34: 1230 | BH34: 1285 | BI34: 1335 | BJ34: 1420 | BK34: 1470 | BL34: 1465 | BM34: 1430 | BN34: 1385 | BO34: 1390 | BP34: 1385 | BQ34: 1345 | BR34: 1300 | BS34: 1325 | BT34: 1300 | BU34: 1375 | BV34: 1425 | BW34: 1435 | BX34: 1425 | BY34: 1405 | BZ34: 1330 | CA34: 1220 | CB34: 1185 | CC34: 1125 | CD34: 1085 | CE34: 1055 | CF34: 1090 | CG34: 1110 | CH34: 1155 | CI34: 1165 | CJ34: 1135 | CK34: 1115 | CL34: 1055 | CM34: 955 | CN34: 915 | CO34: 835 | CP34: 790 | CQ34: 765 | CR34: 785 | CS34: 795 | CT34: 815 | CU34: 795 | CV34: 750 | CW34: 725 | CX34: 625 | CY34: 600 | CZ34: 555 | DA34: 555 | DB34: 545 | DC34: 535 | DD34: 580 | DE34: 595 | DF34: 630 | DG34: 640 | DH34: 670 | DI34: 700 | DJ34: 680 | DK34: 655 | DL34: 650 | DM34: 670 | DN34: 670 | DO34: 665 | DP34: 665 | DQ34: 695 | DR34: 710 | DS34: 735 | DT34: 750 | DU34: 750 | DV34: 750 | DW34: 745 | DX34: 730 | DY34: 800 | DZ34: 830 | EA34: 870 | EB34: 910 | EC34: 925 | ED34: 980 | EE34: 1045 | EF34: 1055 | EG34: 1180 | EH34: 1080 | EI34: 1105 | EJ34: 1100 | EK34: 1095 | EL34: 1085 | EM34: 1105 | EN34: 1135 | EO34: 1170 | EP34: 1195 | EQ34: 1235 | ER34: 1245 | ES34: 1255 | ET34: 1250 | EU34: 1245 | EV34: 1265 | EW34: 1265 | EX34: 1280 | EY34: 1335 | EZ34: 1285 | FA34: 1290 | FB34: 1300 | FC34: 1360 | FD34: 1370 | FE34: 2380 | FF34: 2600 | FG34: 2435 | FH34: 2475 | FI34: 2485 | FJ34: 2465 | FK34: 2350 | FL34: 2335 | FM34: 2410 | FN34: 2335 | FO34: 2450 | FP34: 2390 | FQ34: 2345 | FR34: 2170 | FS34: 2015 | FT34: 1985 | FU34: 1910 | FV34: 1865 | FW34: 1830 | FX34: 1770 | FY34: 1720 | FZ34: 1710 | GA34: 1740 | GB34: 1655 | GC34: 1575 | GD34: 1495 | GE34: 1450 | GF34: 1415 | GG34: 1385 | GH34: 1415 | GI34: 1400 | GJ34: 1435 | GK34: 1465 | GL34: 1480 | GM34: 1465 | GN34: 1520 | GO34: 1465 | GP34: 1435 | GQ34: 1440 | GR34: 1440 | GS34: 1440 | GT34: 1435 | GU34: 1405 | GV34: 1460 | GW34: 1525 | GX34: 1490 | GY34: 1550 | GZ34: 1530 | HA34: 1460 | HB34: 1495 | HC34: 1460 | HD34: 1520 | HE34: 1505 | HF34: 1510 | HG34: 1435 | HH34: 1385 | HI34: 1330 | HJ34: 1315 | HK34: 1350 | HL34: 1365
A35: Folkestone & Hythe | B35: 955 | C35: 930 | D35: 930 | E35: 915 | F35: 870 | G35: 825 | H35: 785 | I35: 765 | J35: 760 | K35: 730 | L35: 705 | M35: 710 | N35: 745 | O35: 720 | P35: 735 | Q35: 745 | R35: 770 | S35: 740 | T35: 755 | U35: 800 | V35: 830 | W35: 875 | X35: 925 | Y35: 1005 | Z35: 1140 | AA35: 1265 | AB35: 1290 | AC35: 1315 | AD35: 1350 | AE35: 1305 | AF35: 1245 | AG35: 1275 | AH35: 1280 | AI35: 1305 | AJ35: 1325 | AK35: 1355 | AL35: 1445 | AM35: 1465 | AN35: 1475 | AO35: 1410 | AP35: 1385 | AQ35: 1305 | AR35: 1310 | AS35: 1280 | AT35: 1250 | AU35: 1225 | AV35: 1275 | AW35: 1330 | AX35: 1340 | AY35: 1355 | AZ35: 1305 | BA35: 1325 | BB35: 1335 | BC35: 1340 | BD35: 1370 | BE35: 1360 | BF35: 1355 | BG35: 1405 | BH35: 1420 | BI35: 1480 | BJ35: 1480 | BK35: 1525 | BL35: 1515 | BM35: 1475 | BN35: 1480 | BO35: 1470 | BP35: 1465 | BQ35: 1450 | BR35: 1400 | BS35: 1415 | BT35: 1455 | BU35: 1505 | BV35: 1560 | BW35: 1555 | BX35: 1535 | BY35: 1495 | BZ35: 1450 | CA35: 1350 | CB35: 1275 | CC35: 1250 | CD35: 1155 | CE35: 1125 | CF35: 1105 | CG35: 1100 | CH35: 1120 | CI35: 1100 | CJ35: 1015 | CK35: 975 | CL35: 915 | CM35: 880 | CN35: 875 | CO35: 805 | CP35: 775 | CQ35: 750 | CR35: 770 | CS35: 780 | CT35: 830 | CU35: 805 | CV35: 780 | CW35: 740 | CX35: 660 | CY35: 635 | CZ35: 610 | DA35: 580 | DB35: 605 | DC35: 615 | DD35: 610 | DE35: 645 | DF35: 695 | DG35: 700 | DH35: 695 | DI35: 680 | DJ35: 690 | DK35: 650 | DL35: 665 | DM35: 685 | DN35: 655 | DO35: 675 | DP35: 670 | DQ35: 685 | DR35: 700 | DS35: 735 | DT35: 750 | DU35: 720 | DV35: 735 | DW35: 715 | DX35: 690 | DY35: 655 | DZ35: 645 | EA35: 660 | EB35: 665 | EC35: 690 | ED35: 750 | EE35: 775 | EF35: 780 | EG35: 775 | EH35: 775 | EI35: 725 | EJ35: 710 | EK35: 745 | EL35: 780 | EM35: 875 | EN35: 885 | EO35: 895 | EP35: 930 | EQ35: 990 | ER35: 995 | ES35: 1015 | ET35: 1050 | EU35: 1100 | EV35: 1095 | EW35: 1085 | EX35: 1105 | EY35: 1120 | EZ35: 1145 | FA35: 1170 | FB35: 1240 | FC35: 1255 | FD35: 1230 | FE35: 2310 | FF35: 2630 | FG35: 2420 | FH35: 2515 | FI35: 2580 | FJ35: 2575 | FK35: 2475 | FL35: 2485 | FM35: 2510 | FN35: 2465 | FO35: 2580 | FP35: 2495 | FQ35: 2465 | FR35: 2300 | FS35: 2110 | FT35: 2080 | FU35: 1995 | FV35: 1915 | FW35: 1870 | FX35: 1815 | FY35: 1765 | FZ35: 1765 | GA35: 1755 | GB35: 1670 | GC35: 1560 | GD35: 1485 | GE35: 1420 | GF35: 1435 | GG35: 1405 | GH35: 1400 | GI35: 1385 | GJ35: 1385 | GK35: 1415 | GL35: 1430 | GM35: 1430 | GN35: 1420 | GO35: 1415 | GP35: 1375 | GQ35: 1335 | GR35: 1335 | GS35: 1315 | GT35: 1355 | GU35: 1355 | GV35: 1375 | GW35: 1415 | GX35: 1470 | GY35: 1535 | GZ35: 1505 | HA35: 1460 | HB35: 1405 | HC35: 1410 | HD35: 1540 | HE35: 1535 | HF35: 1490 | HG35: 1505 | HH35: 1425 | HI35: 1435 | HJ35: 1400 | HK35: 1430 | HL35: 1420
A36: Gravesham | B36: 785 | C36: 815 | D36: 790 | E36: 810 | F36: 795 | G36: 765 | H36: 735 | I36: 730 | J36: 715 | K36: 710 | L36: 675 | M36: 705 | N36: 715 | O36: 700 | P36: 715 | Q36: 710 | R36: 720 | S36: 720 | T36: 710 | U36: 725 | V36: 745 | W36: 795 | X36: 855 | Y36: 975 | Z36: 1130 | AA36: 1310 | AB36: 1375 | AC36: 1370 | AD36: 1385 | AE36: 1360 | AF36: 1385 | AG36: 1390 | AH36: 1375 | AI36: 1340 | AJ36: 1325 | AK36: 1330 | AL36: 1435 | AM36: 1455 | AN36: 1445 | AO36: 1425 | AP36: 1355 | AQ36: 1275 | AR36: 1235 | AS36: 1225 | AT36: 1175 | AU36: 1175 | AV36: 1200 | AW36: 1255 | AX36: 1325 | AY36: 1365 | AZ36: 1375 | BA36: 1380 | BB36: 1410 | BC36: 1410 | BD36: 1390 | BE36: 1395 | BF36: 1380 | BG36: 1390 | BH36: 1410 | BI36: 1465 | BJ36: 1515 | BK36: 1575 | BL36: 1575 | BM36: 1520 | BN36: 1505 | BO36: 1460 | BP36: 1420 | BQ36: 1440 | BR36: 1405 | BS36: 1385 | BT36: 1375 | BU36: 1330 | BV36: 1405 | BW36: 1480 | BX36: 1440 | BY36: 1390 | BZ36: 1320 | CA36: 1270 | CB36: 1210 | CC36: 1175 | CD36: 1150 | CE36: 1130 | CF36: 1060 | CG36: 1070 | CH36: 1105 | CI36: 1115 | CJ36: 1085 | CK36: 1060 | CL36: 975 | CM36: 915 | CN36: 855 | CO36: 815 | CP36: 810 | CQ36: 725 | CR36: 700 | CS36: 705 | CT36: 750 | CU36: 750 | CV36: 740 | CW36: 710 | CX36: 685 | CY36: 665 | CZ36: 650 | DA36: 665 | DB36: 660 | DC36: 640 | DD36: 635 | DE36: 650 | DF36: 680 | DG36: 730 | DH36: 735 | DI36: 725 | DJ36: 710 | DK36: 685 | DL36: 660 | DM36: 660 | DN36: 665 | DO36: 640 | DP36: 630 | DQ36: 635 | DR36: 675 | DS36: 715 | DT36: 720 | DU36: 690 | DV36: 685 | DW36: 695 | DX36: 695 | DY36: 695 | DZ36: 685 | EA36: 665 | EB36: 685 | EC36: 695 | ED36: 715 | EE36: 740 | EF36: 755 | EG36: 715 | EH36: 700 | EI36: 690 | EJ36: 720 | EK36: 735 | EL36: 740 | EM36: 785 | EN36: 805 | EO36: 820 | EP36: 845 | EQ36: 885 | ER36: 930 | ES36: 990 | ET36: 1020 | EU36: 1060 | EV36: 1120 | EW36: 1140 | EX36: 1160 | EY36: 1155 | EZ36: 1210 | FA36: 1230 | FB36: 1205 | FC36: 1255 | FD36: 1255 | FE36: 2200 | FF36: 2880 | FG36: 2715 | FH36: 2730 | FI36: 2790 | FJ36: 2780 | FK36: 2660 | FL36: 2685 | FM36: 2655 | FN36: 2625 | FO36: 2785 | FP36: 2780 | FQ36: 2740 | FR36: 2540 | FS36: 2375 | FT36: 2330 | FU36: 2220 | FV36: 2135 | FW36: 2025 | FX36: 1915 | FY36: 1905 | FZ36: 1840 | GA36: 1815 | GB36: 1730 | GC36: 1655 | GD36: 1590 | GE36: 1550 | GF36: 1515 | GG36: 1520 | GH36: 1520 | GI36: 1500 | GJ36: 1515 | GK36: 1555 | GL36: 1605 | GM36: 1605 | GN36: 1710 | GO36: 1765 | GP36: 1715 | GQ36: 1670 | GR36: 1720 | GS36: 1700 | GT36: 1725 | GU36: 1710 | GV36: 1720 | GW36: 1735 | GX36: 1755 | GY36: 1830 | GZ36: 1825 | HA36: 1815 | HB36: 1805 | HC36: 1785 | HD36: 1965 | HE36: 1905 | HF36: 1960 | HG36: 1925 | HH36: 1765 | HI36: 1785 | HJ36: 1780 | HK36: 1810 | HL36: 1800
A37: Maidstone | B37: 685 | C37: 700 | D37: 655 | E37: 635 | F37: 630 | G37: 585 | H37: 590 | I37: 555 | J37: 525 | K37: 510 | L37: 485 | M37: 505 | N37: 515 | O37: 525 | P37: 515 | Q37: 495 | R37: 500 | S37: 520 | T37: 525 | U37: 595 | V37: 605 | W37: 640 | X37: 730 | Y37: 840 | Z37: 965 | AA37: 1140 | AB37: 1210 | AC37: 1280 | AD37: 1330 | AE37: 1290 | AF37: 1285 | AG37: 1290 | AH37: 1305 | AI37: 1315 | AJ37: 1270 | AK37: 1275 | AL37: 1395 | AM37: 1415 | AN37: 1375 | AO37: 1365 | AP37: 1295 | AQ37: 1250 | AR37: 1210 | AS37: 1160 | AT37: 1155 | AU37: 1150 | AV37: 1165 | AW37: 1175 | AX37: 1270 | AY37: 1250 | AZ37: 1260 | BA37: 1225 | BB37: 1280 | BC37: 1255 | BD37: 1265 | BE37: 1235 | BF37: 1210 | BG37: 1190 | BH37: 1225 | BI37: 1260 | BJ37: 1315 | BK37: 1360 | BL37: 1325 | BM37: 1290 | BN37: 1285 | BO37: 1270 | BP37: 1290 | BQ37: 1275 | BR37: 1260 | BS37: 1325 | BT37: 1350 | BU37: 1320 | BV37: 1400 | BW37: 1420 | BX37: 1395 | BY37: 1345 | BZ37: 1310 | CA37: 1205 | CB37: 1150 | CC37: 1115 | CD37: 1075 | CE37: 1005 | CF37: 970 | CG37: 970 | CH37: 1030 | CI37: 1030 | CJ37: 975 | CK37: 910 | CL37: 870 | CM37: 790 | CN37: 760 | CO37: 725 | CP37: 670 | CQ37: 655 | CR37: 650 | CS37: 640 | CT37: 680 | CU37: 705 | CV37: 695 | CW37: 665 | CX37: 625 | CY37: 605 | CZ37: 605 | DA37: 595 | DB37: 595 | DC37: 590 | DD37: 590 | DE37: 570 | DF37: 610 | DG37: 660 | DH37: 670 | DI37: 670 | DJ37: 650 | DK37: 595 | DL37: 585 | DM37: 625 | DN37: 620 | DO37: 605 | DP37: 615 | DQ37: 615 | DR37: 645 | DS37: 670 | DT37: 705 | DU37: 705 | DV37: 695 | DW37: 675 | DX37: 650 | DY37: 630 | DZ37: 650 | EA37: 625 | EB37: 625 | EC37: 625 | ED37: 650 | EE37: 685 | EF37: 680 | EG37: 675 | EH37: 650 | EI37: 625 | EJ37: 600 | EK37: 605 | EL37: 605 | EM37: 600 | EN37: 600 | EO37: 625 | EP37: 705 | EQ37: 765 | ER37: 815 | ES37: 910 | ET37: 915 | EU37: 1010 | EV37: 1070 | EW37: 1045 | EX37: 1120 | EY37: 1140 | EZ37: 1155 | FA37: 1195 | FB37: 1230 | FC37: 1275 | FD37: 1275 | FE37: 2520 | FF37: 3320 | FG37: 3030 | FH37: 3070 | FI37: 3175 | FJ37: 3095 | FK37: 2910 | FL37: 2945 | FM37: 2935 | FN37: 2875 | FO37: 3100 | FP37: 3140 | FQ37: 3100 | FR37: 2910 | FS37: 2645 | FT37: 2630 | FU37: 2625 | FV37: 2560 | FW37: 2430 | FX37: 2345 | FY37: 2305 | FZ37: 2265 | GA37: 2300 | GB37: 2185 | GC37: 2035 | GD37: 1935 | GE37: 1870 | GF37: 1790 | GG37: 1800 | GH37: 1775 | GI37: 1795 | GJ37: 1800 | GK37: 1790 | GL37: 1795 | GM37: 1780 | GN37: 1840 | GO37: 1885 | GP37: 1825 | GQ37: 1885 | GR37: 1905 | GS37: 1890 | GT37: 1930 | GU37: 2005 | GV37: 1965 | GW37: 2010 | GX37: 2025 | GY37: 2115 | GZ37: 2105 | HA37: 2110 | HB37: 2080 | HC37: 2115 | HD37: 2275 | HE37: 2225 | HF37: 2255 | HG37: 2235 | HH37: 2125 | HI37: 2120 | HJ37: 2105 | HK37: 2195 | HL37: 2220
A38: Sevenoaks | B38: 330 | C38: 345 | D38: 320 | E38: 295 | F38: 290 | G38: 260 | H38: 270 | I38: 255 | J38: 245 | K38: 240 | L38: 255 | M38: 245 | N38: 260 | O38: 250 | P38: 255 | Q38: 250 | R38: 255 | S38: 255 | T38: 265 | U38: 295 | V38: 330 | W38: 365 | X38: 410 | Y38: 470 | Z38: 555 | AA38: 695 | AB38: 745 | AC38: 775 | AD38: 800 | AE38: 780 | AF38: 765 | AG38: 745 | AH38: 730 | AI38: 735 | AJ38: 760 | AK38: 755 | AL38: 805 | AM38: 805 | AN38: 790 | AO38: 780 | AP38: 725 | AQ38: 690 | AR38: 680 | AS38: 645 | AT38: 645 | AU38: 645 | AV38: 630 | AW38: 635 | AX38: 665 | AY38: 685 | AZ38: 700 | BA38: 655 | BB38: 660 | BC38: 645 | BD38: 650 | BE38: 630 | BF38: 660 | BG38: 670 | BH38: 655 | BI38: 660 | BJ38: 715 | BK38: 720 | BL38: 715 | BM38: 665 | BN38: 670 | BO38: 665 | BP38: 670 | BQ38: 670 | BR38: 655 | BS38: 630 | BT38: 640 | BU38: 660 | BV38: 670 | BW38: 670 | BX38: 655 | BY38: 635 | BZ38: 600 | CA38: 530 | CB38: 505 | CC38: 510 | CD38: 470 | CE38: 460 | CF38: 460 | CG38: 445 | CH38: 465 | CI38: 445 | CJ38: 450 | CK38: 430 | CL38: 420 | CM38: 410 | CN38: 390 | CO38: 365 | CP38: 345 | CQ38: 330 | CR38: 315 | CS38: 315 | CT38: 345 | CU38: 320 | CV38: 305 | CW38: 305 | CX38: 290 | CY38: 290 | CZ38: 295 | DA38: 290 | DB38: 280 | DC38: 290 | DD38: 290 | DE38: 275 | DF38: 285 | DG38: 270 | DH38: 280 | DI38: 275 | DJ38: 275 | DK38: 275 | DL38: 265 | DM38: 280 | DN38: 280 | DO38: 270 | DP38: 250 | DQ38: 260 | DR38: 260 | DS38: 255 | DT38: 245 | DU38: 260 | DV38: 245 | DW38: 245 | DX38: 255 | DY38: 265 | DZ38: 255 | EA38: 255 | EB38: 245 | EC38: 250 | ED38: 260 | EE38: 265 | EF38: 265 | EG38: 265 | EH38: 265 | EI38: 240 | EJ38: 225 | EK38: 230 | EL38: 230 | EM38: 240 | EN38: 255 | EO38: 275 | EP38: 290 | EQ38: 350 | ER38: 365 | ES38: 380 | ET38: 380 | EU38: 420 | EV38: 440 | EW38: 465 | EX38: 490 | EY38: 495 | EZ38: 495 | FA38: 490 | FB38: 500 | FC38: 535 | FD38: 540 | FE38: 1250 | FF38: 1685 | FG38: 1520 | FH38: 1570 | FI38: 1650 | FJ38: 1605 | FK38: 1510 | FL38: 1540 | FM38: 1525 | FN38: 1485 | FO38: 1610 | FP38: 1575 | FQ38: 1565 | FR38: 1430 | FS38: 1290 | FT38: 1290 | FU38: 1245 | FV38: 1145 | FW38: 1090 | FX38: 1060 | FY38: 1035 | FZ38: 1005 | GA38: 955 | GB38: 905 | GC38: 865 | GD38: 830 | GE38: 850 | GF38: 855 | GG38: 840 | GH38: 825 | GI38: 840 | GJ38: 835 | GK38: 850 | GL38: 845 | GM38: 865 | GN38: 870 | GO38: 915 | GP38: 865 | GQ38: 875 | GR38: 850 | GS38: 830 | GT38: 870 | GU38: 875 | GV38: 890 | GW38: 900 | GX38: 900 | GY38: 905 | GZ38: 890 | HA38: 890 | HB38: 880 | HC38: 905 | HD38: 980 | HE38: 950 | HF38: 960 | HG38: 955 | HH38: 915 | HI38: 905 | HJ38: 950 | HK38: 965 | HL38: 980
A39: Swale | B39: 975 | C39: 990 | D39: 930 | E39: 930 | F39: 870 | G39: 825 | H39: 805 | I39: 785 | J39: 780 | K39: 760 | L39: 765 | M39: 765 | N39: 790 | O39: 780 | P39: 760 | Q39: 745 | R39: 720 | S39: 715 | T39: 760 | U39: 790 | V39: 785 | W39: 830 | X39: 960 | Y39: 1095 | Z39: 1285 | AA39: 1500 | AB39: 1555 | AC39: 1535 | AD39: 1615 | AE39: 1575 | AF39: 1545 | AG39: 1560 | AH39: 1545 | AI39: 1585 | AJ39: 1580 | AK39: 1630 | AL39: 1690 | AM39: 1660 | AN39: 1630 | AO39: 1620 | AP39: 1610 | AQ39: 1530 | AR39: 1515 | AS39: 1485 | AT39: 1465 | AU39: 1475 | AV39: 1500 | AW39: 1540 | AX39: 1600 | AY39: 1600 | AZ39: 1640 | BA39: 1605 | BB39: 1590 | BC39: 1580 | BD39: 1600 | BE39: 1580 | BF39: 1620 | BG39: 1605 | BH39: 1655 | BI39: 1685 | BJ39: 1805 | BK39: 1890 | BL39: 1855 | BM39: 1805 | BN39: 1800 | BO39: 1710 | BP39: 1720 | BQ39: 1700 | BR39: 1690 | BS39: 1690 | BT39: 1700 | BU39: 1710 | BV39: 1760 | BW39: 1775 | BX39: 1750 | BY39: 1650 | BZ39: 1615 | CA39: 1545 | CB39: 1510 | CC39: 1465 | CD39: 1385 | CE39: 1360 | CF39: 1340 | CG39: 1390 | CH39: 1435 | CI39: 1390 | CJ39: 1345 | CK39: 1285 | CL39: 1200 | CM39: 1115 | CN39: 1065 | CO39: 1030 | CP39: 930 | CQ39: 915 | CR39: 875 | CS39: 880 | CT39: 945 | CU39: 895 | CV39: 905 | CW39: 895 | CX39: 865 | CY39: 825 | CZ39: 825 | DA39: 780 | DB39: 800 | DC39: 810 | DD39: 835 | DE39: 880 | DF39: 920 | DG39: 930 | DH39: 935 | DI39: 945 | DJ39: 925 | DK39: 920 | DL39: 915 | DM39: 895 | DN39: 895 | DO39: 915 | DP39: 905 | DQ39: 910 | DR39: 935 | DS39: 960 | DT39: 1005 | DU39: 1005 | DV39: 995 | DW39: 990 | DX39: 1000 | DY39: 955 | DZ39: 940 | EA39: 945 | EB39: 925 | EC39: 925 | ED39: 950 | EE39: 995 | EF39: 1080 | EG39: 1210 | EH39: 1190 | EI39: 1180 | EJ39: 1195 | EK39: 1235 | EL39: 1260 | EM39: 1280 | EN39: 1300 | EO39: 1325 | EP39: 1330 | EQ39: 1425 | ER39: 1425 | ES39: 1430 | ET39: 1460 | EU39: 1505 | EV39: 1515 | EW39: 1520 | EX39: 1535 | EY39: 1595 | EZ39: 1615 | FA39: 1655 | FB39: 1665 | FC39: 1695 | FD39: 1700 | FE39: 3000 | FF39: 3380 | FG39: 3150 | FH39: 3190 | FI39: 3260 | FJ39: 3210 | FK39: 3070 | FL39: 3090 | FM39: 3080 | FN39: 3005 | FO39: 3165 | FP39: 3175 | FQ39: 3105 | FR39: 2935 | FS39: 2750 | FT39: 2760 | FU39: 2660 | FV39: 2605 | FW39: 2495 | FX39: 2445 | FY39: 2350 | FZ39: 2355 | GA39: 2400 | GB39: 2285 | GC39: 2180 | GD39: 2060 | GE39: 2000 | GF39: 1915 | GG39: 1910 | GH39: 1900 | GI39: 1880 | GJ39: 1870 | GK39: 1910 | GL39: 1905 | GM39: 1980 | GN39: 1955 | GO39: 1965 | GP39: 1920 | GQ39: 1865 | GR39: 1910 | GS39: 1880 | GT39: 1885 | GU39: 1950 | GV39: 1965 | GW39: 2030 | GX39: 2060 | GY39: 2090 | GZ39: 2030 | HA39: 1975 | HB39: 1980 | HC39: 1925 | HD39: 2085 | HE39: 2110 | HF39: 2075 | HG39: 1990 | HH39: 1965 | HI39: 1920 | HJ39: 1930 | HK39: 1985 | HL39: 2000
A40: Thanet | B40: 1295 | C40: 1285 | D40: 1290 | E40: 1220 | F40: 1190 | G40: 1155 | H40: 1095 | I40: 1080 | J40: 1095 | K40: 1045 | L40: 1000 | M40: 1050 | N40: 1065 | O40: 1100 | P40: 1075 | Q40: 1105 | R40: 1125 | S40: 1120 | T40: 1170 | U40: 1245 | V40: 1280 | W40: 1295 | X40: 1460 | Y40: 1615 | Z40: 1790 | AA40: 1930 | AB40: 2035 | AC40: 2050 | AD40: 2085 | AE40: 2095 | AF40: 2080 | AG40: 2105 | AH40: 2110 | AI40: 2100 | AJ40: 2150 | AK40: 2240 | AL40: 2290 | AM40: 2345 | AN40: 2325 | AO40: 2310 | AP40: 2260 | AQ40: 2170 | AR40: 2160 | AS40: 2125 | AT40: 2095 | AU40: 2085 | AV40: 2135 | AW40: 2165 | AX40: 2275 | AY40: 2320 | AZ40: 2300 | BA40: 2320 | BB40: 2345 | BC40: 2285 | BD40: 2260 | BE40: 2285 | BF40: 2330 | BG40: 2345 | BH40: 2395 | BI40: 2460 | BJ40: 2520 | BK40: 2595 | BL40: 2560 | BM40: 2545 | BN40: 2535 | BO40: 2505 | BP40: 2495 | BQ40: 2515 | BR40: 2480 | BS40: 2505 | BT40: 2515 | BU40: 2555 | BV40: 2630 | BW40: 2685 | BX40: 2615 | BY40: 2575 | BZ40: 2500 | CA40: 2450 | CB40: 2395 | CC40: 2350 | CD40: 2315 | CE40: 2265 | CF40: 2230 | CG40: 2230 | CH40: 2310 | CI40: 2290 | CJ40: 2220 | CK40: 2110 | CL40: 2010 | CM40: 1930 | CN40: 1825 | CO40: 1715 | CP40: 1650 | CQ40: 1565 | CR40: 1570 | CS40: 1520 | CT40: 1535 | CU40: 1535 | CV40: 1510 | CW40: 1450 | CX40: 1340 | CY40: 1250 | CZ40: 1205 | DA40: 1180 | DB40: 1145 | DC40: 1150 | DD40: 1145 | DE40: 1235 | DF40: 1395 | DG40: 1445 | DH40: 1490 | DI40: 1455 | DJ40: 1415 | DK40: 1380 | DL40: 1330 | DM40: 1345 | DN40: 1350 | DO40: 1365 | DP40: 1345 | DQ40: 1370 | DR40: 1395 | DS40: 1445 | DT40: 1470 | DU40: 1500 | DV40: 1440 | DW40: 1415 | DX40: 1405 | DY40: 1380 | DZ40: 1395 | EA40: 1455 | EB40: 1535 | EC40: 1665 | ED40: 1745 | EE40: 1860 | EF40: 1895 | EG40: 2165 | EH40: 2065 | EI40: 2060 | EJ40: 2060 | EK40: 2060 | EL40: 2045 | EM40: 2115 | EN40: 2155 | EO40: 2225 | EP40: 2245 | EQ40: 2330 | ER40: 2320 | ES40: 2285 | ET40: 2285 | EU40: 2330 | EV40: 2340 | EW40: 2330 | EX40: 2345 | EY40: 2350 | EZ40: 2385 | FA40: 2360 | FB40: 2420 | FC40: 2495 | FD40: 2500 | FE40: 4080 | FF40: 4955 | FG40: 4620 | FH40: 4745 | FI40: 4805 | FJ40: 4670 | FK40: 4415 | FL40: 4560 | FM40: 4485 | FN40: 4335 | FO40: 4450 | FP40: 4360 | FQ40: 4315 | FR40: 4120 | FS40: 3920 | FT40: 3825 | FU40: 3730 | FV40: 3580 | FW40: 3450 | FX40: 3355 | FY40: 3335 | FZ40: 3325 | GA40: 3340 | GB40: 3145 | GC40: 2960 | GD40: 2890 | GE40: 2750 | GF40: 2695 | GG40: 2645 | GH40: 2650 | GI40: 2615 | GJ40: 2645 | GK40: 2655 | GL40: 2645 | GM40: 2665 | GN40: 2720 | GO40: 2775 | GP40: 2675 | GQ40: 2675 | GR40: 2650 | GS40: 2625 | GT40: 2515 | GU40: 2510 | GV40: 2540 | GW40: 2575 | GX40: 2605 | GY40: 2640 | GZ40: 2585 | HA40: 2505 | HB40: 2440 | HC40: 2375 | HD40: 2595 | HE40: 2570 | HF40: 2540 | HG40: 2550 | HH40: 2500 | HI40: 2505 | HJ40: 2465 | HK40: 2540 | HL40: 2535
A41: Tonbridge & Malling | B41: 400 | C41: 410 | D41: 390 | E41: 365 | F41: 355 | G41: 335 | H41: 340 | I41: 330 | J41: 330 | K41: 310 | L41: 300 | M41: 300 | N41: 335 | O41: 335 | P41: 335 | Q41: 330 | R41: 295 | S41: 325 | T41: 335 | U41: 375 | V41: 370 | W41: 375 | X41: 455 | Y41: 525 | Z41: 625 | AA41: 790 | AB41: 825 | AC41: 860 | AD41: 870 | AE41: 870 | AF41: 870 | AG41: 850 | AH41: 870 | AI41: 850 | AJ41: 820 | AK41: 805 | AL41: 885 | AM41: 855 | AN41: 840 | AO41: 815 | AP41: 805 | AQ41: 760 | AR41: 755 | AS41: 730 | AT41: 690 | AU41: 640 | AV41: 645 | AW41: 655 | AX41: 725 | AY41: 780 | AZ41: 770 | BA41: 765 | BB41: 770 | BC41: 775 | BD41: 790 | BE41: 795 | BF41: 810 | BG41: 810 | BH41: 800 | BI41: 795 | BJ41: 830 | BK41: 895 | BL41: 865 | BM41: 855 | BN41: 845 | BO41: 845 | BP41: 835 | BQ41: 830 | BR41: 805 | BS41: 800 | BT41: 815 | BU41: 795 | BV41: 835 | BW41: 860 | BX41: 830 | BY41: 795 | BZ41: 790 | CA41: 745 | CB41: 725 | CC41: 715 | CD41: 640 | CE41: 610 | CF41: 580 | CG41: 565 | CH41: 605 | CI41: 610 | CJ41: 595 | CK41: 560 | CL41: 530 | CM41: 490 | CN41: 480 | CO41: 490 | CP41: 445 | CQ41: 440 | CR41: 395 | CS41: 395 | CT41: 420 | CU41: 425 | CV41: 430 | CW41: 425 | CX41: 400 | CY41: 375 | CZ41: 365 | DA41: 370 | DB41: 375 | DC41: 375 | DD41: 345 | DE41: 345 | DF41: 365 | DG41: 380 | DH41: 370 | DI41: 370 | DJ41: 385 | DK41: 365 | DL41: 350 | DM41: 360 | DN41: 340 | DO41: 355 | DP41: 350 | DQ41: 355 | DR41: 350 | DS41: 370 | DT41: 370 | DU41: 380 | DV41: 380 | DW41: 370 | DX41: 370 | DY41: 375 | DZ41: 365 | EA41: 355 | EB41: 355 | EC41: 360 | ED41: 370 | EE41: 365 | EF41: 365 | EG41: 355 | EH41: 340 | EI41: 325 | EJ41: 335 | EK41: 320 | EL41: 310 | EM41: 305 | EN41: 305 | EO41: 310 | EP41: 360 | EQ41: 385 | ER41: 410 | ES41: 440 | ET41: 460 | EU41: 495 | EV41: 545 | EW41: 560 | EX41: 585 | EY41: 620 | EZ41: 655 | FA41: 630 | FB41: 645 | FC41: 665 | FD41: 680 | FE41: 1425 | FF41: 2000 | FG41: 1790 | FH41: 1855 | FI41: 1905 | FJ41: 1925 | FK41: 1800 | FL41: 1780 | FM41: 1755 | FN41: 1670 | FO41: 1810 | FP41: 1790 | FQ41: 1775 | FR41: 1660 | FS41: 1500 | FT41: 1515 | FU41: 1460 | FV41: 1375 | FW41: 1290 | FX41: 1240 | FY41: 1185 | FZ41: 1135 | GA41: 1140 | GB41: 1100 | GC41: 1020 | GD41: 1030 | GE41: 995 | GF41: 945 | GG41: 940 | GH41: 935 | GI41: 940 | GJ41: 955 | GK41: 960 | GL41: 955 | GM41: 955 | GN41: 980 | GO41: 1015 | GP41: 960 | GQ41: 970 | GR41: 1020 | GS41: 1010 | GT41: 1015 | GU41: 1005 | GV41: 1055 | GW41: 1070 | GX41: 1045 | GY41: 1100 | GZ41: 1075 | HA41: 1025 | HB41: 1040 | HC41: 1045 | HD41: 1160 | HE41: 1145 | HF41: 1150 | HG41: 1130 | HH41: 1090 | HI41: 1070 | HJ41: 1090 | HK41: 1145 | HL41: 1160
A42: Tunbridge Wells | B42: 330 | C42: 340 | D42: 330 | E42: 315 | F42: 315 | G42: 310 | H42: 315 | I42: 315 | J42: 305 | K42: 320 | L42: 290 | M42: 285 | N42: 285 | O42: 285 | P42: 285 | Q42: 305 | R42: 310 | S42: 280 | T42: 285 | U42: 325 | V42: 315 | W42: 355 | X42: 465 | Y42: 495 | Z42: 595 | AA42: 730 | AB42: 780 | AC42: 815 | AD42: 820 | AE42: 780 | AF42: 785 | AG42: 750 | AH42: 735 | AI42: 695 | AJ42: 680 | AK42: 675 | AL42: 740 | AM42: 755 | AN42: 760 | AO42: 740 | AP42: 715 | AQ42: 675 | AR42: 670 | AS42: 655 | AT42: 655 | AU42: 645 | AV42: 620 | AW42: 600 | AX42: 620 | AY42: 635 | AZ42: 645 | BA42: 635 | BB42: 650 | BC42: 650 | BD42: 685 | BE42: 680 | BF42: 670 | BG42: 640 | BH42: 655 | BI42: 630 | BJ42: 660 | BK42: 690 | BL42: 690 | BM42: 645 | BN42: 630 | BO42: 625 | BP42: 625 | BQ42: 620 | BR42: 600 | BS42: 595 | BT42: 595 | BU42: 565 | BV42: 605 | BW42: 650 | BX42: 600 | BY42: 590 | BZ42: 560 | CA42: 515 | CB42: 495 | CC42: 475 | CD42: 440 | CE42: 395 | CF42: 385 | CG42: 395 | CH42: 430 | CI42: 445 | CJ42: 450 | CK42: 430 | CL42: 415 | CM42: 370 | CN42: 330 | CO42: 320 | CP42: 335 | CQ42: 315 | CR42: 300 | CS42: 270 | CT42: 305 | CU42: 310 | CV42: 310 | CW42: 305 | CX42: 285 | CY42: 285 | CZ42: 265 | DA42: 255 | DB42: 260 | DC42: 275 | DD42: 280 | DE42: 275 | DF42: 280 | DG42: 285 | DH42: 280 | DI42: 290 | DJ42: 280 | DK42: 285 | DL42: 275 | DM42: 310 | DN42: 300 | DO42: 295 | DP42: 300 | DQ42: 275 | DR42: 305 | DS42: 325 | DT42: 335 | DU42: 330 | DV42: 330 | DW42: 340 | DX42: 355 | DY42: 345 | DZ42: 345 | EA42: 335 | EB42: 330 | EC42: 310 | ED42: 330 | EE42: 345 | EF42: 335 | EG42: 325 | EH42: 295 | EI42: 305 | EJ42: 290 | EK42: 290 | EL42: 295 | EM42: 280 | EN42: 305 | EO42: 290 | EP42: 325 | EQ42: 385 | ER42: 435 | ES42: 430 | ET42: 470 | EU42: 490 | EV42: 500 | EW42: 490 | EX42: 520 | EY42: 560 | EZ42: 580 | FA42: 585 | FB42: 595 | FC42: 620 | FD42: 615 | FE42: 1360 | FF42: 1890 | FG42: 1715 | FH42: 1775 | FI42: 1855 | FJ42: 1820 | FK42: 1720 | FL42: 1745 | FM42: 1760 | FN42: 1730 | FO42: 1840 | FP42: 1835 | FQ42: 1755 | FR42: 1595 | FS42: 1435 | FT42: 1425 | FU42: 1350 | FV42: 1295 | FW42: 1220 | FX42: 1170 | FY42: 1110 | FZ42: 1085 | GA42: 1060 | GB42: 1055 | GC42: 960 | GD42: 945 | GE42: 930 | GF42: 910 | GG42: 905 | GH42: 950 | GI42: 935 | GJ42: 930 | GK42: 925 | GL42: 895 | GM42: 925 | GN42: 945 | GO42: 980 | GP42: 985 | GQ42: 985 | GR42: 980 | GS42: 995 | GT42: 990 | GU42: 965 | GV42: 960 | GW42: 965 | GX42: 950 | GY42: 1015 | GZ42: 1015 | HA42: 985 | HB42: 1015 | HC42: 1005 | HD42: 1075 | HE42: 1075 | HF42: 1120 | HG42: 1135 | HH42: 1115 | HI42: 1090 | HJ42: 1070 | HK42: 1110 | HL42: 1100
A43: South East LEP | B43: 23790 | C43: 24220 | D43: 23460 | E43: 22890 | F43: 22085 | G43: 21060 | H43: 20375 | I43: 20035 | J43: 19630 | K43: 19180 | L43: 18920 | M43: 19350 | N43: 20330 | O43: 20435 | P43: 20185 | Q43: 20195 | R43: 20405 | S43: 20320 | T43: 21020 | U43: 22085 | V43: 22710 | W43: 24065 | X43: 27145 | Y43: 30500 | Z43: 34595 | AA43: 40260 | AB43: 42040 | AC43: 43440 | AD43: 44240 | AE43: 43405 | AF43: 42790 | AG43: 43275 | AH43: 43075 | AI43: 43080 | AJ43: 42855 | AK43: 43330 | AL43: 46095 | AM43: 45990 | AN43: 45265 | AO43: 44545 | AP43: 42965 | AQ43: 41295 | AR43: 40660 | AS43: 40405 | AT43: 39475 | AU43: 38790 | AV43: 39165 | AW43: 40300 | AX43: 42280 | AY43: 42910 | AZ43: 42785 | BA43: 42465 | BB43: 42710 | BC43: 42125 | BD43: 42395 | BE43: 42485 | BF43: 42430 | BG43: 42445 | BH43: 42725 | BI43: 43320 | BJ43: 45520 | BK43: 46700 | BL43: 46095 | BM43: 44695 | BN43: 44140 | BO43: 43270 | BP43: 42885 | BQ43: 42585 | BR43: 41975 | BS43: 42085 | BT43: 42450 | BU43: 42810 | BV43: 44255 | BW43: 45270 | BX43: 44140 | BY43: 42740 | BZ43: 41530 | CA43: 39545 | CB43: 38130 | CC43: 37265 | CD43: 35640 | CE43: 34410 | CF43: 33575 | CG43: 33320 | CH43: 34210 | CI43: 34090 | CJ43: 32850 | CK43: 31210 | CL43: 29605 | CM43: 27455 | CN43: 26300 | CO43: 25030 | CP43: 23845 | CQ43: 22905 | CR43: 22380 | CS43: 22095 | CT43: 23065 | CU43: 22960 | CV43: 22370 | CW43: 21510 | CX43: 20500 | CY43: 19805 | CZ43: 19650 | DA43: 19495 | DB43: 19380 | DC43: 19410 | DD43: 19170 | DE43: 19360 | DF43: 20240 | DG43: 20970 | DH43: 21150 | DI43: 20735 | DJ43: 20410 | DK43: 19795 | DL43: 19325 | DM43: 19575 | DN43: 19375 | DO43: 19325 | DP43: 19285 | DQ43: 19555 | DR43: 20130 | DS43: 20820 | DT43: 21025 | DU43: 21085 | DV43: 20715 | DW43: 20435 | DX43: 20430 | DY43: 20200 | DZ43: 20120 | EA43: 20120 | EB43: 20225 | EC43: 20830 | ED43: 21855 | EE43: 23025 | EF43: 23600 | EG43: 25050 | EH43: 24325 | EI43: 24085 | EJ43: 24255 | EK43: 24670 | EL43: 25295 | EM43: 26340 | EN43: 27135 | EO43: 28070 | EP43: 29190 | EQ43: 31110 | ER43: 31735 | ES43: 32340 | ET43: 32645 | EU43: 33830 | EV43: 34225 | EW43: 34360 | EX43: 34900 | EY43: 35945 | EZ43: 36480 | FA43: 36845 | FB43: 37450 | FC43: 39080 | FD43: 39395 | FE43: 71885 | FF43: 92655 | FG43: 84880 | FH43: 87045 | FI43: 89785 | FJ43: 88035 | FK43: 83070 | FL43: 84195 | FM43: 84275 | FN43: 82280 | FO43: 87220 | FP43: 86655 | FQ43: 85375 | FR43: 79220 | FS43: 72760 | FT43: 71705 | FU43: 69270 | FV43: 65755 | FW43: 63580 | FX43: 61665 | FY43: 60020 | FZ43: 59030 | GA43: 59310 | GB43: 56410 | GC43: 53055 | GD43: 51550 | GE43: 49985 | GF43: 48960 | GG43: 48615 | GH43: 48345 | GI43: 47675 | GJ43: 48010 | GK43: 48300 | GL43: 48205 | GM43: 48610 | GN43: 49285 | GO43: 50190 | GP43: 48655 | GQ43: 49210 | GR43: 49230 | GS43: 48710 | GT43: 48965 | GU43: 48895 | GV43: 49680 | GW43: 50560 | GX43: 50925 | GY43: 52265 | GZ43: 51790 | HA43: 50820 | HB43: 50930 | HC43: 51495 | HD43: 55945 | HE43: 55560 | HF43: 55295 | HG43: 54510 | HH43: 52820 | HI43: 52205 | HJ43: 51985 | HK43: 53665 | HL43: 54250
A44: England | B44: 424795 | C44: 425700 | D44: 417565 | E44: 404300 | F44: 393445 | G44: 380470 | H44: 375080 | I44: 373670 | J44: 362875 | K44: 354445 | L44: 349835 | M44: 353435 | N44: 370820 | O44: 374755 | P44: 371950 | Q44: 371930 | R44: 372940 | S44: 374605 | T44: 385230 | U44: 404280 | V44: 414120 | W44: 429155 | X44: 470140 | Y44: 517095 | Z44: 577970 | AA44: 654900 | AB44: 685930 | AC44: 708800 | AD44: 719295 | AE44: 714245 | AF44: 713435 | AG44: 718195 | AH44: 714985 | AI44: 714330 | AJ44: 711160 | AK44: 712715 | AL44: 751490 | AM44: 749170 | AN44: 733650 | AO44: 721805 | AP44: 698815 | AQ44: 673370 | AR44: 662870 | AS44: 661710 | AT44: 653805 | AU44: 642100 | AV44: 643635 | AW44: 652500 | AX44: 688995 | AY44: 699875 | AZ44: 698595 | BA44: 700885 | BB44: 699265 | BC44: 693140 | BD44: 698430 | BE44: 704635 | BF44: 703055 | BG44: 696915 | BH44: 698010 | BI44: 705735 | BJ44: 741260 | BK44: 753575 | BL44: 745740 | BM44: 730130 | BN44: 723210 | BO44: 713925 | BP44: 711030 | BQ44: 708010 | BR44: 704230 | BS44: 706050 | BT44: 706795 | BU44: 707150 | BV44: 731520 | BW44: 741965 | BX44: 729320 | BY44: 712505 | BZ44: 693990 | CA44: 666120 | CB44: 648610 | CC44: 631305 | CD44: 602275 | CE44: 577720 | CF44: 558525 | CG44: 552015 | CH44: 569885 | CI44: 566395 | CJ44: 545125 | CK44: 522750 | CL44: 501015 | CM44: 468420 | CN44: 451790 | CO44: 433110 | CP44: 414800 | CQ44: 398795 | CR44: 383630 | CS44: 375145 | CT44: 389770 | CU44: 391595 | CV44: 379440 | CW44: 371215 | CX44: 360275 | CY44: 348665 | CZ44: 344890 | DA44: 341060 | DB44: 335150 | DC44: 329820 | DD44: 323020 | DE44: 322745 | DF44: 340390 | DG44: 350645 | DH44: 351555 | DI44: 347320 | DJ44: 342545 | DK44: 335915 | DL44: 332190 | DM44: 332395 | DN44: 330205 | DO44: 327030 | DP44: 324655 | DQ44: 323095 | DR44: 335230 | DS44: 348505 | DT44: 355445 | DU44: 358620 | DV44: 357050 | DW44: 352955 | DX44: 349495 | DY44: 349090 | DZ44: 347555 | EA44: 345660 | EB44: 344370 | EC44: 349485 | ED44: 363325 | EE44: 383215 | EF44: 391110 | EG44: 410040 | EH44: 398905 | EI44: 396175 | EJ44: 396650 | EK44: 402170 | EL44: 408495 | EM44: 415170 | EN44: 422320 | EO44: 433655 | EP44: 451030 | EQ44: 480615 | ER44: 493870 | ES44: 503065 | ET44: 509435 | EU44: 522995 | EV44: 527065 | EW44: 535820 | EX44: 540355 | EY44: 550900 | EZ44: 557400 | FA44: 562410 | FB44: 571410 | FC44: 594960 | FD44: 602115 | FE44: 1034410 | FF44: 1319550 | FG44: 1265325 | FH44: 1285060 | FI44: 1313240 | FJ44: 1296525 | FK44: 1245840 | FL44: 1268120 | FM44: 1262445 | FN44: 1243365 | FO44: 1312005 | FP44: 1310490 | FQ44: 1291525 | FR44: 1213415 | FS44: 1128620 | FT44: 1110050 | FU44: 1070965 | FV44: 1020100 | FW44: 990485 | FX44: 954060 | FY44: 923755 | FZ44: 906765 | GA44: 910275 | GB44: 879555 | GC44: 836560 | GD44: 813795 | GE44: 797045 | GF44: 779610 | GG44: 774975 | GH44: 772790 | GI44: 759815 | GJ44: 765825 | GK44: 772165 | GL44: 766835 | GM44: 780315 | GN44: 797370 | GO44: 814450 | GP44: 786020 | GQ44: 793250 | GR44: 798350 | GS44: 787585 | GT44: 788020 | GU44: 787430 | GV44: 791660 | GW44: 800750 | GX44: 805615 | GY44: 830065 | GZ44: 833320 | HA44: 826000 | HB44: 836040 | HC44: 859355 | HD44: 944225 | HE44: 935985 | HF44: 932275 | HG44: 917760 | HH44: 893860 | HI44: 879660 | HJ44: 877325 | HK44: 907820 | HL44: 921350
A45: England and Wales | B45: 447040 | C45: 447955 | D45: 439175 | E45: 425035 | F45: 413350 | G45: 399745 | H45: 394245 | I45: 393025 | J45: 381535 | K45: 372700 | L45: 368330 | M45: 372505 | N45: 391325 | O45: 395795 | P45: 392715 | Q45: 392495 | R45: 393350 | S45: 394960 | T45: 406545 | U45: 426945 | V45: 437195 | W45: 453040 | X45: 497000 | Y45: 547375 | Z45: 612680 | AA45: 693550 | AB45: 725685 | AC45: 749250 | AD45: 759485 | AE45: 754125 | AF45: 753475 | AG45: 758645 | AH45: 755060 | AI45: 753905 | AJ45: 750960 | AK45: 752925 | AL45: 794405 | AM45: 791670 | AN45: 774710 | AO45: 761980 | AP45: 737090 | AQ45: 710210 | AR45: 699660 | AS45: 698950 | AT45: 690245 | AU45: 677615 | AV45: 679820 | AW45: 689665 | AX45: 728995 | AY45: 739930 | AZ45: 737875 | BA45: 739645 | BB45: 737765 | BC45: 731355 | BD45: 737485 | BE45: 744275 | BF45: 742395 | BG45: 736020 | BH45: 737195 | BI45: 745370 | BJ45: 784400 | BK45: 797410 | BL45: 789030 | BM45: 772115 | BN45: 764305 | BO45: 754755 | BP45: 752305 | BQ45: 749925 | BR45: 746055 | BS45: 748115 | BT45: 748500 | BU45: 749430 | BV45: 775880 | BW45: 786830 | BX45: 773140 | BY45: 755185 | BZ45: 735495 | CA45: 705785 | CB45: 687395 | CC45: 669460 | CD45: 638750 | CE45: 613025 | CF45: 593140 | CG45: 586545 | CH45: 606425 | CI45: 602680 | CJ45: 580275 | CK45: 556705 | CL45: 533590 | CM45: 498905 | CN45: 481715 | CO45: 462080 | CP45: 442450 | CQ45: 425390 | CR45: 409585 | CS45: 400940 | CT45: 417005 | CU45: 418675 | CV45: 405360 | CW45: 396345 | CX45: 384640 | CY45: 372470 | CZ45: 368635 | DA45: 364780 | DB45: 358455 | DC45: 352465 | DD45: 345200 | DE45: 345005 | DF45: 364175 | DG45: 374955 | DH45: 375885 | DI45: 370945 | DJ45: 365820 | DK45: 358505 | DL45: 354580 | DM45: 354740 | DN45: 352185 | DO45: 348240 | DP45: 345445 | DQ45: 343620 | DR45: 356670 | DS45: 370670 | DT45: 377665 | DU45: 380500 | DV45: 378120 | DW45: 373500 | DX45: 369565 | DY45: 369055 | DZ45: 366990 | EA45: 364690 | EB45: 363335 | EC45: 368890 | ED45: 383895 | EE45: 405030 | EF45: 413320 | EG45: 433220 | EH45: 421550 | EI45: 418900 | EJ45: 419685 | EK45: 425555 | EL45: 432185 | EM45: 438870 | EN45: 446540 | EO45: 458625 | EP45: 477355 | EQ45: 508575 | ER45: 522735 | ES45: 531990 | ET45: 538630 | EU45: 553200 | EV45: 557185 | EW45: 566670 | EX45: 571575 | EY45: 582140 | EZ45: 589495 | FA45: 594710 | FB45: 603950 | FC45: 628440 | FD45: 635485 | FE45: 1093690 | FF45: 1385765 | FG45: 1328760 | FH45: 1349940 | FI45: 1378830 | FJ45: 1360385 | FK45: 1306610 | FL45: 1329395 | FM45: 1322855 | FN45: 1302890 | FO45: 1374370 | FP45: 1372355 | FQ45: 1352255 | FR45: 1270725 | FS45: 1181755 | FT45: 1161975 | FU45: 1121105 | FV45: 1068165 | FW45: 1037290 | FX45: 999535 | FY45: 968105 | FZ45: 950895 | GA45: 954425 | GB45: 922305 | GC45: 876405 | GD45: 852325 | GE45: 834745 | GF45: 816410 | GG45: 811930 | GH45: 809170 | GI45: 795070 | GJ45: 801380 | GK45: 808140 | GL45: 802560 | GM45: 816665 | GN45: 834445 | GO45: 852185 | GP45: 821855 | GQ45: 829240 | GR45: 833990 | GS45: 822720 | GT45: 822795 | GU45: 822180 | GV45: 827485 | GW45: 836440 | GX45: 841520 | GY45: 867155 | GZ45: 870275 | HA45: 862680 | HB45: 873030 | HC45: 897070 | HD45: 985105 | HE45: 976330 | HF45: 972165 | HG45: 956205 | HH45: 931650 | HI45: 916585 | HJ45: 914505 | HK45: 946040 | HL45: 959975
A46: Great Britain | B46: 493500 | C46: 494585 | D46: 484305 | E46: 467975 | F46: 454605 | G46: 439455 | H46: 433930 | I46: 432945 | J46: 419185 | K46: 409270 | L46: 405130 | M46: 409730 | N46: 431615 | O46: 436320 | P46: 432760 | Q46: 431995 | R46: 432355 | S46: 434515 | T46: 447805 | U46: 470490 | V46: 480990 | W46: 498180 | X46: 546180 | Y46: 600590 | Z46: 672100 | AA46: 759005 | AB46: 793485 | AC46: 817615 | AD46: 828395 | AE46: 823485 | AF46: 823930 | AG46: 830425 | AH46: 825155 | AI46: 824090 | AJ46: 822480 | AK46: 825720 | AL46: 873465 | AM46: 871415 | AN46: 853390 | AO46: 839155 | AP46: 811845 | AQ46: 783460 | AR46: 773975 | AS46: 773845 | AT46: 761955 | AU46: 749180 | AV46: 752535 | AW46: 765600 | AX46: 810310 | AY46: 821565 | AZ46: 818085 | BA46: 818070 | BB46: 815135 | BC46: 808750 | BD46: 816205 | BE46: 823470 | BF46: 818265 | BG46: 810620 | BH46: 812325 | BI46: 821430 | BJ46: 865480 | BK46: 879840 | BL46: 870515 | BM46: 850815 | BN46: 841700 | BO46: 832365 | BP46: 830805 | BQ46: 828635 | BR46: 821055 | BS46: 822715 | BT46: 823555 | BU46: 824730 | BV46: 855770 | BW46: 868225 | BX46: 852865 | BY46: 832640 | BZ46: 811005 | CA46: 779685 | CB46: 760095 | CC46: 740725 | CD46: 703745 | CE46: 675575 | CF46: 654640 | CG46: 647955 | CH46: 670720 | CI46: 666485 | CJ46: 641970 | CK46: 615680 | CL46: 590365 | CM46: 553360 | CN46: 535165 | CO46: 513965 | CP46: 490315 | CQ46: 471840 | CR46: 454945 | CS46: 446075 | CT46: 464770 | CU46: 467330 | CV46: 452860 | CW46: 442145 | CX46: 429315 | CY46: 416135 | CZ46: 413220 | DA46: 408700 | DB46: 399360 | DC46: 392085 | DD46: 384205 | DE46: 384290 | DF46: 406430 | DG46: 418500 | DH46: 419800 | DI46: 414075 | DJ46: 408440 | DK46: 400940 | DL46: 397380 | DM46: 398005 | DN46: 393295 | DO46: 388310 | DP46: 385505 | DQ46: 383530 | DR46: 398990 | DS46: 414685 | DT46: 422455 | DU46: 425195 | DV46: 422165 | DW46: 417260 | DX46: 413960 | DY46: 413205 | DZ46: 408615 | EA46: 405510 | EB46: 404500 | EC46: 411220 | ED46: 428245 | EE46: 451700 | EF46: 461150 | EG46: 483000 | EH46: 469905 | EI46: 467855 | EJ46: 469710 | EK46: 476285 | EL46: 482020 | EM46: 488655 | EN46: 497055 | EO46: 510225 | EP46: 531450 | EQ46: 566105 | ER46: 581730 | ES46: 591295 | ET46: 597530 | EU46: 613335 | EV46: 618440 | EW46: 628720 | EX46: 632065 | EY46: 642925 | EZ46: 651160 | FA46: 656785 | FB46: 667070 | FC46: 693190 | FD46: 700090 | FE46: 1203285 | FF46: 1508790 | FG46: 1448810 | FH46: 1474120 | FI46: 1505050 | FJ46: 1482080 | FK46: 1422660 | FL46: 1446750 | FM46: 1438065 | FN46: 1418070 | FO46: 1493945 | FP46: 1491875 | FQ46: 1469310 | FR46: 1380180 | FS46: 1283180 | FT46: 1261355 | FU46: 1217055 | FV46: 1157740 | FW46: 1123090 | FX46: 1082410 | FY46: 1048835 | FZ46: 1031015 | GA46: 1034035 | GB46: 998555 | GC46: 948180 | GD46: 920795 | GE46: 901420 | GF46: 882665 | GG46: 877770 | GH46: 873330 | GI46: 857785 | GJ46: 865325 | GK46: 872965 | GL46: 867215 | GM46: 882415 | GN46: 901805 | GO46: 921425 | GP46: 887380 | GQ46: 894740 | GR46: 900205 | GS46: 887155 | GT46: 885015 | GU46: 883415 | GV46: 889945 | GW46: 899630 | GX46: 904270 | GY46: 931600 | GZ46: 935455 | HA46: 926370 | HB46: 936410 | HC46: 961920 | HD46: 1054600 | HE46: 1045665 | HF46: 1039290 | HG46: 1020740 | HH46: 995630 | HI46: 978735 | HJ46: 977545 | HK46: 1011420 | HL46: 1025930
A47: United Kingdom | B47: 506925 | C47: 507870 | D47: 497470 | E47: 480780 | F47: 467025 | G47: 451395 | H47: 446100 | I47: 445415 | J47: 431120 | K47: 420915 | L47: 416685 | M47: 421470 | N47: 444095 | O47: 448965 | P47: 445335 | Q47: 444650 | R47: 444955 | S47: 447185 | T47: 461385 | U47: 484980 | V47: 495765 | W47: 513370 | X47: 563305 | Y47: 619005 | Z47: 692545 | AA47: 781460 | AB47: 816940 | AC47: 842205 | AD47: 853845 | AE47: 849240 | AF47: 850470 | AG47: 858185 | AH47: 853015 | AI47: 852030 | AJ47: 850660 | AK47: 854545 | AL47: 904005 | AM47: 902280 | AN47: 884260 | AO47: 869870 | AP47: 842190 | AQ47: 813625 | AR47: 804655 | AS47: 805675 | AT47: 793270 | AU47: 780265 | AV47: 783620 | AW47: 796880 | AX47: 843165 | AY47: 854835 | AZ47: 851215 | BA47: 850960 | BB47: 847945 | BC47: 841330 | BD47: 849390 | BE47: 857265 | BF47: 851605 | BG47: 843320 | BH47: 844955 | BI47: 854135 | BJ47: 900105 | BK47: 914695 | BL47: 905195 | BM47: 885630 | BN47: 876240 | BO47: 866650 | BP47: 865755 | BQ47: 864080 | BR47: 855980 | BS47: 857470 | BT47: 858430 | BU47: 860005 | BV47: 892390 | BW47: 905030 | BX47: 889145 | BY47: 868660 | BZ47: 846445 | CA47: 814100 | CB47: 794515 | CC47: 775290 | CD47: 737155 | CE47: 708220 | CF47: 686785 | CG47: 679940 | CH47: 703665 | CI47: 698940 | CJ47: 673575 | CK47: 646535 | CL47: 620525 | CM47: 582235 | CN47: 563485 | CO47: 542520 | CP47: 517925 | CQ47: 499105 | CR47: 481835 | CS47: 472685 | CT47: 491605 | CU47: 492955 | CV47: 477535 | CW47: 465830 | CX47: 452125 | CY47: 438500 | CZ47: 435640 | DA47: 430970 | DB47: 420520 | DC47: 412580 | DD47: 404275 | DE47: 404230 | DF47: 427070 | DG47: 439125 | DH47: 440115 | DI47: 433655 | DJ47: 427440 | DK47: 419510 | DL47: 416065 | DM47: 416535 | DN47: 411100 | DO47: 405310 | DP47: 402100 | DQ47: 399860 | DR47: 415745 | DS47: 431375 | DT47: 438980 | DU47: 441425 | DV47: 437985 | DW47: 432695 | DX47: 429750 | DY47: 429230 | DZ47: 423935 | EA47: 420375 | EB47: 419120 | EC47: 426065 | ED47: 443380 | EE47: 467025 | EF47: 476390 | EG47: 498195 | EH47: 484790 | EI47: 482360 | EJ47: 484360 | EK47: 491185 | EL47: 497130 | EM47: 503470 | EN47: 511780 | EO47: 524940 | EP47: 546565 | EQ47: 581375 | ER47: 597075 | ES47: 606550 | ET47: 612625 | EU47: 628535 | EV47: 633855 | EW47: 643990 | EX47: 647340 | EY47: 658680 | EZ47: 666580 | FA47: 672460 | FB47: 682670 | FC47: 708980 | FD47: 716030 | FE47: 1235440 | FF47: 1544625 | FG47: 1482680 | FH47: 1507615 | FI47: 1538955 | FJ47: 1515100 | FK47: 1454770 | FL47: 1478665 | FM47: 1469180 | FN47: 1448140 | FO47: 1525480 | FP47: 1522855 | FQ47: 1500220 | FR47: 1409155 | FS47: 1310300 | FT47: 1288225 | FU47: 1243360 | FV47: 1183535 | FW47: 1148205 | FX47: 1105835 | FY47: 1071250 | FZ47: 1052845 | GA47: 1055775 | GB47: 1019470 | GC47: 968680 | GD47: 940630 | GE47: 921155 | GF47: 902495 | GG47: 897800 | GH47: 893385 | GI47: 877870 | GJ47: 885085 | GK47: 892950 | GL47: 886795 | GM47: 902360 | GN47: 922235 | GO47: 942965 | GP47: 907410 | GQ47: 915045 | GR47: 921215 | GS47: 908190 | GT47: 906820 | GU47: 904915 | GV47: 910425 | GW47: 920075 | GX47: 924185 | GY47: 952455 | GZ47: 956540 | HA47: 947535 | HB47: 957290 | HC47: 984085 | HD47: 1079125 | HE47: 1070810 | HF47: 1065355 | HG47: 1046665 | HH47: 1019955 | HI47: 1001725 | HJ47: 999975 | HK47: 1035015 | HL47: 1049195
A48: South East Region | B48: 42395 | C48: 42500 | D48: 41540 | E48: 40295 | F48: 38635 | G48: 37160 | H48: 36410 | I48: 36125 | J48: 34760 | K48: 33925 | L48: 33685 | M48: 33965 | N48: 36020 | O48: 36530 | P48: 36215 | Q48: 36340 | R48: 36385 | S48: 36885 | T48: 38205 | U48: 40560 | V48: 41915 | W48: 44055 | X48: 50240 | Y48: 55810 | Z48: 64660 | AA48: 75740 | AB48: 79865 | AC48: 82460 | AD48: 83965 | AE48: 82790 | AF48: 82585 | AG48: 83000 | AH48: 82285 | AI48: 82700 | AJ48: 83060 | AK48: 82520 | AL48: 88110 | AM48: 87005 | AN48: 84460 | AO48: 83340 | AP48: 79205 | AQ48: 75190 | AR48: 73410 | AS48: 72615 | AT48: 71420 | AU48: 69655 | AV48: 69860 | AW48: 70825 | AX48: 75015 | AY48: 76575 | AZ48: 76375 | BA48: 75465 | BB48: 75380 | BC48: 74065 | BD48: 74320 | BE48: 74715 | BF48: 74405 | BG48: 74115 | BH48: 74155 | BI48: 74995 | BJ48: 79190 | BK48: 81340 | BL48: 80580 | BM48: 77480 | BN48: 76655 | BO48: 75220 | BP48: 74165 | BQ48: 73835 | BR48: 73025 | BS48: 73140 | BT48: 73510 | BU48: 73610 | BV48: 76420 | BW48: 78105 | BX48: 76105 | BY48: 73365 | BZ48: 70650 | CA48: 66390 | CB48: 64105 | CC48: 62300 | CD48: 59335 | CE48: 57210 | CF48: 55850 | CG48: 55050 | CH48: 56910 | CI48: 56650 | CJ48: 54045 | CK48: 51015 | CL48: 48405 | CM48: 44605 | CN48: 42665 | CO48: 40780 | CP48: 38915 | CQ48: 37615 | CR48: 36440 | CS48: 35840 | CT48: 37555 | CU48: 37630 | CV48: 36105 | CW48: 34770 | CX48: 33275 | CY48: 31970 | CZ48: 31455 | DA48: 30925 | DB48: 30495 | DC48: 30175 | DD48: 29985 | DE48: 30345 | DF48: 32425 | DG48: 33625 | DH48: 33595 | DI48: 32840 | DJ48: 32070 | DK48: 31085 | DL48: 30730 | DM48: 30980 | DN48: 30960 | DO48: 30890 | DP48: 30820 | DQ48: 30675 | DR48: 32025 | DS48: 33510 | DT48: 34205 | DU48: 34035 | DV48: 33755 | DW48: 33305 | DX48: 33295 | DY48: 33170 | DZ48: 33060 | EA48: 33385 | EB48: 33465 | EC48: 34315 | ED48: 35985 | EE48: 37930 | EF48: 38330 | EG48: 40190 | EH48: 38890 | EI48: 38345 | EJ48: 38705 | EK48: 39510 | EL48: 40595 | EM48: 41670 | EN48: 42725 | EO48: 44425 | EP48: 46645 | EQ48: 50040 | ER48: 51480 | ES48: 52380 | ET48: 53190 | EU48: 55325 | EV48: 56025 | EW48: 57340 | EX48: 58720 | EY48: 60675 | EZ48: 61785 | FA48: 62675 | FB48: 63965 | FC48: 66730 | FD48: 67285 | FE48: 127080 | FF48: 171780 | FG48: 159220 | FH48: 163585 | FI48: 168390 | FJ48: 166010 | FK48: 157525 | FL48: 160290 | FM48: 159710 | FN48: 157205 | FO48: 167015 | FP48: 166570 | FQ48: 163755 | FR48: 151230 | FS48: 138530 | FT48: 136435 | FU48: 131290 | FV48: 124110 | FW48: 120780 | FX48: 116655 | FY48: 113555 | FZ48: 111665 | GA48: 111700 | GB48: 107325 | GC48: 101905 | GD48: 98520 | GE48: 96710 | GF48: 95030 | GG48: 94820 | GH48: 94830 | GI48: 93765 | GJ48: 94100 | GK48: 94925 | GL48: 94210 | GM48: 95355 | GN48: 96530 | GO48: 97405 | GP48: 94200 | GQ48: 95645 | GR48: 95895 | GS48: 95225 | GT48: 95945 | GU48: 96080 | GV48: 96930 | GW48: 98610 | GX48: 99410 | GY48: 102515 | GZ48: 101575 | HA48: 100075 | HB48: 100670 | HC48: 102440 | HD48: 110835 | HE48: 110520 | HF48: 110800 | HG48: 109250 | HH48: 106400 | HI48: 105025 | HJ48: 105495 | HK48: 109510 | HL48: 110740
A49: Kent & Medway | B49: 10560 | C49: 10585 | D49: 10285 | E49: 10055 | F49: 9590 | G49: 9055 | H49: 8775 | I49: 8635 | J49: 8435 | K49: 8260 | L49: 7965 | M49: 8105 | N49: 8530 | O49: 8595 | P49: 8590 | Q49: 8535 | R49: 8625 | S49: 8585 | T49: 8795 | U49: 9320 | V49: 9635 | W49: 10040 | X49: 11370 | Y49: 12785 | Z49: 14510 | AA49: 16740 | AB49: 17530 | AC49: 17875 | AD49: 18350 | AE49: 18000 | AF49: 17880 | AG49: 17935 | AH49: 17925 | AI49: 17985 | AJ49: 17980 | AK49: 18190 | AL49: 19270 | AM49: 19340 | AN49: 19100 | AO49: 18860 | AP49: 18280 | AQ49: 17415 | AR49: 17245 | AS49: 16935 | AT49: 16595 | AU49: 16265 | AV49: 16445 | AW49: 16950 | AX49: 17870 | AY49: 18200 | AZ49: 18165 | BA49: 18115 | BB49: 18275 | BC49: 17960 | BD49: 18070 | BE49: 18085 | BF49: 18085 | BG49: 18125 | BH49: 18395 | BI49: 18720 | BJ49: 19580 | BK49: 20250 | BL49: 20005 | BM49: 19605 | BN49: 19410 | BO49: 19105 | BP49: 19000 | BQ49: 18915 | BR49: 18555 | BS49: 18625 | BT49: 18670 | BU49: 18765 | BV49: 19420 | BW49: 19830 | BX49: 19305 | BY49: 18720 | BZ49: 18110 | CA49: 17240 | CB49: 16615 | CC49: 16180 | CD49: 15460 | CE49: 14950 | CF49: 14635 | CG49: 14655 | CH49: 15145 | CI49: 15120 | CJ49: 14605 | CK49: 13975 | CL49: 13405 | CM49: 12415 | CN49: 11885 | CO49: 11275 | CP49: 10725 | CQ49: 10310 | CR49: 10065 | CS49: 9860 | CT49: 10340 | CU49: 10320 | CV49: 10115 | CW49: 9860 | CX49: 9275 | CY49: 8960 | CZ49: 8760 | DA49: 8640 | DB49: 8620 | DC49: 8715 | DD49: 8610 | DE49: 8805 | DF49: 9330 | DG49: 9710 | DH49: 9830 | DI49: 9775 | DJ49: 9570 | DK49: 9290 | DL49: 9170 | DM49: 9345 | DN49: 9220 | DO49: 9185 | DP49: 9155 | DQ49: 9170 | DR49: 9405 | DS49: 9745 | DT49: 9925 | DU49: 9850 | DV49: 9705 | DW49: 9575 | DX49: 9590 | DY49: 9515 | DZ49: 9485 | EA49: 9495 | EB49: 9600 | EC49: 9815 | ED49: 10255 | EE49: 10665 | EF49: 10815 | EG49: 11245 | EH49: 10905 | EI49: 10645 | EJ49: 10630 | EK49: 10815 | EL49: 11060 | EM49: 11575 | EN49: 11825 | EO49: 12380 | EP49: 12865 | EQ49: 13700 | ER49: 14090 | ES49: 14440 | ET49: 14670 | EU49: 15295 | EV49: 15675 | EW49: 15745 | EX49: 16110 | EY49: 16555 | EZ49: 16800 | FA49: 16835 | FB49: 17195 | FC49: 17760 | FD49: 17780 | FE49: 32685 | FF49: 40690 | FG49: 37445 | FH49: 38440 | FI49: 39505 | FJ49: 38835 | FK49: 36820 | FL49: 37145 | FM49: 37170 | FN49: 36310 | FO49: 38425 | FP49: 38125 | FQ49: 37585 | FR49: 35165 | FS49: 32585 | FT49: 32210 | FU49: 31115 | FV49: 29850 | FW49: 28830 | FX49: 27900 | FY49: 27160 | FZ49: 26655 | GA49: 26720 | GB49: 25505 | GC49: 24185 | GD49: 23330 | GE49: 22485 | GF49: 21860 | GG49: 21640 | GH49: 21675 | GI49: 21415 | GJ49: 21570 | GK49: 21850 | GL49: 21995 | GM49: 22105 | GN49: 22540 | GO49: 22950 | GP49: 22295 | GQ49: 22400 | GR49: 22515 | GS49: 22270 | GT49: 22410 | GU49: 22345 | GV49: 22565 | GW49: 22995 | GX49: 23115 | GY49: 23830 | GZ49: 23585 | HA49: 22995 | HB49: 23055 | HC49: 23005 | HD49: 25000 | HE49: 24675 | HF49: 24620 | HG49: 24365 | HH49: 23500 | HI49: 23350 | HJ49: 23210 | HK49: 23990 | HL49: 24160
GZ50: 3.6
A51: 50-64
A52: Number | B52: 2007-01-01 | C52: 2007-02-01 | D52: 2007-03-01 | E52: 2007-04-01 | F52: 2007-05-01 | G52: 2007-06-01 | H52: 2007-07-01 | I52: 2007-08-01 | J52: 2007-09-01 | K52: 2007-10-01 | L52: 2007-11-01 | M52: 2007-12-01 | N52: 2008-01-01 | O52: 2008-02-01 | P52: 2008-03-01 | Q52: 2008-04-01 | R52: 2008-05-01 | S52: 2008-06-01 | T52: 2008-07-01 | U52: 2008-08-01 | V52: 2008-09-01 | W52: 2008-10-01 | X52: 2008-11-01 | Y52: 2008-12-01 | Z52: 2009-01-01 | AA52: 2009-02-01 | AB52: 2009-03-01 | AC52: 2009-04-01 | AD52: 2009-05-01 | AE52: 2009-06-01 | AF52: 2009-07-01 | AG52: 2009-08-01 | AH52: 2009-09-01 | AI52: 2009-10-01 | AJ52: 2009-11-01 | AK52: 2009-12-01 | AL52: 2010-01-01 | AM52: 2010-02-01 | AN52: 2010-03-01 | AO52: 2010-04-01 | AP52: 2010-05-01 | AQ52: 2010-06-01 | AR52: 2010-07-01 | AS52: 2010-08-01 | AT52: 2010-09-01 | AU52: 2010-10-01 | AV52: 2010-11-01 | AW52: 2010-12-01 | AX52: 2011-01-01 | AY52: February 2011 | AZ52: March 2011 | BA52: April 2011 | BB52: May 2011 | BC52: June 2011 | BD52: July 2011 | BE52: August 2011 | BF52: 2011-09-01 | BG52: October 2011 | BH52: November 2011 | BI52: December 2011 | BJ52: 2012-01-01 | BK52: February 2012 | BL52: March 2012 | BM52: April 2012 | BN52: May 2012 | BO52: June 2012 | BP52: July 2012 | BQ52: August 2012 | BR52: September 2012 | BS52: October 2012 | BT52: November 2012 | BU52: December 2012 | BV52: January 2013 | BW52: February 2013 | BX52: March 2013 | BY52: April 2013 | BZ52: May 2013 | CA52: June 2013 | CB52: July 2013 | CC52: August 2013 | CD52: September 2013 | CE52: October 2013 | CF52: November 2013 | CG52: December 2013 | CH52: 2014-01-01 | CI52: 2014-02-01 | CJ52: 2014-03-01 | CK52: 2014-04-01 | CL52: 2014-05-01 | CM52: 2014-06-01 | CN52: 2014-07-01 | CO52: 2014-08-01 | CP52: 2014-09-01 | CQ52: 2014-10-01 | CR52: 2014-11-01 | CS52: 2014-12-01 | CT52: 2015-01-01 | CU52: 2015-02-01 | CV52: 2015-03-01 | CW52: 2015-04-01 | CX52: 2015-05-01 | CY52: 2015-06-01 | CZ52: 2015-07-01 | DA52: 2015-08-01 | DB52: 2015-09-01 | DC52: 2015-10-01 | DD52: 2015-11-01 | DE52: 2015-12-01 | DF52: 2016-01-01 | DG52: 2016-02-01 | DH52: 2016-03-01 | DI52: 2016-04-01 | DJ52: 2016-05-01 | DK52: 2016-06-01 | DL52: 2016-07-01 | DM52: 2016-08-01 | DN52: 2016-09-01 | DO52: 2016-10-01 | DP52: 2016-11-01 | DQ52: 2016-12-01 | DR52: 2017-01-01 | DS52: 2017-02-01 | DT52: 2017-03-01 | DU52: 2017-04-01 | DV52: 2017-05-01 | DW52: 2017-06-01 | DX52: 2017-07-01 | DY52: 2017-08-01 | DZ52: 2017-09-01 | EA52: 2017-10-01 | EB52: 2017-11-01 | EC52: 2017-12-01 | ED52: 2018-01-01 | EE52: 2018-02-01 | EF52: 2018-03-01 | EG52: 2018-04-01 | EH52: 2018-05-01 | EI52: 2018-06-01 | EJ52: 2018-07-01 | EK52: 2018-08-01 | EL52: 2018-09-01 | EM52: 2018-10-01 | EN52: 2018-11-01 | EO52: 2018-12-01 | EP52: 2019-01-01 | EQ52: 2019-02-01 | ER52: 2019-03-01 | ES52: 2019-04-01 | ET52: 2019-05-01 | EU52: 2019-06-01 | EV52: 2019-07-01 | EW52: 2019-08-01 | EX52: 2019-09-01 | EY52: 2019-10-01 | EZ52: 2019-11-01 | FA52: 2019-12-01 | FB52: 2020-01-01 | FC52: 2020-02-01 | FD52: 2020-03-01 | FE52: 2020-04-01 | FF52: 2020-05-01 | FG52: 2020-06-01 | FH52: 2020-07-01 | FI52: 2020-08-01 | FJ52: 2020-09-01 | FK52: 2020-10-01 | FL52: 2020-11-01 | FM52: 2020-12-01 | FN52: 2021-01-01 | FO52: 2021-02-01 | FP52: 2021-03-01 | FQ52: 2021-04-01 | FR52: 2021-05-01 | FS52: 2021-06-01 | FT52: 2021-07-01 | FU52: 2021-08-01 | FV52: 2021-09-01 | FW52: 2021-10-01 | FX52: 2021-11-01 | FY52: 2021-12-01 | FZ52: 2022-01-01 | GA52: 2022-02-01 | GB52: 2022-03-01 | GC52: 2022-04-01 | GD52: 2022-05-01 | GE52: 2022-06-01 | GF52: 2022-07-01 | GG52: 2022-08-01 | GH52: 2022-09-01 | GI52: 2022-10-01 | GJ52: 2022-11-01 | GK52: 2022-12-01 | GL52: 2023-01-01 | GM52: 2023-02-01 | GN52: 2023-03-01 | GO52: 2023-04-01 | GP52: 2023-05-01 | GQ52: 2023-06-01 | GR52: 2023-07-01 | GS52: 2023-08-01 | GT52: 2023-09-01 | GU52: 2023-10-01 | GV52: 2023-11-01 | GW52: 2023-12-01 | GX52: 2024-01-01 | GY52: 2024-02-01 | GZ52: 2024-03-01 | HA52: 2024-04-01 | HB52: 2024-05-01 | HC52: 2024-06-01 | HD52: 2024-07-01 | HE52: 2024-08-01 | HF52: 2024-09-01 | HG52: 2024-10-01 | HH52: 2024-11-01 | HI52: 2024-12-01 | HJ52: 2025-01-01 | HK52: 2025-02-01 | HL52: 2025-03-01
A53: Kent | B53: 3300 | C53: 3270 | D53: 3140 | E53: 3090 | F53: 3035 | G53: 2925 | H53: 2840 | I53: 2800 | J53: 2595 | K53: 2560 | L53: 2450 | M53: 2400 | N53: 2510 | O53: 2385 | P53: 2390 | Q53: 2370 | R53: 2455 | S53: 2440 | T53: 2480 | U53: 2535 | V53: 2635 | W53: 2760 | X53: 3160 | Y53: 3555 | Z53: 4005 | AA53: 4505 | AB53: 4700 | AC53: 4830 | AD53: 4930 | AE53: 4760 | AF53: 4710 | AG53: 4720 | AH53: 4640 | AI53: 4650 | AJ53: 4730 | AK53: 4780 | AL53: 5095 | AM53: 5040 | AN53: 4960 | AO53: 4895 | AP53: 4775 | AQ53: 4570 | AR53: 4450 | AS53: 4410 | AT53: 4235 | AU53: 4255 | AV53: 4350 | AW53: 4390 | AX53: 4645 | AY53: 4670 | AZ53: 4605 | BA53: 4660 | BB53: 4645 | BC53: 4575 | BD53: 4585 | BE53: 4635 | BF53: 4680 | BG53: 4710 | BH53: 4810 | BI53: 4975 | BJ53: 5280 | BK53: 5485 | BL53: 5345 | BM53: 5355 | BN53: 5375 | BO53: 5225 | BP53: 5180 | BQ53: 5090 | BR53: 4895 | BS53: 5000 | BT53: 5020 | BU53: 5075 | BV53: 5310 | BW53: 5395 | BX53: 5270 | BY53: 5180 | BZ53: 5025 | CA53: 4900 | CB53: 4750 | CC53: 4635 | CD53: 4435 | CE53: 4325 | CF53: 4235 | CG53: 4225 | CH53: 4380 | CI53: 4385 | CJ53: 4245 | CK53: 4140 | CL53: 4015 | CM53: 3785 | CN53: 3680 | CO53: 3565 | CP53: 3380 | CQ53: 3300 | CR53: 3270 | CS53: 3220 | CT53: 3380 | CU53: 3475 | CV53: 3405 | CW53: 3395 | CX53: 3230 | CY53: 3110 | CZ53: 3060 | DA53: 3090 | DB53: 3095 | DC53: 3110 | DD53: 3200 | DE53: 3320 | DF53: 3540 | DG53: 3670 | DH53: 3765 | DI53: 3840 | DJ53: 3835 | DK53: 3840 | DL53: 3915 | DM53: 4010 | DN53: 3950 | DO53: 4000 | DP53: 3920 | DQ53: 3910 | DR53: 4060 | DS53: 4170 | DT53: 4240 | DU53: 4290 | DV53: 4215 | DW53: 4255 | DX53: 4265 | DY53: 4315 | DZ53: 4305 | EA53: 4395 | EB53: 4525 | EC53: 4770 | ED53: 4930 | EE53: 5135 | EF53: 5170 | EG53: 5310 | EH53: 5295 | EI53: 5235 | EJ53: 5140 | EK53: 5180 | EL53: 5285 | EM53: 5340 | EN53: 5495 | EO53: 5660 | EP53: 5890 | EQ53: 6185 | ER53: 6275 | ES53: 6320 | ET53: 6355 | EU53: 6420 | EV53: 6520 | EW53: 6510 | EX53: 6480 | EY53: 6535 | EZ53: 6595 | FA53: 6540 | FB53: 6735 | FC53: 6855 | FD53: 6830 | FE53: 11760 | FF53: 14540 | FG53: 13560 | FH53: 13865 | FI53: 14355 | FJ53: 14225 | FK53: 13725 | FL53: 14015 | FM53: 14105 | FN53: 13765 | FO53: 14320 | FP53: 14100 | FQ53: 13800 | FR53: 12870 | FS53: 11820 | FT53: 11665 | FU53: 11145 | FV53: 10570 | FW53: 10205 | FX53: 9935 | FY53: 9620 | FZ53: 9460 | GA53: 9350 | GB53: 8925 | GC53: 8415 | GD53: 8065 | GE53: 7725 | GF53: 7510 | GG53: 7465 | GH53: 7290 | GI53: 7150 | GJ53: 7210 | GK53: 7330 | GL53: 7320 | GM53: 7360 | GN53: 7360 | GO53: 7470 | GP53: 7140 | GQ53: 7185 | GR53: 7225 | GS53: 7090 | GT53: 6950 | GU53: 7070 | GV53: 7110 | GW53: 7255 | GX53: 7315 | GY53: 7550 | GZ53: 7590 | HA53: 7465 | HB53: 7425 | HC53: 7470 | HD53: 8040 | HE53: 7865 | HF53: 7945 | HG53: 7885 | HH53: 7770 | HI53: 7745 | HJ53: 7565 | HK53: 7745 | HL53: 7925
A54: Medway | B54: 825 | C54: 810 | D54: 805 | E54: 795 | F54: 750 | G54: 695 | H54: 660 | I54: 645 | J54: 605 | K54: 575 | L54: 560 | M54: 535 | N54: 560 | O54: 550 | P54: 570 | Q54: 575 | R54: 550 | S54: 560 | T54: 570 | U54: 590 | V54: 580 | W54: 620 | X54: 685 | Y54: 770 | Z54: 885 | AA54: 1010 | AB54: 1050 | AC54: 1115 | AD54: 1175 | AE54: 1135 | AF54: 1160 | AG54: 1115 | AH54: 1095 | AI54: 1085 | AJ54: 1055 | AK54: 1090 | AL54: 1145 | AM54: 1150 | AN54: 1160 | AO54: 1140 | AP54: 1120 | AQ54: 1070 | AR54: 1050 | AS54: 1010 | AT54: 970 | AU54: 995 | AV54: 960 | AW54: 980 | AX54: 1025 | AY54: 1015 | AZ54: 1010 | BA54: 1000 | BB54: 1015 | BC54: 1025 | BD54: 1080 | BE54: 1070 | BF54: 1080 | BG54: 1070 | BH54: 1070 | BI54: 1085 | BJ54: 1130 | BK54: 1160 | BL54: 1145 | BM54: 1110 | BN54: 1090 | BO54: 1055 | BP54: 1070 | BQ54: 1090 | BR54: 1050 | BS54: 1075 | BT54: 1055 | BU54: 1035 | BV54: 1110 | BW54: 1120 | BX54: 1100 | BY54: 1065 | BZ54: 1025 | CA54: 1015 | CB54: 975 | CC54: 950 | CD54: 875 | CE54: 870 | CF54: 865 | CG54: 885 | CH54: 950 | CI54: 955 | CJ54: 930 | CK54: 900 | CL54: 900 | CM54: 850 | CN54: 805 | CO54: 815 | CP54: 805 | CQ54: 795 | CR54: 775 | CS54: 780 | CT54: 810 | CU54: 810 | CV54: 840 | CW54: 865 | CX54: 875 | CY54: 850 | CZ54: 835 | DA54: 810 | DB54: 845 | DC54: 830 | DD54: 810 | DE54: 805 | DF54: 815 | DG54: 840 | DH54: 840 | DI54: 900 | DJ54: 865 | DK54: 825 | DL54: 820 | DM54: 830 | DN54: 820 | DO54: 835 | DP54: 820 | DQ54: 860 | DR54: 860 | DS54: 885 | DT54: 900 | DU54: 895 | DV54: 890 | DW54: 875 | DX54: 870 | DY54: 870 | DZ54: 830 | EA54: 840 | EB54: 855 | EC54: 865 | ED54: 880 | EE54: 885 | EF54: 895 | EG54: 905 | EH54: 930 | EI54: 895 | EJ54: 920 | EK54: 965 | EL54: 985 | EM54: 1005 | EN54: 1015 | EO54: 1055 | EP54: 1100 | EQ54: 1125 | ER54: 1200 | ES54: 1210 | ET54: 1230 | EU54: 1240 | EV54: 1290 | EW54: 1270 | EX54: 1275 | EY54: 1295 | EZ54: 1310 | FA54: 1315 | FB54: 1365 | FC54: 1340 | FD54: 1320 | FE54: 2020 | FF54: 2715 | FG54: 2520 | FH54: 2570 | FI54: 2645 | FJ54: 2615 | FK54: 2530 | FL54: 2595 | FM54: 2620 | FN54: 2560 | FO54: 2650 | FP54: 2660 | FQ54: 2630 | FR54: 2475 | FS54: 2330 | FT54: 2280 | FU54: 2200 | FV54: 2055 | FW54: 2015 | FX54: 1925 | FY54: 1890 | FZ54: 1865 | GA54: 1845 | GB54: 1790 | GC54: 1650 | GD54: 1595 | GE54: 1490 | GF54: 1420 | GG54: 1375 | GH54: 1385 | GI54: 1355 | GJ54: 1385 | GK54: 1380 | GL54: 1410 | GM54: 1430 | GN54: 1440 | GO54: 1505 | GP54: 1440 | GQ54: 1425 | GR54: 1440 | GS54: 1430 | GT54: 1415 | GU54: 1470 | GV54: 1475 | GW54: 1430 | GX54: 1415 | GY54: 1460 | GZ54: 1475 | HA54: 1455 | HB54: 1460 | HC54: 1445 | HD54: 1540 | HE54: 1550 | HF54: 1580 | HG54: 1575 | HH54: 1595 | HI54: 1565 | HJ54: 1580 | HK54: 1570 | HL54: 1620
A55: Ashford | B55: 155 | C55: 170 | D55: 165 | E55: 170 | F55: 170 | G55: 170 | H55: 150 | I55: 145 | J55: 130 | K55: 135 | L55: 135 | M55: 135 | N55: 145 | O55: 140 | P55: 145 | Q55: 150 | R55: 150 | S55: 145 | T55: 145 | U55: 150 | V55: 155 | W55: 165 | X55: 190 | Y55: 235 | Z55: 265 | AA55: 300 | AB55: 325 | AC55: 345 | AD55: 355 | AE55: 345 | AF55: 345 | AG55: 340 | AH55: 330 | AI55: 340 | AJ55: 335 | AK55: 350 | AL55: 360 | AM55: 355 | AN55: 365 | AO55: 355 | AP55: 330 | AQ55: 310 | AR55: 325 | AS55: 315 | AT55: 290 | AU55: 295 | AV55: 325 | AW55: 330 | AX55: 330 | AY55: 330 | AZ55: 320 | BA55: 320 | BB55: 325 | BC55: 320 | BD55: 320 | BE55: 320 | BF55: 325 | BG55: 315 | BH55: 320 | BI55: 325 | BJ55: 345 | BK55: 355 | BL55: 335 | BM55: 330 | BN55: 320 | BO55: 335 | BP55: 320 | BQ55: 305 | BR55: 300 | BS55: 310 | BT55: 310 | BU55: 305 | BV55: 315 | BW55: 325 | BX55: 320 | BY55: 310 | BZ55: 315 | CA55: 295 | CB55: 300 | CC55: 300 | CD55: 285 | CE55: 280 | CF55: 275 | CG55: 285 | CH55: 280 | CI55: 270 | CJ55: 265 | CK55: 260 | CL55: 255 | CM55: 235 | CN55: 230 | CO55: 225 | CP55: 205 | CQ55: 205 | CR55: 205 | CS55: 205 | CT55: 220 | CU55: 230 | CV55: 225 | CW55: 230 | CX55: 210 | CY55: 210 | CZ55: 210 | DA55: 205 | DB55: 220 | DC55: 220 | DD55: 220 | DE55: 235 | DF55: 255 | DG55: 260 | DH55: 270 | DI55: 270 | DJ55: 280 | DK55: 280 | DL55: 290 | DM55: 290 | DN55: 285 | DO55: 280 | DP55: 290 | DQ55: 275 | DR55: 290 | DS55: 305 | DT55: 330 | DU55: 335 | DV55: 345 | DW55: 335 | DX55: 330 | DY55: 335 | DZ55: 330 | EA55: 330 | EB55: 330 | EC55: 355 | ED55: 355 | EE55: 380 | EF55: 390 | EG55: 385 | EH55: 385 | EI55: 390 | EJ55: 380 | EK55: 385 | EL55: 405 | EM55: 420 | EN55: 445 | EO55: 460 | EP55: 465 | EQ55: 485 | ER55: 495 | ES55: 485 | ET55: 480 | EU55: 485 | EV55: 515 | EW55: 510 | EX55: 490 | EY55: 495 | EZ55: 500 | FA55: 505 | FB55: 515 | FC55: 525 | FD55: 550 | FE55: 945 | FF55: 1180 | FG55: 1080 | FH55: 1125 | FI55: 1195 | FJ55: 1185 | FK55: 1150 | FL55: 1195 | FM55: 1195 | FN55: 1150 | FO55: 1200 | FP55: 1170 | FQ55: 1130 | FR55: 1055 | FS55: 975 | FT55: 940 | FU55: 905 | FV55: 885 | FW55: 815 | FX55: 790 | FY55: 780 | FZ55: 765 | GA55: 755 | GB55: 705 | GC55: 665 | GD55: 645 | GE55: 590 | GF55: 555 | GG55: 560 | GH55: 540 | GI55: 550 | GJ55: 520 | GK55: 540 | GL55: 555 | GM55: 560 | GN55: 565 | GO55: 585 | GP55: 550 | GQ55: 570 | GR55: 560 | GS55: 545 | GT55: 535 | GU55: 530 | GV55: 560 | GW55: 550 | GX55: 555 | GY55: 585 | GZ55: 595 | HA55: 575 | HB55: 590 | HC55: 575 | HD55: 625 | HE55: 605 | HF55: 600 | HG55: 595 | HH55: 580 | HI55: 615 | HJ55: 620 | HK55: 625 | HL55: 630
A56: Canterbury | B56: 315 | C56: 310 | D56: 300 | E56: 285 | F56: 260 | G56: 265 | H56: 250 | I56: 235 | J56: 220 | K56: 220 | L56: 205 | M56: 200 | N56: 225 | O56: 220 | P56: 220 | Q56: 215 | R56: 215 | S56: 210 | T56: 215 | U56: 220 | V56: 220 | W56: 240 | X56: 280 | Y56: 290 | Z56: 310 | AA56: 340 | AB56: 350 | AC56: 370 | AD56: 380 | AE56: 365 | AF56: 370 | AG56: 370 | AH56: 365 | AI56: 365 | AJ56: 385 | AK56: 395 | AL56: 425 | AM56: 425 | AN56: 405 | AO56: 405 | AP56: 395 | AQ56: 400 | AR56: 375 | AS56: 360 | AT56: 345 | AU56: 350 | AV56: 350 | AW56: 350 | AX56: 400 | AY56: 410 | AZ56: 385 | BA56: 395 | BB56: 390 | BC56: 405 | BD56: 395 | BE56: 395 | BF56: 410 | BG56: 415 | BH56: 420 | BI56: 420 | BJ56: 430 | BK56: 440 | BL56: 420 | BM56: 410 | BN56: 405 | BO56: 410 | BP56: 405 | BQ56: 385 | BR56: 375 | BS56: 360 | BT56: 360 | BU56: 375 | BV56: 395 | BW56: 390 | BX56: 400 | BY56: 405 | BZ56: 400 | CA56: 390 | CB56: 370 | CC56: 360 | CD56: 335 | CE56: 330 | CF56: 315 | CG56: 315 | CH56: 330 | CI56: 335 | CJ56: 325 | CK56: 310 | CL56: 300 | CM56: 280 | CN56: 275 | CO56: 270 | CP56: 245 | CQ56: 240 | CR56: 240 | CS56: 230 | CT56: 240 | CU56: 250 | CV56: 245 | CW56: 240 | CX56: 230 | CY56: 220 | CZ56: 205 | DA56: 220 | DB56: 235 | DC56: 240 | DD56: 255 | DE56: 265 | DF56: 280 | DG56: 290 | DH56: 325 | DI56: 335 | DJ56: 335 | DK56: 345 | DL56: 340 | DM56: 350 | DN56: 355 | DO56: 370 | DP56: 355 | DQ56: 360 | DR56: 365 | DS56: 370 | DT56: 360 | DU56: 355 | DV56: 350 | DW56: 355 | DX56: 365 | DY56: 375 | DZ56: 365 | EA56: 350 | EB56: 365 | EC56: 395 | ED56: 400 | EE56: 415 | EF56: 410 | EG56: 400 | EH56: 400 | EI56: 395 | EJ56: 360 | EK56: 370 | EL56: 395 | EM56: 430 | EN56: 460 | EO56: 510 | EP56: 515 | EQ56: 535 | ER56: 555 | ES56: 545 | ET56: 550 | EU56: 530 | EV56: 540 | EW56: 535 | EX56: 520 | EY56: 545 | EZ56: 555 | FA56: 550 | FB56: 585 | FC56: 590 | FD56: 600 | FE56: 1110 | FF56: 1310 | FG56: 1200 | FH56: 1230 | FI56: 1265 | FJ56: 1255 | FK56: 1190 | FL56: 1220 | FM56: 1240 | FN56: 1180 | FO56: 1255 | FP56: 1230 | FQ56: 1180 | FR56: 1125 | FS56: 1010 | FT56: 1005 | FU56: 950 | FV56: 900 | FW56: 865 | FX56: 865 | FY56: 820 | FZ56: 825 | GA56: 840 | GB56: 825 | GC56: 775 | GD56: 715 | GE56: 695 | GF56: 665 | GG56: 665 | GH56: 650 | GI56: 675 | GJ56: 695 | GK56: 680 | GL56: 685 | GM56: 695 | GN56: 695 | GO56: 705 | GP56: 705 | GQ56: 720 | GR56: 715 | GS56: 695 | GT56: 705 | GU56: 710 | GV56: 710 | GW56: 740 | GX56: 780 | GY56: 805 | GZ56: 835 | HA56: 830 | HB56: 800 | HC56: 800 | HD56: 870 | HE56: 840 | HF56: 830 | HG56: 865 | HH56: 820 | HI56: 815 | HJ56: 800 | HK56: 805 | HL56: 815
A57: Dartford | B57: 195 | C57: 185 | D57: 185 | E57: 185 | F57: 175 | G57: 170 | H57: 175 | I57: 175 | J57: 150 | K57: 145 | L57: 140 | M57: 140 | N57: 145 | O57: 135 | P57: 130 | Q57: 130 | R57: 135 | S57: 135 | T57: 140 | U57: 160 | V57: 165 | W57: 170 | X57: 195 | Y57: 215 | Z57: 250 | AA57: 290 | AB57: 300 | AC57: 305 | AD57: 325 | AE57: 335 | AF57: 335 | AG57: 340 | AH57: 345 | AI57: 345 | AJ57: 335 | AK57: 320 | AL57: 375 | AM57: 385 | AN57: 360 | AO57: 350 | AP57: 335 | AQ57: 310 | AR57: 295 | AS57: 305 | AT57: 280 | AU57: 280 | AV57: 275 | AW57: 285 | AX57: 300 | AY57: 305 | AZ57: 295 | BA57: 320 | BB57: 325 | BC57: 315 | BD57: 315 | BE57: 305 | BF57: 310 | BG57: 315 | BH57: 310 | BI57: 310 | BJ57: 320 | BK57: 340 | BL57: 315 | BM57: 330 | BN57: 320 | BO57: 305 | BP57: 320 | BQ57: 310 | BR57: 290 | BS57: 300 | BT57: 300 | BU57: 305 | BV57: 315 | BW57: 325 | BX57: 315 | BY57: 315 | BZ57: 305 | CA57: 295 | CB57: 275 | CC57: 280 | CD57: 250 | CE57: 250 | CF57: 240 | CG57: 220 | CH57: 240 | CI57: 235 | CJ57: 220 | CK57: 225 | CL57: 220 | CM57: 205 | CN57: 195 | CO57: 185 | CP57: 180 | CQ57: 160 | CR57: 160 | CS57: 150 | CT57: 155 | CU57: 175 | CV57: 175 | CW57: 180 | CX57: 175 | CY57: 175 | CZ57: 170 | DA57: 180 | DB57: 165 | DC57: 155 | DD57: 150 | DE57: 150 | DF57: 165 | DG57: 180 | DH57: 175 | DI57: 175 | DJ57: 170 | DK57: 170 | DL57: 170 | DM57: 190 | DN57: 190 | DO57: 185 | DP57: 165 | DQ57: 165 | DR57: 165 | DS57: 185 | DT57: 190 | DU57: 190 | DV57: 195 | DW57: 190 | DX57: 190 | DY57: 190 | DZ57: 195 | EA57: 195 | EB57: 190 | EC57: 195 | ED57: 200 | EE57: 200 | EF57: 205 | EG57: 190 | EH57: 180 | EI57: 180 | EJ57: 170 | EK57: 170 | EL57: 185 | EM57: 190 | EN57: 200 | EO57: 210 | EP57: 225 | EQ57: 260 | ER57: 265 | ES57: 275 | ET57: 275 | EU57: 305 | EV57: 305 | EW57: 305 | EX57: 300 | EY57: 295 | EZ57: 300 | FA57: 285 | FB57: 310 | FC57: 315 | FD57: 320 | FE57: 630 | FF57: 840 | FG57: 780 | FH57: 810 | FI57: 830 | FJ57: 805 | FK57: 780 | FL57: 785 | FM57: 780 | FN57: 785 | FO57: 815 | FP57: 820 | FQ57: 810 | FR57: 760 | FS57: 705 | FT57: 725 | FU57: 660 | FV57: 615 | FW57: 575 | FX57: 550 | FY57: 510 | FZ57: 515 | GA57: 485 | GB57: 460 | GC57: 455 | GD57: 445 | GE57: 440 | GF57: 440 | GG57: 435 | GH57: 425 | GI57: 420 | GJ57: 425 | GK57: 415 | GL57: 420 | GM57: 420 | GN57: 425 | GO57: 425 | GP57: 410 | GQ57: 430 | GR57: 430 | GS57: 415 | GT57: 405 | GU57: 425 | GV57: 430 | GW57: 415 | GX57: 435 | GY57: 465 | GZ57: 475 | HA57: 470 | HB57: 470 | HC57: 480 | HD57: 525 | HE57: 520 | HF57: 525 | HG57: 470 | HH57: 460 | HI57: 470 | HJ57: 450 | HK57: 470 | HL57: 490
A58: Dover | B58: 345 | C58: 345 | D58: 325 | E58: 315 | F58: 310 | G58: 300 | H58: 290 | I58: 290 | J58: 260 | K58: 235 | L58: 215 | M58: 215 | N58: 235 | O58: 225 | P58: 210 | Q58: 200 | R58: 225 | S58: 215 | T58: 225 | U58: 230 | V58: 240 | W58: 270 | X58: 315 | Y58: 345 | Z58: 385 | AA58: 410 | AB58: 420 | AC58: 425 | AD58: 435 | AE58: 405 | AF58: 390 | AG58: 390 | AH58: 385 | AI58: 400 | AJ58: 410 | AK58: 425 | AL58: 445 | AM58: 445 | AN58: 460 | AO58: 430 | AP58: 405 | AQ58: 380 | AR58: 365 | AS58: 360 | AT58: 355 | AU58: 350 | AV58: 360 | AW58: 390 | AX58: 410 | AY58: 425 | AZ58: 420 | BA58: 400 | BB58: 395 | BC58: 380 | BD58: 380 | BE58: 385 | BF58: 395 | BG58: 390 | BH58: 410 | BI58: 420 | BJ58: 465 | BK58: 470 | BL58: 475 | BM58: 505 | BN58: 525 | BO58: 515 | BP58: 510 | BQ58: 515 | BR58: 465 | BS58: 485 | BT58: 475 | BU58: 490 | BV58: 505 | BW58: 515 | BX58: 500 | BY58: 495 | BZ58: 470 | CA58: 440 | CB58: 420 | CC58: 405 | CD58: 415 | CE58: 390 | CF58: 395 | CG58: 405 | CH58: 415 | CI58: 430 | CJ58: 435 | CK58: 435 | CL58: 410 | CM58: 370 | CN58: 370 | CO58: 340 | CP58: 320 | CQ58: 330 | CR58: 340 | CS58: 330 | CT58: 345 | CU58: 355 | CV58: 340 | CW58: 350 | CX58: 315 | CY58: 305 | CZ58: 295 | DA58: 290 | DB58: 295 | DC58: 300 | DD58: 320 | DE58: 345 | DF58: 355 | DG58: 375 | DH58: 385 | DI58: 380 | DJ58: 365 | DK58: 370 | DL58: 385 | DM58: 390 | DN58: 380 | DO58: 395 | DP58: 365 | DQ58: 365 | DR58: 390 | DS58: 415 | DT58: 420 | DU58: 435 | DV58: 420 | DW58: 430 | DX58: 455 | DY58: 475 | DZ58: 500 | EA58: 530 | EB58: 570 | EC58: 595 | ED58: 595 | EE58: 635 | EF58: 635 | EG58: 665 | EH58: 635 | EI58: 655 | EJ58: 655 | EK58: 655 | EL58: 645 | EM58: 670 | EN58: 665 | EO58: 690 | EP58: 705 | EQ58: 710 | ER58: 715 | ES58: 720 | ET58: 720 | EU58: 705 | EV58: 695 | EW58: 680 | EX58: 675 | EY58: 675 | EZ58: 655 | FA58: 650 | FB58: 665 | FC58: 675 | FD58: 660 | FE58: 1075 | FF58: 1220 | FG58: 1160 | FH58: 1160 | FI58: 1200 | FJ58: 1205 | FK58: 1170 | FL58: 1205 | FM58: 1185 | FN58: 1165 | FO58: 1195 | FP58: 1215 | FQ58: 1165 | FR58: 1075 | FS58: 1005 | FT58: 980 | FU58: 950 | FV58: 900 | FW58: 875 | FX58: 860 | FY58: 835 | FZ58: 830 | GA58: 835 | GB58: 805 | GC58: 760 | GD58: 745 | GE58: 705 | GF58: 655 | GG58: 675 | GH58: 660 | GI58: 625 | GJ58: 640 | GK58: 670 | GL58: 655 | GM58: 645 | GN58: 650 | GO58: 660 | GP58: 645 | GQ58: 625 | GR58: 635 | GS58: 635 | GT58: 615 | GU58: 605 | GV58: 595 | GW58: 615 | GX58: 615 | GY58: 625 | GZ58: 620 | HA58: 605 | HB58: 605 | HC58: 620 | HD58: 645 | HE58: 615 | HF58: 615 | HG58: 620 | HH58: 615 | HI58: 615 | HJ58: 585 | HK58: 565 | HL58: 590
